Workbook

Sheet STARTHERE-README
A1: HOW TO USE THE DEVICE SEARCH FORM
A2: Overview:
D14: Sample: Enable Content to use the search form
A15: Key Steps:
A16: When you select the "Begin Search" command button above, a search form will appear. Note: If prompted, you may need to Enable Content or enable macros. | D16: Sample: Device Search
A18: The search form will allow you to:
A19: 1- Search for device by FILTERING selection to those devices which met your search criteria.
A20: 2- After filtering, CHOOSE a device (by clicking on row number)
A21: 3- VIEW related peripherals and/or Consumables for selected device (using command buttons).
A23: STEP 1: FILTER USING FORM TO FIND DESIRED DEVICE
A24: Search for a device using prepopulated dropdowns. You can use any or all of the search options below:
A25: 1. Device Type – i.e., Multi-functional device (MFD) or Printer
A26: 2. Estimated Monthly Page Volume
A27: 3. Mono / Color
A28: 4. Maximum Original and Copy Paper Size
A29: 5. Copies per Minute
A30: The Form is used to filter options and to navigate to Peripherals and Consumable worksheets.
A31: Example: If you are searching for a multifunctional device (MFD) which prints in color and accepts 11x17 original and copy paper size, your search may look like the following à
A35: STEP 2: SELECT A DEVICE
A36: To view the peripherals and consumables related to a particular device, from the New Device sheet click the ROW NUMBER which corresponds to the device. | D36: Sample: Select Row Number to Indicate Device of Interest
A37: Note: Only click one row number from the New Device workbook.
A38: After clicking on a row number, the search form will show additional options to “View Peripherals” associated with the selected device and/ or “View Consumables” associated with the selected device.
A44: The form can be minimized. Minimizing is ideal for scrolling to see features of devices, consumables and peripherals which may be of interest.
A47: After minimizing, you may restore form. The form may be minimized in the lower left of the workbook. If you close the form, reopen workbook to reopen the form and start over.
A53: Command Button: “Summarize Selected Rows”. If you want to email or print information about the device, consumables or peripherals to share with others for comparison, select rows of interest from both the Peripherals sheet and the Consumables sheet.
A54: Note: the word “Rows” refers to the single row selected in the New Device Sheet and all rows selected (if any) in the Peripherals and Consumables sheets.
A55: Here’s how:
D57: Sample: Multi-select of rows using Ctrl-Click for additional rows: Peripherals
A58: STEP 3: View Peripherals or Consumables
A59: Peripherals:
A60: Once you select “View Peripherals” on the search form, only the peripherals related to the selected row will be shown. If you would like to include some peripherals in the summary, select first row by clicking on the row number. For additional rows, select by pressing CTRL and then left click (even if you want all the rows), CTRL-click is used to select EACH row. If you want to start over, click on any cell to deselect current selection and reselect the rows of interest.
A61: Sample Multi-selection of Peripherals below:
A63: Consumables:
A64: Once you select “View Consumables” on the menu, only the consumables related to the selected row will be shown. If you would like to include selected Consumables in the overall summary, select first row by clicking on the row number. For additional rows, select by pressing CTRL and then left click (even if you want all the rows), CTRL-click is used to select EACH row. If you want to start over, click on any cell to deselect current selection and reselect the rows of interest. | D64: Sample: Multi-select of rows using Ctrl-Click for additional rows: Consumables
A65: Sample Multi-selection of Consumables below:
A70: STEP 5: Summarize Selected Rows – OPTIONAL | D70: Sample: Summary of Selected Device, Selected Consumables, Selected Peripherals
A72: After a row is selected in the “New Device Sheet” and any (optional row selections) in Peripherals or Consumables sheets, choose “Summarize Selected Row” to see a summary of all the information related to selected device. The Summary will include all information in New Device and any selected rows in the Peripherals and Consumables tabs.
A73: Troubleshooting: If the devices or consumables do not show in the summary, reselect as there may be an extra cell which was selected which did not represent a row.
A75: Available Summary Options:
A76: A form will appear showing the information in all the columns contained in the “New Device” sheet and/or all the information for the related Peripherals and Consumables sheets (if any).
A77: You may either:
A78: 1- Email the summary to yourself and others, be sure to modify the email address where the prompt is to “Enter Email address”. Click “Email Summary (MS Outlook)
A80: 2- Copy - “Copy to clipboard” – If you want to paste the data in another application, use this option. You need to format data with a fixed font such as “Courier” after pasting better alignment.
A82: 3- Print -– You can print this summary (used default printer). This option requires MS Word to be installed. Word may not open. It is used as a “pass through for printing”. Click Print Summary (requires MS Word)
A83: To return to list of devices to investigate features of another device, select “View New Device List”. To clear all filters and start over, either exit the workbook or select “Reset Form”.
A89: PREREQUISITE TO USING WORKBOOK: Ensure macros are enabled. If you receive a notification when opening the spreadsheet to select “Enable Content”, select this option.
A90: The minimum setting of “Disable all macros WITH notification” is required. This setting is set in the Trust Center. The trust center settings are generally located under the File, Options, Trust Center, Macro Settings.
A92: Sample: Minimum Macro Settings required in Trust Center

Sheet New Devices
O1: =SUBTOTAL(3,A3:A10030) -> 237 | R1: Device Purchase Information | U1: Peripherals | V1: Parts | X1: Extended Warranty Purchase Information | AB1: Leasing Information | AK1: Maintenance Plan Information | AT1: Document Output Device Product Specifications
A2: Lot | B2: Segment # | C2: Document Output Device Segment | D2: Device Type | E2: Estimated Monthly Page Volume | F2: Mono / Color | G2: Maximum Original & Copy Paper Size | H2: Manufacturer's Name | I2: Manufacturer's Model Number | J2: Manufacturer's Part Number | K2: New Device NC Discounted Purchase Price | L2: Extended Warranty NC Discounted Purchase Price | M2: Estimated Consumables Purchases During 3 Year Lifecycle | N2: Total Purchase 3 Year TCO | O2: 36-Month Total Lease Payments | P2: Estimated 3 Year Maintenance Agreement Price | Q2: Total Lease 3 Year TCO | R2: Device MSRP | S2: Minimum Device Discount % Off MSRP | T2: New Device NC Discounted Purchase Price2 | U2: Minimum Peripherals Discount % Off MSRP | V2: Minimum Replaceable Parts Discount % Off MSRP | W2: Standard Manufacturer Warranty Included with Purchase | X2: Extended Warranty Plan Part Number | Y2: Extended Warranty Plan MSRP | Z2: Minimum Extended Warranty Plan Discount % Off MSRP | AA2: Extended Warranty NC Discounted Purchase Price3 | AB2: 36-Month Lease Rate Factor (excluding Software) | AC2: 36-Month Total Lease Payments4 | AD2: 48-Month Lease Rate Factor (excluding Software) | AE2: 48-Month Total Lease Payments | AF2: 60-Month Lease Rate Factor (excluding Software) | AG2: 60-Month Total Lease Payments | AH2: 36-Month Lease Rate Factor for Software | AI2: 48-Month Lease Rate Factor for Software | AJ2: 60-Month Lease Rate Factor for Software | AK2: Annual Maintenance Plan Part Number | AL2: Annual Maintenance Plan MSRP | AM2: Minimum Annual Maintenance Plan Discount % Off MSRP | AN2: Annual Maintenance Plan NC Discounted Purchase Price | AO2: Number of Copies Included in Annual Maintenance Plan Cost | AP2: Maintenance Cost Per Copy (Mono) | AQ2: Maintenance Cost Per Copy (Color) | AR2: Estimated 3 Year Maintenance Agreement Price5 | AS2: Cost for Agency To Retain Hard Drive (if applicable) | AT2: Mono / Color6 | AU2: Maximum Original & Copy Paper Size7 | AV2: Recommended Monthly Page Volume | AW2: Printed Copies per Minute (Mono) | AX2: Printing First Page Out Time (Mono) (in seconds) | AY2: Duplex Printing (Yes or No) | AZ2: Paper Input Capacity (in sheets) | BA2: Output Tray Capacity (in sheets) | BB2: Memory | BC2: Link to Detailed Specification Sheet for Proposed Document Output Device | BD2: Column1 | BE2: Column2 | BF2: Column3
A3: B.1 | B3: 3 | C3: Laser / LED Printer - 19 to 30 CPM (Mono) | D3: Printer | E3: 1500 | F3: Mono | G3: 8.5 X 14 | H3: Canon USA, Inc. | I3: imageRUNNER 1643iF+ | J3: 3630C030AA | K3: 693.91 | L3: 198 | M3: 227.33 | N3: =SUM(Table1[[#This Row],[New Device NC Discounted Purchase Price]:[Estimated Consumables Purchases During 3 Year Lifecycle]]) -> 1119.24 | O3: =Table1[[#This Row],[36-Month Total Lease Payments4]] -> 739.425182 | P3: =Table1[[#This Row],[Estimated 3 Year Maintenance Agreement Price5]] -> 648 | Q3: =SUM(O3:P3) -> 1387.425182 | R3: 1763.33 | S3: =(Table1[[#This Row],[Device MSRP]]-Table1[[#This Row],[New Device NC Discounted Purchase Price]])/Table1[[#This Row],[Device MSRP]] -> 0.606477517 | T3: 693.9050131 | U3: 0.45 | V3: 0 | W3: 90 days | X3: 6138B383AA | Y3: 388.5 | Z3: 0.4903474903 | AA3: 198 | AB3: 0.0296 | AC3: =Table1[[#This Row],[New Device NC Discounted Purchase Price2]]*Table1[[#This Row],[36-Month Lease Rate Factor (excluding Software)]]*36 -> 739.425182 | AD3: 0.0245 | AE3: =Table1[[#This Row],[New Device NC Discounted Purchase Price]]*Table1[[#This Row],[48-Month Lease Rate Factor (excluding Software)]]*48 -> 816.03816 | AF3: 0.0204 | AG3: =Table1[[#This Row],[New Device NC Discounted Purchase Price2]]*Table1[[#This Row],[60-Month Lease Rate Factor (excluding Software)]]*60 -> 849.3397361 | AH3: 0.0328 | AI3: 0.0259 | AJ3: 0.0216 | AN3: 0 | AO3: 0 | AP3: 0.012 | AR3: =IFERROR(IF(F3="Mono",((AN3*3)+((E3*36)*AP3)),((AN3*3)+((E3*36)*AP3*0.62)+((E3*36)*AQ3*0.38))),"") -> 648 | AS3: 350 | AT3: Mono | AU3: 8.5 X 14 | AV3: 3000 | AW3: 45 | AX3: 6 | AY3: Yes | AZ3: 550 | BA3: 150 | BB3: 1GB | BC3: https://www.usa.canon.com/internet/portal/us/home/products/details/copiers-mfps-fax-machines/multifunction-copiers/imagerunner-1643if | BD3: =CONCATENATE(C3,I3) -> Laser / LED Printer - 19 to 30 CPM (Mono)imageRUNNER 1643iF+
A4: B.1 | B4: 4 | C4: Laser / LED Printer - 11 to 20 CPM (Color) | D4: Printer | E4: 1500 | F4: Color | G4: 8.5 X 14 | H4: Canon USA, Inc. | I4: imageRUNNER ADVANCE DX C357iF | J4: 3881C014AA | K4: 2216.16 | L4: 1392.3855 | M4: 416.37 | N4: =SUM(Table1[[#This Row],[New Device NC Discounted Purchase Price]:[Estimated Consumables Purchases During 3 Year Lifecycle]]) -> 4024.9155 | O4: =Table1[[#This Row],[36-Month Total Lease Payments4]] -> 2361.540096 | P4: =Table1[[#This Row],[Estimated 3 Year Maintenance Agreement Price5]] -> 1696.68 | Q4: 4058.220096 | R4: 5290.58 | S4: =(R4-T4)/R4 -> 0.5811120898 | T4: 2216.16 | U4: 0.45 | V4: 0 | W4: 90 days | X4: 6138B318AA | Y4: 1982.541 | Z4: 0.2976763154 | AA4: 1392.3855 | AB4: 0.0296 | AC4: =Table1[[#This Row],[New Device NC Discounted Purchase Price2]]*Table1[[#This Row],[36-Month Lease Rate Factor (excluding Software)]]*36 -> 2361.540096 | AD4: 0.0245 | AE4: =Table1[[#This Row],[New Device NC Discounted Purchase Price]]*Table1[[#This Row],[48-Month Lease Rate Factor (excluding Software)]]*48 -> 2606.20416 | AF4: 0.0204 | AG4: =Table1[[#This Row],[New Device NC Discounted Purchase Price2]]*Table1[[#This Row],[60-Month Lease Rate Factor (excluding Software)]]*60 -> 2712.57984 | AH4: 0.0328 | AI4: 0.0259 | AJ4: 0.0216 | AN4: 0 | AO4: 0 | AP4: 0.009 | AQ4: 0.068 | AR4: 1696.68 | AS4: 350 | AT4: Color | AU4: 8.5 X 14 | AV4: 6000 | AW4: 36 | AX4: 5 | AY4: Yes | AZ4: 650 | BA4: 250 | BB4: 3GB | BC4: https://www.usa.canon.com/internet/portal/us/home/products/details/copiers-mfps-fax-machines/multifunction-copiers/imagerunner-advance-dx-c357if | BD4: Laser / LED Printer - 11 to 20 CPM (Color)imageRUNNER ADVANCE DX C357iF
A5: B.1 | B5: 5 | C5: Laser / LED Printer - 31 to 44 CPM (Mono) | D5: Printer | E5: 3000 | F5: Mono | G5: 8.5 X 14 | H5: Canon USA, Inc. | I5: imageRUNNER 1643iF+ | J5: 3630C031AA | K5: 693.91 | L5: 396 | M5: 568.32 | N5: =SUM(Table1[[#This Row],[New Device NC Discounted Purchase Price]:[Estimated Consumables Purchases During 3 Year Lifecycle]]) -> 1658.23 | O5: =Table1[[#This Row],[36-Month Total Lease Payments4]] -> 739.425182 | P5: =Table1[[#This Row],[Estimated 3 Year Maintenance Agreement Price5]] -> 1296 | Q5: 2035.425182 | R5: 1763.33 | S5: =(Table1[[#This Row],[Device MSRP]]-Table1[[#This Row],[New Device NC Discounted Purchase Price]])/Table1[[#This Row],[Device MSRP]] -> 0.606477517 | T5: 693.9050131 | U5: 0.45 | V5: 0 | W5: 90 days | X5: 6138B384AA | Y5: 717 | Z5: 0.4476987448 | AA5: 396 | AB5: 0.0296 | AC5: =Table1[[#This Row],[New Device NC Discounted Purchase Price2]]*Table1[[#This Row],[36-Month Lease Rate Factor (excluding Software)]]*36 -> 739.425182 | AD5: 0.0245 | AE5: =Table1[[#This Row],[New Device NC Discounted Purchase Price]]*Table1[[#This Row],[48-Month Lease Rate Factor (excluding Software)]]*48 -> 816.03816 | AF5: 0.0204 | AG5: =Table1[[#This Row],[New Device NC Discounted Purchase Price2]]*Table1[[#This Row],[60-Month Lease Rate Factor (excluding Software)]]*60 -> 849.3397361 | AH5: 0.0328 | AI5: 0.0259 | AJ5: 0.0216 | AN5: 0 | AO5: 0 | AP5: 0.012 | AR5: 1296 | AS5: 350 | AT5: Mono | AU5: 8.5 X 14 | AV5: 3000 | AW5: 45 | AX5: 6 | AY5: Yes | AZ5: 550 | BA5: 150 | BB5: 1GB | BC5: https://www.usa.canon.com/internet/portal/us/home/products/details/copiers-mfps-fax-machines/multifunction-copiers/imagerunner-1643if | BD5: Laser / LED Printer - 31 to 44 CPM (Mono)imageRUNNER 1643iF+
A6: B.1 | B6: 6 | C6: Laser / LED Printer - 21 to 34 CPM (Color) | D6: Printer | E6: 3000 | F6: Color | G6: 8.5 X 14 | H6: Canon USA, Inc. | I6: imageRUNNER ADVANCE DX C357iF | J6: 3881C022AA | K6: 2216.1596 | L6: 2784.771 | M6: 832.74 | N6: =SUM(Table1[[#This Row],[New Device NC Discounted Purchase Price]:[Estimated Consumables Purchases During 3 Year Lifecycle]]) -> 5833.6706 | O6: =Table1[[#This Row],[36-Month Total Lease Payments4]] -> 2361.540096 | P6: =Table1[[#This Row],[Estimated 3 Year Maintenance Agreement Price5]] -> 3393.36 | Q6: 5754.900096 | R6: 5290.58 | S6: =(R6-T6)/R6 -> 0.5811120898 | T6: 2216.16 | U6: 0.45 | V6: 0 | W6: 90 days | X6: 6138B320AA | Y6: 3701.082 | Z6: 0.2475792214 | AA6: 2784.771 | AB6: 0.0296 | AC6: =Table1[[#This Row],[New Device NC Discounted Purchase Price2]]*Table1[[#This Row],[36-Month Lease Rate Factor (excluding Software)]]*36 -> 2361.540096 | AD6: 0.0245 | AE6: =Table1[[#This Row],[New Device NC Discounted Purchase Price]]*Table1[[#This Row],[48-Month Lease Rate Factor (excluding Software)]]*48 -> 2606.20369 | AF6: 0.0204 | AG6: =Table1[[#This Row],[New Device NC Discounted Purchase Price2]]*Table1[[#This Row],[60-Month Lease Rate Factor (excluding Software)]]*60 -> 2712.57984 | AH6: 0.0328 | AI6: 0.0259 | AJ6: 0.0216 | AN6: 0 | AO6: 0 | AP6: 0.009 | AQ6: 0.068 | AR6: 3393.36 | AS6: 350 | AT6: Color | AU6: 8.5 X 14 | AV6: 6000 | AW6: 36 | AX6: 5 | AY6: Yes | AZ6: 650 | BA6: 250 | BB6: 3GB | BC6: https://www.usa.canon.com/internet/portal/us/home/products/details/copiers-mfps-fax-machines/multifunction-copiers/imagerunner-advance-dx-c357if | BD6: Laser / LED Printer - 21 to 34 CPM (Color)imageRUNNER ADVANCE DX C357iF
A7: B.1 | B7: 7 | C7: Laser / LED Printer - 45 or more CPM (Mono) | D7: Printer | E7: 5000 | F7: Mono | G7: 8.5 X 14 | H7: Canon USA, Inc. | I7: imageRUNNER ADVANCE DX 617iF | J7: 3894C019AA | K7: 1912.51 | L7: 907.5 | M7: 483.6 | N7: =SUM(Table1[[#This Row],[New Device NC Discounted Purchase Price]:[Estimated Consumables Purchases During 3 Year Lifecycle]]) -> 3303.61 | O7: =Table1[[#This Row],[36-Month Total Lease Payments4]] -> 2037.970656 | P7: =Table1[[#This Row],[Estimated 3 Year Maintenance Agreement Price5]] -> 1494 | Q7: 3531.970656 | R7: 4860 | S7: 0.6064794239 | T7: 1912.51 | U7: 0.45 | V7: 0 | W7: 90 days | X7: 6138B442AA | Y7: 1848 | Z7: 0.5089285714 | AA7: 907.5 | AB7: 0.0296 | AC7: =Table1[[#This Row],[New Device NC Discounted Purchase Price2]]*Table1[[#This Row],[36-Month Lease Rate Factor (excluding Software)]]*36 -> 2037.970656 | AD7: 0.0245 | AE7: =Table1[[#This Row],[New Device NC Discounted Purchase Price]]*Table1[[#This Row],[48-Month Lease Rate Factor (excluding Software)]]*48 -> 2249.11176 | AF7: 0.0204 | AG7: =Table1[[#This Row],[New Device NC Discounted Purchase Price2]]*Table1[[#This Row],[60-Month Lease Rate Factor (excluding Software)]]*60 -> 2340.91224 | AH7: 0.0328 | AI7: 0.0259 | AJ7: 0.0216 | AN7: 0 | AO7: 0 | AP7: 0.0083 | AR7: 1494 | AS7: 350 | AT7: Mono | AU7: 8.5 X 14 | AV7: 20000 | AW7: 65 | AX7: 5 | AY7: Yes | AZ7: 650 | BA7: 500 | BB7: 3GB | BC7: https://www.usa.canon.com/internet/portal/us/home/products/details/copiers-mfps-fax-machines/multifunction-copiers/imagerunner-advance-dx-617if | BD7: Laser / LED Printer - 45 or more CPM (Mono)imageRUNNER ADVANCE DX 617iF
A8: B.1 | B8: 8 | C8: Laser / LED Printer - 35 or more CPM (Color) | D8: Printer | E8: 5000 | F8: Color | G8: 8.5 X 14 | H8: Canon USA, Inc. | I8: imageRUNNER ADVANCE DX C357iF | J8: 3881C023AA | K8: 2216.1596 | L8: 4641.285 | M8: 1299.33 | N8: =SUM(Table1[[#This Row],[New Device NC Discounted Purchase Price]:[Estimated Consumables Purchases During 3 Year Lifecycle]]) -> 8156.7746 | O8: =Table1[[#This Row],[36-Month Total Lease Payments4]] -> 2361.540096 | P8: =Table1[[#This Row],[Estimated 3 Year Maintenance Agreement Price5]] -> 5655.6 | Q8: 8017.140096 | R8: 5290.58 | S8: 0.5811120898 | T8: 2216.16 | U8: 0.45 | V8: 0 | W8: 90 days | X8: 6138B323AA | Y8: 5992.47 | Z8: 0.225480478 | AA8: 4641.285 | AB8: 0.0296 | AC8: =Table1[[#This Row],[New Device NC Discounted Purchase Price2]]*Table1[[#This Row],[36-Month Lease Rate Factor (excluding Software)]]*36 -> 2361.540096 | AD8: 0.0245 | AE8: =Table1[[#This Row],[New Device NC Discounted Purchase Price]]*Table1[[#This Row],[48-Month Lease Rate Factor (excluding Software)]]*48 -> 2606.20369 | AF8: 0.0204 | AG8: =Table1[[#This Row],[New Device NC Discounted Purchase Price2]]*Table1[[#This Row],[60-Month Lease Rate Factor (excluding Software)]]*60 -> 2712.57984 | AH8: 0.0328 | AI8: 0.0259 | AJ8: 0.0216 | AN8: 0 | AO8: 0 | AP8: 0.009 | AQ8: 0.068 | AR8: 5655.6 | AS8: 350 | AT8: Color | AU8: 8.5 X 14 | AV8: 6000 | AW8: 36 | AX8: 5 | AY8: Yes | AZ8: 650 | BA8: 250 | BB8: 3GB | BC8: https://www.usa.canon.com/internet/portal/us/home/products/details/copiers-mfps-fax-machines/multifunction-copiers/imagerunner-advance-dx-c357if | BD8: Laser / LED Printer - 35 or more CPM (Color)imageRUNNER ADVANCE DX C357iF
A9: B.1 | B9: 9 | C9: Laser / LED Printer - 30 or more CPM (Mono)(Ledger) | D9: Printer | E9: 4000 | F9: Mono | G9: 11 X 17 | H9: Canon USA, Inc. | I9: imageRUNNER ADVANCE DX 4735i | J9: 4055C026AA | K9: 2425.4982 | L9: 369.6 | M9: 198.2946 | N9: =SUM(Table1[[#This Row],[New Device NC Discounted Purchase Price]:[Estimated Consumables Purchases During 3 Year Lifecycle]]) -> 2993.3928 | O9: =Table1[[#This Row],[36-Month Total Lease Payments4]] -> 2584.610882 | P9: =Table1[[#This Row],[Estimated 3 Year Maintenance Agreement Price5]] -> 662.4 | Q9: 3247.010882 | R9: 10454.61 | S9: 0.7679972567 | T9: 2425.4982 | U9: 0.45 | V9: 0 | W9: 90 days | X9: 6138B400AA | Y9: 1287 | Z9: 0.7128205128 | AA9: 369.6 | AB9: 0.0296 | AC9: =Table1[[#This Row],[New Device NC Discounted Purchase Price2]]*Table1[[#This Row],[36-Month Lease Rate Factor (excluding Software)]]*36 -> 2584.610882 | AD9: 0.0245 | AE9: =Table1[[#This Row],[New Device NC Discounted Purchase Price]]*Table1[[#This Row],[48-Month Lease Rate Factor (excluding Software)]]*48 -> 2852.385883 | AF9: 0.0204 | AG9: =Table1[[#This Row],[New Device NC Discounted Purchase Price2]]*Table1[[#This Row],[60-Month Lease Rate Factor (excluding Software)]]*60 -> 2968.809797 | AH9: 0.0328 | AI9: 0.0259 | AJ9: 0.0216 | AN9: 0 | AO9: 0 | AP9: 0.0046 | AR9: 662.4 | AS9: 350 | AT9: Mono | AU9: 11 X 17 | AV9: 20000 | AW9: 35 | AX9: 4 | AY9: Yes | AZ9: 1200 | BA9: 1000 | BB9: 250GB | BC9: https://www.usa.canon.com/internet/portal/us/home/products/details/copiers-mfps-fax-machines/multifunction-copiers/imagerunner-advance-dx-4735i | BD9: Laser / LED Printer - 30 or more CPM (Mono)(Ledger)imageRUNNER ADVANCE DX 4735i
A10: B.1 | B10: 10 | C10: Laser / LED Printer - 20 or more CPM (Color)(Ledger) | D10: Printer | E10: 4000 | F10: Color | G10: 11 X 17 | H10: Canon USA, Inc. | I10: imageRUNNER ADVANCE DX C3725i | J10: 3857C023AA | K10: 2376.533 | L10: 1701.5064 | M10: 651.6882 | N10: =SUM(Table1[[#This Row],[New Device NC Discounted Purchase Price]:[Estimated Consumables Purchases During 3 Year Lifecycle]]) -> 4729.7276 | O10: =Table1[[#This Row],[36-Month Total Lease Payments4]] -> 2532.433565 | P10: =Table1[[#This Row],[Estimated 3 Year Maintenance Agreement Price5]] -> 3105.216 | Q10: 5637.649565 | R10: 8420.65 | S10: 0.7177732123 | T10: 2376.533 | U10: 0.45 | V10: 0 | W10: 90 days | X10: 6138B401AA | Y10: 2641.47312 | Z10: 0.355849436 | AA10: 1701.5064 | AB10: 0.0296 | AC10: =Table1[[#This Row],[New Device NC Discounted Purchase Price2]]*Table1[[#This Row],[36-Month Lease Rate Factor (excluding Software)]]*36 -> 2532.433565 | AD10: 0.0245 | AE10: =Table1[[#This Row],[New Device NC Discounted Purchase Price]]*Table1[[#This Row],[48-Month Lease Rate Factor (excluding Software)]]*48 -> 2794.802808 | AF10: 0.0204 | AG10: =Table1[[#This Row],[New Device NC Discounted Purchase Price2]]*Table1[[#This Row],[60-Month Lease Rate Factor (excluding Software)]]*60 -> 2908.876392 | AH10: 0.0328 | AI10: 0.0259 | AJ10: 0.0216 | AN10: 0 | AO10: 0 | AP10: 0.0072 | AQ10: 0.045 | AR10: 3105.216 | AS10: 350 | AT10: Color | AU10: 11 X 17 | AV10: 9000 | AW10: 25 | AX10: 6 | AY10: Yes | AZ10: 1200 | BA10: 600 | BB10: 250GB | BC10: https://www.usa.canon.com/internet/portal/us/home/products/details/copiers-mfps-fax-machines/multifunction-copiers/imagerunner-advance-dx-c3725i | BD10: Laser / LED Printer - 20 or more CPM (Color)(Ledger)imageRUNNER ADVANCE DX C3725i
A11: B.2 | B11: 11 | C11: Digital MFD - 19 to 30 CPM (Mono) | D11: MFD | E11: 2500 | F11: Mono | G11: 8.5 X 14 | H11: Canon USA, Inc. | I11: imageRUNNER 1643iF+ | J11: 3630C031AA | K11: 693.91 | L11: 330 | M11: 454.66 | N11: =SUM(Table1[[#This Row],[New Device NC Discounted Purchase Price]:[Estimated Consumables Purchases During 3 Year Lifecycle]]) -> 1478.57 | O11: =Table1[[#This Row],[36-Month Total Lease Payments4]] -> 739.425182 | P11: =Table1[[#This Row],[Estimated 3 Year Maintenance Agreement Price5]] -> 1080 | Q11: 1819.425182 | R11: 1763.33 | S11: 0.6064803451 | T11: 693.9050131 | U11: 0.45 | V11: 0 | W11: 90 days | X11: 6138B386AA | Y11: 607.5 | Z11: 0.4567901235 | AA11: 330 | AB11: 0.0296 | AC11: =Table1[[#This Row],[New Device NC Discounted Purchase Price2]]*Table1[[#This Row],[36-Month Lease Rate Factor (excluding Software)]]*36 -> 739.425182 | AD11: 0.0245 | AE11: =Table1[[#This Row],[New Device NC Discounted Purchase Price]]*Table1[[#This Row],[48-Month Lease Rate Factor (excluding Software)]]*48 -> 816.03816 | AF11: 0.0204 | AG11: =Table1[[#This Row],[New Device NC Discounted Purchase Price2]]*Table1[[#This Row],[60-Month Lease Rate Factor (excluding Software)]]*60 -> 849.3397361 | AH11: 0.0328 | AI11: 0.0259 | AJ11: 0.0216 | AN11: 0 | AO11: 0 | AP11: 0.012 | AR11: 1080 | AS11: 350 | AT11: Mono | AU11: 8.5 X 14 | AV11: 3000 | AW11: 45 | AX11: 6 | AY11: Yes | AZ11: 550 | BA11: 150 | BB11: 1GB | BC11: https://www.usa.canon.com/internet/portal/us/home/products/details/copiers-mfps-fax-machines/multifunction-copiers/imagerunner-1643if | BD11: Digital MFD - 19 to 30 CPM (Mono)imageRUNNER 1643iF+
A12: B.2 | B12: 12 | C12: Digital MFD - 14 to 30 CPM (Color) | D12: MFD | E12: 2500 | F12: Color | G12: 8.5 X 14 | H12: Canon USA, Inc. | I12: imageRUNNER ADVANCE DX C257iF | J12: 3882C017AA | K12: 2016.16 | L12: 2594.922 | M12: 466.59 | N12: =SUM(Table1[[#This Row],[New Device NC Discounted Purchase Price]:[Estimated Consumables Purchases During 3 Year Lifecycle]]) -> 5077.672 | O12: =Table1[[#This Row],[36-Month Total Lease Payments4]] -> 2148.420096 | P12: =Table1[[#This Row],[Estimated 3 Year Maintenance Agreement Price5]] -> 3129.3 | Q12: 5277.720096 | R12: 4490.58 | S12: 0.5510245893 | T12: 2016.16 | U12: 0.45 | V12: 0 | W12: 90 days | X12: 6138B402AA | Y12: 3356.562 | Z12: 0.2269107497 | AA12: 2594.922 | AB12: 0.0296 | AC12: =Table1[[#This Row],[New Device NC Discounted Purchase Price2]]*Table1[[#This Row],[36-Month Lease Rate Factor (excluding Software)]]*36 -> 2148.420096 | AD12: 0.0245 | AE12: =Table1[[#This Row],[New Device NC Discounted Purchase Price]]*Table1[[#This Row],[48-Month Lease Rate Factor (excluding Software)]]*48 -> 2371.00416 | AF12: 0.0204 | AG12: =Table1[[#This Row],[New Device NC Discounted Purchase Price2]]*Table1[[#This Row],[60-Month Lease Rate Factor (excluding Software)]]*60 -> 2467.77984 | AH12: 0.0328 | AI12: 0.0259 | AJ12: 0.0216 | AN12: 0 | AO12: 0 | AP12: 0.0095 | AQ12: 0.076 | AR12: 3129.3 | AS12: 350 | AT12: Color | AU12: 8.5 X 14 | AV12: 6000 | AW12: 26 | AX12: 7 | AY12: Yes | AZ12: 650 | BA12: 250 | BB12: 3GB | BC12: https://www.usa.canon.com/internet/portal/us/home/products/details/copiers-mfps-fax-machines/multifunction-copiers/imagerunner-advance-dx-c257if | BD12: Digital MFD - 14 to 30 CPM (Color)imageRUNNER ADVANCE DX C257iF
A13: B.2 | B13: 13 | C13: Digital MFD - 21 to 30 CPM (Mono)(Ledger) | D13: MFD | E13: 4000 | F13: Mono | G13: 11 X 17 | H13: Canon USA, Inc. | I13: imageRUNNER ADVANCE DX 4725i | J13: 4056C038AA | K13: 3571.7482 | L13: 1082.4 | M13: 198.2946 | N13: =SUM(Table1[[#This Row],[New Device NC Discounted Purchase Price]:[Estimated Consumables Purchases During 3 Year Lifecycle]]) -> 4852.4428 | O13: =Table1[[#This Row],[36-Month Total Lease Payments4]] -> 3806.054882 | P13: =Table1[[#This Row],[Estimated 3 Year Maintenance Agreement Price5]] -> 1440 | Q13: 5246.054882 | R13: 9989.61 | S13: 0.6424536894 | T13: 3571.7482 | U13: 0.45 | V13: 0 | W13: 90 days | X13: 6138B403AA | Y13: 1366.2 | Z13: 0.2077294686 | AA13: 1082.4 | AB13: 0.0296 | AC13: =Table1[[#This Row],[New Device NC Discounted Purchase Price2]]*Table1[[#This Row],[36-Month Lease Rate Factor (excluding Software)]]*36 -> 3806.054882 | AD13: 0.0245 | AE13: =Table1[[#This Row],[New Device NC Discounted Purchase Price]]*Table1[[#This Row],[48-Month Lease Rate Factor (excluding Software)]]*48 -> 4200.375883 | AF13: 0.0204 | AG13: =Table1[[#This Row],[New Device NC Discounted Purchase Price2]]*Table1[[#This Row],[60-Month Lease Rate Factor (excluding Software)]]*60 -> 4371.819797 | AH13: 0.0328 | AI13: 0.0259 | AJ13: 0.0216 | AN13: 0 | AO13: 0 | AP13: 0.01 | AR13: 1440 | AS13: 350 | AT13: Mono | AU13: 11 X 17 | AV13: 20000 | AW13: 25 | AX13: 5.2 | AY13: Yes | AZ13: 1200 | BA13: 250 | BB13: 3GB | BC13: https://www.usa.canon.com/internet/portal/us/home/products/details/copiers-mfps-fax-machines/multifunction-copiers/imagerunner-advance-dx-4725i | BD13: Digital MFD - 21 to 30 CPM (Mono)(Ledger)imageRUNNER ADVANCE DX 4725i
A14: B.2 | B14: 14 | C14: Digital MFD - 21 to 30 CPM (Color)(Ledger) | D14: MFD | E14: 4000 | F14: Color | G14: 11 X 17 | H14: Canon USA, Inc. | I14: imageRUNNER ADVANCE DX C3725i | J14: 3857C024AA | K14: 2839.213 | L14: 1701.5064 | M14: 651.6882 | N14: =SUM(Table1[[#This Row],[New Device NC Discounted Purchase Price]:[Estimated Consumables Purchases During 3 Year Lifecycle]]) -> 5192.4076 | O14: =Table1[[#This Row],[36-Month Total Lease Payments4]] -> 3025.462176 | P14: =Table1[[#This Row],[Estimated 3 Year Maintenance Agreement Price5]] -> 3105.216 | Q14: 6130.678176 | R14: 9260.65 | S14: 0.6934113696 | T14: 2839.21 | U14: 0.45 | V14: 0 | W14: 90 days | X14: 6138B404AA | Y14: 2641.47312 | Z14: 0.355849436 | AA14: 1701.5064 | AB14: 0.0296 | AC14: =Table1[[#This Row],[New Device NC Discounted Purchase Price2]]*Table1[[#This Row],[36-Month Lease Rate Factor (excluding Software)]]*36 -> 3025.462176 | AD14: 0.0245 | AE14: =Table1[[#This Row],[New Device NC Discounted Purchase Price]]*Table1[[#This Row],[48-Month Lease Rate Factor (excluding Software)]]*48 -> 3338.914488 | AF14: 0.0204 | AG14: =Table1[[#This Row],[New Device NC Discounted Purchase Price2]]*Table1[[#This Row],[60-Month Lease Rate Factor (excluding Software)]]*60 -> 3475.19304 | AH14: 0.0328 | AI14: 0.0259 | AJ14: 0.0216 | AN14: 0 | AO14: 0 | AP14: 0.0072 | AQ14: 0.045 | AR14: 3105.216 | AS14: 350 | AT14: Color | AU14: 11 X 17 | AV14: 6000 | AW14: 25 | AX14: 6 | AY14: Yes | AZ14: 1200 | BA14: 250 | BB14: 250GB | BC14: https://www.usa.canon.com/internet/portal/us/home/products/details/copiers-mfps-fax-machines/multifunction-copiers/imagerunner-advance-dx-c3725i | BD14: Digital MFD - 21 to 30 CPM (Color)(Ledger)imageRUNNER ADVANCE DX C3725i
A15: B.2 | B15: 15 | C15: Digital MFD - 31 to 40 CPM (Mono) | D15: MFD | E15: 12000 | F15: Mono | G15: 8.5 X 14 | H15: Canon USA, Inc. | I15: imageRUNNER 1643iF+ | J15: 3630C034AA | K15: 693.91 | L15: 1584 | M15: 2386.96 | N15: =SUM(Table1[[#This Row],[New Device NC Discounted Purchase Price]:[Estimated Consumables Purchases During 3 Year Lifecycle]]) -> 4664.87 | O15: =Table1[[#This Row],[36-Month Total Lease Payments4]] -> 739.425182 | P15: =Table1[[#This Row],[Estimated 3 Year Maintenance Agreement Price5]] -> 5184 | Q15: 5923.425182 | R15: 1763.33 | S15: 0.6064803451 | T15: 693.9050131 | U15: 0.45 | V15: 0 | W15: 90 days | X15: 6138B387AA | Y15: 2688 | Z15: 0.4107142857 | AA15: 1584 | AB15: 0.0296 | AC15: =Table1[[#This Row],[New Device NC Discounted Purchase Price2]]*Table1[[#This Row],[36-Month Lease Rate Factor (excluding Software)]]*36 -> 739.425182 | AD15: 0.0245 | AE15: =Table1[[#This Row],[New Device NC Discounted Purchase Price]]*Table1[[#This Row],[48-Month Lease Rate Factor (excluding Software)]]*48 -> 816.03816 | AF15: 0.0204 | AG15: =Table1[[#This Row],[New Device NC Discounted Purchase Price2]]*Table1[[#This Row],[60-Month Lease Rate Factor (excluding Software)]]*60 -> 849.3397361 | AH15: 0.0328 | AI15: 0.0259 | AJ15: 0.0216 | AN15: 0 | AO15: 0 | AP15: 0.012 | AR15: 5184 | AS15: 350 | AT15: Mono | AU15: 8.5 X 14 | AV15: 3000 | AW15: 45 | AX15: 6 | AY15: Yes | AZ15: 550 | BA15: 150 | BB15: 1GB | BC15: https://www.usa.canon.com/internet/portal/us/home/products/details/copiers-mfps-fax-machines/multifunction-copiers/imagerunner-1643if | BD15: Digital MFD - 31 to 40 CPM (Mono)imageRUNNER 1643iF+
A16: B.2 | B16: 16 | C16: Digital MFD - 31 to 40 CPM (Color) | D16: MFD | E16: 12000 | F16: Color | G16: 8.5 X 14 | H16: Canon USA, Inc. | I16: imageRUNNER ADVANCE DX C357iF | J16: 3881C024AA | K16: 2216.1596 | L16: 11139.084 | M16: 3747.33 | N16: =SUM(Table1[[#This Row],[New Device NC Discounted Purchase Price]:[Estimated Consumables Purchases During 3 Year Lifecycle]]) -> 17102.5736 | O16: =Table1[[#This Row],[36-Month Total Lease Payments4]] -> 2361.540096 | P16: =Table1[[#This Row],[Estimated 3 Year Maintenance Agreement Price5]] -> 13573.44 | Q16: 15934.9801 | R16: 5290.58 | S16: 0.5811120898 | T16: 2216.16 | U16: 0.45 | V16: 0 | W16: 90 days | X16: 6138B332AA | Y16: 14012.328 | Z16: 0.2050511521 | AA16: 11139.084 | AB16: 0.0296 | AC16: =Table1[[#This Row],[New Device NC Discounted Purchase Price2]]*Table1[[#This Row],[36-Month Lease Rate Factor (excluding Software)]]*36 -> 2361.540096 | AD16: 0.0245 | AE16: =Table1[[#This Row],[New Device NC Discounted Purchase Price]]*Table1[[#This Row],[48-Month Lease Rate Factor (excluding Software)]]*48 -> 2606.20369 | AF16: 0.0204 | AG16: =Table1[[#This Row],[New Device NC Discounted Purchase Price2]]*Table1[[#This Row],[60-Month Lease Rate Factor (excluding Software)]]*60 -> 2712.57984 | AH16: 0.0328 | AI16: 0.0259 | AJ16: 0.0216 | AN16: 0 | AO16: 0 | AP16: 0.009 | AQ16: 0.068 | AR16: 13573.44 | AS16: 350 | AT16: Color | AU16: 8.5 X 14 | AV16: 6000 | AW16: 36 | AX16: 5 | AY16: Yes | AZ16: 650 | BA16: 250 | BB16: 3GB | BC16: https://www.usa.canon.com/internet/portal/us/home/products/details/copiers-mfps-fax-machines/multifunction-copiers/imagerunner-advance-dx-c357if | BD16: Digital MFD - 31 to 40 CPM (Color)imageRUNNER ADVANCE DX C357iF
A17: B.2 | B17: 17 | C17: Digital MFD - 31 to 40 CPM (Mono)(Ledger) | D17: MFD | E17: 12000 | F17: Mono | G17: 11 X 17 | H17: Canon USA, Inc. | I17: imageRUNNER ADVANCE DX 4735i | J17: 4055C044AA | K17: 3269.7482 | L17: 1108.8 | M17: 660.982 | N17: =SUM(Table1[[#This Row],[New Device NC Discounted Purchase Price]:[Estimated Consumables Purchases During 3 Year Lifecycle]]) -> 5039.5302 | O17: =Table1[[#This Row],[36-Month Total Lease Payments4]] -> 3484.243682 | P17: =Table1[[#This Row],[Estimated 3 Year Maintenance Agreement Price5]] -> 1987.2 | Q17: 5471.443682 | R17: 11989.61 | S17: 0.7272848575 | T17: 3269.7482 | U17: 0.45 | V17: 0 | W17: 90 days | X17: 6138B407AA | Y17: 3399 | Z17: 0.6737864078 | AA17: 1108.8 | AB17: 0.0296 | AC17: =Table1[[#This Row],[New Device NC Discounted Purchase Price2]]*Table1[[#This Row],[36-Month Lease Rate Factor (excluding Software)]]*36 -> 3484.243682 | AD17: 0.0245 | AE17: =Table1[[#This Row],[New Device NC Discounted Purchase Price]]*Table1[[#This Row],[48-Month Lease Rate Factor (excluding Software)]]*48 -> 3845.223883 | AF17: 0.0204 | AG17: =Table1[[#This Row],[New Device NC Discounted Purchase Price2]]*Table1[[#This Row],[60-Month Lease Rate Factor (excluding Software)]]*60 -> 4002.171797 | AH17: 0.0328 | AI17: 0.0259 | AJ17: 0.0216 | AN17: 0 | AO17: 0 | AP17: 0.0046 | AR17: 1987.2 | AS17: 350 | AT17: Mono | AU17: 11 X 17 | AV17: 20000 | AW17: 35 | AX17: 5.2 | AY17: Yes | AZ17: 1200 | BA17: 250 | BB17: 3GB | BC17: https://www.usa.canon.com/internet/portal/us/home/products/details/copiers-mfps-fax-machines/multifunction-copiers/imagerunner-advance-dx-4735i | BD17: Digital MFD - 31 to 40 CPM (Mono)(Ledger)imageRUNNER ADVANCE DX 4735i
A18: B.2 | B18: 18 | C18: Digital MFD - 31 to 40 CPM (Color)(Ledger) | D18: MFD | E18: 12000 | F18: Color | G18: 11 X 17 | H18: Canon USA, Inc. | I18: imageRUNNER ADVANCE DX C5735i | J18: 4303C014AA | K18: 4613.4788 | L18: 5472.755593 | M18: 1727.31 | N18: =SUM(Table1[[#This Row],[New Device NC Discounted Purchase Price]:[Estimated Consumables Purchases During 3 Year Lifecycle]]) -> 11813.54439 | O18: =Table1[[#This Row],[36-Month Total Lease Payments4]] -> 4916.123009 | P18: =Table1[[#This Row],[Estimated 3 Year Maintenance Agreement Price5]] -> 7145.28 | Q18: 12061.40301 | R18: 17209.99 | S18: 0.7319301871 | T18: 4613.4788 | U18: 0.45 | V18: 0 | W18: 90 days | X18: 6138B408AA | Y18: 9769.936562 | Z18: 0.4398371414 | AA18: 5472.755593 | AB18: 0.0296 | AC18: =Table1[[#This Row],[New Device NC Discounted Purchase Price2]]*Table1[[#This Row],[36-Month Lease Rate Factor (excluding Software)]]*36 -> 4916.123009 | AD18: 0.0245 | AE18: =Table1[[#This Row],[New Device NC Discounted Purchase Price]]*Table1[[#This Row],[48-Month Lease Rate Factor (excluding Software)]]*48 -> 5425.451069 | AF18: 0.0204 | AG18: =Table1[[#This Row],[New Device NC Discounted Purchase Price2]]*Table1[[#This Row],[60-Month Lease Rate Factor (excluding Software)]]*60 -> 5646.898051 | AH18: 0.0328 | AI18: 0.0259 | AJ18: 0.0216 | AN18: 0 | AO18: 0 | AP18: 0.004 | AQ18: 0.037 | AR18: 7145.28 | AS18: 350 | AT18: Color | AU18: 11 X 17 | AV18: 18000 | AW18: 35 | AX18: 5.4 | AY18: Yes | AZ18: 1200 | BA18: 250 | BB18: 4GB | BC18: https://www.usa.canon.com/internet/portal/us/home/products/details/copiers-mfps-fax-machines/multifunction-copiers/imagerunner-advance-dx-c5735 | BD18: Digital MFD - 31 to 40 CPM (Color)(Ledger)imageRUNNER ADVANCE DX C5735i
A19: C | B19: 19 | C19: Digital MFD - 41 to 54 CPM (Mono) | D19: MFD | E19: 16000 | F19: Mono | G19: 8.5 X 14 | H19: Canon USA, Inc. | I19: imageRUNNER 1643iF+ | J19: 3630C035AA | K19: 693.91 | L19: 2112 | M19: 1618.417 | N19: =SUM(Table1[[#This Row],[New Device NC Discounted Purchase Price]:[Estimated Consumables Purchases During 3 Year Lifecycle]]) -> 4424.327 | O19: =Table1[[#This Row],[36-Month Total Lease Payments4]] -> 739.425182 | P19: =Table1[[#This Row],[Estimated 3 Year Maintenance Agreement Price5]] -> 5068.8 | Q19: 5808.225182 | R19: 1763.33 | S19: 0.6064803451 | T19: 693.9050131 | U19: 0.45 | V19: 0 | W19: 90 days | X19: 6138B388AA | Y19: 3982 | Z19: 0.4696132597 | AA19: 2112 | AB19: 0.0296 | AC19: =Table1[[#This Row],[New Device NC Discounted Purchase Price2]]*Table1[[#This Row],[36-Month Lease Rate Factor (excluding Software)]]*36 -> 739.425182 | AD19: 0.0245 | AE19: =Table1[[#This Row],[New Device NC Discounted Purchase Price]]*Table1[[#This Row],[48-Month Lease Rate Factor (excluding Software)]]*48 -> 816.03816 | AF19: 0.0204 | AG19: =Table1[[#This Row],[New Device NC Discounted Purchase Price2]]*Table1[[#This Row],[60-Month Lease Rate Factor (excluding Software)]]*60 -> 849.3397361 | AH19: 0.0328 | AI19: 0.0259 | AJ19: 0.0216 | AN19: 0 | AO19: 0 | AP19: 0.0088 | AR19: 5068.8 | AS19: 350 | AT19: Mono | AU19: 8.5 X 14 | AV19: 3000 | AW19: 45 | AX19: 6 | AY19: Yes | AZ19: 550 | BA19: 150 | BB19: 1GB | BD19: Digital MFD - 41 to 54 CPM (Mono)imageRUNNER 1643iF+
A20: C | B20: 20 | C20: Digital MFD - 41 to 54 CPM (Color) | D20: MFD | E20: 16000 | F20: Color | G20: 8.5 X 14 | H20: Canon USA, Inc. | I20: imageRUNNER ADVANCE DX C5750i | J20: 4301C015AA | K20: 5151.37 | L20: 4759.8672 | M20: 2491 | N20: =SUM(Table1[[#This Row],[New Device NC Discounted Purchase Price]:[Estimated Consumables Purchases During 3 Year Lifecycle]]) -> 12402.2372 | O20: =Table1[[#This Row],[36-Month Total Lease Payments4]] -> 5489.299872 | P20: =Table1[[#This Row],[Estimated 3 Year Maintenance Agreement Price5]] -> 8213.76 | Q20: 13703.05987 | R20: 22209.99 | S20: 0.768060679 | T20: 5151.37 | U20: 0.45 | V20: 0 | W20: 90 days | X20: 6138B410AA | Y20: 8844.6864 | Z20: 0.4618387827 | AA20: 4759.8672 | AB20: 0.0296 | AC20: =Table1[[#This Row],[New Device NC Discounted Purchase Price2]]*Table1[[#This Row],[36-Month Lease Rate Factor (excluding Software)]]*36 -> 5489.299872 | AD20: 0.0245 | AE20: =Table1[[#This Row],[New Device NC Discounted Purchase Price]]*Table1[[#This Row],[48-Month Lease Rate Factor (excluding Software)]]*48 -> 6058.01112 | AF20: 0.0204 | AG20: =Table1[[#This Row],[New Device NC Discounted Purchase Price2]]*Table1[[#This Row],[60-Month Lease Rate Factor (excluding Software)]]*60 -> 6305.27688 | AH20: 0.0328 | AI20: 0.0259 | AJ20: 0.0216 | AN20: 0 | AO20: 0 | AP20: 0.004 | AQ20: 0.031 | AR20: 8213.76 | AS20: 350 | AT20: Color | AU20: 11 X 17 | AV20: 50000 | AW20: 50 | AX20: 4 | AY20: Yes | AZ20: 1200 | BA20: 3450 | BB20: 250GB | BC20: https://www.usa.canon.com/internet/portal/us/home/products/details/copiers-mfps-fax-machines/multifunction-copiers/imagerunner-advance-dx-c5750 | BD20: Digital MFD - 41 to 54 CPM (Color)imageRUNNER ADVANCE DX C5750i
A21: C | B21: 21 | C21: Digital MFD - 41 to 54 CPM (Mono)(Ledger) | D21: MFD | E21: 16000 | F21: Mono | G21: 11 X 17 | H21: Canon USA, Inc. | I21: imageRUNNER ADVANCE DX 4745i | J21: 4054C036AA | K21: 3814.7482 | L21: 1320 | M21: 859.2766 | N21: =SUM(Table1[[#This Row],[New Device NC Discounted Purchase Price]:[Estimated Consumables Purchases During 3 Year Lifecycle]]) -> 5994.0248 | O21: =Table1[[#This Row],[36-Month Total Lease Payments4]] -> 4064.995682 | P21: =Table1[[#This Row],[Estimated 3 Year Maintenance Agreement Price5]] -> 2304 | Q21: 6368.995682 | R21: 14689.61 | S21: 0.74030977 | T21: 3814.7482 | U21: 0.45 | V21: 0 | W21: 90 days | X21: 6138B411AA | Y21: 4118.4 | Z21: 0.6794871795 | AA21: 1320 | AB21: 0.0296 | AC21: =Table1[[#This Row],[New Device NC Discounted Purchase Price2]]*Table1[[#This Row],[36-Month Lease Rate Factor (excluding Software)]]*36 -> 4064.995682 | AD21: 0.0245 | AE21: =Table1[[#This Row],[New Device NC Discounted Purchase Price]]*Table1[[#This Row],[48-Month Lease Rate Factor (excluding Software)]]*48 -> 4486.143883 | AF21: 0.0204 | AG21: =Table1[[#This Row],[New Device NC Discounted Purchase Price2]]*Table1[[#This Row],[60-Month Lease Rate Factor (excluding Software)]]*60 -> 4669.251797 | AH21: 0.0328 | AI21: 0.0259 | AJ21: 0.0216 | AN21: 0 | AO21: 0 | AP21: 0.004 | AR21: 2304 | AS21: 350 | AT21: Mono | AU21: 11 X 17 | AV21: 65000 | AW21: 45 | AX21: 4 | AY21: Yes | AZ21: 1200 | BA21: 3350 | BB21: 3GB | BC21: https://www.usa.canon.com/internet/portal/us/home/products/details/copiers-mfps-fax-machines/multifunction-copiers/imagerunner-advance-dx-4745i | BD21: Digital MFD - 41 to 54 CPM (Mono)(Ledger)imageRUNNER ADVANCE DX 4745i
A22: C | B22: 22 | C22: Digital MFD - 41 to 54 CPM (Color)(Ledger) | D22: MFD | E22: 16000 | F22: Color | G22: 11 X 17 | H22: Canon USA, Inc. | I22: imageRUNNER ADVANCE DX C5750i | J22: 4301C016AA | K22: 5151.37 | L22: 4759.8672 | M22: 2491 | N22: =SUM(Table1[[#This Row],[New Device NC Discounted Purchase Price]:[Estimated Consumables Purchases During 3 Year Lifecycle]]) -> 12402.2372 | O22: =Table1[[#This Row],[36-Month Total Lease Payments4]] -> 5489.299872 | P22: =Table1[[#This Row],[Estimated 3 Year Maintenance Agreement Price5]] -> 8213.76 | Q22: 13703.05987 | R22: 22209.99 | S22: 0.768060679 | T22: 5151.37 | U22: 0.45 | V22: 0 | W22: 90 days | X22: 6138B413AA | Y22: 8844.6864 | Z22: 0.4618387827 | AA22: 4759.8672 | AB22: 0.0296 | AC22: =Table1[[#This Row],[New Device NC Discounted Purchase Price2]]*Table1[[#This Row],[36-Month Lease Rate Factor (excluding Software)]]*36 -> 5489.299872 | AD22: 0.0245 | AE22: =Table1[[#This Row],[New Device NC Discounted Purchase Price]]*Table1[[#This Row],[48-Month Lease Rate Factor (excluding Software)]]*48 -> 6058.01112 | AF22: 0.0204 | AG22: =Table1[[#This Row],[New Device NC Discounted Purchase Price2]]*Table1[[#This Row],[60-Month Lease Rate Factor (excluding Software)]]*60 -> 6305.27688 | AH22: 0.0328 | AI22: 0.0259 | AJ22: 0.0216 | AN22: 0 | AO22: 0 | AP22: 0.004 | AQ22: 0.031 | AR22: 8213.76 | AS22: 350 | AT22: Color | AU22: 11 X 17 | AV22: 50000 | AW22: 50 | AX22: 4 | AY22: Yes | AZ22: 1200 | BA22: 3450 | BB22: 250GB | BC22: https://www.usa.canon.com/internet/portal/us/home/products/details/copiers-mfps-fax-machines/multifunction-copiers/imagerunner-advance-dx-c5750 | BD22: Digital MFD - 41 to 54 CPM (Color)(Ledger)imageRUNNER ADVANCE DX C5750i
A23: C | B23: 23 | C23: Digital MFD - 55 to 69 CPM (Mono) | D23: MFD | E23: 25000 | F23: Mono | G23: 8.5 X 14 | H23: Canon USA, Inc. | I23: imageRUNNER ADVANCE DX 6755i | J23: 4020C025AA | K23: 5261.6008 | L23: 2145 | M23: 1183.8528 | N23: =SUM(Table1[[#This Row],[New Device NC Discounted Purchase Price]:[Estimated Consumables Purchases During 3 Year Lifecycle]]) -> 8590.4536 | O23: =Table1[[#This Row],[36-Month Total Lease Payments4]] -> 5606.229012 | P23: =Table1[[#This Row],[Estimated 3 Year Maintenance Agreement Price5]] -> 3510 | Q23: 9116.229012 | R23: 19169.34 | S23: 0.7255460647 | T23: 5261.1008 | U23: 0.45 | V23: 0 | W23: 90 days | X23: 6138B414AA | Y23: 4702.5 | Z23: 0.5438596491 | AA23: 2145 | AB23: 0.0296 | AC23: =Table1[[#This Row],[New Device NC Discounted Purchase Price2]]*Table1[[#This Row],[36-Month Lease Rate Factor (excluding Software)]]*36 -> 5606.229012 | AD23: 0.0245 | AE23: =Table1[[#This Row],[New Device NC Discounted Purchase Price]]*Table1[[#This Row],[48-Month Lease Rate Factor (excluding Software)]]*48 -> 6187.642541 | AF23: 0.0204 | AG23: =Table1[[#This Row],[New Device NC Discounted Purchase Price2]]*Table1[[#This Row],[60-Month Lease Rate Factor (excluding Software)]]*60 -> 6439.587379 | AH23: 0.0328 | AI23: 0.0259 | AJ23: 0.0216 | AN23: 0 | AO23: 0 | AP23: 0.0039 | AR23: 3510 | AS23: 350 | AT23: Mono | AU23: 11 X 17 | AV23: 70000 | AW23: 55 | AX23: 3 | AY23: Yes | AZ23: 4360 | BA23: 3500 | BB23: 250GB | BC23: https://www.usa.canon.com/internet/portal/us/home/products/details/copiers-mfps-fax-machines/multifunction-copiers/imagerunner-advance-dx-6780i | BD23: Digital MFD - 55 to 69 CPM (Mono)imageRUNNER ADVANCE DX 6755i
A24: D | B24: 24 | C24: Digital MFD - 55 to 69 CPM (Mono)(Ledger) | D24: MFD | E24: 25000 | F24: Mono | G24: 11 X 17 | H24: Canon USA, Inc. | I24: imageRUNNER ADVANCE DX 6755i | J24: 4020C026AA | K24: 5261.1008 | L24: 2145 | M24: 1183.8528 | N24: =SUM(Table1[[#This Row],[New Device NC Discounted Purchase Price]:[Estimated Consumables Purchases During 3 Year Lifecycle]]) -> 8589.9536 | O24: =Table1[[#This Row],[36-Month Total Lease Payments4]] -> 5606.229012 | P24: =Table1[[#This Row],[Estimated 3 Year Maintenance Agreement Price5]] -> 3510 | Q24: 9116.229012 | R24: 19169.34 | S24: 0.7255460647 | T24: 5261.1008 | U24: 0.45 | V24: 0 | W24: 90 days | X24: 6138B415AA | Y24: 4702.5 | Z24: 0.5438596491 | AA24: 2145 | AB24: 0.0296 | AC24: =Table1[[#This Row],[New Device NC Discounted Purchase Price2]]*Table1[[#This Row],[36-Month Lease Rate Factor (excluding Software)]]*36 -> 5606.229012 | AD24: 0.0245 | AE24: =Table1[[#This Row],[New Device NC Discounted Purchase Price]]*Table1[[#This Row],[48-Month Lease Rate Factor (excluding Software)]]*48 -> 6187.054541 | AF24: 0.0204 | AG24: =Table1[[#This Row],[New Device NC Discounted Purchase Price2]]*Table1[[#This Row],[60-Month Lease Rate Factor (excluding Software)]]*60 -> 6439.587379 | AH24: 0.0328 | AI24: 0.0259 | AJ24: 0.0216 | AN24: 0 | AO24: 0 | AP24: 0.0039 | AR24: 3510 | AS24: 350 | AT24: Mono | AU24: 11 X 17 | AV24: 70000 | AW24: 55 | AX24: 3 | AY24: Yes | AZ24: 4360 | BA24: 3500 | BB24: 250GB | BC24: https://www.usa.canon.com/internet/portal/us/home/products/details/copiers-mfps-fax-machines/multifunction-copiers/imagerunner-advance-dx-6780i | BD24: Digital MFD - 55 to 69 CPM (Mono)(Ledger)imageRUNNER ADVANCE DX 6755i
A25: D | B25: 25 | C25: Digital MFD - 55 to 69 CPM (Color)(Ledger) | D25: MFD | E25: 25000 | F25: Color | G25: 11 X 17 | H25: Canon USA, Inc. | I25: imageRUNNER ADVANCE DX C5760i | J25: 4300C023AA | K25: 6335.7938 | L25: 10778.75544 | M25: 4118 | N25: =SUM(Table1[[#This Row],[New Device NC Discounted Purchase Price]:[Estimated Consumables Purchases During 3 Year Lifecycle]]) -> 21232.54924 | O25: =Table1[[#This Row],[36-Month Total Lease Payments4]] -> 6751.421873 | P25: =Table1[[#This Row],[Estimated 3 Year Maintenance Agreement Price5]] -> 12834 | Q25: 19585.42187 | R25: 26432.99 | S25: 0.7603073356 | T25: 6335.7938 | U25: 0.45 | V25: 0 | W25: 90 days | X25: 6138B417AA | Y25: 19693.14281 | Z25: 0.4526645372 | AA25: 10778.75544 | AB25: 0.0296 | AC25: =Table1[[#This Row],[New Device NC Discounted Purchase Price2]]*Table1[[#This Row],[36-Month Lease Rate Factor (excluding Software)]]*36 -> 6751.421873 | AD25: 0.0245 | AE25: =Table1[[#This Row],[New Device NC Discounted Purchase Price]]*Table1[[#This Row],[48-Month Lease Rate Factor (excluding Software)]]*48 -> 7450.893509 | AF25: 0.0204 | AG25: =Table1[[#This Row],[New Device NC Discounted Purchase Price2]]*Table1[[#This Row],[60-Month Lease Rate Factor (excluding Software)]]*60 -> 7755.011611 | AH25: 0.0328 | AI25: 0.0259 | AJ25: 0.0216 | AN25: 0 | AO25: 0 | AP25: 0.004 | AQ25: 0.031 | AR25: 12834 | AS25: 350 | AT25: Color | AU25: 11 X 17 | AV25: 60000 | AW25: 60 | AX25: 3 | AY25: Yes | AZ25: 1200 | BA25: 3450 | BB25: 4GB | BC25: https://www.usa.canon.com/internet/portal/us/home/products/details/copiers-mfps-fax-machines/multifunction-copiers/imagerunner-advance-dx-c5760 | BD25: Digital MFD - 55 to 69 CPM (Color)(Ledger)imageRUNNER ADVANCE DX C5760i
A26: D | B26: 26 | C26: Digital MFD - 70 to 90 CPM (Mono) | D26: MFD | E26: 50000 | F26: Mono | G26: 8.5 X 14 | H26: Canon USA, Inc. | I26: imageRUNNER ADVANCE DX 6780i | J26: 4017C024AA | K26: 6811.1008 | L26: 3960 | M26: 2367.7056 | N26: =SUM(Table1[[#This Row],[New Device NC Discounted Purchase Price]:[Estimated Consumables Purchases During 3 Year Lifecycle]]) -> 13138.8064 | O26: =Table1[[#This Row],[36-Month Total Lease Payments4]] -> 7257.909012 | P26: =Table1[[#This Row],[Estimated 3 Year Maintenance Agreement Price5]] -> 6660 | Q26: 13917.90901 | R26: 31169.34 | S26: 0.78148075 | T26: 6811.1008 | U26: 0.45 | V26: 0 | W26: 90 days | X26: 6138B418AA | Y26: 7095 | Z26: 0.4418604651 | AA26: 3960 | AB26: 0.0296 | AC26: =Table1[[#This Row],[New Device NC Discounted Purchase Price2]]*Table1[[#This Row],[36-Month Lease Rate Factor (excluding Software)]]*36 -> 7257.909012 | AD26: 0.0245 | AE26: =Table1[[#This Row],[New Device NC Discounted Purchase Price]]*Table1[[#This Row],[48-Month Lease Rate Factor (excluding Software)]]*48 -> 8009.854541 | AF26: 0.0204 | AG26: =Table1[[#This Row],[New Device NC Discounted Purchase Price2]]*Table1[[#This Row],[60-Month Lease Rate Factor (excluding Software)]]*60 -> 8336.787379 | AH26: 0.0328 | AI26: 0.0259 | AJ26: 0.0216 | AN26: 0 | AO26: 0 | AP26: 0.0037 | AR26: 6660 | AS26: 350 | AT26: Mono | AU26: 11 X 17 | AV26: 150000 | AW26: 80 | AX26: 3 | AY26: Yes | AZ26: 4360 | BA26: 3500 | BB26: 250GB | BC26: https://www.usa.canon.com/internet/portal/us/home/products/details/copiers-mfps-fax-machines/multifunction-copiers/imagerunner-advance-dx-6780i | BD26: Digital MFD - 70 to 90 CPM (Mono)imageRUNNER ADVANCE DX 6780i
A27: D | B27: 27 | C27: Digital MFD - 70 to 90 CPM (Mono)(Ledger) | D27: MFD | E27: 50000 | F27: Mono | G27: 11 X 17 | H27: Canon USA, Inc. | I27: imageRUNNER ADVANCE DX 6780i | J27: 4017C025AA | K27: 6811.1008 | L27: 3960 | M27: 2367.7056 | N27: =SUM(Table1[[#This Row],[New Device NC Discounted Purchase Price]:[Estimated Consumables Purchases During 3 Year Lifecycle]]) -> 13138.8064 | O27: =Table1[[#This Row],[36-Month Total Lease Payments4]] -> 7257.909012 | P27: =Table1[[#This Row],[Estimated 3 Year Maintenance Agreement Price5]] -> 6660 | Q27: 13917.90901 | R27: 31169.34 | S27: 0.78148075 | T27: 6811.1008 | U27: 0.45 | V27: 0 | W27: 90 days | X27: 6138B420AA | Y27: 7095 | Z27: 0.4418604651 | AA27: 3960 | AB27: 0.0296 | AC27: =Table1[[#This Row],[New Device NC Discounted Purchase Price2]]*Table1[[#This Row],[36-Month Lease Rate Factor (excluding Software)]]*36 -> 7257.909012 | AD27: 0.0245 | AE27: =Table1[[#This Row],[New Device NC Discounted Purchase Price]]*Table1[[#This Row],[48-Month Lease Rate Factor (excluding Software)]]*48 -> 8009.854541 | AF27: 0.0204 | AG27: =Table1[[#This Row],[New Device NC Discounted Purchase Price2]]*Table1[[#This Row],[60-Month Lease Rate Factor (excluding Software)]]*60 -> 8336.787379 | AH27: 0.0328 | AI27: 0.0259 | AJ27: 0.0216 | AN27: 0 | AO27: 0 | AP27: 0.0037 | AR27: 6660 | AS27: 350 | AT27: Mono | AU27: 11 X 17 | AV27: 150000 | AW27: 80 | AX27: 3 | AY27: Yes | AZ27: 4360 | BA27: 3500 | BB27: 250GB | BC27: https://www.usa.canon.com/internet/portal/us/home/products/details/copiers-mfps-fax-machines/multifunction-copiers/imagerunner-advance-dx-6780i | BD27: Digital MFD - 70 to 90 CPM (Mono)(Ledger)imageRUNNER ADVANCE DX 6780i
A28: D | B28: 28 | C28: Digital MFD - 70 to 90 CPM (Color)(Ledger) | D28: MFD | E28: 50000 | F28: Color | G28: 11 X 17 | H28: Canon USA, Inc. | I28: imageRUNNER ADVANCE DX C7770i | J28: 3996C011AA | K28: 8093.1062 | L28: 20919.97402 | M28: 7099.062 | N28: =SUM(Table1[[#This Row],[New Device NC Discounted Purchase Price]:[Estimated Consumables Purchases During 3 Year Lifecycle]]) -> 36112.14222 | O28: =Table1[[#This Row],[36-Month Total Lease Payments4]] -> 8624.013967 | P28: =Table1[[#This Row],[Estimated 3 Year Maintenance Agreement Price5]] -> 26784 | Q28: 35408.01397 | R28: 41030.01 | S28: 0.8027515421 | T28: 8093.1062 | U28: 0.45 | V28: 0 | W28: 90 days | X28: 6138B347AA | Y28: 33869.35579 | Z28: 0.3823332765 | AA28: 20919.97402 | AB28: 0.0296 | AC28: =Table1[[#This Row],[New Device NC Discounted Purchase Price2]]*Table1[[#This Row],[36-Month Lease Rate Factor (excluding Software)]]*36 -> 8624.013967 | AD28: 0.0245 | AE28: =Table1[[#This Row],[New Device NC Discounted Purchase Price]]*Table1[[#This Row],[48-Month Lease Rate Factor (excluding Software)]]*48 -> 9517.492891 | AF28: 0.0204 | AG28: =Table1[[#This Row],[New Device NC Discounted Purchase Price2]]*Table1[[#This Row],[60-Month Lease Rate Factor (excluding Software)]]*60 -> 9905.961989 | AH28: 0.0328 | AI28: 0.0259 | AJ28: 0.0216 | AN28: 0 | AO28: 0 | AP28: 0.005 | AQ28: 0.031 | AR28: 26784 | AS28: 350 | AT28: Color | AU28: 11 X 17 | AV28: 80000 | AW28: 70 | AX28: 5 | AY28: Yes | AZ28: 3550 | BA28: 4250 | BB28: 250GB | BC28: https://www.usa.canon.com/internet/portal/us/home/support/details/copiers-mfps-fax-machines/multifunction-copiers/imagerunner-advance-dx-c7770i | BD28: Digital MFD - 70 to 90 CPM (Color)(Ledger)imageRUNNER ADVANCE DX C7770i
A29: E | B29: 29 | C29: Digital Production Printer/Copier - 70 to 90 CPM (Color)(Ledger) | D29: Production | F29: Color | G29: 11 X 17 | H29: Canon USA, Inc. | I29: imagePRESS C910 Series Main Engine Set & imagePRESS C810 Speed License | J29: Bundle Item # = 3238C002AB & 3245C001AA | K29: 18900 | L29: 105600 | N29: =SUM(Table1[[#This Row],[New Device NC Discounted Purchase Price]:[Estimated Consumables Purchases During 3 Year Lifecycle]]) -> 124500 | O29: =Table1[[#This Row],[36-Month Total Lease Payments4]] -> 20139.84 | P29: =Table1[[#This Row],[Estimated 3 Year Maintenance Agreement Price5]] -> 0 | Q29: 20139.84 | R29: 54000 | S29: 0.65 | T29: =IFERROR(R29*(1-S29),"") -> 18900 | U29: Varies | V29: N/A | W29: 90 days | X29: 6138B379AA | Y29: 117333.333 | Z29: 0.1 | AA29: =IFERROR(Y29*(1-Z29),"") -> 105599.9997 | AB29: 0.0296 | AC29: =Table1[[#This Row],[New Device NC Discounted Purchase Price2]]*Table1[[#This Row],[36-Month Lease Rate Factor (excluding Software)]]*36 -> 20139.84 | AD29: 0.0245 | AE29: =Table1[[#This Row],[New Device NC Discounted Purchase Price]]*Table1[[#This Row],[48-Month Lease Rate Factor (excluding Software)]]*48 -> 22226.4 | AF29: 0.0204 | AG29: =Table1[[#This Row],[New Device NC Discounted Purchase Price2]]*Table1[[#This Row],[60-Month Lease Rate Factor (excluding Software)]]*60 -> 23133.6 | AH29: 0.0328 | AI29: 0.0259 | AJ29: 0.0216 | AO29: 0 | AP29: 0.011 | AQ29: 0.0473 | AR29: 0 | AS29: 350 | AT29: Color | AU29: 11 X 17 | AV29: 88500 | AW29: 80 | AX29: 7 | AY29: Yes | AZ29: Depends on Input Accessories | BA29: Depends on Output Accessories | BB29: 4GB | BC29: https://www.usa.canon.com/internet/portal/us/home/support/details/production-printing/color-sheetfed-digital-presses/imagepress-c710 | BD29: Digital Production Printer/Copier - 70 to 90 CPM (Color)(Ledger)imagePRESS C910 Series Main Engine Set & imagePRESS C810 Speed License
A30: E | B30: 30 | C30: Digital Production Printer/Copier - 91 to 119 CPM (Mono)(Ledger) | D30: Production | F30: Mono | G30: 11 X 17 | H30: Canon USA, Inc. | I30: varioPRINT DP Line Main Engine Base Model Set (MFP Model) & varioPRINT DP Line 115 Base License with Printer Operation Care Set | J30: Bundle Item # = 8116B060AA & 8116B122AA | K30: 25250 | L30: 151470 | N30: =SUM(Table1[[#This Row],[New Device NC Discounted Purchase Price]:[Estimated Consumables Purchases During 3 Year Lifecycle]]) -> 176720 | O30: =Table1[[#This Row],[36-Month Total Lease Payments4]] -> 26906.4 | P30: =Table1[[#This Row],[Estimated 3 Year Maintenance Agreement Price5]] -> 0 | Q30: 26906.4 | R30: 50500 | S30: 0.5 | T30: 25250 | U30: Varies | V30: N/A | W30: 90 days | X30: 6138B312AA | Y30: 168300 | Z30: 0.1 | AA30: 151470 | AB30: 0.0296 | AC30: =Table1[[#This Row],[New Device NC Discounted Purchase Price2]]*Table1[[#This Row],[36-Month Lease Rate Factor (excluding Software)]]*36 -> 26906.4 | AD30: 0.0245 | AE30: =Table1[[#This Row],[New Device NC Discounted Purchase Price]]*Table1[[#This Row],[48-Month Lease Rate Factor (excluding Software)]]*48 -> 29694 | AF30: 0.0204 | AG30: =Table1[[#This Row],[New Device NC Discounted Purchase Price2]]*Table1[[#This Row],[60-Month Lease Rate Factor (excluding Software)]]*60 -> 30906 | AH30: 0.0328 | AI30: 0.0259 | AJ30: 0.0216 | AO30: 0 | AP30: 0.00473 | AR30: 0 | AS30: 350 | AT30: Mono | AU30: 11 X 17 | AV30: 800000 | AW30: 115 | AX30: 5 | AY30: Yes | AZ30: Depends on Input Accessories | BA30: 250 Sheets simplex, long edge first (Red Label A4 80 g/m2) | BB30: 4GB | BC30: https://www.buyerslab.com/bliQ/Product/ShowSpecItem?spec=96006 | BD30: Digital Production Printer/Copier - 91 to 119 CPM (Mono)(Ledger)varioPRINT DP Line Main Engine Base Model Set (MFP Model) & varioPRINT DP Line 115 Base License with Printer Operation Care Set
A31: E | B31: 31 | C31: Digital Production Printer/Copier - 91 to 119 CPM (Color)(Ledger) | D31: Production | F31: Color | G31: 11 X 17 | H31: Canon USA, Inc. | I31: imagePRESS C10010VP Digital Press | J31: 4483C006AA | K31: 81550 | L31: 379500 | N31: =SUM(Table1[[#This Row],[New Device NC Discounted Purchase Price]:[Estimated Consumables Purchases During 3 Year Lifecycle]]) -> 461050 | O31: =Table1[[#This Row],[36-Month Total Lease Payments4]] -> 86899.68 | P31: =Table1[[#This Row],[Estimated 3 Year Maintenance Agreement Price5]] -> 0 | Q31: 86899.68 | R31: 233000 | S31: 0.65 | T31: 81550 | U31: Varies | V31: N/A | W31: 90 days | X31: 6138B450AA | Y31: 421666.666 | Z31: 0.1 | AA31: =IFERROR(Y31*(1-Z31),"") -> 379499.9994 | AB31: 0.0296 | AC31: =Table1[[#This Row],[New Device NC Discounted Purchase Price2]]*Table1[[#This Row],[36-Month Lease Rate Factor (excluding Software)]]*36 -> 86899.68 | AD31: 0.0245 | AE31: =Table1[[#This Row],[New Device NC Discounted Purchase Price]]*Table1[[#This Row],[48-Month Lease Rate Factor (excluding Software)]]*48 -> 95902.8 | AF31: 0.0204 | AG31: =Table1[[#This Row],[New Device NC Discounted Purchase Price2]]*Table1[[#This Row],[60-Month Lease Rate Factor (excluding Software)]]*60 -> 99817.2 | AH31: 0.0328 | AI31: 0.0259 | AJ31: 0.0216 | AO31: 0 | AP31: 0.01089 | AQ31: 0.0451 | AR31: 0 | AS31: 350 | AT31: Color | AU31: 11 X 17 | AV31: 450000 | AW31: 100 | AX31: 25 | AY31: Yes | AZ31: Depends on Input Accessories | BA31: Depends on Output Accessories | BB31: 1.5GB | BC31: https://www.usa.canon.com/internet/portal/us/home/products/details/production-printing/color-sheetfed-digital-presses/imagepress-c10010vp-c9010vp | BD31: Digital Production Printer/Copier - 91 to 119 CPM (Color)(Ledger)imagePRESS C10010VP Digital Press
A32: E | B32: 32 | C32: Digital Production Printer/Copier - 120 to 139 CPM (Mono)(Ledger) | D32: Production | F32: Mono | G32: 11 X 17 | H32: Canon USA, Inc. | I32: varioPRINT DP Line Main Engine Base Model Set (MFP Model) & varioPRINT DP Line 130 Base License with Printer Operation Care Set | J32: Bundle Item # 8116B060AA & 8116B120AA | K32: 30250 | L32: 178200 | N32: =SUM(Table1[[#This Row],[New Device NC Discounted Purchase Price]:[Estimated Consumables Purchases During 3 Year Lifecycle]]) -> 208450 | O32: =Table1[[#This Row],[36-Month Total Lease Payments4]] -> 32234.4 | P32: =Table1[[#This Row],[Estimated 3 Year Maintenance Agreement Price5]] -> 0 | Q32: 32234.4 | R32: 60500 | S32: 0.5 | T32: 30250 | U32: Varies | V32: N/A | W32: 90 days | X32: 6138B314AA | Y32: 198000 | Z32: 0.1 | AA32: =IFERROR(Y32*(1-Z32),"") -> 178200 | AB32: 0.0296 | AC32: =Table1[[#This Row],[New Device NC Discounted Purchase Price2]]*Table1[[#This Row],[36-Month Lease Rate Factor (excluding Software)]]*36 -> 32234.4 | AD32: 0.0245 | AE32: =Table1[[#This Row],[New Device NC Discounted Purchase Price]]*Table1[[#This Row],[48-Month Lease Rate Factor (excluding Software)]]*48 -> 35574 | AF32: 0.0204 | AG32: =Table1[[#This Row],[New Device NC Discounted Purchase Price2]]*Table1[[#This Row],[60-Month Lease Rate Factor (excluding Software)]]*60 -> 37026 | AH32: 0.0328 | AI32: 0.0259 | AJ32: 0.0216 | AO32: 0 | AP32: 0.00473 | AR32: 0 | AS32: 350 | AT32: Mono | AU32: 11 X 17 | AV32: 800000 | AW32: 130 | AX32: 5 | AY32: Yes | AZ32: Depends on Input Accessories | BA32: 250 Sheets simplex, long edge first (Red Label A4 80 g/m2) | BB32: 4GB | BC32: https://www.buyerslab.com/bliQ/Product/ShowSpecItem?spec=96005 | BD32: Digital Production Printer/Copier - 120 to 139 CPM (Mono)(Ledger)varioPRINT DP Line Main Engine Base Model Set (MFP Model) & varioPRINT DP Line 130 Base License with Printer Operation Care Set
A33: E | B33: 33 | C33: Digital Production Printer/Copier - 120 to 139 CPM (Color)(Ledger) | D33: Production | F33: Color | G33: 11 X 17 | H33: Canon USA, Inc. | N33: =SUM(Table1[[#This Row],[New Device NC Discounted Purchase Price]:[Estimated Consumables Purchases During 3 Year Lifecycle]]) -> 0 | O33: =Table1[[#This Row],[36-Month Total Lease Payments4]] -> 0 | P33: =Table1[[#This Row],[Estimated 3 Year Maintenance Agreement Price5]] -> 0 | Q33: 0 | AB33: 0.0296 | AC33: =Table1[[#This Row],[New Device NC Discounted Purchase Price2]]*Table1[[#This Row],[36-Month Lease Rate Factor (excluding Software)]]*36 -> 0 | AD33: 0.0245 | AE33: =Table1[[#This Row],[New Device NC Discounted Purchase Price]]*Table1[[#This Row],[48-Month Lease Rate Factor (excluding Software)]]*48 -> 0 | AF33: 0.0204 | AG33: =Table1[[#This Row],[New Device NC Discounted Purchase Price2]]*Table1[[#This Row],[60-Month Lease Rate Factor (excluding Software)]]*60 -> 0 | AH33: 0.0328 | AI33: 0.0259 | AJ33: 0.0216 | AR33: 0 | AS33: 350 | BD33: Digital Production Printer/Copier - 120 to 139 CPM (Color)(Ledger)
A34: E | B34: 34 | C34: Digital Production Printer/Copier - 140 to 159 CPM (Mono)(Ledger) | D34: Production | F34: Mono | G34: 11 X 17 | H34: Canon USA, Inc. | I34: varioPRINT DP Line Main Engine Base Model Set (MFP Model) & varioPRINT DP Line 140 Base License with Printer Operation Care Set | J34: Bundle Item # 8116B060AA & 8116B118AA | K34: 38250 | L34: 196020 | N34: =SUM(Table1[[#This Row],[New Device NC Discounted Purchase Price]:[Estimated Consumables Purchases During 3 Year Lifecycle]]) -> 234270 | O34: =Table1[[#This Row],[36-Month Total Lease Payments4]] -> 40759.2 | P34: =Table1[[#This Row],[Estimated 3 Year Maintenance Agreement Price5]] -> 0 | Q34: 40759.2 | R34: 76500 | S34: 0.5 | T34: 38250 | U34: Varies | V34: N/A | W34: 90 days | X34: 6138B315AA | Y34: 217800 | Z34: 0.1 | AA34: =IFERROR(Y34*(1-Z34),"") -> 196020 | AB34: 0.0296 | AC34: =Table1[[#This Row],[New Device NC Discounted Purchase Price2]]*Table1[[#This Row],[36-Month Lease Rate Factor (excluding Software)]]*36 -> 40759.2 | AD34: 0.0245 | AE34: =Table1[[#This Row],[New Device NC Discounted Purchase Price]]*Table1[[#This Row],[48-Month Lease Rate Factor (excluding Software)]]*48 -> 44982 | AF34: 0.0204 | AG34: =Table1[[#This Row],[New Device NC Discounted Purchase Price2]]*Table1[[#This Row],[60-Month Lease Rate Factor (excluding Software)]]*60 -> 46818 | AH34: 0.0328 | AI34: 0.0259 | AJ34: 0.0216 | AO34: 0 | AP34: 0.00473 | AR34: 0 | AS34: 350 | AT34: Mono | AU34: 11 x 17 | AV34: 800000 | AW34: 140 | AX34: 5 | AY34: Yes | AZ34: Depends on Input Accessories | BA34: 250 Sheets simplex, long edge first (Red Label A4 80 g/m2) | BB34: 4GB | BC34: https://www.buyerslab.com/bliQ/Product/ShowSpecItem?spec=96004 | BD34: Digital Production Printer/Copier - 140 to 159 CPM (Mono)(Ledger)varioPRINT DP Line Main Engine Base Model Set (MFP Model) & varioPRINT DP Line 140 Base License with Printer Operation Care Set
A35: E | B35: 35 | C35: Digital Production Printer/Copier - 140 to 159 CPM (Color)(Ledger) | D35: Production | F35: Color | G35: 11 X 17 | H35: Canon USA, Inc. | N35: =SUM(Table1[[#This Row],[New Device NC Discounted Purchase Price]:[Estimated Consumables Purchases During 3 Year Lifecycle]]) -> 0 | O35: =Table1[[#This Row],[36-Month Total Lease Payments4]] -> 0 | P35: =Table1[[#This Row],[Estimated 3 Year Maintenance Agreement Price5]] -> 0 | Q35: 0 | AB35: 0.0296 | AC35: =Table1[[#This Row],[New Device NC Discounted Purchase Price2]]*Table1[[#This Row],[36-Month Lease Rate Factor (excluding Software)]]*36 -> 0 | AD35: 0.0245 | AE35: =Table1[[#This Row],[New Device NC Discounted Purchase Price]]*Table1[[#This Row],[48-Month Lease Rate Factor (excluding Software)]]*48 -> 0 | AF35: 0.0204 | AG35: =Table1[[#This Row],[New Device NC Discounted Purchase Price2]]*Table1[[#This Row],[60-Month Lease Rate Factor (excluding Software)]]*60 -> 0 | AH35: 0.0328 | AI35: 0.0259 | AJ35: 0.0216 | AR35: =IFERROR(IF(F35="Mono",((AN35*3)+((E35*36)*AP35)),((AN35*3)+((E35*36)*AP35*0.62)+((E35*36)*AQ35*0.38))),"") -> 0 | AS35: 350 | BD35: =CONCATENATE(C35,I35) -> Digital Production Printer/Copier - 140 to 159 CPM (Color)(Ledger)
A36: E | B36: 36 | C36: Digital Production Printer/Copier - 160+ CPM (Mono)(Ledger) | D36: Production | F36: Mono | G36: 11 X 17 | H36: Canon USA, Inc. | I36: VarioPrint 6000 TITAN Base Model Set & VarioPrint 6180 Base License Set | J36: Bundle Item # 4644C004AA & 2582C038AA | K36: 78800 | L36: 462000 | N36: =SUM(Table1[[#This Row],[New Device NC Discounted Purchase Price]:[Estimated Consumables Purchases During 3 Year Lifecycle]]) -> 540800 | O36: =Table1[[#This Row],[36-Month Total Lease Payments4]] -> 83969.28 | P36: =Table1[[#This Row],[Estimated 3 Year Maintenance Agreement Price5]] -> 0 | Q36: 83969.28 | R36: 157600 | S36: 0.5 | T36: 78800 | U36: Varies | V36: N/A | W36: 90 days | X36: 6138B316AA | Y36: 513333.333 | Z36: 0.1 | AA36: =IFERROR(Y36*(1-Z36),"") -> 461999.9997 | AB36: 0.0296 | AC36: =Table1[[#This Row],[New Device NC Discounted Purchase Price2]]*Table1[[#This Row],[36-Month Lease Rate Factor (excluding Software)]]*36 -> 83969.28 | AD36: 0.0245 | AE36: =Table1[[#This Row],[New Device NC Discounted Purchase Price]]*Table1[[#This Row],[48-Month Lease Rate Factor (excluding Software)]]*48 -> 92668.8 | AF36: 0.0204 | AG36: =Table1[[#This Row],[New Device NC Discounted Purchase Price2]]*Table1[[#This Row],[60-Month Lease Rate Factor (excluding Software)]]*60 -> 96451.2 | AH36: 0.0328 | AI36: 0.0259 | AJ36: 0.0216 | AO36: 0 | AP36: 0.0044 | AR36: 0 | AS36: 350 | AT36: Mono | AU36: 11 X 17 | AV36: 1400000 | AW36: 177 | AX36: 16 | AY36: Yes | AZ36: Depends on Input Accessories | BA36: Depends on Output Accessories | BB36: 8GB | BC36: https://www.buyerslab.com/bliQ/Product/ShowSpecItem?spec=105003 | BD36: Digital Production Printer/Copier - 160+ CPM (Mono)(Ledger)VarioPrint 6000 TITAN Base Model Set & VarioPrint 6180 Base License Set
A37: E | B37: 37 | C37: Digital Production Printer/Copier - 160+ CPM (Color)(Ledger) | D37: Production | F37: Color | G37: 11 X 17 | H37: Canon USA, Inc. | N37: =SUM(Table1[[#This Row],[New Device NC Discounted Purchase Price]:[Estimated Consumables Purchases During 3 Year Lifecycle]]) -> 0 | O37: =Table1[[#This Row],[36-Month Total Lease Payments4]] -> 0 | P37: =Table1[[#This Row],[Estimated 3 Year Maintenance Agreement Price5]] -> 0 | Q37: 0 | AB37: 0.0296 | AC37: =Table1[[#This Row],[New Device NC Discounted Purchase Price2]]*Table1[[#This Row],[36-Month Lease Rate Factor (excluding Software)]]*36 -> 0 | AD37: 0.0245 | AE37: =Table1[[#This Row],[New Device NC Discounted Purchase Price]]*Table1[[#This Row],[48-Month Lease Rate Factor (excluding Software)]]*48 -> 0 | AF37: 0.0204 | AG37: =Table1[[#This Row],[New Device NC Discounted Purchase Price2]]*Table1[[#This Row],[60-Month Lease Rate Factor (excluding Software)]]*60 -> 0 | AH37: 0.0328 | AI37: 0.0259 | AJ37: 0.0216 | AR37: 0 | AS37: 350 | BD37: Digital Production Printer/Copier - 160+ CPM (Color)(Ledger)
A38: A | B38: 1 | C38: Inkjet / Thermal Mobile Printer - 3 or more CPM (Color) | D38: Printer | E38: 100 | F38: Color | G38: 8.5 X 14 | H38: HP | I38: OFFICEJET 200 | J38: CZ993A | K38: 244.24 | L38: 49.8 | M38: 230.0554 | N38: =SUM(Table1[[#This Row],[New Device NC Discounted Purchase Price]:[Estimated Consumables Purchases During 3 Year Lifecycle]]) -> 524.0954 | O38: =Table1[[#This Row],[36-Month Total Lease Payments4]] -> 0 | P38: =Table1[[#This Row],[Estimated 3 Year Maintenance Agreement Price5]] -> 0 | R38: 344 | S38: 0.29 | T38: 244.24 | U38: 0.29 | V38: 0.15 | W38: 12 months | X38: UQ209E | Y38: 60 | Z38: 0.17 | AA38: 49.8 | AC38: =Table1[[#This Row],[New Device NC Discounted Purchase Price2]]*Table1[[#This Row],[36-Month Lease Rate Factor (excluding Software)]]*36 -> 0 | AE38: =Table1[[#This Row],[New Device NC Discounted Purchase Price]]*Table1[[#This Row],[48-Month Lease Rate Factor (excluding Software)]]*48 -> 0 | AG38: =Table1[[#This Row],[New Device NC Discounted Purchase Price2]]*Table1[[#This Row],[60-Month Lease Rate Factor (excluding Software)]]*60 -> 0 | AN38: 0 | AO38: 0 | AR38: 0 | AT38: Color | AU38: 8.5 X 14 | AV38: 100 to 300 pages | AW38: 10 | AX38: 12 | AY38: Yes | AZ38: 50 | BA38: 50 | BB38: 128MB | BC38: http://h20195.www2.hp.com/v2/GetDocument.aspx?docname=c05018332&doctype=data sheet&doclang=EN_US&searchquery=&cc=us&lc=en | BD38: Inkjet / Thermal Mobile Printer - 3 or more CPM (Color)OFFICEJET 200
A39: A | B39: 2 | C39: Inkjet / Thermal MFD - 11 to 20 CPM (Color) | D39: MFD | E39: 250 | F39: Color | G39: 8.5 X 14 | H39: HP | I39: OfficeJet Pro 9020 | J39: 1MR78A | K39: 260.57 | L39: 66.4 | M39: 298.68 | N39: =SUM(Table1[[#This Row],[New Device NC Discounted Purchase Price]:[Estimated Consumables Purchases During 3 Year Lifecycle]]) -> 625.65 | O39: =Table1[[#This Row],[36-Month Total Lease Payments4]] -> 0 | P39: =Table1[[#This Row],[Estimated 3 Year Maintenance Agreement Price5]] -> 0 | R39: 428 | S39: 0.29 | T39: 260.57 | U39: 0.29 | V39: 0.15 | W39: 12 months | X39: UQ212E | Y39: 60 | Z39: 0.17 | AA39: 49.8 | AC39: =Table1[[#This Row],[New Device NC Discounted Purchase Price2]]*Table1[[#This Row],[36-Month Lease Rate Factor (excluding Software)]]*36 -> 0 | AE39: =Table1[[#This Row],[New Device NC Discounted Purchase Price]]*Table1[[#This Row],[48-Month Lease Rate Factor (excluding Software)]]*48 -> 0 | AG39: =Table1[[#This Row],[New Device NC Discounted Purchase Price2]]*Table1[[#This Row],[60-Month Lease Rate Factor (excluding Software)]]*60 -> 0 | AN39: 0 | AO39: 0 | AR39: 0 | AS39: 195 | AT39: Color | AU39: 8.5 X 14 | AV39: 250 to 2000 pages | AW39: 24 | AX39: 10 | AY39: Yes | AZ39: 250 | BA39: 150 | BB39: 512MB | BC39: https://www.buyerslab.com/bliQ/Product/ShowSpecItem?spec=114801 | BD39: Inkjet / Thermal MFD - 11 to 20 CPM (Color)OfficeJet Pro 9020
A40: B.1 | B40: 3 | C40: Laser / LED Printer - 19 to 30 CPM (Mono) | D40: Printer | E40: 1500 | F40: Mono | G40: 8.5 X 14 | H40: HP | I40: LASERJET M203dw | J40: G3Q47A | K40: 180.34 | L40: 58.1 | M40: 1238.544 | N40: =SUM(Table1[[#This Row],[New Device NC Discounted Purchase Price]:[Estimated Consumables Purchases During 3 Year Lifecycle]]) -> 1476.984 | O40: =Table1[[#This Row],[36-Month Total Lease Payments4]] -> 181.133496 | P40: =Table1[[#This Row],[Estimated 3 Year Maintenance Agreement Price5]] -> 1458 | Q40: =SUM(O40:P40) -> 1639.133496 | R40: 254 | S40: 0.29 | T40: 180.34 | U40: 0.29 | V40: 0.15 | W40: 12 months | X40: U6M39E | Y40: 59 | Z40: 0.17 | AA40: 41.5 | AB40: 0.0279 | AC40: =Table1[[#This Row],[New Device NC Discounted Purchase Price2]]*Table1[[#This Row],[36-Month Lease Rate Factor (excluding Software)]]*36 -> 181.133496 | AD40: 0.0235 | AE40: =Table1[[#This Row],[New Device NC Discounted Purchase Price]]*Table1[[#This Row],[48-Month Lease Rate Factor (excluding Software)]]*48 -> 203.42352 | AF40: 0.0198 | AG40: =Table1[[#This Row],[New Device NC Discounted Purchase Price2]]*Table1[[#This Row],[60-Month Lease Rate Factor (excluding Software)]]*60 -> 214.24392 | AH40: 0.0279 | AI40: 0.0235 | AJ40: 0.0198 | AK40: HPM203-1yr4hrcpc | AL40: 0 | AM40: 0.15 | AN40: 0 | AO40: 0 | AP40: 0.027 | AR40: 1458 | AS40: 195 | AT40: Mono | AU40: 8.5 X 14 | AV40: 250 to 2000 pages | AW40: 26 | AX40: 8 | AY40: Yes | AZ40: 250 | BA40: 150 | BB40: 128MB | BC40: http://h20195.www2.hp.com/v2/GetPDF.aspx/c05275083.pdf | BD40: Laser / LED Printer - 19 to 30 CPM (Mono)LASERJET M203dw
A41: B.1 | B41: 4 | C41: Laser / LED Printer - 11 to 20 CPM (Color) | D41: Printer | E41: 1500 | F41: Color | G41: 8.5 X 14 | H41: HP | I41: HP Color LaserJet 454dn | J41: W1Y44A | K41: 389.2 | L41: 73.87 | M41: 2818.87 | N41: =SUM(Table1[[#This Row],[New Device NC Discounted Purchase Price]:[Estimated Consumables Purchases During 3 Year Lifecycle]]) -> 3281.94 | O41: =Table1[[#This Row],[36-Month Total Lease Payments4]] -> 390.91248 | P41: =Table1[[#This Row],[Estimated 3 Year Maintenance Agreement Price5]] -> 3159.972 | Q41: 3550.88448 | R41: 548.17 | S41: 0.29 | T41: 389.2 | U41: 0.29 | V41: 0.15 | W41: 12 months | X41: UB9V0E | Y41: 89 | Z41: 0.17 | AA41: 73.87 | AB41: 0.0279 | AC41: =Table1[[#This Row],[New Device NC Discounted Purchase Price2]]*Table1[[#This Row],[36-Month Lease Rate Factor (excluding Software)]]*36 -> 390.91248 | AD41: 0.0235 | AE41: =Table1[[#This Row],[New Device NC Discounted Purchase Price]]*Table1[[#This Row],[48-Month Lease Rate Factor (excluding Software)]]*48 -> 439.0176 | AF41: 0.0198 | AG41: =Table1[[#This Row],[New Device NC Discounted Purchase Price2]]*Table1[[#This Row],[60-Month Lease Rate Factor (excluding Software)]]*60 -> 462.3696 | AH41: 0.0279 | AI41: 0.0235 | AJ41: 0.0198 | AK41: HPM454-1yr4hrcpc | AL41: 0 | AM41: 0.15 | AN41: 0 | AO41: 0 | AP41: 0.0239 | AQ41: 0.115 | AR41: 3159.972 | AS41: 195 | AT41: Color | AU41: 8.5 X 14 | AV41: 750 to 4000 pages | AW41: 28 | AX41: 8.9 | AY41: Yes | AZ41: 350 | BA41: 150 | BB41: 256MB | BC41: https://www.buyerslab.com/bliQ/Product/ShowSpecItem?spec=115980 | BD41: Laser / LED Printer - 11 to 20 CPM (Color)HP Color LaserJet 454dn
A42: B.1 | B42: 5 | C42: Laser / LED Printer - 31 to 44 CPM (Mono) | D42: Printer | E42: 3000 | F42: Mono | G42: 8.5 X 14 | H42: HP | I42: HP LaserJet M404dn | J42: W1A53A | K42: 271.2626 | L42: 48.97 | M42: 1873.3 | N42: =SUM(Table1[[#This Row],[New Device NC Discounted Purchase Price]:[Estimated Consumables Purchases During 3 Year Lifecycle]]) -> 2193.5326 | O42: =Table1[[#This Row],[36-Month Total Lease Payments4]] -> 272.4561554 | P42: =Table1[[#This Row],[Estimated 3 Year Maintenance Agreement Price5]] -> 1976.4 | Q42: 2248.856155 | R42: 382.06 | S42: 0.29 | T42: 271.2626 | U42: 0.29 | V42: 0.15 | W42: 12 months | X42: U8TM2E | Y42: 59 | Z42: 0.17 | AA42: 48.97 | AB42: 0.0279 | AC42: =Table1[[#This Row],[New Device NC Discounted Purchase Price2]]*Table1[[#This Row],[36-Month Lease Rate Factor (excluding Software)]]*36 -> 272.4561554 | AD42: 0.0235 | AE42: =Table1[[#This Row],[New Device NC Discounted Purchase Price]]*Table1[[#This Row],[48-Month Lease Rate Factor (excluding Software)]]*48 -> 305.9842128 | AF42: 0.0198 | AG42: =Table1[[#This Row],[New Device NC Discounted Purchase Price2]]*Table1[[#This Row],[60-Month Lease Rate Factor (excluding Software)]]*60 -> 322.2599688 | AH42: 0.0279 | AI42: 0.0235 | AJ42: 0.0198 | AK42: HPM402-1yr4hrcpc | AL42: 0 | AM42: 0.15 | AN42: 0 | AO42: 0 | AP42: 0.0183 | AR42: 1976.4 | AS42: 195 | AT42: Mono | AU42: 8.5 X 14 | AV42: 750 to 4000 pages | AW42: 40 | AX42: 5.6 | AY42: Yes | AZ42: 350 | BA42: 150 | BB42: 256MB | BC42: https://www.buyerslab.com/bliQ/Product/ShowSpecItem?spec=115982 | BD42: Laser / LED Printer - 31 to 44 CPM (Mono)HP LaserJet M404dn
A43: B.1 | B43: 6 | C43: Laser / LED Printer - 21 to 34 CPM (Color) | D43: Printer | E43: 3000 | F43: Color | G43: 8.5 X 14 | H43: HP | I43: HP Color LaserJet 454dn | J43: W1Y44A | K43: 389.2 | L43: 73.87 | M43: 5637.74 | N43: =SUM(Table1[[#This Row],[New Device NC Discounted Purchase Price]:[Estimated Consumables Purchases During 3 Year Lifecycle]]) -> 6100.81 | O43: =Table1[[#This Row],[36-Month Total Lease Payments4]] -> 390.91248 | P43: =Table1[[#This Row],[Estimated 3 Year Maintenance Agreement Price5]] -> 6319.944 | Q43: 6710.85648 | R43: 548.17 | S43: 0.29 | T43: 389.2 | U43: 0.29 | V43: 0.15 | W43: 12 months | X43: UB9V0E | Y43: 89 | Z43: 0.17 | AA43: 73.87 | AB43: 0.0279 | AC43: =Table1[[#This Row],[New Device NC Discounted Purchase Price2]]*Table1[[#This Row],[36-Month Lease Rate Factor (excluding Software)]]*36 -> 390.91248 | AD43: 0.0235 | AE43: =Table1[[#This Row],[New Device NC Discounted Purchase Price]]*Table1[[#This Row],[48-Month Lease Rate Factor (excluding Software)]]*48 -> 439.0176 | AF43: 0.0198 | AG43: =Table1[[#This Row],[New Device NC Discounted Purchase Price2]]*Table1[[#This Row],[60-Month Lease Rate Factor (excluding Software)]]*60 -> 462.3696 | AH43: 0.0279 | AI43: 0.0235 | AJ43: 0.0198 | AK43: HPM454-1yr4hrcpc | AL43: 0 | AM43: 0.15 | AN43: 0 | AO43: 0 | AP43: 0.0239 | AQ43: 0.115 | AR43: 6319.944 | AS43: 195 | AT43: Color | AU43: 8.5 X 14 | AV43: 750 to 4000 pages | AW43: 28 | AX43: 8.9 | AY43: Yes | AZ43: 300 | BA43: 150 | BB43: 256MB | BC43: https://www.buyerslab.com/bliQ/Product/ShowSpecItem?spec=115980 | BD43: Laser / LED Printer - 21 to 34 CPM (Color)HP Color LaserJet 454dn
A44: B.1 | B44: 7 | C44: Laser / LED Printer - 45 or more CPM (Mono) | D44: Printer | E44: 5000 | F44: Mono | G44: 8.5 X 14 | H44: HP | I44: LaserJet M611dn | J44: 7PS84A | K44: 1087.7626 | L44: 223.27 | M44: 1660.61 | N44: =SUM(Table1[[#This Row],[New Device NC Discounted Purchase Price]:[Estimated Consumables Purchases During 3 Year Lifecycle]]) -> 2971.6426 | O44: =Table1[[#This Row],[36-Month Total Lease Payments4]] -> 1092.548755 | P44: =Table1[[#This Row],[Estimated 3 Year Maintenance Agreement Price5]] -> 2142 | Q44: 3234.548755 | R44: 1595.94 | S44: 0.3184 | T44: 1087.7626 | U44: 0.29 | V44: 0.15 | W44: 12 months | X44: U9NE0E | Y44: 269 | Z44: 0.17 | AA44: 223.27 | AB44: 0.0279 | AC44: =Table1[[#This Row],[New Device NC Discounted Purchase Price2]]*Table1[[#This Row],[36-Month Lease Rate Factor (excluding Software)]]*36 -> 1092.548755 | AD44: 0.0235 | AE44: =Table1[[#This Row],[New Device NC Discounted Purchase Price]]*Table1[[#This Row],[48-Month Lease Rate Factor (excluding Software)]]*48 -> 1226.996213 | AF44: 0.0198 | AG44: =Table1[[#This Row],[New Device NC Discounted Purchase Price2]]*Table1[[#This Row],[60-Month Lease Rate Factor (excluding Software)]]*60 -> 1292.261969 | AH44: 0.0279 | AI44: 0.0235 | AJ44: 0.0198 | AK44: HPM611-1yr4hrcpc | AL44: 0 | AM44: 0.15 | AN44: 0 | AO44: 0 | AP44: 0.0119 | AR44: 2142 | AS44: 195 | AT44: Mono | AU44: 8.5 X 14 | AV44: 5000 to 25,000 pages | AW44: 65 | AX44: 5.0 sec | AY44: Yes | AZ44: 800 | BA44: 500 | BB44: 512MB | BC44: http://h20195.www2.hp.com/v2/GetPDF.aspx/4aa7-7080enuc.pdf | BD44: Laser / LED Printer - 45 or more CPM (Mono)LaserJet M611dn
A45: B.1 | B45: 8 | C45: Laser / LED Printer - 35 or more CPM (Color) | D45: Printer | E45: 5000 | F45: Color | G45: 8.5 X 14 | H45: HP | I45: LaserJet M653dn | J45: J8A04A | K45: 1438.034 | L45: 372.67 | M45: 5131 | N45: =SUM(Table1[[#This Row],[New Device NC Discounted Purchase Price]:[Estimated Consumables Purchases During 3 Year Lifecycle]]) -> 6941.704 | O45: =Table1[[#This Row],[36-Month Total Lease Payments4]] -> 1444.36135 | P45: =Table1[[#This Row],[Estimated 3 Year Maintenance Agreement Price5]] -> 7309.08 | Q45: 8753.44135 | R45: 2025.4 | S45: 0.29 | T45: 1438.034 | U45: 0.29 | V45: 0.15 | W45: 12 months | X45: U9NZ6E | Y45: 449 | Z45: 0.17 | AA45: 372.67 | AB45: 0.0279 | AC45: =Table1[[#This Row],[New Device NC Discounted Purchase Price2]]*Table1[[#This Row],[36-Month Lease Rate Factor (excluding Software)]]*36 -> 1444.36135 | AD45: 0.0235 | AE45: =Table1[[#This Row],[New Device NC Discounted Purchase Price]]*Table1[[#This Row],[48-Month Lease Rate Factor (excluding Software)]]*48 -> 1622.102352 | AF45: 0.0198 | AG45: =Table1[[#This Row],[New Device NC Discounted Purchase Price2]]*Table1[[#This Row],[60-Month Lease Rate Factor (excluding Software)]]*60 -> 1708.384392 | AH45: 0.0279 | AI45: 0.0235 | AJ45: 0.0198 | AK45: HPM653-1yr4hrcpc | AL45: 0 | AM45: 0.15 | AN45: 0 | AO45: 0 | AP45: 0.0164 | AQ45: 0.0801 | AR45: 7309.08 | AS45: 195 | AT45: Color | AU45: 8.5 X 14 | AV45: 2000 to 17000 pages | AW45: 60 | AX45: 6 | AY45: Yes | AZ45: 650 | BA45: 500 | BB45: 1GB | BC45: http://h20195.www2.hp.com/v2/GetPDF.aspx/4aa6-9658enuc.pdf | BD45: Laser / LED Printer - 35 or more CPM (Color)LaserJet M653dn
A46: B.1 | B46: 9 | C46: Laser / LED Printer - 30 or more CPM (Mono)(Ledger) | D46: Printer | E46: 4000 | F46: Mono | G46: 11 X 17 | H46: HP | I46: LASERJET 700 M712dn | J46: CF236A | K46: 1994.9793 | L46: 414.17 | M46: 1420.08 | N46: =SUM(Table1[[#This Row],[New Device NC Discounted Purchase Price]:[Estimated Consumables Purchases During 3 Year Lifecycle]]) -> 3829.2293 | O46: =Table1[[#This Row],[36-Month Total Lease Payments4]] -> 2003.757209 | P46: =Table1[[#This Row],[Estimated 3 Year Maintenance Agreement Price5]] -> 1828.8 | Q46: 3832.557209 | R46: 2809.83 | S46: 0.29 | T46: 1994.9793 | U46: 0.29 | V46: 0.15 | W46: 12 months | X46: U6Z05E | Y46: 499 | Z46: 0.17 | AA46: 414.17 | AB46: 0.0279 | AC46: =Table1[[#This Row],[New Device NC Discounted Purchase Price2]]*Table1[[#This Row],[36-Month Lease Rate Factor (excluding Software)]]*36 -> 2003.757209 | AD46: 0.0235 | AE46: =Table1[[#This Row],[New Device NC Discounted Purchase Price]]*Table1[[#This Row],[48-Month Lease Rate Factor (excluding Software)]]*48 -> 2250.33665 | AF46: 0.0198 | AG46: =Table1[[#This Row],[New Device NC Discounted Purchase Price2]]*Table1[[#This Row],[60-Month Lease Rate Factor (excluding Software)]]*60 -> 2370.035408 | AH46: 0.0279 | AI46: 0.0235 | AJ46: 0.0198 | AK46: HPM712-1yr4hrcpc | AL46: 0 | AM46: 0.15 | AN46: 0 | AO46: 0 | AP46: 0.0127 | AR46: 1828.8 | AS46: 195 | AT46: Mono | AU46: 11 X 17 | AV46: 5000 to 20000 pages | AW46: 40 | AX46: 10.5 | AY46: Yes | AZ46: 600 | BA46: 250 | BB46: 512MB | BC46: https://store.hp.com/wcsstore/hpusstore/pdf/cf236a.pdf | BD46: Laser / LED Printer - 30 or more CPM (Mono)(Ledger)LASERJET 700 M712dn
A47: B.1 | B47: 10 | C47: Laser / LED Printer - 20 or more CPM (Color)(Ledger) | D47: Printer | E47: 4000 | F47: Color | G47: 11 X 17 | H47: HP | I47: LASERJET M855dn | J47: A2W77A | K47: 3326.634 | L47: 912.17 | M47: 2205.15 | N47: =SUM(Table1[[#This Row],[New Device NC Discounted Purchase Price]:[Estimated Consumables Purchases During 3 Year Lifecycle]]) -> 6443.954 | O47: =Table1[[#This Row],[36-Month Total Lease Payments4]] -> 3341.27119 | P47: =Table1[[#This Row],[Estimated 3 Year Maintenance Agreement Price5]] -> 7082.496 | Q47: 10423.76719 | R47: 4685.4 | S47: 0.29 | T47: 3326.634 | U47: 0.29 | V47: 0.15 | W47: 12 months | X47: U0LK2E | Y47: 1099 | Z47: 0.17 | AA47: 912.17 | AB47: 0.0279 | AC47: =Table1[[#This Row],[New Device NC Discounted Purchase Price2]]*Table1[[#This Row],[36-Month Lease Rate Factor (excluding Software)]]*36 -> 3341.27119 | AD47: 0.0235 | AE47: =Table1[[#This Row],[New Device NC Discounted Purchase Price]]*Table1[[#This Row],[48-Month Lease Rate Factor (excluding Software)]]*48 -> 3752.443152 | AF47: 0.0198 | AG47: =Table1[[#This Row],[New Device NC Discounted Purchase Price2]]*Table1[[#This Row],[60-Month Lease Rate Factor (excluding Software)]]*60 -> 3952.041192 | AH47: 0.0279 | AI47: 0.0235 | AJ47: 0.0198 | AK47: HPM855-1yr4hrcpc | AL47: 0 | AM47: 0.15 | AN47: 0 | AO47: 0 | AP47: 0.0219 | AQ47: 0.0937 | AR47: 7082.496 | AS47: 195 | AT47: Color | AU47: 11 X 17 | AV47: 4000 to 25000 pages | AW47: 45 | AX47: 11 | AY47: Yes | AZ47: 600 | BA47: 500 | BB47: 1GB | BC47: http://h20195.www2.hp.com/v2/GetDocument.aspx?docname=4AA4-8999EEE&doctype=data sheet&doclang=EN_GB&searchquery=&cc=emea_middle_east&lc=en | BD47: Laser / LED Printer - 20 or more CPM (Color)(Ledger)LASERJET M855dn
A48: B.2 | B48: 11 | C48: Digital MFD - 19 to 30 CPM (Mono) | D48: MFD | E48: 2500 | F48: Mono | G48: 8.5 X 14 | H48: HP | I48: HP LaserJet MFP M428fdn | J48: W1A29A | K48: 407.3412 | L48: 140.27 | M48: 1498.64 | N48: =SUM(Table1[[#This Row],[New Device NC Discounted Purchase Price]:[Estimated Consumables Purchases During 3 Year Lifecycle]]) -> 2046.2512 | O48: =Table1[[#This Row],[36-Month Total Lease Payments4]] -> 409.1335013 | P48: =Table1[[#This Row],[Estimated 3 Year Maintenance Agreement Price5]] -> 1647 | Q48: 2056.133501 | R48: 573.72 | S48: 0.29 | T48: 407.3412 | U48: 0.29 | V48: 0.15 | W48: 12 months | X48: UB9R7E | Y48: 169 | Z48: 0.17 | AA48: 140.27 | AB48: 0.0279 | AC48: =Table1[[#This Row],[New Device NC Discounted Purchase Price2]]*Table1[[#This Row],[36-Month Lease Rate Factor (excluding Software)]]*36 -> 409.1335013 | AD48: 0.0235 | AE48: =Table1[[#This Row],[New Device NC Discounted Purchase Price]]*Table1[[#This Row],[48-Month Lease Rate Factor (excluding Software)]]*48 -> 459.4808736 | AF48: 0.0198 | AG48: =Table1[[#This Row],[New Device NC Discounted Purchase Price2]]*Table1[[#This Row],[60-Month Lease Rate Factor (excluding Software)]]*60 -> 483.9213456 | AH48: 0.0279 | AI48: 0.0235 | AJ48: 0.0198 | AK48: HPM428-1yr4hrcpc | AL48: 0 | AM48: 0.15 | AN48: 0 | AO48: 0 | AP48: 0.0183 | AR48: 1647 | AS48: 195 | AT48: Mono | AU48: 8.5 x 14 | AV48: 750 to 4000 pages | AW48: 40 | AX48: 6 | AY48: Yes | AZ48: 350 | BA48: 150 | BB48: 512MB | BC48: https://www.buyerslab.com/bliQ/Product/ShowSpecItem?spec=115978 | BD48: Digital MFD - 19 to 30 CPM (Mono)HP LaserJet MFP M428fdn
A49: B.2 | B49: 12 | C49: Digital MFD - 14 to 30 CPM (Color) | D49: MFD | E49: 2500 | F49: Color | G49: 8.5 X 14 | H49: HP | I49: HP Color LaserJet MFP M479fdn | J49: W1A79A | K49: 525.2793 | L49: 214.97 | M49: 4600.73 | N49: =SUM(Table1[[#This Row],[New Device NC Discounted Purchase Price]:[Estimated Consumables Purchases During 3 Year Lifecycle]]) -> 5340.9793 | O49: =Table1[[#This Row],[36-Month Total Lease Payments4]] -> 527.5905289 | P49: =Table1[[#This Row],[Estimated 3 Year Maintenance Agreement Price5]] -> 5266.62 | Q49: 5794.210529 | R49: 765.39 | S49: 0.3137 | T49: 525.2793 | U49: 0.29 | V49: 0.15 | W49: 12 months | X49: UB9S6E | Y49: 259 | Z49: 0.17 | AA49: 214.97 | AB49: 0.0279 | AC49: =Table1[[#This Row],[New Device NC Discounted Purchase Price2]]*Table1[[#This Row],[36-Month Lease Rate Factor (excluding Software)]]*36 -> 527.5905289 | AD49: 0.0235 | AE49: =Table1[[#This Row],[New Device NC Discounted Purchase Price]]*Table1[[#This Row],[48-Month Lease Rate Factor (excluding Software)]]*48 -> 592.5150504 | AF49: 0.0198 | AG49: =Table1[[#This Row],[New Device NC Discounted Purchase Price2]]*Table1[[#This Row],[60-Month Lease Rate Factor (excluding Software)]]*60 -> 624.0318084 | AH49: 0.0279 | AI49: 0.0235 | AJ49: 0.0198 | AK49: HPM479-1yr4hrcpc | AL49: 0 | AM49: 0.15 | AN49: 0 | AO49: 0 | AP49: 0.0239 | AQ49: 0.115 | AR49: 5266.62 | AS49: 195 | AT49: Color | AU49: 8 x 14 | AV49: 750 to 4000 pages | AW49: 28 | AX49: 8.9 | AY49: Yes | AZ49: 300 | BA49: 150 | BB49: 512 MB | BC49: https://www.buyerslab.com/bliQ/Product/ShowSpecItem?spec=115984 | BD49: Digital MFD - 14 to 30 CPM (Color)HP Color LaserJet MFP M479fdn
A50: B.2 | B50: 13 | C50: Digital MFD - 21 to 30 CPM (Mono)(Ledger) | D50: MFD | E50: 4000 | F50: Mono | G50: 11 x 17 | H50: HP | I50: LASERJET Ent. 700 MFP M725dn | J50: CF066A | K50: 3002.4693 | L50: 912.17 | M50: 1420.08 | N50: =SUM(Table1[[#This Row],[New Device NC Discounted Purchase Price]:[Estimated Consumables Purchases During 3 Year Lifecycle]]) -> 5334.7193 | O50: =Table1[[#This Row],[36-Month Total Lease Payments4]] -> 3015.680165 | P50: =Table1[[#This Row],[Estimated 3 Year Maintenance Agreement Price5]] -> 1828.8 | Q50: 4844.480165 | R50: 4228.83 | S50: 0.29 | T50: 3002.4693 | U50: 0.29 | V50: 0.15 | W50: 12 months | X50: U7A14E | Y50: 1099 | Z50: 0.17 | AA50: 912.17 | AB50: 0.0279 | AC50: =Table1[[#This Row],[New Device NC Discounted Purchase Price2]]*Table1[[#This Row],[36-Month Lease Rate Factor (excluding Software)]]*36 -> 3015.680165 | AD50: 0.0235 | AE50: =Table1[[#This Row],[New Device NC Discounted Purchase Price]]*Table1[[#This Row],[48-Month Lease Rate Factor (excluding Software)]]*48 -> 3386.78537 | AF50: 0.0198 | AG50: =Table1[[#This Row],[New Device NC Discounted Purchase Price2]]*Table1[[#This Row],[60-Month Lease Rate Factor (excluding Software)]]*60 -> 3566.933528 | AH50: 0.0279 | AI50: 0.0235 | AJ50: 0.0198 | AK50: HPM725-1yr4hrcpc | AL50: 0 | AM50: 0.15 | AN50: 0 | AO50: 0 | AP50: 0.0127 | AR50: 1828.8 | AS50: 195 | AT50: Mono | AU50: 11 x 17 | AV50: 5000 to 20000 pages | AW50: 40 | AX50: 10 | AY50: Yes | AZ50: 600 | BA50: 250 | BB50: 1 GB | BC50: http://store.hp.com/wcsstore/hpusstore/pdf/cf066a.pdf | BD50: Digital MFD - 21 to 30 CPM (Mono)(Ledger)LASERJET Ent. 700 MFP M725dn
A51: B.2 | B51: 14 | C51: Digital MFD - 21 to 30 CPM (Color)(Ledger) | D51: MFD | E51: 4000 | F51: Color | G51: 11 x 17 | H51: HP | I51: Color LaserJet M776dn | J51: T3U55A | K51: 3539.35 | L51: 1559.57 | M51: 2240.44 | N51: =SUM(Table1[[#This Row],[New Device NC Discounted Purchase Price]:[Estimated Consumables Purchases During 3 Year Lifecycle]]) -> 7339.36 | O51: =Table1[[#This Row],[36-Month Total Lease Payments4]] -> 3554.92314 | P51: =Table1[[#This Row],[Estimated 3 Year Maintenance Agreement Price5]] -> 6068.736 | Q51: 9623.65914 | R51: 6377 | S51: 0.4449819664 | T51: 3539.35 | U51: 0.29 | V51: 0.15 | W51: 12 months | X51: UC2W9E | Y51: 1879 | Z51: 0.17 | AA51: 1559.57 | AB51: 0.0279 | AC51: =Table1[[#This Row],[New Device NC Discounted Purchase Price2]]*Table1[[#This Row],[36-Month Lease Rate Factor (excluding Software)]]*36 -> 3554.92314 | AD51: 0.0235 | AE51: =Table1[[#This Row],[New Device NC Discounted Purchase Price]]*Table1[[#This Row],[48-Month Lease Rate Factor (excluding Software)]]*48 -> 3992.3868 | AF51: 0.0198 | AG51: =Table1[[#This Row],[New Device NC Discounted Purchase Price2]]*Table1[[#This Row],[60-Month Lease Rate Factor (excluding Software)]]*60 -> 4204.7478 | AH51: 0.0279 | AI51: 0.0235 | AJ51: 0.0198 | AK51: HPM776-1yr4hrcpc | AL51: 0 | AM51: 0.15 | AN51: 0 | AO51: 0 | AP51: 0.016 | AQ51: 0.0848 | AR51: 6068.736 | AS51: 195 | AT51: Color | AU51: 11 x 17 | AV51: up to 40,000 | AW51: 40 | AX51: 7 | AY51: Yes | AZ51: 650 | BA51: 500 | BB51: 3GB | BC51: https://support.hp.com/us-en/document/c06476306?jumpid=reg_r1002_usen_c-001_title_r0003 | BD51: Digital MFD - 21 to 30 CPM (Color)(Ledger)Color LaserJet M776dn
A52: B.2 | B52: 15 | C52: Digital MFD - 31 to 40 CPM (Mono) | D52: MFD | E52: 12000 | F52: Mono | G52: 8.5 X 14 | H52: HP | I52: LaserJet M528f | J52: 1PV65A | K52: 1751.0943 | L52: 497.17 | M52: 8396.61 | N52: =SUM(Table1[[#This Row],[New Device NC Discounted Purchase Price]:[Estimated Consumables Purchases During 3 Year Lifecycle]]) -> 10644.8743 | O52: =Table1[[#This Row],[36-Month Total Lease Payments4]] -> 1758.799115 | P52: =Table1[[#This Row],[Estimated 3 Year Maintenance Agreement Price5]] -> 6566.4 | Q52: 8325.199115 | R52: 2477.99 | S52: 0.2933 | T52: 1751.0943 | U52: 0.29 | V52: 0.15 | W52: 12 months | X52: UB7B2E | Y52: 599 | Z52: 0.17 | AA52: 497.17 | AB52: 0.0279 | AC52: =Table1[[#This Row],[New Device NC Discounted Purchase Price2]]*Table1[[#This Row],[36-Month Lease Rate Factor (excluding Software)]]*36 -> 1758.799115 | AD52: 0.0235 | AE52: =Table1[[#This Row],[New Device NC Discounted Purchase Price]]*Table1[[#This Row],[48-Month Lease Rate Factor (excluding Software)]]*48 -> 1975.23437 | AF52: 0.0198 | AG52: =Table1[[#This Row],[New Device NC Discounted Purchase Price2]]*Table1[[#This Row],[60-Month Lease Rate Factor (excluding Software)]]*60 -> 2080.300028 | AH52: 0.0279 | AI52: 0.0235 | AJ52: 0.0198 | AK52: HPM527-1yr4hrcpc | AL52: 0 | AM52: 0.15 | AN52: 0 | AO52: 0 | AP52: 0.0152 | AR52: 6566.4 | AS52: 195 | AT52: Mono | AU52: 8 x 14 | AV52: 2000 to 7500 pages | AW52: 45 | AX52: 5.7 | AY52: Yes | AZ52: 650 | BA52: 250 | BB52: 1.25 GB | BC52: https://www.buyerslab.com/bliQ/Product/ShowSpecItem?type=1&spec=115955&lang=enu&myspecview=1 | BD52: Digital MFD - 31 to 40 CPM (Mono)LaserJet M528f
A53: B.2 | B53: 16 | C53: Digital MFD - 31 to 40 CPM (Color) | D53: MFD | E53: 12000 | F53: Color | G53: 8.5 X 14 | H53: HP | I53: Color LaserJet M578f | J53: 7ZU86A | K53: 2140.0252 | L53: 746.17 | M53: 19395.66 | N53: =SUM(Table1[[#This Row],[New Device NC Discounted Purchase Price]:[Estimated Consumables Purchases During 3 Year Lifecycle]]) -> 22281.8552 | O53: =Table1[[#This Row],[36-Month Total Lease Payments4]] -> 2149.441311 | P53: =Table1[[#This Row],[Estimated 3 Year Maintenance Agreement Price5]] -> 23667.552 | Q53: 25816.99331 | R53: 3038 | S53: 0.2956 | T53: 2140.0252 | U53: 0.29 | V53: 0.15 | W53: 12 months | X53: U8TH7E | Y53: 899 | Z53: 0.17 | AA53: 746.17 | AB53: 0.0279 | AC53: =Table1[[#This Row],[New Device NC Discounted Purchase Price2]]*Table1[[#This Row],[36-Month Lease Rate Factor (excluding Software)]]*36 -> 2149.441311 | AD53: 0.0235 | AE53: =Table1[[#This Row],[New Device NC Discounted Purchase Price]]*Table1[[#This Row],[48-Month Lease Rate Factor (excluding Software)]]*48 -> 2413.948426 | AF53: 0.0198 | AG53: =Table1[[#This Row],[New Device NC Discounted Purchase Price2]]*Table1[[#This Row],[60-Month Lease Rate Factor (excluding Software)]]*60 -> 2542.349938 | AH53: 0.0279 | AI53: 0.0235 | AJ53: 0.0198 | AK53: HPM578-1yr4hrcpc | AL53: 0 | AM53: 0.15 | AN53: 0 | AO53: 0 | AP53: 0.0207 | AQ53: 0.1104 | AR53: 23667.552 | AS53: 195 | AT53: Color | AU53: 8 x 14 | AV53: 2000 to 10000 | AW53: 40 | AX53: 7 | AY53: Yes | AZ53: 650 | BA53: 250 | BB53: 1.25 GB | BC53: https://www.hpsalescentral.com/#/learn/product/sku/7ZU86A/specs | BD53: Digital MFD - 31 to 40 CPM (Color)Color LaserJet M578f
A54: B.2 | B54: 17 | C54: Digital MFD - 31 to 40 CPM (Mono)(Ledger) | D54: MFD | E54: 12000 | F54: Mono | G54: 11 x 17 | H54: HP | I54: LASERJET Ent. 700 MFP M725dn | J54: CF066A | K54: 3002.4693 | L54: 912.17 | M54: 4260.24 | N54: =SUM(Table1[[#This Row],[New Device NC Discounted Purchase Price]:[Estimated Consumables Purchases During 3 Year Lifecycle]]) -> 8174.8793 | O54: =Table1[[#This Row],[36-Month Total Lease Payments4]] -> 3015.680165 | P54: =Table1[[#This Row],[Estimated 3 Year Maintenance Agreement Price5]] -> 5486.4 | Q54: 8502.080165 | R54: 4228.83 | S54: 0.29 | T54: 3002.4693 | U54: 0.29 | V54: 0.15 | W54: 12 months | X54: U7A14E | Y54: 1099 | Z54: 0.17 | AA54: 912.17 | AB54: 0.0279 | AC54: =Table1[[#This Row],[New Device NC Discounted Purchase Price2]]*Table1[[#This Row],[36-Month Lease Rate Factor (excluding Software)]]*36 -> 3015.680165 | AD54: 0.0235 | AE54: =Table1[[#This Row],[New Device NC Discounted Purchase Price]]*Table1[[#This Row],[48-Month Lease Rate Factor (excluding Software)]]*48 -> 3386.78537 | AF54: 0.0198 | AG54: =Table1[[#This Row],[New Device NC Discounted Purchase Price2]]*Table1[[#This Row],[60-Month Lease Rate Factor (excluding Software)]]*60 -> 3566.933528 | AH54: 0.0279 | AI54: 0.0235 | AJ54: 0.0198 | AK54: HPM725-1yr4hrcpc | AL54: 0 | AM54: 0.15 | AN54: 0 | AO54: 0 | AP54: 0.0127 | AR54: 5486.4 | AS54: 195 | AT54: Mono | AU54: 11 x 17 | AV54: 5000 to 20000 pages | AW54: 40 | AX54: 10 | AY54: Yes | AZ54: 600 | BA54: 250 | BB54: 1 GB | BC54: http://store.hp.com/wcsstore/hpusstore/pdf/cf066a.pdf | BD54: Digital MFD - 31 to 40 CPM (Mono)(Ledger)LASERJET Ent. 700 MFP M725dn
A55: B.2 | B55: 18 | C55: Digital MFD - 31 to 40 CPM (Color)(Ledger) | D55: MFD | E55: 12000 | F55: Color | G55: 11 x 17 | H55: HP | I55: LASERJET Ent. M880z MFP | J55: A2W75A | K55: 7409.8014 | L55: 2323.17 | M55: 6805.77 | N55: =SUM(Table1[[#This Row],[New Device NC Discounted Purchase Price]:[Estimated Consumables Purchases During 3 Year Lifecycle]]) -> 16538.7414 | O55: =Table1[[#This Row],[36-Month Total Lease Payments4]] -> 7442.404526 | P55: =Table1[[#This Row],[Estimated 3 Year Maintenance Agreement Price5]] -> 17244.576 | Q55: 24686.98053 | R55: 10436.34 | S55: 0.29 | T55: 7409.8014 | U55: 0.29 | V55: 0.15 | W55: 12 months | X55: U8D23E | Y55: 2799 | Z55: 0.17 | AA55: 2323.17 | AB55: 0.0279 | AC55: =Table1[[#This Row],[New Device NC Discounted Purchase Price2]]*Table1[[#This Row],[36-Month Lease Rate Factor (excluding Software)]]*36 -> 7442.404526 | AD55: 0.0235 | AE55: =Table1[[#This Row],[New Device NC Discounted Purchase Price]]*Table1[[#This Row],[48-Month Lease Rate Factor (excluding Software)]]*48 -> 8358.255979 | AF55: 0.0198 | AG55: =Table1[[#This Row],[New Device NC Discounted Purchase Price2]]*Table1[[#This Row],[60-Month Lease Rate Factor (excluding Software)]]*60 -> 8802.844063 | AH55: 0.0279 | AI55: 0.0235 | AJ55: 0.0198 | AK55: HPM880-1yr4hrcpc | AL55: 0 | AM55: 0.15 | AN55: 0 | AO55: 0 | AP55: 0.0129 | AQ55: 0.084 | AR55: 17244.576 | AS55: 195 | AT55: Color | AU55: 11 x 17 | AV55: 5000 to 25000 pages | AW55: 45 | AX55: 11 | AY55: Yes | AZ55: 2100 | BA55: 500 | BB55: 2.5 GB | BC55: http://h20195.www2.hp.com/v2/GetDocument.aspx?docname=4AA5-0082ENUC&doctype=data sheet&doclang=EN_US&searchquery=&cc=us&lc=en | BD55: Digital MFD - 31 to 40 CPM (Color)(Ledger)LASERJET Ent. M880z MFP
A56: B.1 | B56: 3 | C56: Laser / LED Printer - 19 to 30 CPM (Mono) | D56: Printer | E56: 1500 | F56: Mono | G56: 8.5 X 14 | H56: Konica Minolta | I56: 3602P | J56: AAFK011 | K56: 211.0697674 | L56: 184 | M56: 878.4 | N56: =SUM(Table1[[#This Row],[New Device NC Discounted Purchase Price]:[Estimated Consumables Purchases During 3 Year Lifecycle]]) -> 1273.469767 | O56: =Table1[[#This Row],[36-Month Total Lease Payments4]] -> 211.9984744 | P56: =Table1[[#This Row],[Estimated 3 Year Maintenance Agreement Price5]] -> 1728 | Q56: 1939.998474 | R56: 399 | S56: 0.4710030891 | T56: 211.0697674 | U56: 0.5 | V56: 0.2 | W56: 1 year parts and labor, excludes consumables | X56: 4790097901 | Y56: 230 | Z56: 0.2 | AA56: 184 | AB56: 0.0279 | AC56: =Table1[[#This Row],[New Device NC Discounted Purchase Price2]]*Table1[[#This Row],[36-Month Lease Rate Factor (excluding Software)]]*36 -> 211.9984744 | AD56: 0.0235 | AE56: =Table1[[#This Row],[New Device NC Discounted Purchase Price]]*Table1[[#This Row],[48-Month Lease Rate Factor (excluding Software)]]*48 -> 238.0866977 | AF56: 0.0198 | AG56: =Table1[[#This Row],[New Device NC Discounted Purchase Price2]]*Table1[[#This Row],[60-Month Lease Rate Factor (excluding Software)]]*60 -> 250.7508837 | AH56: 0.0279 | AI56: 0.0235 | AJ56: 0.0198 | AK56: n/a | AL56: 0 | AM56: 0.2 | AN56: 0 | AO56: 0 | AP56: 0.032 | AR56: 1728 | AS56: 195 | AT56: Mono | AU56: 8.5 X 14 | AV56: 50000 | AW56: 38 | AX56: 7 | AY56: Yes | AZ56: 350 | BA56: 150 | BB56: 512MB | BC56: https://www.buyerslab.com/bliQ/Product/ShowSpecItem?spec=111170 | BD56: Laser / LED Printer - 19 to 30 CPM (Mono)3602P
A57: B.1 | B57: 4 | C57: Laser / LED Printer - 11 to 20 CPM (Color) | D57: Printer | E57: 1500 | F57: Color | G57: 8.5 X 14 | H57: Konica Minolta | I57: C3300i | J57: AAJT011 | K57: 498.8488372 | L57: 393.6 | M57: 778.38 | N57: =SUM(Table1[[#This Row],[New Device NC Discounted Purchase Price]:[Estimated Consumables Purchases During 3 Year Lifecycle]]) -> 1670.828837 | O57: =Table1[[#This Row],[36-Month Total Lease Payments4]] -> 501.0437721 | P57: =Table1[[#This Row],[Estimated 3 Year Maintenance Agreement Price5]] -> 1477.98 | Q57: 1979.023772 | R57: 1048.95 | S57: 0.5244 | T57: 498.8488372 | U57: 0.5 | V57: 0.2 | W57: 1 year parts and labor, excludes consumables | X57: KMC3300iW2YRNBD | Y57: 492 | Z57: 0.2 | AA57: 393.6 | AB57: 0.0279 | AC57: =Table1[[#This Row],[New Device NC Discounted Purchase Price2]]*Table1[[#This Row],[36-Month Lease Rate Factor (excluding Software)]]*36 -> 501.0437721 | AD57: 0.0235 | AE57: =Table1[[#This Row],[New Device NC Discounted Purchase Price]]*Table1[[#This Row],[48-Month Lease Rate Factor (excluding Software)]]*48 -> 562.7014884 | AF57: 0.0198 | AG57: =Table1[[#This Row],[New Device NC Discounted Purchase Price2]]*Table1[[#This Row],[60-Month Lease Rate Factor (excluding Software)]]*60 -> 592.6324186 | AH57: 0.0279 | AI57: 0.0235 | AJ57: 0.0198 | AK57: n/a | AL57: 0 | AM57: 0.2 | AN57: 0 | AO57: 0 | AP57: 0.0135 | AQ57: 0.05 | AR57: 1477.98 | AS57: 195 | AT57: Color | AU57: 8.5 X 14 | AV57: 120000 | AW57: 35 | AX57: 9 | AY57: Yes | AZ57: 600 | BA57: 250 | BB57: 3GB | BC57: https://www.buyerslab.com/bliQ/Product/ShowSpecItem?spec=116775 | BD57: Laser / LED Printer - 11 to 20 CPM (Color)C3300i
A58: B.1 | B58: 5 | C58: Laser / LED Printer - 31 to 44 CPM (Mono) | D58: Printer | E58: 3000 | F58: Mono | G58: 8.5 X 14 | H58: Konica Minolta | I58: 3301P | J58: A63PO15 | K58: 211.0697674 | L58: 87.2 | M58: 1952 | N58: =SUM(Table1[[#This Row],[New Device NC Discounted Purchase Price]:[Estimated Consumables Purchases During 3 Year Lifecycle]]) -> 2250.269767 | O58: =Table1[[#This Row],[36-Month Total Lease Payments4]] -> 211.9984744 | P58: =Table1[[#This Row],[Estimated 3 Year Maintenance Agreement Price5]] -> 3456 | Q58: 3667.998474 | R58: 399 | S58: 0.4710030891 | T58: 211.0697674 | U58: 0.35 | V58: 0.2 | W58: 1 year parts and labor, excludes consumables | X58: 4790060902 | Y58: 109 | Z58: 0.2 | AA58: 87.2 | AB58: 0.0279 | AC58: =Table1[[#This Row],[New Device NC Discounted Purchase Price2]]*Table1[[#This Row],[36-Month Lease Rate Factor (excluding Software)]]*36 -> 211.9984744 | AD58: 0.0235 | AE58: =Table1[[#This Row],[New Device NC Discounted Purchase Price]]*Table1[[#This Row],[48-Month Lease Rate Factor (excluding Software)]]*48 -> 238.0866977 | AF58: 0.0198 | AG58: =Table1[[#This Row],[New Device NC Discounted Purchase Price2]]*Table1[[#This Row],[60-Month Lease Rate Factor (excluding Software)]]*60 -> 250.7508837 | AH58: 0.0279 | AI58: 0.0235 | AJ58: 0.0198 | AK58: n/a | AL58: 0 | AM58: 0.2 | AN58: 0 | AO58: 0 | AP58: 0.032 | AR58: 3456 | AS58: 195 | AT58: Mono | AU58: 8.5 X 14 | AV58: 50000 | AW58: 35 | AX58: 7 | AY58: Yes | AZ58: 300 | BA58: 150 | BB58: 128MB | BC58: http://downloads.kmbs.us/books/cahb/#p=2 | BD58: Laser / LED Printer - 31 to 44 CPM (Mono)3301P
A59: B.1 | B59: 6 | C59: Laser / LED Printer - 21 to 34 CPM (Color) | D59: Printer | E59: 3000 | F59: Color | G59: 8.5 X 14 | H59: Konica Minolta | I59: C3300i | J59: AAJT011 | K59: 498.8488372 | L59: 393.6 | M59: 1556.76 | N59: =SUM(Table1[[#This Row],[New Device NC Discounted Purchase Price]:[Estimated Consumables Purchases During 3 Year Lifecycle]]) -> 2449.208837 | O59: =Table1[[#This Row],[36-Month Total Lease Payments4]] -> 501.0437721 | P59: =Table1[[#This Row],[Estimated 3 Year Maintenance Agreement Price5]] -> 2955.96 | Q59: 3457.003772 | R59: 1048.95 | S59: 0.5244 | T59: 498.8488372 | U59: 0.5 | V59: 0.2 | W59: 1 year parts and labor, excludes consumables | X59: KMC3300iW2YRNBD | Y59: 492 | Z59: 0.2 | AA59: 393.6 | AB59: 0.0279 | AC59: =Table1[[#This Row],[New Device NC Discounted Purchase Price2]]*Table1[[#This Row],[36-Month Lease Rate Factor (excluding Software)]]*36 -> 501.0437721 | AD59: 0.0235 | AE59: =Table1[[#This Row],[New Device NC Discounted Purchase Price]]*Table1[[#This Row],[48-Month Lease Rate Factor (excluding Software)]]*48 -> 562.7014884 | AF59: 0.0198 | AG59: =Table1[[#This Row],[New Device NC Discounted Purchase Price2]]*Table1[[#This Row],[60-Month Lease Rate Factor (excluding Software)]]*60 -> 592.6324186 | AH59: 0.0279 | AI59: 0.0235 | AJ59: 0.0198 | AK59: n/a | AL59: 0 | AM59: 0.2 | AN59: 0 | AO59: 0 | AP59: 0.0135 | AQ59: 0.05 | AR59: 2955.96 | AS59: 195 | AT59: Color | AU59: 8.5 X 14 | AV59: 120000 | AW59: 35 | AX59: 9 | AY59: Yes | AZ59: 600 | BA59: 250 | BB59: 3GB | BC59: https://www.buyerslab.com/bliQ/Product/ShowSpecItem?spec=116775 | BD59: Laser / LED Printer - 21 to 34 CPM (Color)C3300i
A60: B.1 | B60: 7 | C60: Laser / LED Printer - 45 or more CPM (Mono) | D60: Printer | E60: 5000 | F60: Mono | G60: 8.5 X 14 | H60: Konica Minolta | I60: 4702P | J60: AAFH011 | K60: 513.45 | L60: 159.2 | M60: 1170 | N60: =SUM(Table1[[#This Row],[New Device NC Discounted Purchase Price]:[Estimated Consumables Purchases During 3 Year Lifecycle]]) -> 1842.65 | O60: =Table1[[#This Row],[36-Month Total Lease Payments4]] -> 515.70918 | P60: =Table1[[#This Row],[Estimated 3 Year Maintenance Agreement Price5]] -> 2788.2 | Q60: 3303.90918 | R60: 1450 | S60: 0.6459127069 | T60: 513.45 | U60: 0.5 | V60: 0.2 | W60: 1 year parts and labor, excludes consumables | X60: 4790063401 | Y60: 199 | Z60: 0.2 | AA60: 159.2 | AB60: 0.0279 | AC60: =Table1[[#This Row],[New Device NC Discounted Purchase Price2]]*Table1[[#This Row],[36-Month Lease Rate Factor (excluding Software)]]*36 -> 515.70918 | AD60: 0.0235 | AE60: =Table1[[#This Row],[New Device NC Discounted Purchase Price]]*Table1[[#This Row],[48-Month Lease Rate Factor (excluding Software)]]*48 -> 579.1716 | AF60: 0.0198 | AG60: =Table1[[#This Row],[New Device NC Discounted Purchase Price2]]*Table1[[#This Row],[60-Month Lease Rate Factor (excluding Software)]]*60 -> 609.9786 | AH60: 0.0279 | AI60: 0.0235 | AJ60: 0.0198 | AK60: n/a | AL60: 0 | AM60: 0.2 | AN60: 0 | AO60: 0 | AP60: 0.01549 | AR60: 2788.2 | AS60: 195 | AT60: Mono | AU60: 8.5 X 14 | AV60: 100000 | AW60: 50 | AX60: 7 | AY60: Yes | AZ60: 650 | BA60: 250 | BB60: 512MB | BC60: https://www.mykonicaminolta.com/wps/wcm/myconnect/mkm/ff723da6-68ed-40f4-bb68-e438ea2ba5af/bizhub_4702P_SpecSheet.pdf?MOD=AJPERES&CONVERT_TO=url&CVID=mkVqYqi | BD60: Laser / LED Printer - 45 or more CPM (Mono)4702P
A61: B.1 | B61: 8 | C61: =IFERROR(VLOOKUP(B61,'[1]Technical Specifications'!$B$4:$C$31,2,FALSE),"") -> Laser / LED Printer - 35 or more CPM (Color) | D61: =IFERROR(VLOOKUP($B61,'[1]Technical Specifications'!$B$4:$H$31,4,FALSE),"") -> Printer | E61: =IFERROR(VLOOKUP($B61,'[1]Technical Specifications'!$B$4:$H$31,7,FALSE),"") -> 5000 | F61: =IFERROR(VLOOKUP($B61,'[1]Technical Specifications'!$B$4:$H$31,5,FALSE),"") -> Color | G61: =IFERROR(VLOOKUP($B61,'[1]Technical Specifications'!$B$4:$H$31,6,FALSE),"") -> 8.5 X 14 | H61: Konica Minolta | I61: C3350i | J61: A92F011X011 | K61: 2018.08 | L61: 576 | M61: 3323.73 | N61: =SUM(Table1[[#This Row],[New Device NC Discounted Purchase Price]:[Estimated Consumables Purchases During 3 Year Lifecycle]]) -> 5917.81 | O61: =Table1[[#This Row],[36-Month Total Lease Payments4]] -> 2026.959552 | P61: =Table1[[#This Row],[Estimated 3 Year Maintenance Agreement Price5]] -> 5778 | Q61: 7804.959552 | R61: 4410 | S61: =(Table1[[#This Row],[Device MSRP]]-Table1[[#This Row],[New Device NC Discounted Purchase Price2]])/Table1[[#This Row],[Device MSRP]] -> 0.5423854875 | T61: 2018.08 | U61: 0.5 | V61: 0.2 | W61: Customer One Guarantee - Within the first two years after install if equipment cannot be repaired to meet factory specifications KM will replace with a new equivalent model | X61: KMC3350iW3YRNBD | Y61: 720 | Z61: 0.2 | AA61: =IFERROR(Y61*(1-Z61),"") -> 576 | AB61: 0.0279 | AC61: =Table1[[#This Row],[New Device NC Discounted Purchase Price2]]*Table1[[#This Row],[36-Month Lease Rate Factor (excluding Software)]]*36 -> 2026.959552 | AD61: 0.0235 | AE61: =Table1[[#This Row],[New Device NC Discounted Purchase Price]]*Table1[[#This Row],[48-Month Lease Rate Factor (excluding Software)]]*48 -> 2276.39424 | AF61: 0.0198 | AG61: =Table1[[#This Row],[New Device NC Discounted Purchase Price2]]*Table1[[#This Row],[60-Month Lease Rate Factor (excluding Software)]]*60 -> 2397.47904 | AH61: 0.0279 | AI61: 0.0235 | AJ61: 0.0198 | AK61: n/a | AM61: 0.2 | AN61: =IFERROR(AL61*(1-AM61),"") -> 0 | AO61: 0 | AP61: 0.015 | AQ61: 0.06 | AR61: 5778 | AS61: 195 | AT61: Color | AU61: 8.5 X 14 | AV61: 6500 | AW61: 35 | AX61: 6 | AY61: Yes | AZ61: 600 | BA61: 250 | BB61: 5GB RAM | BC61: https://www.buyerslab.com/bliQ/Product/ShowSpecItem?spec=116784 | BD61: Laser / LED Printer - 35 or more CPM (Color)C3350i
A62: B.1 | B62: 9 | C62: Laser / LED Printer - 30 or more CPM (Mono)(Ledger) | D62: Printer | E62: 4000 | F62: Mono | G62: 11 X 17 | H62: Konica Minolta | I62: 360i | J62: AC77013: Mainframe, 135700: Stand | K62: 2124.018605 | L62: 864 | M62: 323.3 | N62: =SUM(Table1[[#This Row],[New Device NC Discounted Purchase Price]:[Estimated Consumables Purchases During 3 Year Lifecycle]]) -> 3311.318605 | O62: =Table1[[#This Row],[36-Month Total Lease Payments4]] -> 2133.364287 | P62: =Table1[[#This Row],[Estimated 3 Year Maintenance Agreement Price5]] -> 792 | Q62: 2925.364287 | R62: 12264.7 | S62: 0.8268184301 | T62: 2124.018605 | U62: 0.5 | V62: 0.2 | W62: Customer One Guarantee - Within the first two years after install if equipment cannot be repaired to meet factory specifications KM will replace with a new equivalent model | X62: KM368W3YRNBD | Y62: 1080 | Z62: 0.2 | AA62: 864 | AB62: 0.0279 | AC62: =Table1[[#This Row],[New Device NC Discounted Purchase Price2]]*Table1[[#This Row],[36-Month Lease Rate Factor (excluding Software)]]*36 -> 2133.364287 | AD62: 0.0235 | AE62: =Table1[[#This Row],[New Device NC Discounted Purchase Price]]*Table1[[#This Row],[48-Month Lease Rate Factor (excluding Software)]]*48 -> 2395.892986 | AF62: 0.0198 | AG62: =Table1[[#This Row],[New Device NC Discounted Purchase Price2]]*Table1[[#This Row],[60-Month Lease Rate Factor (excluding Software)]]*60 -> 2523.334102 | AH62: 0.0279 | AI62: 0.0235 | AJ62: 0.0198 | AK62: n/a | AL62: 0 | AM62: 0.2 | AN62: 0 | AO62: 0 | AP62: 0.0055 | AR62: 792 | AS62: 195 | AT62: Mono | AU62: 11 X 17 | AV62: 15000 | AW62: 36 | AX62: 5 | AY62: Yes | AZ62: 1150 | BA62: 250 | BB62: 8 GB | BC62: https://www.mykonicaminolta.com/wps/wcm/myconnect/mkm/c13489ba-f3bd-4674-86e4-a60adc4c20bd/bizhub_360i_Datasheet.pdf?MOD=AJPERES&CONVERT_TO=url&CACHEID=ROOTWORKSPACE.Z18_HDP09B1A08GH60I3G2LUMD24P7-c13489ba-f3bd-4674-86e4-a60adc4c20bd-nicFKQr | BD62: Laser / LED Printer - 30 or more CPM (Mono)(Ledger)360i
A63: B.1 | B63: 10 | C63: Laser / LED Printer - 20 or more CPM (Color)(Ledger) | D63: Printer | E63: 4000 | F63: Color | G63: 11 X 17 | H63: Konica Minolta | I63: C3350i | J63: A798011:Mainframe A7V7WY2:ADF 9015004571:Stand | K63: 2175.372093 | L63: 720 | M63: 864.1626 | N63: =SUM(Table1[[#This Row],[New Device NC Discounted Purchase Price]:[Estimated Consumables Purchases During 3 Year Lifecycle]]) -> 3759.534693 | O63: =Table1[[#This Row],[36-Month Total Lease Payments4]] -> 2184.94373 | P63: =Table1[[#This Row],[Estimated 3 Year Maintenance Agreement Price5]] -> 2868.48 | Q63: 5053.42373 | R63: 8491 | S63: 0.7438026036 | T63: 2175.372093 | U63: 0.5 | V63: 0.2 | W63: Customer One Guarantee - Within the first two years after install if equipment cannot be repaired to meet factory specifications KM will replace with a new equivalent model | X63: KMC3350iW3YRNBD | Y63: 900 | Z63: 0.2 | AA63: 720 | AB63: 0.0279 | AC63: =Table1[[#This Row],[New Device NC Discounted Purchase Price2]]*Table1[[#This Row],[36-Month Lease Rate Factor (excluding Software)]]*36 -> 2184.94373 | AD63: 0.0235 | AE63: =Table1[[#This Row],[New Device NC Discounted Purchase Price]]*Table1[[#This Row],[48-Month Lease Rate Factor (excluding Software)]]*48 -> 2453.819721 | AF63: 0.0198 | AG63: =Table1[[#This Row],[New Device NC Discounted Purchase Price2]]*Table1[[#This Row],[60-Month Lease Rate Factor (excluding Software)]]*60 -> 2584.342047 | AH63: 0.0279 | AI63: 0.0235 | AJ63: 0.0198 | AK63: n/a | AL63: 0 | AM63: 0.2 | AN63: 0 | AO63: 0 | AP63: 0.007 | AQ63: 0.041 | AR63: 2868.48 | AS63: 195 | AT63: Color | AU63: 11 X 17 | AV63: 100000 | AW63: 22 | AX63: 7 | AY63: Yes | AZ63: 1100 | BA63: 250 | BB63: 2GB RAM 250GB HDD | BC63: https://www.buyerslab.com/bliQ/Product/ShowSpecItem?spec=116784 | BD63: Laser / LED Printer - 20 or more CPM (Color)(Ledger)C3350i
A64: B.2 | B64: 11 | C64: Digital MFD - 19 to 30 CPM (Mono) | D64: MFD | E64: 2500 | F64: Mono | G64: 8.5 X 14 | H64: Konica Minolta | I64: C3350i | J64: AAFM011 | K64: 630.8139535 | L64: 183 | M64: 579 | N64: =SUM(Table1[[#This Row],[New Device NC Discounted Purchase Price]:[Estimated Consumables Purchases During 3 Year Lifecycle]]) -> 1392.813953 | O64: =Table1[[#This Row],[36-Month Total Lease Payments4]] -> 633.5895349 | P64: =Table1[[#This Row],[Estimated 3 Year Maintenance Agreement Price5]] -> 1575 | Q64: 2208.589535 | R64: 1649 | S64: 0.6174566686 | T64: 630.8139535 | U64: 0.5 | V64: 0.2 | W64: 1 year parts and labor, excludes consumables | X64: KMC3350iW3YRNBD | Y64: 229 | Z64: 0.2 | AA64: 183.2 | AB64: 0.0279 | AC64: =Table1[[#This Row],[New Device NC Discounted Purchase Price2]]*Table1[[#This Row],[36-Month Lease Rate Factor (excluding Software)]]*36 -> 633.5895349 | AD64: 0.0235 | AE64: =Table1[[#This Row],[New Device NC Discounted Purchase Price]]*Table1[[#This Row],[48-Month Lease Rate Factor (excluding Software)]]*48 -> 711.5581395 | AF64: 0.0198 | AG64: =Table1[[#This Row],[New Device NC Discounted Purchase Price2]]*Table1[[#This Row],[60-Month Lease Rate Factor (excluding Software)]]*60 -> 749.4069767 | AH64: 0.0279 | AI64: 0.0235 | AJ64: 0.0198 | AK64: n/a | AL64: 0 | AM64: 0.2 | AN64: 0 | AO64: 0 | AP64: 0.0175 | AR64: 1575 | AS64: 195 | AT64: Mono | AU64: 8.5 X 14 | AV64: 100000 | AW64: 46 | AX64: 7 | AY64: Yes | AZ64: 350 | BA64: 150 | BB64: 1GB | BC64: https://www.buyerslab.com/bliQ/Product/ShowSpecItem?spec=116784 | BD64: Digital MFD - 19 to 30 CPM (Mono)C3350i
A65: B.2 | B65: 12 | C65: Digital MFD - 14 to 30 CPM (Color) | D65: MFD | E65: 2500 | F65: Color | G65: 8.5 X 14 | H65: Konica Minolta | I65: C3350i | J65: A798011:Mainframe A7V7WY2:ADF 9015004571:Stand | K65: 2175.372093 | L65: 720 | M65: 432.0813 | N65: =SUM(Table1[[#This Row],[New Device NC Discounted Purchase Price]:[Estimated Consumables Purchases During 3 Year Lifecycle]]) -> 3327.453393 | O65: =Table1[[#This Row],[36-Month Total Lease Payments4]] -> 2184.94373 | P65: =Table1[[#This Row],[Estimated 3 Year Maintenance Agreement Price5]] -> 1792.8 | Q65: 3977.74373 | R65: 8491 | S65: 0.7438026036 | T65: 2175.372093 | U65: 0.5 | V65: 0.2 | W65: Customer One Guarantee - Within the first two years after install if equipment cannot be repaired to meet factory specifications KM will replace with a new equivalent model | X65: KMC3350iW3YRNBD | Y65: 900 | Z65: 0.2 | AA65: 720 | AB65: 0.0279 | AC65: =Table1[[#This Row],[New Device NC Discounted Purchase Price2]]*Table1[[#This Row],[36-Month Lease Rate Factor (excluding Software)]]*36 -> 2184.94373 | AD65: 0.0235 | AE65: =Table1[[#This Row],[New Device NC Discounted Purchase Price]]*Table1[[#This Row],[48-Month Lease Rate Factor (excluding Software)]]*48 -> 2453.819721 | AF65: 0.0198 | AG65: =Table1[[#This Row],[New Device NC Discounted Purchase Price2]]*Table1[[#This Row],[60-Month Lease Rate Factor (excluding Software)]]*60 -> 2584.342047 | AH65: 0.0279 | AI65: 0.0235 | AJ65: 0.0198 | AK65: n/a | AL65: 0 | AM65: 0.2 | AN65: 0 | AO65: 0 | AP65: 0.007 | AQ65: 0.041 | AR65: 1792.8 | AS65: 195 | AT65: Color | AU65: 11 X 17 | AV65: 100000 | AW65: 22 | AX65: 7 | AY65: Yes | AZ65: 1100 | BA65: 250 | BB65: 2GB RAM 250GB HDD | BC65: https://www.buyerslab.com/bliQ/Product/ShowSpecItem?spec=116784 | BD65: Digital MFD - 14 to 30 CPM (Color)C3350i
A66: B.2 | B66: 13 | C66: Digital MFD - 21 to 30 CPM (Mono)(Ledger) | D66: MFD | E66: 4000 | F66: Mono | G66: 11 X 17 | H66: Konica Minolta | I66: C3350i | J66: A7AK011:Mainframe A7V7WY1:ADF 135310:Stand | K66: 1665.123256 | L66: 576 | M66: 351.36 | N66: =SUM(Table1[[#This Row],[New Device NC Discounted Purchase Price]:[Estimated Consumables Purchases During 3 Year Lifecycle]]) -> 2592.483256 | O66: =Table1[[#This Row],[36-Month Total Lease Payments4]] -> 1672.449798 | P66: =Table1[[#This Row],[Estimated 3 Year Maintenance Agreement Price5]] -> 1065.6 | Q66: 2738.049798 | R66: 6959 | S66: 0.7607237741 | T66: 1665.123256 | U66: 0.5 | V66: 0.2 | W66: Customer One Guarantee - Within the first two years after install if equipment cannot be repaired to meet factory specifications KM will replace with a new equivalent model | X66: KMC3350iW3YRNBD | Y66: 720 | Z66: 0.2 | AA66: 576 | AB66: 0.0279 | AC66: =Table1[[#This Row],[New Device NC Discounted Purchase Price2]]*Table1[[#This Row],[36-Month Lease Rate Factor (excluding Software)]]*36 -> 1672.449798 | AD66: 0.0235 | AE66: =Table1[[#This Row],[New Device NC Discounted Purchase Price]]*Table1[[#This Row],[48-Month Lease Rate Factor (excluding Software)]]*48 -> 1878.259033 | AF66: 0.0198 | AG66: =Table1[[#This Row],[New Device NC Discounted Purchase Price2]]*Table1[[#This Row],[60-Month Lease Rate Factor (excluding Software)]]*60 -> 1978.166428 | AH66: 0.0279 | AI66: 0.0235 | AJ66: 0.0198 | AK66: n/a | AL66: 0 | AM66: 0.2 | AN66: 0 | AO66: 0 | AP66: 0.0074 | AR66: 1065.6 | AS66: 195 | AT66: Mono | AU66: 11 X 17 | AV66: 10000 | AW66: 22 | AX66: 5 | AY66: Yes | AZ66: 1100 | BA66: 250 | BB66: 2GB RAM 250GB HDD | BC66: https://www.buyerslab.com/bliQ/Product/ShowSpecItem?spec=116784 | BD66: Digital MFD - 21 to 30 CPM (Mono)(Ledger)C3350i
A67: B.2 | B67: 14 | C67: Digital MFD - 21 to 30 CPM (Color)(Ledger) | D67: MFD | E67: 4000 | F67: Color | G67: 11 X 17 | H67: Konica Minolta | I67: C3350i | J67: A798011:Mainframe A7V7WY2:ADF 9015004571:Stand | K67: 2175.372093 | L67: 720 | M67: 864.1626 | N67: =SUM(Table1[[#This Row],[New Device NC Discounted Purchase Price]:[Estimated Consumables Purchases During 3 Year Lifecycle]]) -> 3759.534693 | O67: =Table1[[#This Row],[36-Month Total Lease Payments4]] -> 2184.94373 | P67: =Table1[[#This Row],[Estimated 3 Year Maintenance Agreement Price5]] -> 2868.48 | Q67: 5053.42373 | R67: 8491 | S67: 0.7438026036 | T67: 2175.372093 | U67: 0.5 | V67: 0.2 | W67: Customer One Guarantee - Within the first two years after install if equipment cannot be repaired to meet factory specifications KM will replace with a new equivalent model | X67: KMC3350iW3YRNBD | Y67: 900 | Z67: 0.2 | AA67: 720 | AB67: 0.0279 | AC67: =Table1[[#This Row],[New Device NC Discounted Purchase Price2]]*Table1[[#This Row],[36-Month Lease Rate Factor (excluding Software)]]*36 -> 2184.94373 | AD67: 0.0235 | AE67: =Table1[[#This Row],[New Device NC Discounted Purchase Price]]*Table1[[#This Row],[48-Month Lease Rate Factor (excluding Software)]]*48 -> 2453.819721 | AF67: 0.0198 | AG67: =Table1[[#This Row],[New Device NC Discounted Purchase Price2]]*Table1[[#This Row],[60-Month Lease Rate Factor (excluding Software)]]*60 -> 2584.342047 | AH67: 0.0279 | AI67: 0.0235 | AJ67: 0.0198 | AK67: n/a | AL67: 0 | AM67: 0.2 | AN67: 0 | AO67: 0 | AP67: 0.007 | AQ67: 0.041 | AR67: =IFERROR(IF(F67="Mono",((AN67*3)+((E67*36)*AP67)),((AN67*3)+((E67*36)*AP67*0.62)+((E67*36)*AQ67*0.38))),"") -> 2868.48 | AS67: 195 | AT67: Color | AU67: 11 X 17 | AV67: 10000 | AW67: 22 | AX67: 7 | AY67: Yes | AZ67: 1100 | BA67: 250 | BB67: 2GB RAM 250GB HDD | BC67: https://www.buyerslab.com/bliQ/Product/ShowSpecItem?spec=116784 | BD67: =CONCATENATE(C67,I67) -> Digital MFD - 21 to 30 CPM (Color)(Ledger)C3350i
A68: B.2 | B68: 15 | C68: Digital MFD - 31 to 40 CPM (Mono) | D68: MFD | E68: 12000 | F68: Mono | G68: 8.5 X 14 | H68: Konica Minolta | I68: C3350i | J68: AA1R011X001 | K68: 1009.44186 | L68: 432 | M68: 2839 | N68: =SUM(Table1[[#This Row],[New Device NC Discounted Purchase Price]:[Estimated Consumables Purchases During 3 Year Lifecycle]]) -> 4280.44186 | O68: =Table1[[#This Row],[36-Month Total Lease Payments4]] -> 1013.883405 | P68: =Table1[[#This Row],[Estimated 3 Year Maintenance Agreement Price5]] -> 4428 | Q68: 5441.883405 | R68: 3789 | S68: 0.7336 | T68: 1009.44186 | U68: 0.5 | V68: 0.2 | W68: Customer One Guarantee - Within the first two years after install if equipment cannot be repaired to meet factory specifications KM will replace with a new equivalent model | X68: KMC3350iW3YRNBD | Y68: 540 | Z68: 0.2 | AA68: 432 | AB68: 0.0279 | AC68: =Table1[[#This Row],[New Device NC Discounted Purchase Price2]]*Table1[[#This Row],[36-Month Lease Rate Factor (excluding Software)]]*36 -> 1013.883405 | AD68: 0.0235 | AE68: =Table1[[#This Row],[New Device NC Discounted Purchase Price]]*Table1[[#This Row],[48-Month Lease Rate Factor (excluding Software)]]*48 -> 1138.650419 | AF68: 0.0198 | AG68: =Table1[[#This Row],[New Device NC Discounted Purchase Price2]]*Table1[[#This Row],[60-Month Lease Rate Factor (excluding Software)]]*60 -> 1199.21693 | AH68: 0.0279 | AI68: 0.0235 | AJ68: 0.0198 | AK68: n/a | AL68: 0 | AM68: 0.2 | AN68: 0 | AO68: 0 | AP68: 0.01025 | AR68: 4428 | AS68: 195 | AT68: Mono | AU68: 8.5 X 14 | AV68: 12000 | AW68: 42 | AX68: 9 | AY68: Yes | AZ68: 650 | BA68: 250 | BB68: 250GB | BC68: https://www.buyerslab.com/bliQ/Product/ShowSpecItem?spec=116784 | BD68: Digital MFD - 31 to 40 CPM (Mono)C3350i
A69: B.2 | B69: 16 | C69: Digital MFD - 31 to 40 CPM (Color) | D69: MFD | E69: 12000 | F69: Color | G69: 8.5 X 14 | H69: Konica Minolta | I69: C3350i | J69: A92F011X011 | K69: 2018.08 | L69: 576 | M69: 8528.04 | N69: =SUM(Table1[[#This Row],[New Device NC Discounted Purchase Price]:[Estimated Consumables Purchases During 3 Year Lifecycle]]) -> 11122.12 | O69: =Table1[[#This Row],[36-Month Total Lease Payments4]] -> 2026.959552 | P69: =Table1[[#This Row],[Estimated 3 Year Maintenance Agreement Price5]] -> 13867.2 | Q69: 15894.15955 | R69: 4410 | S69: =(Table1[[#This Row],[Device MSRP]]-Table1[[#This Row],[New Device NC Discounted Purchase Price2]])/Table1[[#This Row],[Device MSRP]] -> 0.5423854875 | T69: 2018.08 | U69: 0.5 | V69: 0.2 | W69: Customer One Guarantee - Within the first two years after install if equipment cannot be repaired to meet factory specifications KM will replace with a new equivalent model | X69: KMC3350iW3YRNBD | Y69: 720 | Z69: 0.2 | AA69: =IFERROR(Y69*(1-Z69),"") -> 576 | AB69: 0.0279 | AC69: =Table1[[#This Row],[New Device NC Discounted Purchase Price2]]*Table1[[#This Row],[36-Month Lease Rate Factor (excluding Software)]]*36 -> 2026.959552 | AD69: 0.0235 | AE69: =Table1[[#This Row],[New Device NC Discounted Purchase Price]]*Table1[[#This Row],[48-Month Lease Rate Factor (excluding Software)]]*48 -> 2276.39424 | AF69: 0.0198 | AG69: =Table1[[#This Row],[New Device NC Discounted Purchase Price2]]*Table1[[#This Row],[60-Month Lease Rate Factor (excluding Software)]]*60 -> 2397.47904 | AH69: 0.0279 | AI69: 0.0235 | AJ69: 0.0198 | AK69: n/a | AL69: 0 | AM69: 0.2 | AN69: =IFERROR(AL69*(1-AM69),"") -> 0 | AO69: 0 | AP69: 0.015 | AQ69: 0.06 | AR69: 13867.2 | AS69: 195 | AT69: Color | AU69: 8.5 X 14 | AV69: 6500 | AW69: 35 | AX69: 6 | AY69: Yes | AZ69: 600 | BA69: 250 | BB69: 5GB RAM | BC69: https://www.buyerslab.com/bliQ/Product/ShowSpecItem?spec=116784 | BD69: Digital MFD - 31 to 40 CPM (Color)C3350i
A70: B.2 | B70: 17 | C70: Digital MFD - 31 to 40 CPM (Mono)(Ledger) | D70: MFD | E70: 12000 | F70: Mono | G70: 11 X 17 | H70: Konica Minolta | I70: 360i | J70: AC77013: Mainframe, 135700: Stand, A883012: Fax | K70: 2124.018605 | L70: 864 | M70: 1099.22 | N70: =SUM(Table1[[#This Row],[New Device NC Discounted Purchase Price]:[Estimated Consumables Purchases During 3 Year Lifecycle]]) -> 4087.238605 | O70: =Table1[[#This Row],[36-Month Total Lease Payments4]] -> 2133.364287 | P70: =Table1[[#This Row],[Estimated 3 Year Maintenance Agreement Price5]] -> 2376 | Q70: 4509.364287 | R70: 13334.07 | S70: 0.8407073009 | T70: 2124.018605 | U70: 0.5 | V70: 0.2 | W70: Customer One Guarantee - Within the first two years after install if equipment cannot be repaired to meet factory specifications KM will replace with a new equivalent model | X70: KM360iW3YRNBD | Y70: 1080 | Z70: 0.2 | AA70: 864 | AB70: 0.0279 | AC70: =Table1[[#This Row],[New Device NC Discounted Purchase Price2]]*Table1[[#This Row],[36-Month Lease Rate Factor (excluding Software)]]*36 -> 2133.364287 | AD70: 0.0235 | AE70: =Table1[[#This Row],[New Device NC Discounted Purchase Price]]*Table1[[#This Row],[48-Month Lease Rate Factor (excluding Software)]]*48 -> 2395.892986 | AF70: 0.0198 | AG70: =Table1[[#This Row],[New Device NC Discounted Purchase Price2]]*Table1[[#This Row],[60-Month Lease Rate Factor (excluding Software)]]*60 -> 2523.334102 | AH70: 0.0279 | AI70: 0.0235 | AJ70: 0.0198 | AK70: n/a | AL70: 0 | AM70: 0.2 | AN70: 0 | AO70: 0 | AP70: 0.0055 | AR70: 2376 | AS70: 195 | AT70: Mono | AU70: 11 X 17 | AV70: 15000 | AW70: 36 | AX70: 5 | AY70: Yes | AZ70: 1100 | BA70: 250 | BB70: 8 GB | BC70: https://www.mykonicaminolta.com/wps/wcm/myconnect/mkm/c13489ba-f3bd-4674-86e4-a60adc4c20bd/bizhub_360i_Datasheet.pdf?MOD=AJPERES&CONVERT_TO=url&CACHEID=ROOTWORKSPACE.Z18_HDP09B1A08GH60I3G2LUMD24P7-c13489ba-f3bd-4674-86e4-a60adc4c20bd-nicFKQr | BD70: Digital MFD - 31 to 40 CPM (Mono)(Ledger)360i
A71: B.2 | B71: 18 | C71: Digital MFD - 31 to 40 CPM (Color)(Ledger) | D71: MFD | E71: 12000 | F71: Color | G71: 11 X 17 | H71: Konica Minolta | I71: C360i | J71: AA2J013: Mainframe 135700: Stand A884W11:Fax | K71: 3474.819767 | L71: 720 | M71: 2873.85 | N71: =SUM(Table1[[#This Row],[New Device NC Discounted Purchase Price]:[Estimated Consumables Purchases During 3 Year Lifecycle]]) -> 7068.669767 | O71: =Table1[[#This Row],[36-Month Total Lease Payments4]] -> 3490.108974 | P71: =Table1[[#This Row],[Estimated 3 Year Maintenance Agreement Price5]] -> 8471.52 | Q71: 11961.62897 | R71: 18830.5 | S71: 0.8154685218 | T71: 3474.819767 | U71: 0.5 | V71: 0.2 | W71: Customer One Guarantee - Within the first two years after install if equipment cannot be repaired to meet factory specifications KM will replace with a new equivalent model | X71: KMC360iW3YRNBD | Y71: 900 | Z71: 0.2 | AA71: 720 | AB71: 0.0279 | AC71: =Table1[[#This Row],[New Device NC Discounted Purchase Price2]]*Table1[[#This Row],[36-Month Lease Rate Factor (excluding Software)]]*36 -> 3490.108974 | AD71: 0.0235 | AE71: =Table1[[#This Row],[New Device NC Discounted Purchase Price]]*Table1[[#This Row],[48-Month Lease Rate Factor (excluding Software)]]*48 -> 3919.596698 | AF71: 0.0198 | AG71: =Table1[[#This Row],[New Device NC Discounted Purchase Price2]]*Table1[[#This Row],[60-Month Lease Rate Factor (excluding Software)]]*60 -> 4128.085884 | AH71: 0.0279 | AI71: 0.0235 | AJ71: 0.0198 | AK71: n/a | AL71: 0 | AM71: 0.2 | AN71: 0 | AO71: 0 | AP71: 0.0065 | AQ71: 0.041 | AR71: 8471.52 | AS71: 195 | AT71: Color | AU71: 11 X 17 | AV71: 14500 | AW71: 36 | AX71: 5 | AY71: Yes | AZ71: 1150 | BA71: 250 | BB71: 8GB RAM | BC71: https://www.buyerslab.com/bliQ/Product/ShowSpecItem?spec=116783 | BD71: Digital MFD - 31 to 40 CPM (Color)(Ledger)C360i
A72: C | B72: 19 | C72: Digital MFD - 41 to 54 CPM (Mono) | D72: MFD | E72: 16000 | F72: Mono | G72: 8.5 X 14 | H72: Konica Minolta | I72: 450i | J72: AC76011: Mainframe, 135700: Stand, A0PD11T: Searchable PDF, A883012: Fax | K72: 3107.17908 | L72: 1152 | M72: 1359.76 | N72: =SUM(Table1[[#This Row],[New Device NC Discounted Purchase Price]:[Estimated Consumables Purchases During 3 Year Lifecycle]]) -> 5618.93908 | O72: =Table1[[#This Row],[36-Month Total Lease Payments4]] -> 3120.850668 | P72: =Table1[[#This Row],[Estimated 3 Year Maintenance Agreement Price5]] -> 3110.4 | Q72: =SUM(O72:P72) -> 6231.250668 | R72: 15357.65 | S72: =(Table1[[#This Row],[Device MSRP]]-Table1[[#This Row],[New Device NC Discounted Purchase Price2]])/Table1[[#This Row],[Device MSRP]] -> 0.7976787412 | T72: 3107.17908 | U72: 0.5 | V72: 0.2 | W72: Customer One Guarantee - Within the first two years after install if equipment cannot be repaired to meet factory specifications KM will replace with a new equivalent model | X72: KM458W3YRNBD | Y72: 1440 | Z72: 0.2 | AA72: 1152 | AB72: 0.0279 | AC72: =Table1[[#This Row],[New Device NC Discounted Purchase Price2]]*Table1[[#This Row],[36-Month Lease Rate Factor (excluding Software)]]*36 -> 3120.850668 | AD72: 0.0235 | AE72: =Table1[[#This Row],[New Device NC Discounted Purchase Price]]*Table1[[#This Row],[48-Month Lease Rate Factor (excluding Software)]]*48 -> 3504.898002 | AF72: 0.0198 | AG72: =Table1[[#This Row],[New Device NC Discounted Purchase Price2]]*Table1[[#This Row],[60-Month Lease Rate Factor (excluding Software)]]*60 -> 3691.328747 | AH72: 0.0279 | AI72: 0.0235 | AJ72: 0.0198 | AK72: n/a | AL72: 0 | AM72: 0.2 | AN72: 0 | AO72: 0 | AP72: 0.0054 | AR72: 3110.4 | AS72: 195 | AT72: Mono | AU72: 11 X 17 | AV72: 20000 | AW72: 45 | AX72: 4 | AY72: Yes | AZ72: 1150 | BA72: 250 | BB72: 8 GB | BC72: https://www.mykonicaminolta.com/wps/wcm/myconnect/mkm/65e61989-87fe-413f-b414-9481930012fb/bizhub_450i_Data_Sheet.pdf?MOD=AJPERES&CONVERT_TO=url&CVID=nhZqW.I | BD72: Digital MFD - 41 to 54 CPM (Mono)450i
A73: C | B73: 20 | C73: Digital MFD - 41 to 54 CPM (Color) | D73: MFD | E73: 16000 | F73: Color | G73: 8.5 X 14 | H73: Konica Minolta | I73: C450i | J73: AA7R01: Mainframe, A0PD11T: Searchable PDF, 135700: Stand, A883012: Fax | K73: 4886.331395 | L73: 1344 | M73: 3037.6 | N73: =SUM(Table1[[#This Row],[New Device NC Discounted Purchase Price]:[Estimated Consumables Purchases During 3 Year Lifecycle]]) -> 9267.931395 | O73: =Table1[[#This Row],[36-Month Total Lease Payments4]] -> 4907.831253 | P73: =Table1[[#This Row],[Estimated 3 Year Maintenance Agreement Price5]] -> 11223.936 | Q73: 16131.76725 | R73: 28974.28 | S73: 0.8314 | T73: 4886.331395 | U73: 0.5 | V73: 0.2 | W73: Customer One Guarantee - Within the first two years after install if equipment cannot be repaired to meet factory specifications KM will replace with a new equivalent model | X73: KMC450iW3YRNBD | Y73: 1680 | Z73: 0.2 | AA73: 1344 | AB73: 0.0279 | AC73: =Table1[[#This Row],[New Device NC Discounted Purchase Price2]]*Table1[[#This Row],[36-Month Lease Rate Factor (excluding Software)]]*36 -> 4907.831253 | AD73: 0.0235 | AE73: =Table1[[#This Row],[New Device NC Discounted Purchase Price]]*Table1[[#This Row],[48-Month Lease Rate Factor (excluding Software)]]*48 -> 5511.781814 | AF73: 0.0198 | AG73: =Table1[[#This Row],[New Device NC Discounted Purchase Price2]]*Table1[[#This Row],[60-Month Lease Rate Factor (excluding Software)]]*60 -> 5804.961698 | AH73: 0.0279 | AI73: 0.0235 | AJ73: 0.0198 | AK73: n/a | AL73: 0 | AM73: 0.2 | AN73: 0 | AO73: 0 | AP73: 0.0063 | AQ73: 0.041 | AR73: 11223.936 | AS73: 195 | AT73: Color | AU73: 11 X 17 | AV73: 17500 | AW73: 45 | AX73: 4 | AY73: Yes | AZ73: 1150 | BA73: 250 | BB73: 8 GB RAM 256-GB | BC73: https://www.buyerslab.com/bliQ/Product/ShowSpecItem?spec=121246 | BD73: Digital MFD - 41 to 54 CPM (Color)C450i
A74: C | B74: 21 | C74: Digital MFD - 41 to 54 CPM (Mono)(Ledger) | D74: MFD | E74: 16000 | F74: Mono | G74: 11 X 17 | H74: Konica Minolta | I74: 450i | J74: AC76011: Mainframe, 135700: Stand, A0PD11T: Searchable PDF, A883012: Fax | K74: 3107.17908 | L74: 1152 | M74: 1359.76 | N74: =SUM(Table1[[#This Row],[New Device NC Discounted Purchase Price]:[Estimated Consumables Purchases During 3 Year Lifecycle]]) -> 5618.93908 | O74: =Table1[[#This Row],[36-Month Total Lease Payments4]] -> 3120.850668 | P74: =Table1[[#This Row],[Estimated 3 Year Maintenance Agreement Price5]] -> 3110.4 | Q74: 6231.250668 | R74: 15357.65 | S74: =(Table1[[#This Row],[Device MSRP]]-Table1[[#This Row],[New Device NC Discounted Purchase Price2]])/Table1[[#This Row],[Device MSRP]] -> 0.7976787412 | T74: 3107.17908 | U74: 0.5 | V74: 0.2 | W74: Customer One Guarantee - Within the first two years after install if equipment cannot be repaired to meet factory specifications KM will replace with a new equivalent model | X74: KM458W3YRNBD | Y74: 1440 | Z74: 0.2 | AA74: 1152 | AB74: 0.0279 | AC74: =Table1[[#This Row],[New Device NC Discounted Purchase Price2]]*Table1[[#This Row],[36-Month Lease Rate Factor (excluding Software)]]*36 -> 3120.850668 | AD74: 0.0235 | AE74: =Table1[[#This Row],[New Device NC Discounted Purchase Price]]*Table1[[#This Row],[48-Month Lease Rate Factor (excluding Software)]]*48 -> 3504.898002 | AF74: 0.0198 | AG74: =Table1[[#This Row],[New Device NC Discounted Purchase Price2]]*Table1[[#This Row],[60-Month Lease Rate Factor (excluding Software)]]*60 -> 3691.328747 | AH74: 0.0279 | AI74: 0.0235 | AJ74: 0.0198 | AK74: n/a | AL74: 0 | AM74: 0.2 | AN74: 0 | AO74: 0 | AP74: 0.0054 | AR74: 3110.4 | AS74: 195 | AT74: Mono | AU74: 11 X 17 | AV74: 20000 | AW74: 45 | AX74: 4 | AY74: Yes | AZ74: 1150 | BA74: 250 | BB74: 8 GB | BC74: https://www.mykonicaminolta.com/wps/wcm/myconnect/mkm/65e61989-87fe-413f-b414-9481930012fb/bizhub_450i_Data_Sheet.pdf?MOD=AJPERES&CONVERT_TO=url&CVID=nhZqW.I | BD74: Digital MFD - 41 to 54 CPM (Mono)(Ledger)450i
A75: C | B75: 22 | C75: Digital MFD - 41 to 54 CPM (Color)(Ledger) | D75: MFD | E75: 16000 | F75: Color | G75: 11 X 17 | H75: Konica Minolta | I75: C450i | J75: AA7R01: Mainframe, A0PD11T: Searchable PDF, 135700: Stand, A883012: Fax | K75: 4886.331395 | L75: 1344 | M75: 3037.6 | N75: =SUM(Table1[[#This Row],[New Device NC Discounted Purchase Price]:[Estimated Consumables Purchases During 3 Year Lifecycle]]) -> 9267.931395 | O75: =Table1[[#This Row],[36-Month Total Lease Payments4]] -> 4907.831253 | P75: =Table1[[#This Row],[Estimated 3 Year Maintenance Agreement Price5]] -> 11223.936 | Q75: 16131.76725 | R75: 28974.28 | S75: 0.8314 | T75: 4886.331395 | U75: 0.5 | V75: 0.2 | W75: Customer One Guarantee - Within the first two years after install if equipment cannot be repaired to meet factory specifications KM will replace with a new equivalent model | X75: KMC450iW3YRNBD | Y75: 1680 | Z75: 0.2 | AA75: 1344 | AB75: 0.0279 | AC75: =Table1[[#This Row],[New Device NC Discounted Purchase Price2]]*Table1[[#This Row],[36-Month Lease Rate Factor (excluding Software)]]*36 -> 4907.831253 | AD75: 0.0235 | AE75: =Table1[[#This Row],[New Device NC Discounted Purchase Price]]*Table1[[#This Row],[48-Month Lease Rate Factor (excluding Software)]]*48 -> 5511.781814 | AF75: 0.0198 | AG75: =Table1[[#This Row],[New Device NC Discounted Purchase Price2]]*Table1[[#This Row],[60-Month Lease Rate Factor (excluding Software)]]*60 -> 5804.961698 | AH75: 0.0279 | AI75: 0.0235 | AJ75: 0.0198 | AK75: n/a | AL75: 0 | AM75: 0.2 | AN75: 0 | AO75: 0 | AP75: 0.0063 | AQ75: 0.041 | AR75: 11223.936 | AS75: 195 | AT75: Color | AU75: 11 X 17 | AV75: 17500 | AW75: 45 | AX75: 4 | AY75: Yes | AZ75: 1150 | BA75: 250 | BB75: 8 GB RAM 256-GB | BC75: https://www.buyerslab.com/bliQ/Product/ShowSpecItem?spec=121246 | BD75: Digital MFD - 41 to 54 CPM (Color)(Ledger)C450i
A76: C | B76: 23 | C76: Digital MFD - 55 to 69 CPM (Mono) | D76: MFD | E76: 25000 | F76: Mono | G76: 8.5 X 14 | H76: Konica Minolta | I76: 550i | J76: AC75011: Mainframe, 135700: Stand, A0PD11T: Searchable PDF, A883012: Fax | K76: 4731.017209 | L76: 1152 | M76: 2187.44 | N76: =SUM(Table1[[#This Row],[New Device NC Discounted Purchase Price]:[Estimated Consumables Purchases During 3 Year Lifecycle]]) -> 8070.457209 | O76: =Table1[[#This Row],[36-Month Total Lease Payments4]] -> 4751.833685 | P76: =Table1[[#This Row],[Estimated 3 Year Maintenance Agreement Price5]] -> 4230 | Q76: 8981.833685 | R76: 25823.79 | S76: =(Table1[[#This Row],[Device MSRP]]-Table1[[#This Row],[New Device NC Discounted Purchase Price2]])/Table1[[#This Row],[Device MSRP]] -> 0.8167961709 | T76: 4731.017209 | U76: 0.5 | V76: 0.2 | W76: Customer One Guarantee - Within the first two years after install if equipment cannot be repaired to meet factory specifications KM will replace with a new equivalent model | X76: KM550iW3YRNBD | Y76: 1440 | Z76: 0.2 | AA76: 1152 | AB76: 0.0279 | AC76: =Table1[[#This Row],[New Device NC Discounted Purchase Price2]]*Table1[[#This Row],[36-Month Lease Rate Factor (excluding Software)]]*36 -> 4751.833685 | AD76: 0.0235 | AE76: =Table1[[#This Row],[New Device NC Discounted Purchase Price]]*Table1[[#This Row],[48-Month Lease Rate Factor (excluding Software)]]*48 -> 5336.587412 | AF76: 0.0198 | AG76: =Table1[[#This Row],[New Device NC Discounted Purchase Price2]]*Table1[[#This Row],[60-Month Lease Rate Factor (excluding Software)]]*60 -> 5620.448445 | AH76: 0.0279 | AI76: 0.0235 | AJ76: 0.0198 | AK76: n/a | AL76: 0 | AM76: 0.2 | AN76: 0 | AO76: 0 | AP76: 0.0047 | AR76: 4230 | AS76: 195 | AT76: Mono | AU76: 11 X 17 | AV76: 25000 | AW76: 55 | AX76: 3 | AY76: Yes | AZ76: 1150 | BA76: 250 | BB76: 8 GB | BC76: https://www.mykonicaminolta.com/wps/wcm/myconnect/mkm/f2183a76-44c6-4cb9-b95b-8ccc1760cfdc/bizhub_550i_Datasheet.pdf?MOD=AJPERES&CONVERT_TO=url&CVID=ni4Xdfg | BD76: Digital MFD - 55 to 69 CPM (Mono)550i
A77: D | B77: 24 | C77: Digital MFD - 55 to 69 CPM (Mono)(Ledger) | D77: MFD | E77: 25000 | F77: Mono | G77: 11 X 17 | H77: Konica Minolta | I77: 550i | J77: AC75011: Mainframe, 135700: Stand, A0PD11T: Searchable PDF, A883012: Fax | K77: 4731.017209 | L77: 1152 | M77: 2187.44 | N77: =SUM(Table1[[#This Row],[New Device NC Discounted Purchase Price]:[Estimated Consumables Purchases During 3 Year Lifecycle]]) -> 8070.457209 | O77: =Table1[[#This Row],[36-Month Total Lease Payments4]] -> 4751.833685 | P77: =Table1[[#This Row],[Estimated 3 Year Maintenance Agreement Price5]] -> 4230 | Q77: 8981.833685 | R77: 25823.79 | S77: =(Table1[[#This Row],[Device MSRP]]-Table1[[#This Row],[New Device NC Discounted Purchase Price2]])/Table1[[#This Row],[Device MSRP]] -> 0.8167961709 | T77: 4731.017209 | U77: 0.5 | V77: 0.2 | W77: Customer One Guarantee - Within the first two years after install if equipment cannot be repaired to meet factory specifications KM will replace with a new equivalent model | X77: KM550iW3YRNBD | Y77: 1440 | Z77: 0.2 | AA77: 1152 | AB77: 0.0279 | AC77: =Table1[[#This Row],[New Device NC Discounted Purchase Price2]]*Table1[[#This Row],[36-Month Lease Rate Factor (excluding Software)]]*36 -> 4751.833685 | AD77: 0.0235 | AE77: =Table1[[#This Row],[New Device NC Discounted Purchase Price]]*Table1[[#This Row],[48-Month Lease Rate Factor (excluding Software)]]*48 -> 5336.587412 | AF77: 0.0198 | AG77: =Table1[[#This Row],[New Device NC Discounted Purchase Price2]]*Table1[[#This Row],[60-Month Lease Rate Factor (excluding Software)]]*60 -> 5620.448445 | AH77: 0.0279 | AI77: 0.0235 | AJ77: 0.0198 | AK77: n/a | AL77: 0 | AM77: 0.2 | AN77: 0 | AO77: 0 | AP77: 0.0047 | AR77: 4230 | AS77: 195 | AT77: Mono | AU77: 11 X 17 | AV77: 25000 | AW77: 55 | AX77: 3 | AY77: Yes | AZ77: 1150 | BA77: 250 | BB77: 8 GB | BC77: https://www.mykonicaminolta.com/wps/wcm/myconnect/mkm/f2183a76-44c6-4cb9-b95b-8ccc1760cfdc/bizhub_550i_Datasheet.pdf?MOD=AJPERES&CONVERT_TO=url&CVID=ni4Xdfg | BD77: Digital MFD - 55 to 69 CPM (Mono)(Ledger)550i
A78: D | B78: 25 | C78: Digital MFD - 55 to 69 CPM (Color)(Ledger) | D78: MFD | E78: 25000 | F78: Color | G78: 11 X 17 | H78: Konica Minolta | I78: C550i | J78: AA79011: Mainframe, A0PD11T: Searchable PDF, 135700: Stand, A883012: Fax | K78: 5186.156977 | L78: 1344 | M78: 5108.32 | N78: =SUM(Table1[[#This Row],[New Device NC Discounted Purchase Price]:[Estimated Consumables Purchases During 3 Year Lifecycle]]) -> 11638.47698 | O78: =Table1[[#This Row],[36-Month Total Lease Payments4]] -> 5208.976067 | P78: =Table1[[#This Row],[Estimated 3 Year Maintenance Agreement Price5]] -> 17091 | Q78: 22299.97607 | R78: 34688.8 | S78: 0.8505 | T78: 5186.156977 | U78: 0.5 | V78: 0.2 | W78: Customer One Guarantee - Within the first two years after install if equipment cannot be repaired to meet factory specifications KM will replace with a new equivalent model | X78: KMC550iW3YRNBD | Y78: 1680 | Z78: 0.2 | AA78: 1344 | AB78: 0.0279 | AC78: =Table1[[#This Row],[New Device NC Discounted Purchase Price2]]*Table1[[#This Row],[36-Month Lease Rate Factor (excluding Software)]]*36 -> 5208.976067 | AD78: 0.0235 | AE78: =Table1[[#This Row],[New Device NC Discounted Purchase Price]]*Table1[[#This Row],[48-Month Lease Rate Factor (excluding Software)]]*48 -> 5849.98507 | AF78: 0.0198 | AG78: =Table1[[#This Row],[New Device NC Discounted Purchase Price2]]*Table1[[#This Row],[60-Month Lease Rate Factor (excluding Software)]]*60 -> 6161.154488 | AH78: 0.0279 | AI78: 0.0235 | AJ78: 0.0198 | AK78: n/a | AL78: 0 | AM78: 0.2 | AN78: 0 | AO78: 0 | AP78: 0.0055 | AQ78: 0.041 | AR78: 17091 | AS78: 195 | AT78: Color | AU78: 11 X 17 | AV78: 20000 | AW78: 55 | AX78: 4 | AY78: Yes | AZ78: 1150 | BA78: 250 | BB78: 8 GB RAM 256-GB | BC78: https://www.buyerslab.com/bliQ/Product/ShowSpecItem?spec=121245 | BD78: Digital MFD - 55 to 69 CPM (Color)(Ledger)C550i
A79: D | B79: 26 | C79: Digital MFD - 70 to 90 CPM (Mono) | D79: MFD | E79: 50000 | F79: Mono | G79: 8.5 X 14 | H79: Konica Minolta | I79: 808 | J79: A8KN011:Mainframe A0PD11T:Searchable PDF | K79: 6549.837209 | L79: 1612.8 | M79: 4026 | N79: =SUM(Table1[[#This Row],[New Device NC Discounted Purchase Price]:[Estimated Consumables Purchases During 3 Year Lifecycle]]) -> 12188.63721 | O79: =Table1[[#This Row],[36-Month Total Lease Payments4]] -> 6578.656493 | P79: =Table1[[#This Row],[Estimated 3 Year Maintenance Agreement Price5]] -> 6300 | Q79: 12878.65649 | R79: 35947.8 | S79: 0.8177958815 | T79: 6549.837209 | U79: 0.5 | V79: 0.2 | W79: Customer One Guarantee - Within the first two years after install if equipment cannot be repaired to meet factory specifications KM will replace with a new equivalent model | X79: KM808W3YRNBD | Y79: 2016 | Z79: 0.2 | AA79: 1612.8 | AB79: 0.0279 | AC79: =Table1[[#This Row],[New Device NC Discounted Purchase Price2]]*Table1[[#This Row],[36-Month Lease Rate Factor (excluding Software)]]*36 -> 6578.656493 | AD79: 0.0235 | AE79: =Table1[[#This Row],[New Device NC Discounted Purchase Price]]*Table1[[#This Row],[48-Month Lease Rate Factor (excluding Software)]]*48 -> 7388.216372 | AF79: 0.0198 | AG79: =Table1[[#This Row],[New Device NC Discounted Purchase Price2]]*Table1[[#This Row],[60-Month Lease Rate Factor (excluding Software)]]*60 -> 7781.206605 | AH79: 0.0279 | AI79: 0.0235 | AJ79: 0.0198 | AK79: n/a | AL79: 0 | AM79: 0.2 | AN79: 0 | AO79: 0 | AP79: 0.0035 | AR79: 6300 | AS79: 195 | AT79: Mono | AU79: 11 X 17 | AV79: 30000 | AW79: 80 | AX79: 4 | AY79: Yes | AZ79: 3650 | BA79: 250 | BB79: 4GB RAM 250GB HDD | BC79: http://downloads.kmbs.us/books/ezpu/#p=1 | BD79: Digital MFD - 70 to 90 CPM (Mono)808
A80: D | B80: 27 | C80: Digital MFD - 70 to 90 CPM (Mono)(Ledger) | D80: MFD | E80: 50000 | F80: Mono | G80: 11 X 17 | H80: Konica Minolta | I80: 808 | J80: A8KN011:Mainframe A0PD11T:Searchable PDF | K80: 6549.837209 | L80: 1612.8 | M80: 4026 | N80: =SUM(Table1[[#This Row],[New Device NC Discounted Purchase Price]:[Estimated Consumables Purchases During 3 Year Lifecycle]]) -> 12188.63721 | O80: =Table1[[#This Row],[36-Month Total Lease Payments4]] -> 6578.656493 | P80: =Table1[[#This Row],[Estimated 3 Year Maintenance Agreement Price5]] -> 6300 | Q80: 12878.65649 | R80: 35947.8 | S80: 0.8177958815 | T80: 6549.837209 | U80: 0.5 | V80: 0.2 | W80: Customer One Guarantee - Within the first two years after install if equipment cannot be repaired to meet factory specifications KM will replace with a new equivalent model | X80: KM808W3YRNBD | Y80: 2016 | Z80: 0.2 | AA80: 1612.8 | AB80: 0.0279 | AC80: =Table1[[#This Row],[New Device NC Discounted Purchase Price2]]*Table1[[#This Row],[36-Month Lease Rate Factor (excluding Software)]]*36 -> 6578.656493 | AD80: 0.0235 | AE80: =Table1[[#This Row],[New Device NC Discounted Purchase Price]]*Table1[[#This Row],[48-Month Lease Rate Factor (excluding Software)]]*48 -> 7388.216372 | AF80: 0.0198 | AG80: =Table1[[#This Row],[New Device NC Discounted Purchase Price2]]*Table1[[#This Row],[60-Month Lease Rate Factor (excluding Software)]]*60 -> 7781.206605 | AH80: 0.0279 | AI80: 0.0235 | AJ80: 0.0198 | AK80: n/a | AL80: 0 | AM80: 0.2 | AN80: 0 | AO80: 0 | AP80: 0.0035 | AR80: 6300 | AS80: 195 | AT80: Mono | AU80: 11 X 17 | AV80: 30000 | AW80: 80 | AX80: 4 | AY80: Yes | AZ80: 3650 | BA80: 250 | BB80: 4GB RAM 250GB HDD | BC80: http://downloads.kmbs.us/books/ezpu/#p=1 | BD80: Digital MFD - 70 to 90 CPM (Mono)(Ledger)808
A81: D | B81: 28 | C81: Digital MFD - 70 to 90 CPM (Color)(Ledger) | D81: MFD | E81: 50000 | F81: Color | G81: 11 X 17 | H81: Konica Minolta | I81: C750i | J81: ACKN011: Copier, A0PD11T: Searchable PDF, A883012: Fax | K81: 8674.790698 | L81: 1872 | M81: 6618.81 | N81: =SUM(Table1[[#This Row],[New Device NC Discounted Purchase Price]:[Estimated Consumables Purchases During 3 Year Lifecycle]]) -> 17165.6007 | O81: =Table1[[#This Row],[36-Month Total Lease Payments4]] -> 8712.959777 | P81: =Table1[[#This Row],[Estimated 3 Year Maintenance Agreement Price5]] -> 34182 | Q81: 42894.95978 | R81: 41358.81 | S81: =(Table1[[#This Row],[Device MSRP]]-Table1[[#This Row],[New Device NC Discounted Purchase Price2]])/Table1[[#This Row],[Device MSRP]] -> 0.790255312 | T81: 8674.790698 | U81: 0.5 | V81: 0.2 | W81: Customer One Guarantee - Within the first two years after install if equipment cannot be repaired to meet factory specifications KM will replace with a new equivalent model | X81: KMC750iW3YRNBD | Y81: 2340 | Z81: 0.2 | AA81: 1872 | AB81: 0.0279 | AC81: =Table1[[#This Row],[New Device NC Discounted Purchase Price2]]*Table1[[#This Row],[36-Month Lease Rate Factor (excluding Software)]]*36 -> 8712.959777 | AD81: 0.0235 | AE81: =Table1[[#This Row],[New Device NC Discounted Purchase Price]]*Table1[[#This Row],[48-Month Lease Rate Factor (excluding Software)]]*48 -> 9785.163907 | AF81: 0.0198 | AG81: =Table1[[#This Row],[New Device NC Discounted Purchase Price2]]*Table1[[#This Row],[60-Month Lease Rate Factor (excluding Software)]]*60 -> 10305.65135 | AH81: 0.0279 | AI81: 0.0235 | AJ81: 0.0198 | AK81: n/a | AL81: 0 | AM81: 0.2 | AN81: 0 | AO81: 0 | AP81: 0.0055 | AQ81: 0.041 | AR81: 34182 | AS81: 195 | AT81: Color | AU81: 11 X 17 | AV81: 27800 | AW81: 75 | AX81: 3 | AY81: Yes | AZ81: 3650 | BA81: 200 | BB81: 8,192 MB | BC81: https://www.mykonicaminolta.com/wps/wcm/myconnect/mkm/9f1e322a-fe3c-4642-9e30-35171bb8c4c2/bizhub_C750i_Spec_Sheet.pdf?MOD=AJPERES&CONVERT_TO=url&CACHEID=ROOTWORKSPACE.Z18_HDP09B1A08GH60I3G2LUMD24P7-9f1e322a-fe3c-4642-9e30-35171bb8c4c2-ngyb2Xj | BD81: Digital MFD - 70 to 90 CPM (Color)(Ledger)C750i
A82: E | B82: 29 | C82: Digital Production Printer/Copier - 70 to 90 CPM (Color)(Ledger) | D82: Production | F82: Color | G82: 11 X 17 | H82: Konica Minolta | I82: AccurioPress C3070L | J82: AAC4011 | K82: 18623.6 | L82: 1598.4 | N82: =SUM(Table1[[#This Row],[New Device NC Discounted Purchase Price]:[Estimated Consumables Purchases During 3 Year Lifecycle]]) -> 20222 | O82: =Table1[[#This Row],[36-Month Total Lease Payments4]] -> 18705.54384 | P82: =Table1[[#This Row],[Estimated 3 Year Maintenance Agreement Price5]] -> 0 | Q82: 18705.54384 | R82: 46559 | S82: 0.6 | T82: 18623.6 | U82: Varies | V82: N/A | W82: 90 Days | X82: KMC3070LWB1YRNBD | Y82: 1998 | Z82: 0.2 | AA82: 1598.4 | AB82: 0.0279 | AC82: =Table1[[#This Row],[New Device NC Discounted Purchase Price2]]*Table1[[#This Row],[36-Month Lease Rate Factor (excluding Software)]]*36 -> 18705.54384 | AD82: 0.0235 | AE82: =Table1[[#This Row],[New Device NC Discounted Purchase Price]]*Table1[[#This Row],[48-Month Lease Rate Factor (excluding Software)]]*48 -> 21007.4208 | AF82: 0.0198 | AG82: =Table1[[#This Row],[New Device NC Discounted Purchase Price2]]*Table1[[#This Row],[60-Month Lease Rate Factor (excluding Software)]]*60 -> 22124.8368 | AH82: 0.0279 | AI82: 0.0235 | AJ82: 0.0198 | AK82: n/a | AL82: 0 | AM82: 0.2 | AN82: 0 | AO82: 0 | AP82: 0.0095 | AQ82: 0.042 | AR82: 0 | AS82: 195 | AT82: Color | AU82: 11 X 17 | AV82: 758000 | AW82: 70 CPM | AX82: 7 | AY82: Yes | AZ82: 1500 | BA82: 4500 | BB82: 14GB | BC82: http://fliphtml5.com/iezk/lipn | BD82: Digital Production Printer/Copier - 70 to 90 CPM (Color)(Ledger)AccurioPress C3070L
A83: E | B83: 30 | C83: Digital Production Printer/Copier - 91 to 119 CPM (Mono)(Ledger) | D83: Production | F83: Mono | G83: 11 X 17 | H83: Konica Minolta | I83: PRO 1100 | J83: A799011 | K83: 14553 | L83: 1656 | N83: =SUM(Table1[[#This Row],[New Device NC Discounted Purchase Price]:[Estimated Consumables Purchases During 3 Year Lifecycle]]) -> 16209 | O83: =Table1[[#This Row],[36-Month Total Lease Payments4]] -> 14617.0332 | P83: =Table1[[#This Row],[Estimated 3 Year Maintenance Agreement Price5]] -> 0 | Q83: 14617.0332 | R83: 44100 | S83: 0.67 | T83: =IFERROR(R83*(1-S83),"") -> 14553 | U83: Varies | V83: N/A | W83: 90 Days | X83: KM1100WB1YRNBD | Y83: 2070 | Z83: 0.2 | AA83: 1656 | AB83: 0.0279 | AC83: =Table1[[#This Row],[New Device NC Discounted Purchase Price2]]*Table1[[#This Row],[36-Month Lease Rate Factor (excluding Software)]]*36 -> 14617.0332 | AD83: 0.0235 | AE83: =Table1[[#This Row],[New Device NC Discounted Purchase Price]]*Table1[[#This Row],[48-Month Lease Rate Factor (excluding Software)]]*48 -> 16415.784 | AF83: 0.0198 | AG83: =Table1[[#This Row],[New Device NC Discounted Purchase Price2]]*Table1[[#This Row],[60-Month Lease Rate Factor (excluding Software)]]*60 -> 17288.964 | AH83: 0.0279 | AI83: 0.0235 | AJ83: 0.0198 | AK83: n/a | AL83: 0 | AM83: 0.2 | AN83: 0 | AO83: 0 | AP83: 0.0046 | AR83: 0 | AS83: 195 | AT83: Mono | AU83: 11 X 17 | AV83: 2250000 | AW83: 100 CPM | AX83: 3 | AY83: Yes | AZ83: 3000 | BA83: 4200 | BB83: 8 GB | BC83: http://downloads.kmbs.us/books/sklu/#p=1 | BD83: Digital Production Printer/Copier - 91 to 119 CPM (Mono)(Ledger)PRO 1100
A84: E | B84: 31 | C84: Digital Production Printer/Copier - 91 to 119 CPM (Color)(Ledger) | D84: Production | F84: Color | G84: 11 X 17 | H84: Konica Minolta | I84: AccurioPress C6100 | J84: A92W011 | K84: 67784.34 | L84: 1824 | N84: =SUM(Table1[[#This Row],[New Device NC Discounted Purchase Price]:[Estimated Consumables Purchases During 3 Year Lifecycle]]) -> 69608.34 | O84: =Table1[[#This Row],[36-Month Total Lease Payments4]] -> 68082.5911 | P84: =Table1[[#This Row],[Estimated 3 Year Maintenance Agreement Price5]] -> 0 | Q84: 68082.5911 | R84: 157638 | S84: 0.57 | T84: =IFERROR(R84*(1-S84),"") -> 67784.34 | U84: Varies | V84: N/A | W84: 90 Days | X84: KMC6100WB1YRNBD | Y84: 2280 | Z84: 0.2 | AA84: 1824 | AB84: 0.0279 | AC84: =Table1[[#This Row],[New Device NC Discounted Purchase Price2]]*Table1[[#This Row],[36-Month Lease Rate Factor (excluding Software)]]*36 -> 68082.5911 | AD84: 0.0235 | AE84: =Table1[[#This Row],[New Device NC Discounted Purchase Price]]*Table1[[#This Row],[48-Month Lease Rate Factor (excluding Software)]]*48 -> 76460.73552 | AF84: 0.0198 | AG84: =Table1[[#This Row],[New Device NC Discounted Purchase Price2]]*Table1[[#This Row],[60-Month Lease Rate Factor (excluding Software)]]*60 -> 80527.79592 | AH84: 0.0279 | AI84: 0.0235 | AJ84: 0.0198 | AK84: n/a | AL84: 0 | AM84: 0.2 | AN84: 0 | AO84: 0 | AP84: 0.0095 | AQ84: 0.042 | AR84: 0 | AS84: 195 | AT84: Color | AU84: 11 X 17 | AV84: 1800000 | AW84: 100 CPM | AX84: 3 | AY84: Yes | AZ84: 4630 | BA84: 4500 | BB84: 4 GB | BC84: http://downloads.kmbs.us/books/angl/ | BD84: Digital Production Printer/Copier - 91 to 119 CPM (Color)(Ledger)AccurioPress C6100
A85: E | B85: 32 | C85: Digital Production Printer/Copier - 120 to 139 CPM (Mono)(Ledger) | D85: Production | F85: Mono | G85: 11 X 17 | H85: Konica Minolta | I85: AccurioPress 6120 | J85: A9JU011 | K85: 21986.25 | L85: 1656 | N85: =SUM(Table1[[#This Row],[New Device NC Discounted Purchase Price]:[Estimated Consumables Purchases During 3 Year Lifecycle]]) -> 23642.25 | O85: =Table1[[#This Row],[36-Month Total Lease Payments4]] -> 22082.9895 | P85: =Table1[[#This Row],[Estimated 3 Year Maintenance Agreement Price5]] -> 0 | Q85: 22082.9895 | R85: 66625 | S85: 0.67 | T85: =IFERROR(R85*(1-S85),"") -> 21986.25 | U85: Varies | V85: N/A | W85: 90 Days | X85: KM6120WB1YRNBD | Y85: 2070 | Z85: 0.2 | AA85: 1656 | AB85: 0.0279 | AC85: =Table1[[#This Row],[New Device NC Discounted Purchase Price2]]*Table1[[#This Row],[36-Month Lease Rate Factor (excluding Software)]]*36 -> 22082.9895 | AD85: 0.0235 | AE85: =Table1[[#This Row],[New Device NC Discounted Purchase Price]]*Table1[[#This Row],[48-Month Lease Rate Factor (excluding Software)]]*48 -> 24800.49 | AF85: 0.0198 | AG85: =Table1[[#This Row],[New Device NC Discounted Purchase Price2]]*Table1[[#This Row],[60-Month Lease Rate Factor (excluding Software)]]*60 -> 26119.665 | AH85: 0.0279 | AI85: 0.0235 | AJ85: 0.0198 | AK85: n/a | AL85: 0 | AM85: 0.2 | AN85: 0 | AO85: 0 | AP85: 0.0046 | AR85: 0 | AS85: 195 | AT85: Mono | AU85: 11 X 17 | AV85: 2500000 | AW85: 120 CPM | AX85: 3 | AY85: Yes | AZ85: 3000 | BA85: 4600 | BB85: 16 GB | BC85: http://downloads.kmbs.us/books/xvfw/#p=1 | BD85: Digital Production Printer/Copier - 120 to 139 CPM (Mono)(Ledger)AccurioPress 6120
A86: E | B86: 34 | C86: Digital Production Printer/Copier - 140 to 159 CPM (Mono)(Ledger) | D86: Production | E86: Press 2250P | F86: Mono | G86: 11 X 17 | H86: Konica Minolta | I86: Press 2250P | J86: A4EX011X002 | K86: 63888 | L86: 1680 | N86: =SUM(Table1[[#This Row],[New Device NC Discounted Purchase Price]:[Estimated Consumables Purchases During 3 Year Lifecycle]]) -> 65568 | O86: =Table1[[#This Row],[36-Month Total Lease Payments4]] -> 64169.1072 | P86: =Table1[[#This Row],[Estimated 3 Year Maintenance Agreement Price5]] ->  | Q86: 64169.1072 | R86: 212960 | S86: 0.7 | T86: 63888 | U86: Varies | V86: N/A | W86: 90 Days | X86: KM2250PWB1YRNBD | Y86: 2100 | Z86: 0.2 | AA86: 1680 | AB86: 0.0279 | AC86: =Table1[[#This Row],[New Device NC Discounted Purchase Price2]]*Table1[[#This Row],[36-Month Lease Rate Factor (excluding Software)]]*36 -> 64169.1072 | AD86: 0.0235 | AE86: =Table1[[#This Row],[New Device NC Discounted Purchase Price]]*Table1[[#This Row],[48-Month Lease Rate Factor (excluding Software)]]*48 -> 72065.664 | AF86: 0.0198 | AG86: =Table1[[#This Row],[New Device NC Discounted Purchase Price2]]*Table1[[#This Row],[60-Month Lease Rate Factor (excluding Software)]]*60 -> 75898.944 | AH86: 0.0279 | AI86: 0.0235 | AJ86: 0.0198 | AK86: n/a | AL86: 0 | AM86: 0.2 | AO86: 0 | AP86: 0.0039 | AS86: 195 | AT86: Mono | AU86: 11 X 17 | AV86: 6000000 | AW86: 250 CPM | AX86: n/a | AY86: Yes | AZ86: 3000 | BA86: 4600 | BB86: 512 MB | BC86: http://downloads.kmbs.us/books/jodz/#p=1 | BD86: Digital Production Printer/Copier - 140 to 159 CPM (Mono)(Ledger)Press 2250P
A87: E | B87: 36 | C87: Digital Production Printer/Copier - 160+ CPM (Mono)(Ledger) | D87: Production | F87: Mono | G87: 11 X 17 | H87: Konica Minolta | I87: Press 2250P | J87: A4EX011X002 | K87: 63888 | L87: 1680 | N87: =SUM(Table1[[#This Row],[New Device NC Discounted Purchase Price]:[Estimated Consumables Purchases During 3 Year Lifecycle]]) -> 65568 | O87: =Table1[[#This Row],[36-Month Total Lease Payments4]] -> 64169.1072 | P87: =Table1[[#This Row],[Estimated 3 Year Maintenance Agreement Price5]] -> 0 | Q87: 64169.1072 | R87: 212960 | S87: 0.7 | T87: 63888 | U87: Varies | V87: N/A | W87: 90 Days | X87: KM2250PWB1YRNBD | Y87: 2100 | Z87: 0.2 | AA87: 1680 | AB87: 0.0279 | AC87: =Table1[[#This Row],[New Device NC Discounted Purchase Price2]]*Table1[[#This Row],[36-Month Lease Rate Factor (excluding Software)]]*36 -> 64169.1072 | AD87: 0.0235 | AE87: =Table1[[#This Row],[New Device NC Discounted Purchase Price]]*Table1[[#This Row],[48-Month Lease Rate Factor (excluding Software)]]*48 -> 72065.664 | AF87: 0.0198 | AG87: =Table1[[#This Row],[New Device NC Discounted Purchase Price2]]*Table1[[#This Row],[60-Month Lease Rate Factor (excluding Software)]]*60 -> 75898.944 | AH87: 0.0279 | AI87: 0.0235 | AJ87: 0.0198 | AK87: n/a | AL87: 0 | AM87: 0.2 | AO87: 0 | AP87: 0.0039 | AR87: 0 | AS87: 195 | AT87: Mono | AU87: 11 X 17 | AV87: 6000000 | AW87: 250 CPM | AX87: n/a | AY87: Yes | AZ87: 3000 | BA87: 4600 | BB87: 512 MB | BC87: http://downloads.kmbs.us/books/jodz/#p=1 | BD87: Digital Production Printer/Copier - 160+ CPM (Mono)(Ledger)Press 2250P
A88: B.1 | B88: 3 | C88: Laser / LED Printer - 19 to 30 CPM (Mono) | D88: Printer | E88: 1500 | F88: Mono | G88: 8.5 X 14 | H88: Kyocera | I88: ECOSYS P2040dw | J88: 1102RY2US0 | K88: 299.5 | L88: 804.7058824 | M88: 560.56 | N88: =SUM(Table1[[#This Row],[New Device NC Discounted Purchase Price]:[Estimated Consumables Purchases During 3 Year Lifecycle]]) -> 1664.765882 | O88: =Table1[[#This Row],[36-Month Total Lease Payments4]] -> 335.75148 | P88: =Table1[[#This Row],[Estimated 3 Year Maintenance Agreement Price5]] -> 868.87188 | Q88: 1204.62336 | R88: 654 | S88: 0.542 | T88: 299.5 | U88: 0.39 | V88: 0.12 | W88: 12 months limited warranty | X88: 36WARRP2040cdw | Y88: 2754 | Z88: 0.7078046905 | AA88: 804.7058824 | AB88: 0.03114 | AC88: =Table1[[#This Row],[New Device NC Discounted Purchase Price2]]*Table1[[#This Row],[36-Month Lease Rate Factor (excluding Software)]]*36 -> 335.75148 | AD88: 0.02567 | AE88: =Table1[[#This Row],[New Device NC Discounted Purchase Price]]*Table1[[#This Row],[48-Month Lease Rate Factor (excluding Software)]]*48 -> 369.03192 | AF88: 0.02135 | AG88: =Table1[[#This Row],[New Device NC Discounted Purchase Price2]]*Table1[[#This Row],[60-Month Lease Rate Factor (excluding Software)]]*60 -> 383.6595 | AH88: 0.03708 | AI88: 0.02902 | AJ88: 0.0256 | AK88: 36MAINTP2040cdw | AL88: 91.8 | AM88: 0.7078 | AN88: 26.82396 | AO88: 0 | AP88: 0.0146 | AR88: 868.87188 | AS88: 0 | AT88: Mono | AU88: 8.5 X 14 | AV88: 2000 | AW88: 42 | AX88: 6.4 | AY88: Yes | AZ88: 350 | BA88: 250 | BB88: 256MB | BC88: http://usa.kyoceradocumentsolutions.com/americas/jsp/Kyocera/productscategory.jsp?scid=10556 | BD88: Laser / LED Printer - 19 to 30 CPM (Mono)ECOSYS P2040dw
A89: B.1 | B89: 4 | C89: Laser / LED Printer - 11 to 20 CPM (Color) | D89: Printer | E89: 1500 | F89: Color | G89: 8.5 X 14 | H89: Kyocera | I89: P5026cdw | J89: 1102PS2US0 | K89: 441.14 | L89: 903.9327731 | M89: 2424.5848 | N89: =SUM(Table1[[#This Row],[New Device NC Discounted Purchase Price]:[Estimated Consumables Purchases During 3 Year Lifecycle]]) -> 3769.657573 | O89: =Table1[[#This Row],[36-Month Total Lease Payments4]] -> 494.5355856 | P89: =Table1[[#This Row],[Estimated 3 Year Maintenance Agreement Price5]] -> 3727.62432 | Q89: 4222.159906 | R89: 959 | S89: 0.54 | T89: 441.14 | U89: 0.39 | V89: 0.12 | W89: 12 months limited warranty | X89: 36WARRP5026cdw | Y89: 2394 | Z89: 0.622417388 | AA89: 903.9327731 | AB89: 0.03114 | AC89: =Table1[[#This Row],[New Device NC Discounted Purchase Price2]]*Table1[[#This Row],[36-Month Lease Rate Factor (excluding Software)]]*36 -> 494.5355856 | AD89: 0.02567 | AE89: =Table1[[#This Row],[New Device NC Discounted Purchase Price]]*Table1[[#This Row],[48-Month Lease Rate Factor (excluding Software)]]*48 -> 543.5550624 | AF89: 0.02135 | AG89: =Table1[[#This Row],[New Device NC Discounted Purchase Price2]]*Table1[[#This Row],[60-Month Lease Rate Factor (excluding Software)]]*60 -> 565.10034 | AH89: 0.03708 | AI89: 0.02902 | AJ89: 0.0256 | AK89: 36MAINTP5026cdw | AL89: 239.4 | AM89: 0.6224 | AN89: 90.39744 | AO89: 0 | AP89: 0.0254 | AQ89: 0.127 | AR89: 3727.62432 | AS89: 0 | AT89: Color | AU89: 8.5 X 14 | AV89: 1000 | AW89: 27 | AX89: 9.5 | AY89: Yes | AZ89: 300 | BA89: 100 | BB89: 512MB | BC89: http://usa.kyoceradocumentsolutions.com/americas/jsp/Kyocera/productscategory.jsp?scid=10557 | BD89: Laser / LED Printer - 11 to 20 CPM (Color)P5026cdw
A90: B.1 | B90: 5 | C90: Laser / LED Printer - 31 to 44 CPM (Mono) | D90: Printer | E90: 3000 | F90: Mono | G90: 8.5 X 14 | H90: Kyocera | I90: ECOSYS P3045dn | J90: 1102T92US0 | K90: 642.09 | L90: 347.2941176 | M90: 580.8 | N90: =SUM(Table1[[#This Row],[New Device NC Discounted Purchase Price]:[Estimated Consumables Purchases During 3 Year Lifecycle]]) -> 1570.184118 | O90: =Table1[[#This Row],[36-Month Total Lease Payments4]] -> 719.8085736 | P90: =Table1[[#This Row],[Estimated 3 Year Maintenance Agreement Price5]] -> 1210.2399 | Q90: 1930.048474 | R90: 1259 | S90: 0.49 | T90: 642.09 | U90: 0.39 | V90: 0.12 | W90: 12 months limited warranty | X90: 36WARRP3045dn | Y90: 756 | Z90: 0.5406162465 | AA90: 347.2941176 | AB90: 0.03114 | AC90: =Table1[[#This Row],[New Device NC Discounted Purchase Price2]]*Table1[[#This Row],[36-Month Lease Rate Factor (excluding Software)]]*36 -> 719.8085736 | AD90: 0.02567 | AE90: =Table1[[#This Row],[New Device NC Discounted Purchase Price]]*Table1[[#This Row],[48-Month Lease Rate Factor (excluding Software)]]*48 -> 791.1576144 | AF90: 0.02135 | AG90: =Table1[[#This Row],[New Device NC Discounted Purchase Price2]]*Table1[[#This Row],[60-Month Lease Rate Factor (excluding Software)]]*60 -> 822.51729 | AH90: 0.03708 | AI90: 0.02902 | AJ90: 0.0256 | AK90: 36MAINTP3045dn | AL90: 94.5 | AM90: 0.5406 | AN90: 43.4133 | AO90: 0 | AP90: 0.01 | AR90: 1210.2399 | AS90: 0 | AT90: Mono | AU90: 8.5 X 14 | AV90: 4000 | AW90: 47 | AX90: 5.9 | AY90: Yes | AZ90: 600 | BA90: 250 | BB90: 512MB | BC90: http://usa.kyoceradocumentsolutions.com/americas/jsp/Kyocera/productscategory.jsp?scid=10556 | BD90: Laser / LED Printer - 31 to 44 CPM (Mono)ECOSYS P3045dn
A91: B.1 | B91: 6 | C91: Laser / LED Printer - 21 to 34 CPM (Color) | D91: Printer | E91: 3000 | F91: Color | G91: 8.5 X 14 | H91: Kyocera | I91: P6130cdn | J91: 1102NR2US0 | K91: 721.74 | L91: 885.1764706 | M91: 3034.68 | N91: =SUM(Table1[[#This Row],[New Device NC Discounted Purchase Price]:[Estimated Consumables Purchases During 3 Year Lifecycle]]) -> 4641.596471 | O91: =Table1[[#This Row],[36-Month Total Lease Payments4]] -> 809.0994096 | P91: =Table1[[#This Row],[Estimated 3 Year Maintenance Agreement Price5]] -> 4358.0268 | Q91: 5167.12621 | R91: 1569 | S91: 0.54 | T91: 721.74 | U91: 0.39 | V91: 0.12 | W91: 12 months limited warranty | X91: 36WARRP6130cdn | Y91: 2339.28 | Z91: 0.6216030272 | AA91: 885.1764706 | AB91: 0.03114 | AC91: =Table1[[#This Row],[New Device NC Discounted Purchase Price2]]*Table1[[#This Row],[36-Month Lease Rate Factor (excluding Software)]]*36 -> 809.0994096 | AD91: 0.02567 | AE91: =Table1[[#This Row],[New Device NC Discounted Purchase Price]]*Table1[[#This Row],[48-Month Lease Rate Factor (excluding Software)]]*48 -> 889.2991584 | AF91: 0.02135 | AG91: =Table1[[#This Row],[New Device NC Discounted Purchase Price2]]*Table1[[#This Row],[60-Month Lease Rate Factor (excluding Software)]]*60 -> 924.54894 | AH91: 0.03708 | AI91: 0.02902 | AJ91: 0.0256 | AK91: 36MAINTP6130cdn | AL91: 256.5 | AM91: 0.6216 | AN91: 97.0596 | AO91: 0 | AP91: 0.0163 | AQ91: 0.0725 | AR91: 4358.0268 | AS91: 0 | AT91: Color | AU91: 8.5 X 14 | AV91: 1500 | AW91: 32 | AX91: 7 | AY91: Yes | AZ91: 600 | BA91: 250 | BB91: 512MB | BC91: http://usa.kyoceradocumentsolutions.com/americas/jsp/Kyocera/productscategory.jsp?scid=10557 | BD91: Laser / LED Printer - 21 to 34 CPM (Color)P6130cdn
A92: B.1 | B92: 7 | C92: Laser / LED Printer - 45 or more CPM (Mono) | D92: Printer | E92: 5000 | F92: Mono | G92: 8.5 X 14 | H92: Kyocera | I92: ECOSYS P3055dn | J92: 1102T72US0 | K92: 749.34 | L92: 423.5294118 | M92: 620.928 | N92: =SUM(Table1[[#This Row],[New Device NC Discounted Purchase Price]:[Estimated Consumables Purchases During 3 Year Lifecycle]]) -> 1793.797412 | O92: =Table1[[#This Row],[36-Month Total Lease Payments4]] -> 840.0401136 | P92: =Table1[[#This Row],[Estimated 3 Year Maintenance Agreement Price5]] -> 1177.41024 | Q92: 2017.450354 | R92: 1629 | S92: 0.54 | T92: 749.34 | U92: 0.39 | V92: 0.12 | W92: 12 months limited warranty | X92: 36WARRP3055dn | Y92: 1062 | Z92: 0.6011964108 | AA92: 423.5294118 | AB92: 0.03114 | AC92: =Table1[[#This Row],[New Device NC Discounted Purchase Price2]]*Table1[[#This Row],[36-Month Lease Rate Factor (excluding Software)]]*36 -> 840.0401136 | AD92: 0.02567 | AE92: =Table1[[#This Row],[New Device NC Discounted Purchase Price]]*Table1[[#This Row],[48-Month Lease Rate Factor (excluding Software)]]*48 -> 923.3067744 | AF92: 0.02135 | AG92: =Table1[[#This Row],[New Device NC Discounted Purchase Price2]]*Table1[[#This Row],[60-Month Lease Rate Factor (excluding Software)]]*60 -> 959.90454 | AH92: 0.03708 | AI92: 0.02902 | AJ92: 0.0256 | AK92: 36WARRP3055dn | AL92: 141.6 | AM92: 0.6012 | AN92: 56.47008 | AO92: 0 | AP92: 0.0056 | AR92: 1177.41024 | AS92: 0 | AT92: Mono | AU92: 8.5 X 14 | AV92: 12000 | AW92: 57 | AX92: 6.6 | AY92: Yes | AZ92: 600 | BA92: 500 | BB92: 512MB | BC92: http://usa.kyoceradocumentsolutions.com/americas/jsp/Kyocera/productscategory.jsp?scid=10557 | BD92: Laser / LED Printer - 45 or more CPM (Mono)ECOSYS P3055dn
A93: B.1 | B93: 8 | C93: Laser / LED Printer - 35 or more CPM (Color) | D93: Printer | E93: 5000 | F93: Color | G93: 8.5 X 14 | H93: Kyocera | I93: P6035cdn | J93: 1102NS2US0 | K93: 912.18 | L93: 940.2352941 | M93: 3746.9872 | N93: =SUM(Table1[[#This Row],[New Device NC Discounted Purchase Price]:[Estimated Consumables Purchases During 3 Year Lifecycle]]) -> 5599.402494 | O93: =Table1[[#This Row],[36-Month Total Lease Payments4]] -> 1022.590267 | P93: =Table1[[#This Row],[Estimated 3 Year Maintenance Agreement Price5]] -> 5754.3318 | Q93: 6776.922067 | R93: 1983 | S93: 0.54 | T93: 912.18 | U93: 0.39 | V93: 0.12 | W93: 12 months limited warranty | X93: 36WARRP6035cdn | Y93: 2570.4 | Z93: 0.6342066238 | AA93: 940.2352941 | AB93: 0.03114 | AC93: =Table1[[#This Row],[New Device NC Discounted Purchase Price2]]*Table1[[#This Row],[36-Month Lease Rate Factor (excluding Software)]]*36 -> 1022.590267 | AD93: 0.02567 | AE93: =Table1[[#This Row],[New Device NC Discounted Purchase Price]]*Table1[[#This Row],[48-Month Lease Rate Factor (excluding Software)]]*48 -> 1123.951709 | AF93: 0.02135 | AG93: =Table1[[#This Row],[New Device NC Discounted Purchase Price2]]*Table1[[#This Row],[60-Month Lease Rate Factor (excluding Software)]]*60 -> 1168.50258 | AH93: 0.03708 | AI93: 0.02902 | AJ93: 0.0256 | AK93: 36MAINTP6035cdn | AL93: 357 | AM93: 0.6342 | AN93: 130.5906 | AO93: 0 | AP93: 0.0114 | AQ93: 0.0598 | AR93: 5754.3318 | AS93: 0 | AT93: Color | AU93: 8.5 X 14 | AV93: 3000 | AW93: 37 | AX93: 6.5 | AY93: Yes | AZ93: 600 | BA93: 500 | BB93: 512MB | BC93: http://usa.kyoceradocumentsolutions.com/americas/jsp/Kyocera/productscategory.jsp?scid=10557 | BD93: Laser / LED Printer - 35 or more CPM (Color)P6035cdn
A94: B.1 | B94: 9 | C94: Laser / LED Printer - 30 or more CPM (Mono)(Ledger) | D94: Printer | E94: 4000 | F94: Mono | G94: 11 X 17 | H94: Kyocera | I94: FS-9530dn | J94: 1102G12US0 | K94: 2047 | L94: 2541.176471 | M94: 340.56 | N94: =SUM(Table1[[#This Row],[New Device NC Discounted Purchase Price]:[Estimated Consumables Purchases During 3 Year Lifecycle]]) -> 4928.736471 | O94: =Table1[[#This Row],[36-Month Total Lease Payments4]] -> 2294.76888 | P94: =Table1[[#This Row],[Estimated 3 Year Maintenance Agreement Price5]] -> 793.68336 | Q94: 3088.45224 | R94: 4450 | S94: 0.54 | T94: 2047 | U94: 0.39 | V94: 0.12 | W94: 12 months limited warranty | X94: 36WARRFS-9530dn | Y94: 7740 | Z94: 0.6716826265 | AA94: 2541.176471 | AB94: 0.03114 | AC94: =Table1[[#This Row],[New Device NC Discounted Purchase Price2]]*Table1[[#This Row],[36-Month Lease Rate Factor (excluding Software)]]*36 -> 2294.76888 | AD94: 0.02567 | AE94: =Table1[[#This Row],[New Device NC Discounted Purchase Price]]*Table1[[#This Row],[48-Month Lease Rate Factor (excluding Software)]]*48 -> 2522.23152 | AF94: 0.02135 | AG94: =Table1[[#This Row],[New Device NC Discounted Purchase Price2]]*Table1[[#This Row],[60-Month Lease Rate Factor (excluding Software)]]*60 -> 2622.207 | AH94: 0.03708 | AI94: 0.02902 | AJ94: 0.0256 | AK94: 36MAINTFS-9530dn | AL94: 206.4 | AM94: 0.6717 | AN94: 67.76112 | AO94: 0 | AP94: 0.0041 | AR94: 793.68336 | AS94: 516 | AT94: Mono | AU94: 11 X 17 | AV94: 30000 | AW94: 51 | AX94: 3.5 | AY94: Yes | AZ94: 1200 | BA94: 500 | BB94: 768MB | BC94: http://usa.kyoceradocumentsolutions.com/americas/jsp/Kyocera/productscategory.jsp?scid=10556 | BD94: Laser / LED Printer - 30 or more CPM (Mono)(Ledger)FS-9530dn
A95: B.1 | B95: 10 | C95: Laser / LED Printer - 20 or more CPM (Color)(Ledger) | D95: Printer | E95: 4000 | F95: Color | G95: 11 X 17 | H95: Kyocera | I95: ECOSYS P8060cdn | J95: 1102RR2US0 | K95: 2830.84 | L95: 952.9411765 | M95: 1835.68 | N95: =SUM(Table1[[#This Row],[New Device NC Discounted Purchase Price]:[Estimated Consumables Purchases During 3 Year Lifecycle]]) -> 5619.461176 | O95: =Table1[[#This Row],[36-Month Total Lease Payments4]] -> 3173.484874 | P95: =Table1[[#This Row],[Estimated 3 Year Maintenance Agreement Price5]] -> 3354.861176 | Q95: 6528.34605 | R95: 6188 | S95: 0.5425274725 | T95: 2830.84 | U95: 0.39 | V95: 0.12 | W95: 12 months limited warranty | X95: 36WARRP8060cdn | Y95: 2655 | Z95: 0.6410767697 | AA95: 952.9411765 | AB95: 0.03114 | AC95: =Table1[[#This Row],[New Device NC Discounted Purchase Price2]]*Table1[[#This Row],[36-Month Lease Rate Factor (excluding Software)]]*36 -> 3173.484874 | AD95: 0.02567 | AE95: =Table1[[#This Row],[New Device NC Discounted Purchase Price]]*Table1[[#This Row],[48-Month Lease Rate Factor (excluding Software)]]*48 -> 3488.047814 | AF95: 0.02135 | AG95: =Table1[[#This Row],[New Device NC Discounted Purchase Price2]]*Table1[[#This Row],[60-Month Lease Rate Factor (excluding Software)]]*60 -> 3626.30604 | AH95: 0.03708 | AI95: 0.02902 | AJ95: 0.0256 | AK95: 36MAINTP8060cdn | AL95: 283.2 | AM95: 0.6410767697 | AN95: 101.6470588 | AO95: 0 | AP95: 0.0056 | AQ95: 0.0466 | AR95: 3354.861176 | AS95: 400 | AT95: Color | AU95: 11 X 17 | AV95: 15000 | AW95: 60 | AX95: 3.8 | AY95: Yes | AZ95: 1150 | BA95: 500 | BB95: 4GB | BC95: https://usa.kyoceradocumentsolutions.com/en/products-services/hardware/printers.html | BD95: Laser / LED Printer - 20 or more CPM (Color)(Ledger)ECOSYS P8060cdn
A96: B.2 | B96: 11 | C96: Digital MFD - 19 to 30 CPM (Mono) | D96: MFD | E96: 2500 | F96: Mono | G96: 8.5 X 14 | H96: Kyocera | I96: ECOSYS M2540dw | J96: 1102S42US0 | K96: 699.21 | L96: 516.7058824 | M96: 908.16 | N96: =SUM(Table1[[#This Row],[New Device NC Discounted Purchase Price]:[Estimated Consumables Purchases During 3 Year Lifecycle]]) -> 2124.075882 | O96: =Table1[[#This Row],[36-Month Total Lease Payments4]] -> 783.8423784 | P96: =Table1[[#This Row],[Estimated 3 Year Maintenance Agreement Price5]] -> 1633.77792 | Q96: 2417.620298 | R96: 1371 | S96: 0.49 | T96: 699.21 | U96: 0.39 | V96: 0.12 | W96: 12 months limited warranty | X96: 36WARRM2540dw | Y96: 1209.6 | Z96: 0.5728291317 | AA96: 516.7058824 | AB96: 0.03114 | AC96: =Table1[[#This Row],[New Device NC Discounted Purchase Price2]]*Table1[[#This Row],[36-Month Lease Rate Factor (excluding Software)]]*36 -> 783.8423784 | AD96: 0.02567 | AE96: =Table1[[#This Row],[New Device NC Discounted Purchase Price]]*Table1[[#This Row],[48-Month Lease Rate Factor (excluding Software)]]*48 -> 861.5385936 | AF96: 0.02135 | AG96: =Table1[[#This Row],[New Device NC Discounted Purchase Price2]]*Table1[[#This Row],[60-Month Lease Rate Factor (excluding Software)]]*60 -> 895.68801 | AH96: 0.03708 | AI96: 0.02902 | AJ96: 0.0256 | AK96: 36MAINTM2540dw | AL96: 151.2 | AM96: 0.5728 | AN96: 64.59264 | AO96: 0 | AP96: 0.016 | AR96: 1633.77792 | AS96: 0 | AT96: Mono | AU96: 8.5 X 14 | AV96: 2000 | AW96: 42 | AX96: 6.4 | AY96: Yes | AZ96: 350 | BA96: 150 | BB96: 512MB | BC96: http://usa.kyoceradocumentsolutions.com/americas/jsp/Kyocera/productscategory.jsp?scid=10569 | BD96: Digital MFD - 19 to 30 CPM (Mono)ECOSYS M2540dw
A97: B.2 | B97: 12 | C97: Digital MFD - 14 to 30 CPM (Color) | D97: MFD | E97: 2500 | F97: Color | G97: 8.5 X 14 | H97: Kyocera | I97: M6530cdn | J97: 1102NW2US0 | K97: 1839.54 | L97: 677.6470588 | M97: 2333.76 | N97: =SUM(Table1[[#This Row],[New Device NC Discounted Purchase Price]:[Estimated Consumables Purchases During 3 Year Lifecycle]]) -> 4850.947059 | O97: =Table1[[#This Row],[36-Month Total Lease Payments4]] -> 2062.197922 | P97: =Table1[[#This Row],[Estimated 3 Year Maintenance Agreement Price5]] -> 3451.2426 | Q97: 5513.440522 | R97: 3999 | S97: 0.54 | T97: 1839.54 | U97: 0.39 | V97: 0.12 | W97: 12 months limited warranty | X97: 36WARRM6530cdn | Y97: 2203.2 | Z97: 0.69242599 | AA97: 677.6470588 | AB97: 0.03114 | AC97: =Table1[[#This Row],[New Device NC Discounted Purchase Price2]]*Table1[[#This Row],[36-Month Lease Rate Factor (excluding Software)]]*36 -> 2062.197922 | AD97: 0.02567 | AE97: =Table1[[#This Row],[New Device NC Discounted Purchase Price]]*Table1[[#This Row],[48-Month Lease Rate Factor (excluding Software)]]*48 -> 2266.607606 | AF97: 0.02135 | AG97: =Table1[[#This Row],[New Device NC Discounted Purchase Price2]]*Table1[[#This Row],[60-Month Lease Rate Factor (excluding Software)]]*60 -> 2356.45074 | AH97: 0.03708 | AI97: 0.02902 | AJ97: 0.0256 | AK97: 36MAINTM6530cdn | AL97: 229.5 | AM97: 0.6924 | AN97: 70.5942 | AO97: 0 | AP97: 0.0146 | AQ97: 0.0709 | AR97: 3451.2426 | AS97: 0 | AT97: Color | AU97: 8.5 X 14 | AV97: 1500 | AW97: 32 | AX97: 9.5 | AY97: Yes | AZ97: 350 | BA97: 250 | BB97: 1GB | BC97: http://usa.kyoceradocumentsolutions.com/americas/jsp/Kyocera/productscategory.jsp?scid=10571 | BD97: Digital MFD - 14 to 30 CPM (Color)M6530cdn
A98: B.2 | B98: 13 | C98: Digital MFD - 21 to 30 CPM (Mono)(Ledger) | D98: MFD | E98: 4000 | F98: Mono | G98: 11 X 17 | H98: Kyocera | I98: TASKalfa 3212i | J98: 1102V72US0 | K98: 2359.42 | L98: 830.1176471 | M98: 531.2384 | N98: =SUM(Table1[[#This Row],[New Device NC Discounted Purchase Price]:[Estimated Consumables Purchases During 3 Year Lifecycle]]) -> 3720.776047 | O98: =Table1[[#This Row],[36-Month Total Lease Payments4]] -> 2645.004197 | P98: =Table1[[#This Row],[Estimated 3 Year Maintenance Agreement Price5]] -> 1498.4712 | Q98: 4143.475397 | R98: 6389 | S98: 0.6307059008 | T98: 2359.42 | U98: 0.39 | V98: 0.12 | W98: 12 months limited warranty | X98: 36WARR3212i | Y98: 1530 | Z98: 0.4574394464 | AA98: 830.1176471 | AB98: 0.03114 | AC98: =Table1[[#This Row],[New Device NC Discounted Purchase Price2]]*Table1[[#This Row],[36-Month Lease Rate Factor (excluding Software)]]*36 -> 2645.004197 | AD98: 0.02567 | AE98: =Table1[[#This Row],[New Device NC Discounted Purchase Price]]*Table1[[#This Row],[48-Month Lease Rate Factor (excluding Software)]]*48 -> 2907.182947 | AF98: 0.02135 | AG98: =Table1[[#This Row],[New Device NC Discounted Purchase Price2]]*Table1[[#This Row],[60-Month Lease Rate Factor (excluding Software)]]*60 -> 3022.41702 | AH98: 0.03708 | AI98: 0.02902 | AJ98: 0.0256 | AK98: 36MAINT3212i | AL98: 204 | AM98: 0.4574 | AN98: 110.6904 | AO98: 0 | AP98: 0.0081 | AR98: 1498.4712 | AS98: 400 | AT98: Mono | AU98: 11 X 17 | AV98: 5000 | AW98: 32 | AX98: 3.6 | AY98: Yes | AZ98: 1100 | BA98: 250 | BB98: 2GB | BC98: https://usa.kyoceradocumentsolutions.com/en/products-services/hardware/a3.html | BD98: Digital MFD - 21 to 30 CPM (Mono)(Ledger)TASKalfa 3212i
A99: B.2 | B99: 14 | C99: Digital MFD - 21 to 30 CPM (Color)(Ledger) | D99: MFD | E99: 4000 | F99: Color | G99: 11 X 17 | H99: Kyocera | I99: TASKalfa 2553ci | J99: 1102VH2US0 | K99: 3081.8 | L99: 662.8235294 | M99: 1513.6352 | N99: =SUM(Table1[[#This Row],[New Device NC Discounted Purchase Price]:[Estimated Consumables Purchases During 3 Year Lifecycle]]) -> 5258.258729 | O99: =Table1[[#This Row],[36-Month Total Lease Payments4]] -> 3454.821072 | P99: =Table1[[#This Row],[Estimated 3 Year Maintenance Agreement Price5]] -> 4098.72672 | Q99: 7553.547792 | R99: 8921 | S99: 0.6545 | T99: 3081.8 | U99: 0.39 | V99: 0.12 | W99: 12 months limited warranty | X99: 36WARR2553ci | Y99: 1656 | Z99: 0.5997442455 | AA99: 662.8235294 | AB99: 0.03114 | AC99: =Table1[[#This Row],[New Device NC Discounted Purchase Price2]]*Table1[[#This Row],[36-Month Lease Rate Factor (excluding Software)]]*36 -> 3454.821072 | AD99: 0.02567 | AE99: =Table1[[#This Row],[New Device NC Discounted Purchase Price]]*Table1[[#This Row],[48-Month Lease Rate Factor (excluding Software)]]*48 -> 3797.270688 | AF99: 0.02135 | AG99: =Table1[[#This Row],[New Device NC Discounted Purchase Price2]]*Table1[[#This Row],[60-Month Lease Rate Factor (excluding Software)]]*60 -> 3947.7858 | AH99: 0.03708 | AI99: 0.02902 | AJ99: 0.0256 | AK99: 36MAINT2553ci | AL99: 220.8 | AM99: 0.5997 | AN99: 88.38624 | AO99: 0 | AP99: 0.0088 | AQ99: 0.0557 | AR99: =IFERROR(IF(F99="Mono",((AN99*3)+((E99*36)*AP99)),((AN99*3)+((E99*36)*AP99*0.62)+((E99*36)*AQ99*0.38))),"") -> 4098.72672 | AS99: 400 | AT99: Color | AU99: 11 X 17 | AV99: 5000 | AW99: 25 | AX99: 6.4 | AY99: Yes | AZ99: 1150 | BA99: 500 | BB99: 4GB | BC99: https://usa.kyoceradocumentsolutions.com/en/products-services/hardware/a3.html | BD99: =CONCATENATE(C99,I99) -> Digital MFD - 21 to 30 CPM (Color)(Ledger)TASKalfa 2553ci
A100: B.2 | B100: 15 | C100: Digital MFD - 31 to 40 CPM (Mono) | D100: MFD | E100: 12000 | F100: Mono | G100: 8.5 X 14 | H100: Kyocera | I100: ECOSYS M2540dw | J100: 1102TA2US0 | K100: 699.21 | L100: 516.7058824 | M100: 4465.12 | N100: =SUM(Table1[[#This Row],[New Device NC Discounted Purchase Price]:[Estimated Consumables Purchases During 3 Year Lifecycle]]) -> 5681.035882 | O100: =Table1[[#This Row],[36-Month Total Lease Payments4]] -> 783.8423784 | P100: =Table1[[#This Row],[Estimated 3 Year Maintenance Agreement Price5]] -> 7105.77792 | Q100: 7889.620298 | R100: 1371 | S100: 0.49 | T100: 699.21 | U100: 0.39 | V100: 0.12 | W100: 12 months limited warranty | X100: 36WARRM2540dw | Y100: 1209.6 | Z100: 0.5728291317 | AA100: 516.7058824 | AB100: 0.03114 | AC100: =Table1[[#This Row],[New Device NC Discounted Purchase Price2]]*Table1[[#This Row],[36-Month Lease Rate Factor (excluding Software)]]*36 -> 783.8423784 | AD100: 0.02567 | AE100: =Table1[[#This Row],[New Device NC Discounted Purchase Price]]*Table1[[#This Row],[48-Month Lease Rate Factor (excluding Software)]]*48 -> 861.5385936 | AF100: 0.02135 | AG100: =Table1[[#This Row],[New Device NC Discounted Purchase Price2]]*Table1[[#This Row],[60-Month Lease Rate Factor (excluding Software)]]*60 -> 895.68801 | AH100: 0.03708 | AI100: 0.02902 | AJ100: 0.0256 | AK100: 36MAINTM2540dw | AL100: 151.2 | AM100: 0.5728 | AN100: 64.59264 | AO100: 0 | AP100: 0.016 | AR100: 7105.77792 | AS100: 0 | AT100: Mono | AU100: 8.5 X 14 | AV100: 2000 | AW100: 42 | AX100: 6.4 | AY100: Yes | AZ100: 350 | BA100: 150 | BB100: 512MB | BC100: http://usa.kyoceradocumentsolutions.com/americas/jsp/Kyocera/productscategory.jsp?scid=10569 | BD100: Digital MFD - 31 to 40 CPM (Mono)ECOSYS M2540dw
A101: B.2 | B101: 16 | C101: Digital MFD - 31 to 40 CPM (Color) | D101: MFD | E101: 12000 | F101: Color | G101: 8.5 X 14 | H101: Kyocera | I101: M6535cidn | J101: 1102PC2US0 | K101: 2207.54 | L101: 783.5294118 | M101: 9772.2592 | N101: =SUM(Table1[[#This Row],[New Device NC Discounted Purchase Price]:[Estimated Consumables Purchases During 3 Year Lifecycle]]) -> 12763.32861 | O101: =Table1[[#This Row],[36-Month Total Lease Payments4]] -> 2474.740642 | P101: =Table1[[#This Row],[Estimated 3 Year Maintenance Agreement Price5]] -> 15743.61576 | Q101: 18218.3564 | R101: 4799 | S101: 0.54 | T101: 2207.54 | U101: 0.39 | V101: 0.12 | W101: 12 months limited warranty | X101: 36WARRM6535cidn | Y101: 2718 | Z101: 0.7117257499 | AA101: 783.5294118 | AB101: 0.03114 | AC101: =Table1[[#This Row],[New Device NC Discounted Purchase Price2]]*Table1[[#This Row],[36-Month Lease Rate Factor (excluding Software)]]*36 -> 2474.740642 | AD101: 0.02567 | AE101: =Table1[[#This Row],[New Device NC Discounted Purchase Price]]*Table1[[#This Row],[48-Month Lease Rate Factor (excluding Software)]]*48 -> 2720.042486 | AF101: 0.02135 | AG101: =Table1[[#This Row],[New Device NC Discounted Purchase Price2]]*Table1[[#This Row],[60-Month Lease Rate Factor (excluding Software)]]*60 -> 2827.85874 | AH101: 0.03708 | AI101: 0.02902 | AJ101: 0.0256 | AK101: 36MAINTM6535cidn | AL101: 362.4 | AM101: 0.7117 | AN101: 104.47992 | AO101: 0 | AP101: 0.0144 | AQ101: 0.0705 | AR101: 15743.61576 | AS101: 0 | AT101: Color | AU101: 8.5 X 14 | AV101: 1500 | AW101: 37 | AX101: 9 | AY101: Yes | AZ101: 350 | BA101: 250 | BB101: 1GB | BC101: http://usa.kyoceradocumentsolutions.com/americas/jsp/Kyocera/productscategory.jsp?scid=10571 | BD101: Digital MFD - 31 to 40 CPM (Color)M6535cidn
A102: B.2 | B102: 17 | C102: Digital MFD - 31 to 40 CPM (Mono)(Ledger) | D102: MFD | E102: 12000 | F102: Mono | G102: 11 X 17 | H102: Kyocera | I102: TASKalfa 4003i | J102: 1102W92US0 | K102: 3150.96 | L102: 963.6675192 | M102: 1267.28448 | N102: =SUM(Table1[[#This Row],[New Device NC Discounted Purchase Price]:[Estimated Consumables Purchases During 3 Year Lifecycle]]) -> 5381.911999 | O102: =Table1[[#This Row],[36-Month Total Lease Payments4]] -> 3532.352198 | P102: =Table1[[#This Row],[Estimated 3 Year Maintenance Agreement Price5]] -> 3798.252 | Q102: 7330.604198 | R102: 9123 | S102: 0.6546 | T102: 3150.96 | U102: 0.39 | V102: 0.12 | W102: 12 months limited warranty | X102: 36WARR4003i | Y102: 1494 | Z102: 0.3549748868 | AA102: 963.6675192 | AB102: 0.03114 | AC102: =Table1[[#This Row],[New Device NC Discounted Purchase Price2]]*Table1[[#This Row],[36-Month Lease Rate Factor (excluding Software)]]*36 -> 3532.352198 | AD102: 0.02567 | AE102: =Table1[[#This Row],[New Device NC Discounted Purchase Price]]*Table1[[#This Row],[48-Month Lease Rate Factor (excluding Software)]]*48 -> 3882.486874 | AF102: 0.02135 | AG102: =Table1[[#This Row],[New Device NC Discounted Purchase Price2]]*Table1[[#This Row],[60-Month Lease Rate Factor (excluding Software)]]*60 -> 4036.37976 | AH102: 0.03708 | AI102: 0.02902 | AJ102: 0.0256 | AK102: 36MAINT4003i | AL102: 199.2 | AM102: 0.355 | AN102: 128.484 | AO102: 0 | AP102: 0.0079 | AR102: 3798.252 | AS102: 400 | AT102: Mono | AU102: 11 X 17 | AV102: 7000 | AW102: 40 | AX102: 4.5 | AY102: Yes | AZ102: 1150 | BA102: 500 | BB102: 4GB | BC102: https://usa.kyoceradocumentsolutions.com/en/products-services/hardware/a3.html | BD102: Digital MFD - 31 to 40 CPM (Mono)(Ledger)TASKalfa 4003i
A103: B.2 | B103: 18 | C103: Digital MFD - 31 to 40 CPM (Color)(Ledger) | D103: MFD | E103: 12000 | F103: Color | G103: 11 X 17 | H103: Kyocera | I103: TASKalfa 3553ci | J103: 1102W82US0 | K103: 4409.96 | L103: 1175.548235 | M103: 3685.98384 | N103: =SUM(Table1[[#This Row],[New Device NC Discounted Purchase Price]:[Estimated Consumables Purchases During 3 Year Lifecycle]]) -> 9271.492075 | O103: =Table1[[#This Row],[36-Month Total Lease Payments4]] -> 4943.741558 | P103: =Table1[[#This Row],[Estimated 3 Year Maintenance Agreement Price5]] -> 11028.5136 | Q103: 15972.25516 | R103: 11832 | S103: 0.6273 | T103: 4409.96 | U103: 0.39 | V103: 0.12 | W103: 12 months limited warranty | X103: 36WARR3553ci | Y103: 2457 | Z103: 0.5215513898 | AA103: 1175.548235 | AB103: 0.03114 | AC103: =Table1[[#This Row],[New Device NC Discounted Purchase Price2]]*Table1[[#This Row],[36-Month Lease Rate Factor (excluding Software)]]*36 -> 4943.741558 | AD103: 0.02567 | AE103: =Table1[[#This Row],[New Device NC Discounted Purchase Price]]*Table1[[#This Row],[48-Month Lease Rate Factor (excluding Software)]]*48 -> 5433.776314 | AF103: 0.02135 | AG103: =Table1[[#This Row],[New Device NC Discounted Purchase Price2]]*Table1[[#This Row],[60-Month Lease Rate Factor (excluding Software)]]*60 -> 5649.15876 | AH103: 0.03708 | AI103: 0.02902 | AJ103: 0.0256 | AK103: 36MAINTTA3553ci | AL103: 273 | AM103: 0.5216 | AN103: 130.6032 | AO103: 0 | AP103: 0.0087 | AQ103: 0.0506 | AR103: 11028.5136 | AS103: 400 | AT103: Color | AU103: 11 X 17 | AV103: 7000 | AW103: 35 | AX103: 4.5 | AY103: Yes | AZ103: 1150 | BA103: 500 | BB103: 4GB | BC103: https://usa.kyoceradocumentsolutions.com/en/products-services/hardware/a3.html | BD103: Digital MFD - 31 to 40 CPM (Color)(Ledger)TASKalfa 3553ci
A104: C | B104: 19 | C104: Digital MFD - 41 to 54 CPM (Mono) | D104: MFD | E104: 16000 | F104: Mono | G104: 8.5 X 14 | H104: Kyocera | I104: ECOSYS 3655idn | J104: 1102TB2US0 | K104: 1728.39 | L104: 787.7647059 | M104: 2095.632 | N104: =SUM(Table1[[#This Row],[New Device NC Discounted Purchase Price]:[Estimated Consumables Purchases During 3 Year Lifecycle]]) -> 4611.786706 | O104: =Table1[[#This Row],[36-Month Total Lease Payments4]] -> 1937.594326 | P104: =Table1[[#This Row],[Estimated 3 Year Maintenance Agreement Price5]] -> 4236.9696 | Q104: =SUM(O104:P104) -> 6174.563926 | R104: 3473 | S104: 0.5023351569 | T104: 1728.39 | U104: 0.39 | V104: 0.12 | W104: 12 months limited warranty | X104: 36WARR3655idn | Y104: 1555.2 | Z104: 0.4934640523 | AA104: 787.7647059 | AB104: 0.03114 | AC104: =Table1[[#This Row],[New Device NC Discounted Purchase Price2]]*Table1[[#This Row],[36-Month Lease Rate Factor (excluding Software)]]*36 -> 1937.594326 | AD104: 0.02567 | AE104: =Table1[[#This Row],[New Device NC Discounted Purchase Price]]*Table1[[#This Row],[48-Month Lease Rate Factor (excluding Software)]]*48 -> 2129.653022 | AF104: 0.02135 | AG104: =Table1[[#This Row],[New Device NC Discounted Purchase Price2]]*Table1[[#This Row],[60-Month Lease Rate Factor (excluding Software)]]*60 -> 2214.06759 | AH104: 0.03708 | AI104: 0.02902 | AJ104: 0.0256 | AK104: 36MAINT3655idn | AL104: 172.8 | AM104: 0.4935 | AN104: 87.5232 | AO104: 0 | AP104: 0.0069 | AR104: 4236.9696 | AS104: 0 | AT104: Mono | AU104: 8.5 X 14 | AV104: 6000 | AW104: 57 | AX104: 6 | AY104: Yes | AZ104: 600 | BA104: 500 | BB104: 1GB | BC104: https://usa.kyoceradocumentsolutions.com/en/products-services/hardware/a4.html | BD104: Digital MFD - 41 to 54 CPM (Mono)ECOSYS 3655idn
A105: C | B105: 20 | C105: Digital MFD - 41 to 54 CPM (Color) | D105: MFD | E105: 16000 | F105: Color | G105: 8.5 X 14 | H105: Kyocera | I105: TA 406ci | J105: 1102R62US0 | K105: 3077.05 | L105: 640.7047059 | M105: 5661.31104 | N105: =SUM(Table1[[#This Row],[New Device NC Discounted Purchase Price]:[Estimated Consumables Purchases During 3 Year Lifecycle]]) -> 9379.065746 | O105: =Table1[[#This Row],[36-Month Total Lease Payments4]] -> 3449.496132 | P105: =Table1[[#This Row],[Estimated 3 Year Maintenance Agreement Price5]] -> 12495.96306 | Q105: 15945.45919 | R105: 7505 | S105: 0.59 | T105: 3077.05 | U105: 0.39 | V105: 0.12 | W105: 12 months limited warranty | X105: 36WARR406ci | Y105: 1386 | Z105: 0.5377310924 | AA105: 640.7047059 | AB105: 0.03114 | AC105: =Table1[[#This Row],[New Device NC Discounted Purchase Price2]]*Table1[[#This Row],[36-Month Lease Rate Factor (excluding Software)]]*36 -> 3449.496132 | AD105: 0.02567 | AE105: =Table1[[#This Row],[New Device NC Discounted Purchase Price]]*Table1[[#This Row],[48-Month Lease Rate Factor (excluding Software)]]*48 -> 3791.417928 | AF105: 0.02135 | AG105: =Table1[[#This Row],[New Device NC Discounted Purchase Price2]]*Table1[[#This Row],[60-Month Lease Rate Factor (excluding Software)]]*60 -> 3941.70105 | AH105: 0.03708 | AI105: 0.02902 | AJ105: 0.0256 | AK105: 36MAINT406ci | AL105: 155.4 | AM105: 0.6437 | AN105: 55.36902 | AO105: 0 | AP105: 0.0067 | AQ105: 0.0454 | AR105: 12495.96306 | AS105: 0 | AT105: Color | AU105: 8.5 X 14 | AV105: 5500 | AW105: 42 | AX105: 5.8 | AY105: Yes | AZ105: 600 | BA105: 500 | BB105: 2GB | BC105: http://usa.kyoceradocumentsolutions.com/americas/jsp/Kyocera/productscategory.jsp?scid=10571 | BD105: Digital MFD - 41 to 54 CPM (Color)TA 406ci
A106: C | B106: 21 | C106: Digital MFD - 41 to 54 CPM (Mono)(Ledger) | D106: MFD | E106: 16000 | F106: Mono | G106: 11 X 17 | H106: Kyocera | I106: TASKalfa 5003i | J106: 1102VL2US0 | K106: 3627.1 | L106: 1286.677749 | M106: 1689.71264 | N106: =SUM(Table1[[#This Row],[New Device NC Discounted Purchase Price]:[Estimated Consumables Purchases During 3 Year Lifecycle]]) -> 6603.490389 | O106: =Table1[[#This Row],[36-Month Total Lease Payments4]] -> 4066.12 | P106: =Table1[[#This Row],[Estimated 3 Year Maintenance Agreement Price5]] -> 4691.2977 | Q106: 8757.4177 | R106: 10500 | S106: 0.62 | T106: 65.46 | U106: 0.39 | V106: 0.12 | W106: 12 months limited warranty | X106: 36WARR5003i | Y106: 2079 | Z106: 0.3811073837 | AA106: 1286.677749 | AB106: 0.03114 | AC106: 4066.12 | AD106: 0.02567 | AE106: =Table1[[#This Row],[New Device NC Discounted Purchase Price]]*Table1[[#This Row],[48-Month Lease Rate Factor (excluding Software)]]*48 -> 4469.167536 | AF106: 0.02135 | AG106: 4646.32 | AH106: 0.03708 | AI106: 0.02902 | AJ106: 0.0256 | AK106: 36MAINTTA5003i | AL106: 231 | AM106: 0.3811 | AN106: 142.9659 | AO106: 0 | AP106: 0.0074 | AR106: 4691.2977 | AS106: 400 | AT106: Mono | AU106: 11 X 17 | AV106: 10000 | AW106: 50 | AX106: 3.7 | AY106: Yes | AZ106: 1150 | BA106: 500 | BB106: 4GB | BC106: https://usa.kyoceradocumentsolutions.com/en/products-services/hardware/a3.html | BD106: Digital MFD - 41 to 54 CPM (Mono)(Ledger)TASKalfa 5003i
A107: C | B107: 22 | C107: Digital MFD - 41 to 54 CPM (Color)(Ledger) | D107: MFD | E107: 16000 | F107: Color | G107: 11 X 17 | H107: Kyocera | I107: TASKalfa 5053ci | J107: 1102VD2US0 | K107: 6032.88 | L107: 2075.576471 | M107: 4138.68224 | N107: =SUM(Table1[[#This Row],[New Device NC Discounted Purchase Price]:[Estimated Consumables Purchases During 3 Year Lifecycle]]) -> 12247.13871 | O107: =Table1[[#This Row],[36-Month Total Lease Payments4]] -> 6763.099795 | P107: =Table1[[#This Row],[Estimated 3 Year Maintenance Agreement Price5]] -> 14908.75776 | Q107: 21671.85756 | R107: 17464 | S107: 0.6546 | T107: 6032.88 | U107: 0.39 | V107: 0.12 | W107: 12 months limited warranty | X107: 36WARR5053ci | Y107: 3276 | Z107: 0.3664296488 | AA107: 2075.576471 | AB107: 0.03114 | AC107: =Table1[[#This Row],[New Device NC Discounted Purchase Price2]]*Table1[[#This Row],[36-Month Lease Rate Factor (excluding Software)]]*36 -> 6763.099795 | AD107: 0.02567 | AE107: =Table1[[#This Row],[New Device NC Discounted Purchase Price]]*Table1[[#This Row],[48-Month Lease Rate Factor (excluding Software)]]*48 -> 7433.473421 | AF107: 0.02135 | AG107: =Table1[[#This Row],[New Device NC Discounted Purchase Price2]]*Table1[[#This Row],[60-Month Lease Rate Factor (excluding Software)]]*60 -> 7728.11928 | AH107: 0.03708 | AI107: 0.02902 | AJ107: 0.0256 | AK107: 36MAINT5053ci | AL107: 382.2 | AM107: 0.3664 | AN107: 242.16192 | AO107: 0 | AP107: 0.0087 | AQ107: 0.0506 | AR107: 14908.75776 | AS107: 400 | AT107: Color | AU107: 11 X 17 | AV107: 10000 | AW107: 50 | AX107: 3.7 | AY107: Yes | AZ107: 1150 | BA107: 500 | BB107: 4GB | BC107: https://usa.kyoceradocumentsolutions.com/en/products-services/hardware/a3.html | BD107: Digital MFD - 41 to 54 CPM (Color)(Ledger)TASKalfa 5053ci
A108: C | B108: 23 | C108: Digital MFD - 55 to 69 CPM (Mono) | D108: MFD | E108: 25000 | F108: Mono | G108: 8.5 X 14 | H108: Kyocera | I108: ECOSYS M3660idn | J108: 1102TA2US0 | K108: 2508.69 | L108: 630.2117647 | M108: 2930.312 | N108: =SUM(Table1[[#This Row],[New Device NC Discounted Purchase Price]:[Estimated Consumables Purchases During 3 Year Lifecycle]]) -> 6069.213765 | O108: =Table1[[#This Row],[36-Month Total Lease Payments4]] -> 2812.341838 | P108: =Table1[[#This Row],[Estimated 3 Year Maintenance Agreement Price5]] -> 4966.9605 | Q108: 7779.302338 | R108: 4998 | S108: 0.4980612245 | T108: 2508.69 | U108: 0.39 | V108: 0.12 | W108: 12 months limited warranty | X108: 36WARR3660idn | Y108: 1584 | Z108: 0.6021390374 | AA108: 630.2117647 | AB108: 0.03114 | AC108: =Table1[[#This Row],[New Device NC Discounted Purchase Price2]]*Table1[[#This Row],[36-Month Lease Rate Factor (excluding Software)]]*36 -> 2812.341838 | AD108: 0.02567 | AE108: =Table1[[#This Row],[New Device NC Discounted Purchase Price]]*Table1[[#This Row],[48-Month Lease Rate Factor (excluding Software)]]*48 -> 3091.10747 | AF108: 0.02135 | AG108: =Table1[[#This Row],[New Device NC Discounted Purchase Price2]]*Table1[[#This Row],[60-Month Lease Rate Factor (excluding Software)]]*60 -> 3213.63189 | AH108: 0.03708 | AI108: 0.02902 | AJ108: 0.0256 | AK108: 36MAINT3660idn | AL108: 165 | AM108: 0.6021 | AN108: 65.6535 | AO108: 0 | AP108: 0.0053 | AR108: 4966.9605 | AT108: Mono | AU108: 8.5 X 14 | AV108: 8000 | AW108: 62 | AX108: 6 | AY108: Yes | AZ108: 600 | BA108: 500 | BB108: 1GB | BC108: https://usa.kyoceradocumentsolutions.com/en/products-services/hardware/a4.html | BD108: Digital MFD - 55 to 69 CPM (Mono)ECOSYS M3660idn
A109: D | B109: 24 | C109: Digital MFD - 55 to 69 CPM (Mono)(Ledger) | D109: MFD | E109: 25000 | F109: Mono | G109: 11 X 17 | H109: Kyocera | I109: TASKalfa 6003i | J109: 1102VK2US0 | K109: 4266.64 | L109: 1562.11 | M109: 2640.18 | N109: =SUM(Table1[[#This Row],[New Device NC Discounted Purchase Price]:[Estimated Consumables Purchases During 3 Year Lifecycle]]) -> 8468.93 | O109: 4783.07 | P109: 5269.88 | Q109: 10052.95 | R109: 12353 | S109: 0.6546 | T109: 4266.64 | U109: 0.39 | V109: 0.12 | W109: 12 months limited warranty | X109: 36WARR6003i | Y109: 2880 | Z109: 0.4576 | AA109: 1562.11 | AB109: 0.03114 | AC109: =Table1[[#This Row],[New Device NC Discounted Purchase Price2]]*Table1[[#This Row],[36-Month Lease Rate Factor (excluding Software)]]*36 -> 4783.074106 | AD109: 0.02567 | AE109: =Table1[[#This Row],[New Device NC Discounted Purchase Price]]*Table1[[#This Row],[48-Month Lease Rate Factor (excluding Software)]]*48 -> 5257.183142 | AF109: 0.02135 | AG109: =Table1[[#This Row],[New Device NC Discounted Purchase Price2]]*Table1[[#This Row],[60-Month Lease Rate Factor (excluding Software)]]*60 -> 5465.56584 | AH109: 0.03708 | AI109: 0.02902 | AJ109: 0.0256 | AK109: 36MAINT6003i | AL109: 307.2 | AM109: 0.4576 | AN109: 166.63 | AO109: 0 | AP109: 0.0053 | AR109: 5269.89 | AS109: 400 | AT109: Mono | AU109: 11 X 17 | AV109: 12500 | AW109: 60 | AX109: 3.4 | AY109: Yes | AZ109: 1150 | BA109: 500 | BB109: 4GB | BC109: https://usa.kyoceradocumentsolutions.com/en/products-services/hardware/a3.html | BD109: Digital MFD - 55 to 69 CPM (Mono)(Ledger)TASKalfa 6003i
A110: D | B110: 25 | C110: Digital MFD - 55 to 69 CPM (Color)(Ledger) | D110: MFD | E110: 25000 | F110: Color | G110: 11 X 17 | H110: Kyocera | I110: TASKalfa 7052ci | J110: 1102RP2US0 | K110: 12522.52 | L110: 2088 | M110: 5789.56224 | N110: =SUM(Table1[[#This Row],[New Device NC Discounted Purchase Price]:[Estimated Consumables Purchases During 3 Year Lifecycle]]) -> 20400.08224 | O110: =Table1[[#This Row],[36-Month Total Lease Payments4]] -> 14038.24582 | P110: =Table1[[#This Row],[Estimated 3 Year Maintenance Agreement Price5]] -> 19413.4671 | Q110: 33451.71292 | R110: 32954 | S110: 0.62 | T110: 12522.52 | U110: 0.39 | V110: 0.12 | W110: 12 months limited warranty | X110: 36WARR7052ci | Y110: 3855.6 | Z110: 0.4584500467 | AA110: 2088 | AB110: 0.03114 | AC110: =Table1[[#This Row],[New Device NC Discounted Purchase Price2]]*Table1[[#This Row],[36-Month Lease Rate Factor (excluding Software)]]*36 -> 14038.24582 | AD110: 0.02567 | AE110: =Table1[[#This Row],[New Device NC Discounted Purchase Price]]*Table1[[#This Row],[48-Month Lease Rate Factor (excluding Software)]]*48 -> 15429.74824 | AF110: 0.02135 | AG110: =Table1[[#This Row],[New Device NC Discounted Purchase Price2]]*Table1[[#This Row],[60-Month Lease Rate Factor (excluding Software)]]*60 -> 16041.34812 | AH110: 0.03708 | AI110: 0.02902 | AJ110: 0.0256 | AK110: 36MAINTTA7052ci | AL110: 415.8 | AM110: 0.4585 | AN110: 225.1557 | AO110: 0 | AP110: 0.006 | AQ110: 0.045 | AR110: 19413.4671 | AS110: 400 | AT110: Color | AU110: 11 X 17 | AV110: 30000 | AW110: 70 | AX110: 5.4 | AY110: Yes | AZ110: 4150 | BA110: 270 | BB110: 4.5GB | BC110: http://usa.kyoceradocumentsolutions.com/americas/jsp/Kyocera/productscategory.jsp?scid=10571 | BD110: Digital MFD - 55 to 69 CPM (Color)(Ledger)TASKalfa 7052ci
A111: D | B111: 26 | C111: Digital MFD - 70 to 90 CPM (Mono) | D111: MFD | E111: 50000 | F111: Mono | G111: 8.5 X 14 | H111: Kyocera | I111: TASKalfa 8002i | J111: 1102NJ2US0 | K111: 11054.2 | L111: 4159.694118 | M111: 3220.756 | N111: =SUM(Table1[[#This Row],[New Device NC Discounted Purchase Price]:[Estimated Consumables Purchases During 3 Year Lifecycle]]) -> 18434.65012 | O111: =Table1[[#This Row],[36-Month Total Lease Payments4]] -> 12392.20037 | P111: =Table1[[#This Row],[Estimated 3 Year Maintenance Agreement Price5]] -> 10186.70922 | Q111: 22578.90959 | R111: 29090 | S111: 0.62 | T111: 11054.2 | U111: 0.39 | V111: 0.12 | W111: 12 months limited warranty | X111: 36WARR8002i | Y111: 6426 | Z111: 0.3526775416 | AA111: 4159.694118 | AB111: 0.03114 | AC111: =Table1[[#This Row],[New Device NC Discounted Purchase Price2]]*Table1[[#This Row],[36-Month Lease Rate Factor (excluding Software)]]*36 -> 12392.20037 | AD111: 0.02567 | AE111: =Table1[[#This Row],[New Device NC Discounted Purchase Price]]*Table1[[#This Row],[48-Month Lease Rate Factor (excluding Software)]]*48 -> 13620.54307 | AF111: 0.02135 | AG111: =Table1[[#This Row],[New Device NC Discounted Purchase Price2]]*Table1[[#This Row],[60-Month Lease Rate Factor (excluding Software)]]*60 -> 14160.4302 | AH111: 0.03708 | AI111: 0.02902 | AJ111: 0.0256 | AK111: 36MAINTTA8002i | AL111: 703.8 | AM111: 0.3527 | AN111: 455.56974 | AO111: 0 | AP111: 0.0049 | AR111: 10186.70922 | AS111: 400 | AT111: Mono | AU111: 11 X 17 | AV111: 40000 | AW111: 80 | AX111: 4.7 | AY111: Yes | AZ111: 4150 | BA111: 270 | BB111: 4.5GB | BC111: http://usa.kyoceradocumentsolutions.com/americas/jsp/Kyocera/productscategory.jsp?scid=10569 | BD111: Digital MFD - 70 to 90 CPM (Mono)TASKalfa 8002i
A112: D | B112: 27 | C112: Digital MFD - 70 to 90 CPM (Mono)(Ledger) | D112: MFD | E112: 50000 | F112: Mono | G112: 11 X 17 | H112: Kyocera | I112: TASKalfa 8002i | J112: 1102NJ2US0 | K112: 11054.2 | L112: 4159.694118 | M112: 3220.756 | N112: =SUM(Table1[[#This Row],[New Device NC Discounted Purchase Price]:[Estimated Consumables Purchases During 3 Year Lifecycle]]) -> 18434.65012 | O112: =Table1[[#This Row],[36-Month Total Lease Payments4]] -> 12392.20037 | P112: =Table1[[#This Row],[Estimated 3 Year Maintenance Agreement Price5]] -> 10186.70922 | Q112: 22578.90959 | R112: 29090 | S112: 0.62 | T112: 11054.2 | U112: 0.39 | V112: 0.12 | W112: 12 months limited warranty | X112: 36WARR8002i | Y112: 6426 | Z112: 0.3526775416 | AA112: 4159.694118 | AB112: 0.03114 | AC112: =Table1[[#This Row],[New Device NC Discounted Purchase Price2]]*Table1[[#This Row],[36-Month Lease Rate Factor (excluding Software)]]*36 -> 12392.20037 | AD112: 0.02567 | AE112: =Table1[[#This Row],[New Device NC Discounted Purchase Price]]*Table1[[#This Row],[48-Month Lease Rate Factor (excluding Software)]]*48 -> 13620.54307 | AF112: 0.02135 | AG112: =Table1[[#This Row],[New Device NC Discounted Purchase Price2]]*Table1[[#This Row],[60-Month Lease Rate Factor (excluding Software)]]*60 -> 14160.4302 | AH112: 0.03708 | AI112: 0.02902 | AJ112: 0.0256 | AK112: 36MAINTTA8002i | AL112: 703.8 | AM112: 0.3527 | AN112: 455.56974 | AO112: 0 | AP112: 0.0049 | AR112: 10186.70922 | AS112: 400 | AT112: Mono | AU112: 11 X 17 | AV112: 40000 | AW112: 80 | AX112: 4.7 | AY112: Yes | AZ112: 4150 | BA112: 270 | BB112: 4.5GB | BC112: http://usa.kyoceradocumentsolutions.com/americas/jsp/Kyocera/productscategory.jsp?scid=10569 | BD112: Digital MFD - 70 to 90 CPM (Mono)(Ledger)TASKalfa 8002i
A113: D | B113: 28 | C113: Digital MFD - 70 to 90 CPM (Color)(Ledger) | D113: MFD | E113: 50000 | F113: Color | G113: 11 X 17 | H113: Kyocera | I113: TASKalfa 8052ci | J113: 1102NH2US0 | K113: 15027.1 | L113: 4471.526723 | M113: 11681.72544 | N113: =SUM(Table1[[#This Row],[New Device NC Discounted Purchase Price]:[Estimated Consumables Purchases During 3 Year Lifecycle]]) -> 31180.35216 | O113: =Table1[[#This Row],[36-Month Total Lease Payments4]] -> 16845.98018 | P113: =Table1[[#This Row],[Estimated 3 Year Maintenance Agreement Price5]] -> 38631.6648 | Q113: 55477.64498 | R113: 39545 | S113: 0.62 | T113: 15027.1 | U113: 0.39 | V113: 0.12 | W113: 12 months limited warranty | X113: 36WARR8052ci | Y113: 5832 | Z113: 0.2332773109 | AA113: 4471.526723 | AB113: 0.03114 | AC113: =Table1[[#This Row],[New Device NC Discounted Purchase Price2]]*Table1[[#This Row],[36-Month Lease Rate Factor (excluding Software)]]*36 -> 16845.98018 | AD113: 0.02567 | AE113: =Table1[[#This Row],[New Device NC Discounted Purchase Price]]*Table1[[#This Row],[48-Month Lease Rate Factor (excluding Software)]]*48 -> 18515.79154 | AF113: 0.02135 | AG113: =Table1[[#This Row],[New Device NC Discounted Purchase Price2]]*Table1[[#This Row],[60-Month Lease Rate Factor (excluding Software)]]*60 -> 19249.7151 | AH113: 0.03708 | AI113: 0.02902 | AJ113: 0.0256 | AK113: 36MAINTTA8052ci | AL113: 648 | AM113: 0.2333 | AN113: 496.8216 | AO113: 0 | AP113: 0.0057 | AQ113: 0.045 | AR113: 38631.6648 | AS113: 400 | AT113: Color | AU113: 11 X 17 | AV113: 40000 | AW113: 80 | AX113: 4.8 | AY113: Yes | AZ113: 4150 | BA113: 270 | BB113: 4.5GB | BC113: http://usa.kyoceradocumentsolutions.com/americas/jsp/Kyocera/productscategory.jsp?scid=10571 | BD113: Digital MFD - 70 to 90 CPM (Color)(Ledger)TASKalfa 8052ci
A114: B.1 | B114: 3 | C114: Laser / LED Printer - 19 to 30 CPM (Mono) | D114: Printer | E114: 1500 | F114: Mono | G114: 8.5 X 14 | H114: Lexmark | I114: MS331DN | J114: 29S0000 | K114: 137.43 | L114: 36 | M114: 825.78 | N114: =SUM(Table1[[#This Row],[New Device NC Discounted Purchase Price]:[Estimated Consumables Purchases During 3 Year Lifecycle]]) -> 999.21 | O114: =Table1[[#This Row],[36-Month Total Lease Payments4]] -> 137.539944 | P114: =Table1[[#This Row],[Estimated 3 Year Maintenance Agreement Price5]] -> 1613.52 | Q114: 1751.059944 | R114: 252.86 | S114: 0.4565 | T114: 137.43 | U114: 0.25 | V114: 0 | W114: 1 Year Advanced Exchange | X114: 2371680 | Y114: 45 | Z114: 0.2 | AA114: 36 | AB114: 0.0278 | AC114: =Table1[[#This Row],[New Device NC Discounted Purchase Price2]]*Table1[[#This Row],[36-Month Lease Rate Factor (excluding Software)]]*36 -> 137.539944 | AD114: 0.0209 | AE114: =Table1[[#This Row],[New Device NC Discounted Purchase Price]]*Table1[[#This Row],[48-Month Lease Rate Factor (excluding Software)]]*48 -> 137.869776 | AF114: 0.0168 | AG114: =Table1[[#This Row],[New Device NC Discounted Purchase Price2]]*Table1[[#This Row],[60-Month Lease Rate Factor (excluding Software)]]*60 -> 138.52944 | AH114: 0.0278 | AI114: 0.0209 | AJ114: 0.0168 | AK114: MS331dnsvc | AL114: 1075.68 | AM114: 0.5 | AN114: 537.84 | AO114: unlimited | AP114: 0 | AR114: 1613.52 | AT114: Mono | AU114: 8.5 X 14 | AV114: 6000 | AW114: 40 | AX114: 6 | AY114: Yes | AZ114: 250 | BA114: 150 | BB114: 256MB | BC114: https://www.lexmark.com/en_US/epg/29S0000.html | BD114: Laser / LED Printer - 19 to 30 CPM (Mono)MS331DN
A115: B.1 | B115: 4 | C115: Laser / LED Printer - 11 to 20 CPM (Color) | D115: Printer | E115: 1500 | F115: Color | G115: 8.5 X 14 | H115: Lexmark | I115: CS331DW | J115: 40N9020 | K115: 307.53 | L115: 71.2 | M115: 1924.14 | N115: =SUM(Table1[[#This Row],[New Device NC Discounted Purchase Price]:[Estimated Consumables Purchases During 3 Year Lifecycle]]) -> 2302.87 | O115: =Table1[[#This Row],[36-Month Total Lease Payments4]] -> 307.776024 | P115: =Table1[[#This Row],[Estimated 3 Year Maintenance Agreement Price5]] -> 4142.85 | Q115: 4450.626024 | R115: 507.14 | S115: 0.3936 | T115: 307.53 | U115: 0.25 | V115: 0 | W115: 1 Yr Onsite Repair Next Day | X115: 2370817 | Y115: 89 | Z115: 0.2 | AA115: 71.2 | AB115: 0.0278 | AC115: =Table1[[#This Row],[New Device NC Discounted Purchase Price2]]*Table1[[#This Row],[36-Month Lease Rate Factor (excluding Software)]]*36 -> 307.776024 | AD115: 0.0209 | AE115: =Table1[[#This Row],[New Device NC Discounted Purchase Price]]*Table1[[#This Row],[48-Month Lease Rate Factor (excluding Software)]]*48 -> 308.514096 | AF115: 0.0168 | AG115: =Table1[[#This Row],[New Device NC Discounted Purchase Price2]]*Table1[[#This Row],[60-Month Lease Rate Factor (excluding Software)]]*60 -> 309.99024 | AH115: 0.0278 | AI115: 0.0209 | AJ115: 0.0168 | AK115: CS331dwsvc | AL115: 2761.9 | AM115: 0.5 | AN115: 1380.95 | AO115: 0 | AP115: 0 | AQ115: 0 | AR115: 4142.85 | AT115: Color | AU115: 8.5 X 14 | AV115: 2500 | AW115: 26 | AX115: 10 | AY115: Yes | AZ115: 250 | BA115: 100 | BB115: 512 mb | BC115: https://www.lexmark.com/en_US/epg/40N9020.html | BD115: Laser / LED Printer - 11 to 20 CPM (Color)CS331DW
A116: B.1 | B116: 5 | C116: Laser / LED Printer - 31 to 44 CPM (Mono) | D116: Printer | E116: 3000 | F116: Mono | G116: 8.5 X 14 | H116: Lexmark | I116: MS431DN | J116: 29S0050 | K116: 197.49 | L116: 60 | M116: 1469.85 | N116: =SUM(Table1[[#This Row],[New Device NC Discounted Purchase Price]:[Estimated Consumables Purchases During 3 Year Lifecycle]]) -> 1727.34 | O116: 197.65 | P116: =Table1[[#This Row],[Estimated 3 Year Maintenance Agreement Price5]] -> 2109.405 | Q116: 2307.055 | R116: 380 | S116: 0.4803 | T116: 197.49 | U116: 0.25 | V116: 0 | W116: 1 Year Advanced Exchange | X116: 2371828 | Y116: 75 | Z116: 0.2 | AA116: 60 | AB116: 0.0278 | AC116: =Table1[[#This Row],[New Device NC Discounted Purchase Price2]]*Table1[[#This Row],[36-Month Lease Rate Factor (excluding Software)]]*36 -> 197.647992 | AD116: 0.0209 | AE116: =Table1[[#This Row],[New Device NC Discounted Purchase Price]]*Table1[[#This Row],[48-Month Lease Rate Factor (excluding Software)]]*48 -> 198.121968 | AF116: 0.0168 | AG116: =Table1[[#This Row],[New Device NC Discounted Purchase Price2]]*Table1[[#This Row],[60-Month Lease Rate Factor (excluding Software)]]*60 -> 199.06992 | AH116: 0.0278 | AI116: 0.0209 | AJ116: 0.0168 | AK116: MS431dnsvc | AL116: 1406.27 | AM116: 0.5 | AN116: 703.135 | AO116: unlimited | AP116: 0 | AR116: 2109.405 | AT116: Mono | AU116: 8.5 X 14 | AV116: 10000 | AW116: 42 | AX116: 6 | AY116: Yes | AZ116: 900 | BA116: 150 | BB116: 256MB | BC116: https://www.lexmark.com/en_US/epg/29S0050.html | BD116: Laser / LED Printer - 31 to 44 CPM (Mono)MS431DN
A117: B.1 | B117: 6 | C117: Laser / LED Printer - 21 to 34 CPM (Color) | D117: Printer | E117: 3000 | F117: Color | G117: 8.5 X 14 | H117: Lexmark | I117: CS431DW | J117: 40N9320 | K117: 345.77 | L117: 95.2 | M117: 4802.46 | N117: =SUM(Table1[[#This Row],[New Device NC Discounted Purchase Price]:[Estimated Consumables Purchases During 3 Year Lifecycle]]) -> 5243.43 | O117: =Table1[[#This Row],[36-Month Total Lease Payments4]] -> 346.046616 | P117: =Table1[[#This Row],[Estimated 3 Year Maintenance Agreement Price5]] -> 8034.81 | Q117: 8380.856616 | R117: 571.43 | S117: 0.3949 | T117: 345.77 | U117: 0.25 | V117: 0 | W117: 1 Yr Onsite Repair Next Day | X117: 2371441 | Y117: 119 | Z117: 0.2 | AA117: 95.2 | AB117: 0.0278 | AC117: =Table1[[#This Row],[New Device NC Discounted Purchase Price2]]*Table1[[#This Row],[36-Month Lease Rate Factor (excluding Software)]]*36 -> 346.046616 | AD117: 0.0209 | AE117: =Table1[[#This Row],[New Device NC Discounted Purchase Price]]*Table1[[#This Row],[48-Month Lease Rate Factor (excluding Software)]]*48 -> 346.876464 | AF117: 0.0168 | AG117: =Table1[[#This Row],[New Device NC Discounted Purchase Price2]]*Table1[[#This Row],[60-Month Lease Rate Factor (excluding Software)]]*60 -> 348.53616 | AH117: 0.0278 | AI117: 0.0209 | AJ117: 0.0168 | AK117: CS431dwsvc | AL117: 5356.54 | AM117: 0.5 | AN117: 2678.27 | AO117: 0 | AP117: 0 | AQ117: 0 | AR117: 8034.81 | AT117: Color | AU117: 8.5 X 14 | AV117: 5000 | AW117: 26 | AX117: 11 | AY117: Yes | AZ117: 250 | BA117: 100 | BB117: 512GB | BC117: https://www.lexmark.com/en_US/epg/40N9320.html | BD117: Laser / LED Printer - 21 to 34 CPM (Color)CS431DW
A118: B.1 | B118: 7 | C118: Laser / LED Printer - 45 or more CPM (Mono) | D118: Printer | E118: 5000 | F118: Mono | G118: 8.5 X 14 | H118: Lexmark | I118: MS521dn | J118: 36S0300 | K118: 405.17 | L118: 127.2 | M118: 1760.01 | N118: =SUM(Table1[[#This Row],[New Device NC Discounted Purchase Price]:[Estimated Consumables Purchases During 3 Year Lifecycle]]) -> 2292.38 | O118: =Table1[[#This Row],[36-Month Total Lease Payments4]] -> 405.494136 | P118: =Table1[[#This Row],[Estimated 3 Year Maintenance Agreement Price5]] -> 3092.4 | Q118: 3497.894136 | R118: 698.57 | S118: 0.42 | T118: 405.17 | U118: 0.25 | V118: 0 | W118: 1 Year Advanced Exchange | X118: 2361930 | Y118: 159 | Z118: 0.2 | AA118: 127.2 | AB118: 0.0278 | AC118: =Table1[[#This Row],[New Device NC Discounted Purchase Price2]]*Table1[[#This Row],[36-Month Lease Rate Factor (excluding Software)]]*36 -> 405.494136 | AD118: 0.0209 | AE118: =Table1[[#This Row],[New Device NC Discounted Purchase Price]]*Table1[[#This Row],[48-Month Lease Rate Factor (excluding Software)]]*48 -> 406.466544 | AF118: 0.0168 | AG118: =Table1[[#This Row],[New Device NC Discounted Purchase Price2]]*Table1[[#This Row],[60-Month Lease Rate Factor (excluding Software)]]*60 -> 408.41136 | AH118: 0.0278 | AI118: 0.0209 | AJ118: 0.0168 | AK118: MS521dnsvc | AL118: 2061.6 | AM118: 0.5 | AN118: 1030.8 | AO118: unlimited | AP118: 0 | AR118: 3092.4 | AT118: Mono | AU118: 8.5 X 14 | AV118: 15000 | AW118: 46 | AX118: 6 | AY118: Yes | AZ118: 2000 | BA118: 150 | BB118: 512MB | BC118: https://www.lexmark.com/en_US/epg/36S0300.html | BD118: Laser / LED Printer - 45 or more CPM (Mono)MS521dn
A119: B.1 | B119: 8 | C119: Laser / LED Printer - 35 or more CPM (Color) | D119: Printer | E119: 5000 | F119: Color | G119: 8.5 X 14 | H119: Lexmark | I119: CS720de | J119: 40C9100 | K119: 572.5993 | L119: 183.2 | M119: 4602.5328 | N119: =SUM(Table1[[#This Row],[New Device NC Discounted Purchase Price]:[Estimated Consumables Purchases During 3 Year Lifecycle]]) -> 5358.3321 | O119: =Table1[[#This Row],[36-Month Total Lease Payments4]] -> 573.0573794 | P119: =Table1[[#This Row],[Estimated 3 Year Maintenance Agreement Price5]] -> 11608.995 | Q119: 12182.05238 | R119: 1168.57 | S119: 0.51 | T119: 572.5993 | U119: 0.25 | V119: 0 | W119: 1 Year Onsite Repair, NBD | X119: 2360081 | Y119: 229 | Z119: 0.2 | AA119: 183.2 | AB119: 0.0278 | AC119: =Table1[[#This Row],[New Device NC Discounted Purchase Price2]]*Table1[[#This Row],[36-Month Lease Rate Factor (excluding Software)]]*36 -> 573.0573794 | AD119: 0.0209 | AE119: =Table1[[#This Row],[New Device NC Discounted Purchase Price]]*Table1[[#This Row],[48-Month Lease Rate Factor (excluding Software)]]*48 -> 574.4316178 | AF119: 0.0168 | AG119: =Table1[[#This Row],[New Device NC Discounted Purchase Price2]]*Table1[[#This Row],[60-Month Lease Rate Factor (excluding Software)]]*60 -> 577.1800944 | AH119: 0.0278 | AI119: 0.0209 | AJ119: 0.0168 | AK119: CS720desvc | AL119: 7739.33 | AM119: 0.5 | AN119: 3869.665 | AO119: 0 | AP119: 0 | AQ119: 0 | AR119: 11608.995 | AT119: Color | AU119: 8.5 X 14 | AV119: 15000 | AW119: 40 | AX119: 6 | AY119: Yes | AZ119: 650-2300 | BA119: 300 | BB119: 1024-3072MB | BC119: http://www.lexmark.com/en_US/epg/40C9100.html | BD119: Laser / LED Printer - 35 or more CPM (Color)CS720de
A120: B.1 | B120: 9 | C120: Laser / LED Printer - 30 or more CPM (Mono)(Ledger) | D120: Printer | E120: 4000 | F120: Mono | G120: 11 X 17 | H120: Lexmark | I120: MS911de | J120: 26Z0000 | K120: 2506.4294 | L120: 879.2 | M120: 809.1992 | N120: =SUM(Table1[[#This Row],[New Device NC Discounted Purchase Price]:[Estimated Consumables Purchases During 3 Year Lifecycle]]) -> 4194.8286 | O120: =Table1[[#This Row],[36-Month Total Lease Payments4]] -> 2508.434544 | P120: =Table1[[#This Row],[Estimated 3 Year Maintenance Agreement Price5]] -> 1471.68 | Q120: 3980.114544 | R120: 4321.43 | S120: 0.42 | T120: 2506.4294 | U120: 0.25 | V120: 0 | W120: 1 Year Onsite Repair, NBD | X120: 2356941 | Y120: 1099 | Z120: 0.2 | AA120: 879.2 | AB120: 0.0278 | AC120: =Table1[[#This Row],[New Device NC Discounted Purchase Price2]]*Table1[[#This Row],[36-Month Lease Rate Factor (excluding Software)]]*36 -> 2508.434544 | AD120: 0.0209 | AE120: =Table1[[#This Row],[New Device NC Discounted Purchase Price]]*Table1[[#This Row],[48-Month Lease Rate Factor (excluding Software)]]*48 -> 2514.449974 | AF120: 0.0168 | AG120: =Table1[[#This Row],[New Device NC Discounted Purchase Price2]]*Table1[[#This Row],[60-Month Lease Rate Factor (excluding Software)]]*60 -> 2526.480835 | AH120: 0.0278 | AI120: 0.0209 | AJ120: 0.0168 | AK120: MS911desvc | AL120: 981.12 | AM120: 0.5 | AN120: 490.56 | AO120: 0 | AP120: 0 | AR120: 1471.68 | AT120: Mono | AU120: 11 X 17 | AV120: 59000 | AW120: 55 | AX120: 5.5 | AY120: Yes | AZ120: 1150-6650 | BA120: 250-3500 | BB120: 512-2560MB | BC120: http://www.lexmark.com/en_US/epg/26Z0000.html | BD120: Laser / LED Printer - 30 or more CPM (Mono)(Ledger)MS911de
A121: B.1 | B121: 10 | C121: Laser / LED Printer - 20 or more CPM (Color)(Ledger) | D121: Printer | E121: 4000 | F121: Color | G121: 11 X 17 | H121: Lexmark | I121: CS921de | J121: 32C0000 | K121: 1231.8737 | L121: 719.2 | M121: 3529.68 | N121: =SUM(Table1[[#This Row],[New Device NC Discounted Purchase Price]:[Estimated Consumables Purchases During 3 Year Lifecycle]]) -> 5480.7537 | O121: =Table1[[#This Row],[36-Month Total Lease Payments4]] -> 1232.859199 | P121: =Table1[[#This Row],[Estimated 3 Year Maintenance Agreement Price5]] -> 7856.73 | Q121: 9089.589199 | R121: 3431.43 | S121: 0.6410038963 | T121: 1231.8737 | U121: 0.25 | V121: 0 | W121: 1 Year Onsite Repair, NBD | X121: 2361546 | Y121: 899 | Z121: 0.2 | AA121: 719.2 | AB121: 0.0278 | AC121: =Table1[[#This Row],[New Device NC Discounted Purchase Price2]]*Table1[[#This Row],[36-Month Lease Rate Factor (excluding Software)]]*36 -> 1232.859199 | AD121: 0.0209 | AE121: =Table1[[#This Row],[New Device NC Discounted Purchase Price]]*Table1[[#This Row],[48-Month Lease Rate Factor (excluding Software)]]*48 -> 1235.815696 | AF121: 0.0168 | AG121: =Table1[[#This Row],[New Device NC Discounted Purchase Price2]]*Table1[[#This Row],[60-Month Lease Rate Factor (excluding Software)]]*60 -> 1241.72869 | AH121: 0.0278 | AI121: 0.0209 | AJ121: 0.0168 | AK121: CS921desvc | AL121: 5237.82 | AM121: 0.5 | AN121: 2618.91 | AO121: unlimited | AP121: 0 | AQ121: 0 | AR121: 7856.73 | AT121: Color | AU121: 11 X 17 | AV121: 20000 | AW121: 35 | AX121: 7 | AY121: Yes | AZ121: 6650 | BA121: 250 | BB121: 1GB | BC121: https://www.lexmark.com/en_US/epg/32C0000.html | BD121: Laser / LED Printer - 20 or more CPM (Color)(Ledger)CS921de
A122: B.2 | B122: 11 | C122: Digital MFD - 19 to 30 CPM (Mono) | D122: MFD | E122: 2500 | F122: Mono | G122: 8.5 X 14 | H122: Lexmark | I122: MX331ADN | J122: 29S0150 | K122: 268.78 | L122: 72 | M122: 1376.3 | N122: =SUM(Table1[[#This Row],[New Device NC Discounted Purchase Price]:[Estimated Consumables Purchases During 3 Year Lifecycle]]) -> 1717.08 | O122: =Table1[[#This Row],[36-Month Total Lease Payments4]] -> 268.995024 | P122: =Table1[[#This Row],[Estimated 3 Year Maintenance Agreement Price5]] -> 1856.7 | Q122: 2125.695024 | R122: 507.14 | S122: 0.47 | T122: 268.78 | U122: 0.25 | V122: 0 | W122: 1 Year Advanced Exchange | X122: 2371976 | Y122: 90 | Z122: 0.2 | AA122: 72 | AB122: 0.0278 | AC122: =Table1[[#This Row],[New Device NC Discounted Purchase Price2]]*Table1[[#This Row],[36-Month Lease Rate Factor (excluding Software)]]*36 -> 268.995024 | AD122: 0.0209 | AE122: =Table1[[#This Row],[New Device NC Discounted Purchase Price]]*Table1[[#This Row],[48-Month Lease Rate Factor (excluding Software)]]*48 -> 269.640096 | AF122: 0.0168 | AG122: =Table1[[#This Row],[New Device NC Discounted Purchase Price2]]*Table1[[#This Row],[60-Month Lease Rate Factor (excluding Software)]]*60 -> 270.93024 | AH122: 0.0278 | AI122: 0.0209 | AJ122: 0.0168 | AK122: MX331adnsvc | AL122: 1237.8 | AM122: 0.5 | AN122: 618.9 | AO122: unlimited | AP122: 0 | AR122: 1856.7 | AS122: 295 | AT122: Mono | AU122: 8.5 X 14 | AV122: 5000 | AW122: 40 | AX122: 6 | AY122: Yes | AZ122: 350 | BA122: 150 | BB122: 512MB | BC122: https://www.lexmark.com/en_US/epg/29S0150.html | BD122: Digital MFD - 19 to 30 CPM (Mono)MX331ADN
A123: B.2 | B123: 12 | C123: Digital MFD - 14 to 30 CPM (Color) | D123: MFD | E123: 2500 | F123: Color | G123: 8.5 X 14 | H123: Lexmark | I123: CX431ADW | J123: 40N9370 | K123: 390.26 | L123: 207.2 | M123: 3987.06 | N123: =SUM(Table1[[#This Row],[New Device NC Discounted Purchase Price]:[Estimated Consumables Purchases During 3 Year Lifecycle]]) -> 4584.52 | O123: =Table1[[#This Row],[36-Month Total Lease Payments4]] -> 390.572208 | P123: =Table1[[#This Row],[Estimated 3 Year Maintenance Agreement Price5]] -> 5303.775 | Q123: 5694.347208 | R123: 672.86 | S123: 0.42 | T123: 390.26 | U123: 0.25 | V123: 0 | W123: 1 Year Onsite Repair, NBD | X123: 2371567 | Y123: 259 | Z123: 0.2 | AA123: 207.2 | AB123: 0.0278 | AC123: =Table1[[#This Row],[New Device NC Discounted Purchase Price2]]*Table1[[#This Row],[36-Month Lease Rate Factor (excluding Software)]]*36 -> 390.572208 | AD123: 0.0209 | AE123: =Table1[[#This Row],[New Device NC Discounted Purchase Price]]*Table1[[#This Row],[48-Month Lease Rate Factor (excluding Software)]]*48 -> 391.508832 | AF123: 0.0168 | AG123: =Table1[[#This Row],[New Device NC Discounted Purchase Price2]]*Table1[[#This Row],[60-Month Lease Rate Factor (excluding Software)]]*60 -> 393.38208 | AH123: 0.0278 | AI123: 0.0209 | AJ123: 0.0168 | AK123: CX431adwsvc | AL123: 3535.85 | AM123: 0.5 | AN123: 1767.925 | AO123: 0 | AP123: 0 | AQ123: 0 | AR123: 5303.775 | AS123: 295 | AT123: Color | AU123: 8.5 X 14 | AV123: 5000 | AW123: 26 | AX123: 10.8 | AY123: Yes | AZ123: 250 | BA123: 150 | BB123: 1GB | BC123: https://www.lexmark.com/en_US/epg/40N9370.html | BD123: Digital MFD - 14 to 30 CPM (Color)CX431ADW
A124: B.2 | B124: 13 | C124: Digital MFD - 21 to 30 CPM (Mono)(Ledger) | D124: MFD | E124: 4000 | F124: Mono | G124: 11 X 17 | H124: Lexmark | I124: MX910de | J124: 26Z0100 | K124: 4703.2993 | L124: 2159.2 | M124: 575.1864 | N124: =SUM(Table1[[#This Row],[New Device NC Discounted Purchase Price]:[Estimated Consumables Purchases During 3 Year Lifecycle]]) -> 7437.6857 | O124: =Table1[[#This Row],[36-Month Total Lease Payments4]] -> 4707.061939 | P124: =Table1[[#This Row],[Estimated 3 Year Maintenance Agreement Price5]] -> 1085.76 | Q124: 5792.821939 | R124: 9598.57 | S124: 0.51 | T124: 4703.2993 | U124: 0.25 | V124: 0 | W124: 1 Year Onsite Repair, NBD | X124: 2356830 | Y124: 2699 | Z124: 0.2 | AA124: 2159.2 | AB124: 0.0278 | AC124: =Table1[[#This Row],[New Device NC Discounted Purchase Price2]]*Table1[[#This Row],[36-Month Lease Rate Factor (excluding Software)]]*36 -> 4707.061939 | AD124: 0.0209 | AE124: =Table1[[#This Row],[New Device NC Discounted Purchase Price]]*Table1[[#This Row],[48-Month Lease Rate Factor (excluding Software)]]*48 -> 4718.349858 | AF124: 0.0168 | AG124: =Table1[[#This Row],[New Device NC Discounted Purchase Price2]]*Table1[[#This Row],[60-Month Lease Rate Factor (excluding Software)]]*60 -> 4740.925694 | AH124: 0.0278 | AI124: 0.0209 | AJ124: 0.0168 | AK124: MX910desvc | AL124: 723.84 | AM124: 0.5 | AN124: 361.92 | AO124: 0 | AP124: 0 | AR124: 1085.76 | AS124: 295 | AT124: Mono | AU124: 11 X 17 | AV124: 50000 | AW124: 45 | AX124: 5.8 | AY124: Yes | AZ124: 1150-6650 | BA124: 250 | BB124: 1024-3072MB | BC124: http://www.lexmark.com/en_US/epg/26Z0100.html | BD124: Digital MFD - 21 to 30 CPM (Mono)(Ledger)MX910de
A125: B.2 | B125: 14 | C125: Digital MFD - 21 to 30 CPM (Color)(Ledger) | D125: MFD | E125: 4000 | F125: Color | G125: 11 X 17 | H125: Lexmark | I125: X925de | J125: 24Z0653 | K125: 2769.9118 | L125: 1439.2 | M125: 3405.4182 | N125: =SUM(Table1[[#This Row],[New Device NC Discounted Purchase Price]:[Estimated Consumables Purchases During 3 Year Lifecycle]]) -> 7614.53 | O125: =Table1[[#This Row],[36-Month Total Lease Payments4]] -> 2772.127729 | P125: =Table1[[#This Row],[Estimated 3 Year Maintenance Agreement Price5]] -> 6289.575 | Q125: 9061.702729 | R125: 4775.71 | S125: 0.42 | T125: 2769.9118 | U125: 0.25 | V125: 0 | W125: 1 Year Onsite Repair, NBD | X125: 2353821 | Y125: 1799 | Z125: 0.2 | AA125: 1439.2 | AB125: 0.0278 | AC125: =Table1[[#This Row],[New Device NC Discounted Purchase Price2]]*Table1[[#This Row],[36-Month Lease Rate Factor (excluding Software)]]*36 -> 2772.127729 | AD125: 0.0209 | AE125: =Table1[[#This Row],[New Device NC Discounted Purchase Price]]*Table1[[#This Row],[48-Month Lease Rate Factor (excluding Software)]]*48 -> 2778.775518 | AF125: 0.0168 | AG125: =Table1[[#This Row],[New Device NC Discounted Purchase Price2]]*Table1[[#This Row],[60-Month Lease Rate Factor (excluding Software)]]*60 -> 2792.071094 | AH125: 0.0278 | AI125: 0.0209 | AJ125: 0.0168 | AK125: X925desvc | AL125: 4193.05 | AM125: 0.5 | AN125: 2096.525 | AO125: 0 | AP125: 0 | AQ125: 0 | AR125: 6289.575 | AS125: 295 | AT125: Color | AU125: 11 X 17 | AV125: 10000 | AW125: 30 | AX125: 9 | AY125: Yes | AZ125: 450-2100 | BA125: 250 | BB125: 512-1536MB | BC125: http://www.lexmark.com/en_US/epg/24Z0653.html | BD125: Digital MFD - 21 to 30 CPM (Color)(Ledger)X925de
A126: B.2 | B126: 15 | C126: Digital MFD - 31 to 40 CPM (Mono) | D126: MFD | E126: 12000 | F126: Mono | G126: 8.5 X 14 | H126: Lexmark | I126: MX431ADN | J126: 29S0200 | K126: 331.43 | L126: 103.2 | M126: 6173.37 | N126: =SUM(Table1[[#This Row],[New Device NC Discounted Purchase Price]:[Estimated Consumables Purchases During 3 Year Lifecycle]]) -> 6608 | O126: 331.695144 | P126: =Table1[[#This Row],[Estimated 3 Year Maintenance Agreement Price5]] -> 6708.96 | Q126: 7040.655144 | R126: 571.43 | S126: 0.42 | T126: 331.43 | U126: 0.25 | V126: 0 | W126: 1 year Advanced Exchange | X126: 2372068 | Y126: 129 | Z126: 0.2 | AA126: 103.2 | AB126: 0.0278 | AC126: =Table1[[#This Row],[New Device NC Discounted Purchase Price2]]*Table1[[#This Row],[36-Month Lease Rate Factor (excluding Software)]]*36 -> 331.695144 | AD126: 0.0209 | AE126: =Table1[[#This Row],[New Device NC Discounted Purchase Price]]*Table1[[#This Row],[48-Month Lease Rate Factor (excluding Software)]]*48 -> 332.490576 | AF126: 0.0168 | AG126: =Table1[[#This Row],[New Device NC Discounted Purchase Price2]]*Table1[[#This Row],[60-Month Lease Rate Factor (excluding Software)]]*60 -> 334.08144 | AH126: 0.0278 | AI126: 0.0209 | AJ126: 0.0168 | AK126: MX431adnsvc | AL126: 4472.64 | AM126: 0.5 | AN126: 2236.32 | AO126: unlimited | AP126: 0 | AR126: 6708.96 | AS126: 295 | AT126: Mono | AU126: 8.5 X 14 | AV126: 12000 | AW126: 42 | AX126: 6 | AY126: Yes | AZ126: 250 | BA126: 150 | BB126: 512MB | BC126: https://www.lexmark.com/en_US/epg/29S0500.html | BD126: Digital MFD - 31 to 40 CPM (Mono)MX431ADN
A127: B.2 | B127: 16 | C127: Digital MFD - 31 to 40 CPM (Color) | D127: MFD | E127: 12000 | F127: Color | G127: 8.5 X 14 | H127: Lexmark | I127: CX522ade | J127: 42C7360 | K127: 360.5 | L127: 263.2 | M127: 15737.91 | N127: =SUM(Table1[[#This Row],[New Device NC Discounted Purchase Price]:[Estimated Consumables Purchases During 3 Year Lifecycle]]) -> 16361.61 | O127: =Table1[[#This Row],[36-Month Total Lease Payments4]] -> 360.7884 | P127: =Table1[[#This Row],[Estimated 3 Year Maintenance Agreement Price5]] -> 22024.14 | Q127: 22384.9284 | R127: 735.71 | S127: 0.51 | T127: 360.5 | U127: 0.25 | V127: 0 | W127: 1 Year Onsite Repair, NBD | X127: 2364191 | Y127: 329 | Z127: 0.2 | AA127: 263.2 | AB127: 0.0278 | AC127: =Table1[[#This Row],[New Device NC Discounted Purchase Price2]]*Table1[[#This Row],[36-Month Lease Rate Factor (excluding Software)]]*36 -> 360.7884 | AD127: 0.0209 | AE127: =Table1[[#This Row],[New Device NC Discounted Purchase Price]]*Table1[[#This Row],[48-Month Lease Rate Factor (excluding Software)]]*48 -> 361.6536 | AF127: 0.0168 | AG127: =Table1[[#This Row],[New Device NC Discounted Purchase Price2]]*Table1[[#This Row],[60-Month Lease Rate Factor (excluding Software)]]*60 -> 363.384 | AH127: 0.0278 | AI127: 0.0209 | AJ127: 0.0168 | AK127: CX522adesvc | AL127: 14682.76 | AM127: 0.5 | AN127: 7341.38 | AO127: 0 | AP127: 0 | AQ127: 0 | AR127: 22024.14 | AS127: 295 | AT127: Color | AU127: 8.5 X 14 | AV127: 1500 - 8500 | AW127: 35 | AX127: 9 | AY127: Yes | AZ127: 250 | BA127: 150 | BB127: 2048 mb | BC127: https://www.lexmark.com/en_US/epg/42C7360.html | BD127: Digital MFD - 31 to 40 CPM (Color)CX522ade
A128: B.2 | B128: 17 | C128: Digital MFD - 31 to 40 CPM (Mono)(Ledger) | D128: MFD | E128: 12000 | F128: Mono | G128: 11 X 17 | H128: Lexmark | I128: MX910de | J128: 26Z0100 | K128: 4703.2993 | L128: 2159.2 | M128: 1869.3558 | N128: =SUM(Table1[[#This Row],[New Device NC Discounted Purchase Price]:[Estimated Consumables Purchases During 3 Year Lifecycle]]) -> 8731.8551 | O128: =Table1[[#This Row],[36-Month Total Lease Payments4]] -> 4707.061939 | P128: =Table1[[#This Row],[Estimated 3 Year Maintenance Agreement Price5]] -> 3257.28 | Q128: 7964.341939 | R128: 9598.57 | S128: 0.51 | T128: 4703.2993 | U128: 0.25 | V128: 0 | W128: 1 Year Onsite Repair, NBD | X128: 2356830 | Y128: 2699 | Z128: 0.2 | AA128: 2159.2 | AB128: 0.0278 | AC128: =Table1[[#This Row],[New Device NC Discounted Purchase Price2]]*Table1[[#This Row],[36-Month Lease Rate Factor (excluding Software)]]*36 -> 4707.061939 | AD128: 0.0209 | AE128: =Table1[[#This Row],[New Device NC Discounted Purchase Price]]*Table1[[#This Row],[48-Month Lease Rate Factor (excluding Software)]]*48 -> 4718.349858 | AF128: 0.0168 | AG128: =Table1[[#This Row],[New Device NC Discounted Purchase Price2]]*Table1[[#This Row],[60-Month Lease Rate Factor (excluding Software)]]*60 -> 4740.925694 | AH128: 0.0278 | AI128: 0.0209 | AJ128: 0.0168 | AK128: MX910desvc | AL128: 2171.52 | AM128: 0.5 | AN128: 1085.76 | AO128: 0 | AP128: 0 | AR128: 3257.28 | AS128: 295 | AT128: Mono | AU128: 11 X 17 | AV128: 50000 | AW128: 45 | AX128: 5.8 | AY128: Yes | AZ128: 1150-6650 | BA128: 250 | BB128: 1024-3072MB | BC128: http://www.lexmark.com/en_US/epg/26Z0100.html | BD128: Digital MFD - 31 to 40 CPM (Mono)(Ledger)MX910de
A129: B.2 | B129: 18 | C129: Digital MFD - 31 to 40 CPM (Color)(Ledger) | D129: MFD | E129: 12000 | F129: Color | G129: 11 X 17 | H129: Lexmark | I129: CX921de | J129: 32C0200 | K129: 3363.55 | L129: 1359.2 | M129: 9267.66 | N129: =SUM(Table1[[#This Row],[New Device NC Discounted Purchase Price]:[Estimated Consumables Purchases During 3 Year Lifecycle]]) -> 13990.41 | O129: =Table1[[#This Row],[36-Month Total Lease Payments4]] -> 3366.24084 | P129: =Table1[[#This Row],[Estimated 3 Year Maintenance Agreement Price5]] -> 12879.39 | Q129: 16245.63084 | R129: 6864.39 | S129: 0.51 | T129: 3363.55 | U129: 0.25 | V129: 0 | W129: 1 Year Onsite Repair, NBD | X129: 2361642 | Y129: 1699 | Z129: 0.2 | AA129: 1359.2 | AB129: 0.0278 | AC129: =Table1[[#This Row],[New Device NC Discounted Purchase Price2]]*Table1[[#This Row],[36-Month Lease Rate Factor (excluding Software)]]*36 -> 3366.24084 | AD129: 0.0209 | AE129: =Table1[[#This Row],[New Device NC Discounted Purchase Price]]*Table1[[#This Row],[48-Month Lease Rate Factor (excluding Software)]]*48 -> 3374.31336 | AF129: 0.0168 | AG129: =Table1[[#This Row],[New Device NC Discounted Purchase Price2]]*Table1[[#This Row],[60-Month Lease Rate Factor (excluding Software)]]*60 -> 3390.4584 | AH129: 0.0278 | AI129: 0.0209 | AJ129: 0.0168 | AK129: CX921desvc | AL129: 8586.26 | AM129: 0.5 | AN129: 4293.13 | AO129: unlimited | AP129: 0 | AQ129: 0 | AR129: 12879.39 | AS129: 295 | AT129: Color | AU129: 11 X 17 | AV129: 50000 | AW129: 35 | AX129: 7.1 | AY129: Yes | AZ129: 6650 | BA129: 250 | BB129: 1GB | BC129: https://www.lexmark.com/en_US/epg/32C0200.html | BD129: Digital MFD - 31 to 40 CPM (Color)(Ledger)CX921de
A130: C | B130: 19 | C130: Digital MFD - 41 to 54 CPM (Mono) | D130: MFD | E130: 16000 | F130: Mono | G130: 8.5 X 14 | H130: Lexmark | I130: MX521ade | J130: 36S0820 | K130: 662.86 | L130: 719.2 | M130: 5782.89 | N130: =SUM(Table1[[#This Row],[New Device NC Discounted Purchase Price]:[Estimated Consumables Purchases During 3 Year Lifecycle]]) -> 7164.95 | O130: 663.390288 | P130: =Table1[[#This Row],[Estimated 3 Year Maintenance Agreement Price5]] -> 8945.28 | Q130: 9608.670288 | R130: 1142.86 | S130: 0.42 | T130: 662.86 | U130: 0.25 | V130: 0 | W130: 1 Year Onsite Repair, NBD | X130: 2361546 | Y130: 899 | Z130: 0.2 | AA130: 719.2 | AB130: 0.0278 | AC130: =Table1[[#This Row],[New Device NC Discounted Purchase Price2]]*Table1[[#This Row],[36-Month Lease Rate Factor (excluding Software)]]*36 -> 663.390288 | AD130: 0.0209 | AE130: =Table1[[#This Row],[New Device NC Discounted Purchase Price]]*Table1[[#This Row],[48-Month Lease Rate Factor (excluding Software)]]*48 -> 664.981152 | AF130: 0.0168 | AG130: =Table1[[#This Row],[New Device NC Discounted Purchase Price2]]*Table1[[#This Row],[60-Month Lease Rate Factor (excluding Software)]]*60 -> 668.16288 | AH130: 0.0278 | AI130: 0.0209 | AJ130: 0.0168 | AK130: MX521adesvc | AL130: 5963.52 | AM130: 0.5 | AN130: 2981.76 | AO130: unlimited | AP130: 0 | AR130: 8945.28 | AS130: 295 | AT130: Mono | AU130: 8.5 X 14 | AV130: 15000 | AW130: 46 | AX130: 6 | AY130: Yes | AZ130: 2000 | BA130: 150 | BB130: 1GB | BC130: https://www.lexmark.com/en_US/epg/36S0820.html | BD130: Digital MFD - 41 to 54 CPM (Mono)MX521ade
A131: C | B131: 20 | C131: Digital MFD - 41 to 54 CPM (Color) | D131: MFD | E131: 16000 | F131: Color | G131: 8.5 X 14 | H131: Lexmark | I131: CX725de | J131: 40C9500 | K131: 2014.1134 | L131: 679.2 | M131: 13034.4646 | N131: =SUM(Table1[[#This Row],[New Device NC Discounted Purchase Price]:[Estimated Consumables Purchases During 3 Year Lifecycle]]) -> 15727.778 | O131: =Table1[[#This Row],[36-Month Total Lease Payments4]] -> 2015.724691 | P131: =Table1[[#This Row],[Estimated 3 Year Maintenance Agreement Price5]] -> 23437.56 | Q131: 25453.28469 | R131: 3248.57 | S131: 0.38 | T131: 2014.1134 | U131: 0.25 | V131: 0 | W131: 1 Year Onsite Repair, NBD | X131: 2360163 | Y131: 849 | Z131: 0.2 | AA131: 679.2 | AB131: 0.0278 | AC131: =Table1[[#This Row],[New Device NC Discounted Purchase Price2]]*Table1[[#This Row],[36-Month Lease Rate Factor (excluding Software)]]*36 -> 2015.724691 | AD131: 0.0209 | AE131: =Table1[[#This Row],[New Device NC Discounted Purchase Price]]*Table1[[#This Row],[48-Month Lease Rate Factor (excluding Software)]]*48 -> 2020.558563 | AF131: 0.0168 | AG131: =Table1[[#This Row],[New Device NC Discounted Purchase Price2]]*Table1[[#This Row],[60-Month Lease Rate Factor (excluding Software)]]*60 -> 2030.226307 | AH131: 0.0278 | AI131: 0.0209 | AJ131: 0.0168 | AK131: CX725desvc | AL131: 15625.04 | AM131: 0.5 | AN131: 7812.52 | AO131: 0 | AP131: 0 | AQ131: 0 | AR131: =IFERROR(IF(F131="Mono",((AN131*3)+((E131*36)*AP131)),((AN131*3)+((E131*36)*AP131*0.62)+((E131*36)*AQ131*0.38))),"") -> 23437.56 | AS131: 295 | AT131: Color | AU131: 8.5 X 14 | AV131: 20000 | AW131: 50 | AX131: 6.5 | AY131: Yes | AZ131: 650-2300 | BA131: 300 | BB131: 2048-4096MB | BC131: http://www.lexmark.com/en_US/epg/40C9500.html | BD131: =CONCATENATE(C131,I131) -> Digital MFD - 41 to 54 CPM (Color)CX725de
A132: C | B132: 21 | C132: Digital MFD - 41 to 54 CPM (Mono)(Ledger) | D132: MFD | E132: 16000 | F132: Mono | G132: 11 X 17 | H132: Lexmark | I132: MX910de | J132: 26Z0100 | K132: 4703.2993 | L132: 2159.2 | M132: 2444.5422 | N132: =SUM(Table1[[#This Row],[New Device NC Discounted Purchase Price]:[Estimated Consumables Purchases During 3 Year Lifecycle]]) -> 9307.0415 | O132: =Table1[[#This Row],[36-Month Total Lease Payments4]] -> 4707.061939 | P132: =Table1[[#This Row],[Estimated 3 Year Maintenance Agreement Price5]] -> 4343.04 | Q132: 9050.101939 | R132: 9598.57 | S132: 0.51 | T132: 4703.2993 | U132: 0.25 | V132: 0 | W132: 1 Year Onsite Repair, NBD | X132: 2356830 | Y132: 2699 | Z132: 0.2 | AA132: 2159.2 | AB132: 0.0278 | AC132: =Table1[[#This Row],[New Device NC Discounted Purchase Price2]]*Table1[[#This Row],[36-Month Lease Rate Factor (excluding Software)]]*36 -> 4707.061939 | AD132: 0.0209 | AE132: =Table1[[#This Row],[New Device NC Discounted Purchase Price]]*Table1[[#This Row],[48-Month Lease Rate Factor (excluding Software)]]*48 -> 4718.349858 | AF132: 0.0168 | AG132: =Table1[[#This Row],[New Device NC Discounted Purchase Price2]]*Table1[[#This Row],[60-Month Lease Rate Factor (excluding Software)]]*60 -> 4740.925694 | AH132: 0.0278 | AI132: 0.0209 | AJ132: 0.0168 | AK132: MX910desvc | AL132: 2895.36 | AM132: 0.5 | AN132: 1447.68 | AO132: 0 | AP132: 0 | AR132: 4343.04 | AS132: 295 | AT132: Mono | AU132: 11 X 17 | AV132: 50000 | AW132: 45 | AX132: 5.8 | AY132: Yes | AZ132: 1150-6650 | BA132: 250 | BB132: 1024-3072MB | BC132: http://www.lexmark.com/en_US/epg/26Z0100.html | BD132: Digital MFD - 41 to 54 CPM (Mono)(Ledger)MX910de
A133: C | B133: 22 | C133: Digital MFD - 41 to 54 CPM (Color)(Ledger) | D133: MFD | E133: 16000 | F133: Color | G133: 11 X 17 | H133: Lexmark | I133: CX922de | J133: 32C0201 | K133: 4796.4 | L133: 1919.2 | M133: 12544.41 | N133: =SUM(Table1[[#This Row],[New Device NC Discounted Purchase Price]:[Estimated Consumables Purchases During 3 Year Lifecycle]]) -> 19260.01 | O133: 4800.23712 | P133: =Table1[[#This Row],[Estimated 3 Year Maintenance Agreement Price5]] -> 17172.525 | Q133: 21972.76212 | R133: 9788.57 | S133: 0.51 | T133: 4796.4 | U133: 0.25 | V133: 0 | W133: 1 Year Onsite Repair, NBD | X133: 2361674 | Y133: 2399 | Z133: 0.2 | AA133: 1919.2 | AB133: 0.0278 | AC133: =Table1[[#This Row],[New Device NC Discounted Purchase Price2]]*Table1[[#This Row],[36-Month Lease Rate Factor (excluding Software)]]*36 -> 4800.23712 | AD133: 0.0209 | AE133: =Table1[[#This Row],[New Device NC Discounted Purchase Price]]*Table1[[#This Row],[48-Month Lease Rate Factor (excluding Software)]]*48 -> 4811.74848 | AF133: 0.0168 | AG133: =Table1[[#This Row],[New Device NC Discounted Purchase Price2]]*Table1[[#This Row],[60-Month Lease Rate Factor (excluding Software)]]*60 -> 4834.7712 | AH133: 0.0278 | AI133: 0.0209 | AJ133: 0.0168 | AK133: CX922desvc | AL133: 11448.35 | AM133: 0.5 | AN133: 5724.175 | AO133: unlimited | AP133: 0 | AQ133: 0 | AR133: 17172.525 | AS133: 295 | AT133: Color | AU133: 11 X 17 | AV133: 50000 | AW133: 45 | AX133: 7.1 | AY133: Yes | AZ133: 6650 | BA133: 250 | BB133: 2GB | BC133: https://www.lexmark.com/en_US/epg/32C0201.html | BD133: Digital MFD - 41 to 54 CPM (Color)(Ledger)CX922de
A134: C | B134: 23 | C134: Digital MFD - 55 to 69 CPM (Mono) | D134: MFD | E134: 25000 | F134: Mono | G134: 8.5 X 14 | H134: Lexmark | I134: MX822ade | J134: 25B2000 | K134: 2331.2421 | L134: 679.2 | M134: 18598.65 | N134: =SUM(Table1[[#This Row],[New Device NC Discounted Purchase Price]:[Estimated Consumables Purchases During 3 Year Lifecycle]]) -> 21609.0921 | O134: =Table1[[#This Row],[36-Month Total Lease Payments4]] -> 2333.107094 | P134: =Table1[[#This Row],[Estimated 3 Year Maintenance Agreement Price5]] -> 10611 | Q134: 12944.10709 | R134: 4448.57 | S134: 0.47 | T134: 2331.2421 | U134: 0.25 | V134: 0 | W134: 1 Year Onsite Repair, NBD | X134: 2363771 | Y134: 849 | Z134: 0.2 | AA134: 679.2 | AB134: 0.0278 | AC134: =Table1[[#This Row],[New Device NC Discounted Purchase Price2]]*Table1[[#This Row],[36-Month Lease Rate Factor (excluding Software)]]*36 -> 2333.107094 | AD134: 0.0209 | AE134: =Table1[[#This Row],[New Device NC Discounted Purchase Price]]*Table1[[#This Row],[48-Month Lease Rate Factor (excluding Software)]]*48 -> 2338.702075 | AF134: 0.0168 | AG134: =Table1[[#This Row],[New Device NC Discounted Purchase Price2]]*Table1[[#This Row],[60-Month Lease Rate Factor (excluding Software)]]*60 -> 2349.892037 | AH134: 0.0278 | AI134: 0.0209 | AJ134: 0.0168 | AK134: MX822adesvc | AL134: 7074 | AM134: 0.5 | AN134: 3537 | AO134: 0 | AP134: 0 | AR134: 10611 | AS134: 295 | AT134: Mono | AU134: 8.5 X 14 | AV134: 3000 - 50000 | AW134: 55 | AX134: 4.5 | AY134: Yes | AZ134: 550 | BA134: 550 | BB134: 2048 mb | BC134: https://www.lexmark.com/en_US/epg/25B2000.html | BD134: Digital MFD - 55 to 69 CPM (Mono)MX822ade
A135: A | B135: 1 | C135: Inkjet / Thermal Mobile Printer - 3 or more CPM (Color) | D135: Printer | E135: 100 | F135: Color | G135: 8.5 X 14 | H135: Ricoh | I135: SG 3110SFNw | J135: 405780 | K135: 195.0116 | L135: 212 | M135: 0 | N135: =SUM(Table1[[#This Row],[New Device NC Discounted Purchase Price]:[Estimated Consumables Purchases During 3 Year Lifecycle]]) -> 407.0116 | O135: =Table1[[#This Row],[36-Month Total Lease Payments4]] -> 0 | P135: =Table1[[#This Row],[Estimated 3 Year Maintenance Agreement Price5]] -> 0 | Q135: 0 | R135: 271 | S135: 0.2804 | T135: 195.0116 | U135: 0.27 | V135: 0.1 | W135: 1 year manufacturer defect advanced exchange, excludes consumables | X135: 007087MIU-PS1 | Y135: 265 | Z135: 0.2 | AA135: 212 | AC135: =Table1[[#This Row],[New Device NC Discounted Purchase Price2]]*Table1[[#This Row],[36-Month Lease Rate Factor (excluding Software)]]*36 -> 0 | AE135: =Table1[[#This Row],[New Device NC Discounted Purchase Price]]*Table1[[#This Row],[48-Month Lease Rate Factor (excluding Software)]]*48 -> 0 | AG135: =Table1[[#This Row],[New Device NC Discounted Purchase Price2]]*Table1[[#This Row],[60-Month Lease Rate Factor (excluding Software)]]*60 -> 0 | AN135: 0 | AO135: 0 | AR135: 0 | AS135: 0 | AT135: Color | AU135: 8.5 X 14 | AV135: 2500 | AW135: 29 | AX135: 5.5 | AY135: Yes | AZ135: 250 | BA135: 100 | BB135: 256 | BC135: https://www.ricoh-usa.com/en/search/SG_3110SFNw | BD135: Inkjet / Thermal Mobile Printer - 3 or more CPM (Color)SG 3110SFNw
A136: A | B136: 2 | C136: Inkjet / Thermal MFD - 11 to 20 CPM (Color) | D136: MFD | E136: 250 | F136: Color | G136: 8.5 X 14 | H136: Ricoh | I136: SG 3110SFNw | J136: 405780 | K136: 195.0116 | L136: 212 | M136: 25.42 | N136: =SUM(Table1[[#This Row],[New Device NC Discounted Purchase Price]:[Estimated Consumables Purchases During 3 Year Lifecycle]]) -> 432.4316 | O136: =Table1[[#This Row],[36-Month Total Lease Payments4]] -> 0 | P136: =Table1[[#This Row],[Estimated 3 Year Maintenance Agreement Price5]] -> 0 | Q136: 0 | R136: 271 | S136: 0.2804 | T136: 195.0116 | U136: 0.27 | V136: 0.1 | W136: 1 year manufacturer defect advanced exchange, excludes consumables | X136: 007087MIU-PS1 | Y136: 265 | Z136: 0.2 | AA136: 212 | AC136: =Table1[[#This Row],[New Device NC Discounted Purchase Price2]]*Table1[[#This Row],[36-Month Lease Rate Factor (excluding Software)]]*36 -> 0 | AE136: =Table1[[#This Row],[New Device NC Discounted Purchase Price]]*Table1[[#This Row],[48-Month Lease Rate Factor (excluding Software)]]*48 -> 0 | AG136: =Table1[[#This Row],[New Device NC Discounted Purchase Price2]]*Table1[[#This Row],[60-Month Lease Rate Factor (excluding Software)]]*60 -> 0 | AN136: 0 | AO136: 0 | AR136: 0 | AS136: 0 | AT136: Color | AU136: 8.5 X 14 | AV136: 2500 | AW136: 29 | AX136: 5.5 | AY136: Yes | AZ136: 250 | BA136: 100 | BB136: 256 | BC136: https://www.ricoh-usa.com/en/search/SG_3110SFNw | BD136: Inkjet / Thermal MFD - 11 to 20 CPM (Color)SG 3110SFNw
A137: B.1 | B137: 3 | C137: Laser / LED Printer - 19 to 30 CPM (Mono) | D137: Printer | E137: 1500 | F137: Mono | G137: 8.5 X 14 | H137: Ricoh | I137: SP 377DNwX | J137: 408151 | K137: 157 | L137: 95.2 | M137: 520.8 | N137: =SUM(Table1[[#This Row],[New Device NC Discounted Purchase Price]:[Estimated Consumables Purchases During 3 Year Lifecycle]]) -> 773 | O137: =Table1[[#This Row],[36-Month Total Lease Payments4]] -> 164.7558 | P137: =Table1[[#This Row],[Estimated 3 Year Maintenance Agreement Price5]] -> 1774.8 | Q137: =SUM(O137:P137) -> 1939.5558 | R137: 245 | S137: =(Table1[[#This Row],[Device MSRP]]-Table1[[#This Row],[New Device NC Discounted Purchase Price2]])/Table1[[#This Row],[Device MSRP]] -> 0.3591836735 | T137: 157 | U137: 0.27 | V137: 0.1 | W137: 1 year manufacturer defect advanced exchange, excludes consumables | X137: 008168MIU-PS1 | Y137: 119 | Z137: 0.2 | AA137: 99.2 | AB137: 0.02915 | AC137: =Table1[[#This Row],[New Device NC Discounted Purchase Price2]]*Table1[[#This Row],[36-Month Lease Rate Factor (excluding Software)]]*36 -> 164.7558 | AD137: 0.02416 | AE137: =Table1[[#This Row],[New Device NC Discounted Purchase Price]]*Table1[[#This Row],[48-Month Lease Rate Factor (excluding Software)]]*48 -> 182.06976 | AF137: 0.02063 | AG137: =Table1[[#This Row],[New Device NC Discounted Purchase Price2]]*Table1[[#This Row],[60-Month Lease Rate Factor (excluding Software)]]*60 -> 194.3346 | AH137: 0.0333 | AI137: 0.02654 | AJ137: 0.02251 | AK137: 408151-ANSILVER | AL137: 591.6 | AM137: 0 | AN137: =Table1[[#This Row],[Annual Maintenance Plan MSRP]] -> 591.6 | AO137: unlimited | AP137: 0 | AR137: 1774.8 | AS137: 281.44 | AT137: Mono | AU137: 8.5 X 14 | AV137: 5800 | AW137: 30 | AX137: 8 | AY137: Yes | AZ137: 300 | BA137: 125 | BB137: 128 | BC137: https://www.ricoh-usa.com/en/search/sp_377dnwx | BD137: Laser / LED Printer - 19 to 30 CPM (Mono)SP 377DNwX
A138: B.1 | B138: 4 | C138: Laser / LED Printer - 11 to 20 CPM (Color) | D138: Printer | E138: 1500 | F138: Color | G138: 8.5 X 14 | H138: Ricoh | I138: M C250FWB | J138: 408324 | K138: 251.06 | M138: 1391.28 | N138: =SUM(Table1[[#This Row],[New Device NC Discounted Purchase Price]:[Estimated Consumables Purchases During 3 Year Lifecycle]]) -> 1642.34 | O138: =Table1[[#This Row],[36-Month Total Lease Payments4]] -> 263.462364 | P138: =Table1[[#This Row],[Estimated 3 Year Maintenance Agreement Price5]] -> 1897.44 | Q138: 2160.902364 | R138: 419 | S138: 0.4008 | T138: 251.06 | U138: 0.59 | V138: 0.38 | W138: 90 day manufacturer defect on-site, excludes consumables | X138: N/A | Z138: 0.2 | AB138: 0.02915 | AC138: =Table1[[#This Row],[New Device NC Discounted Purchase Price2]]*Table1[[#This Row],[36-Month Lease Rate Factor (excluding Software)]]*36 -> 263.462364 | AD138: 0.02416 | AE138: =Table1[[#This Row],[New Device NC Discounted Purchase Price]]*Table1[[#This Row],[48-Month Lease Rate Factor (excluding Software)]]*48 -> 291.1492608 | AF138: 0.02063 | AG138: =Table1[[#This Row],[New Device NC Discounted Purchase Price2]]*Table1[[#This Row],[60-Month Lease Rate Factor (excluding Software)]]*60 -> 310.762068 | AH138: 0.0333 | AI138: 0.02654 | AJ138: 0.02251 | AK138: 408324-ANGOLD | AL138: 632.48 | AM138: 0 | AN138: 632.48 | AO138: unlimited | AP138: 0 | AQ138: 0 | AR138: 1897.44 | AS138: 281.44 | AT138: Color | AU138: 8.5 X 14 | AV138: 2500 | AW138: 26 | AX138: 9 | AY138: Yes | AZ138: 750 | BA138: 150 | BB138: 256 | BC138: https://www.ricoh-usa.com/-/media/Ricoh/Common/PDFs/Brochures/mc250fwb.pdf | BD138: Laser / LED Printer - 11 to 20 CPM (Color)M C250FWB
A139: B.1 | B139: 5 | C139: Laser / LED Printer - 31 to 44 CPM (Mono) | D139: Printer | E139: 3000 | F139: Mono | G139: 8.5 X 14 | H139: Ricoh | I139: SP 3600DN | J139: 407314 | K139: 181.012 | L139: 116 | M139: 822.12 | N139: =SUM(Table1[[#This Row],[New Device NC Discounted Purchase Price]:[Estimated Consumables Purchases During 3 Year Lifecycle]]) -> 1119.132 | O139: =Table1[[#This Row],[36-Month Total Lease Payments4]] -> 189.9539928 | P139: =Table1[[#This Row],[Estimated 3 Year Maintenance Agreement Price5]] -> 1013.76 | Q139: 1203.713993 | R139: 295 | S139: 0.3864 | T139: 181.012 | U139: 0.36 | V139: 0.1 | W139: 1 year manufacturer defect advanced exchange, excludes consumables | X139: 008047MIU-PS1 | Y139: 145 | Z139: 0.2 | AA139: 116 | AB139: 0.02915 | AC139: =Table1[[#This Row],[New Device NC Discounted Purchase Price2]]*Table1[[#This Row],[36-Month Lease Rate Factor (excluding Software)]]*36 -> 189.9539928 | AD139: 0.02416 | AE139: =Table1[[#This Row],[New Device NC Discounted Purchase Price]]*Table1[[#This Row],[48-Month Lease Rate Factor (excluding Software)]]*48 -> 209.9159962 | AF139: 0.02063 | AG139: =Table1[[#This Row],[New Device NC Discounted Purchase Price2]]*Table1[[#This Row],[60-Month Lease Rate Factor (excluding Software)]]*60 -> 224.0566536 | AH139: 0.0333 | AI139: 0.02654 | AJ139: 0.02251 | AK139: 407314-ANGOLD | AL139: 337.92 | AM139: 0 | AN139: 337.92 | AO139: unlimited | AP139: 0 | AR139: 1013.76 | AS139: 0 | AT139: Mono | AU139: 8.5 X 14 | AV139: 6000 | AW139: 31 | AX139: 6.5 | AY139: Yes | AZ139: 850 | BA139: 125 | BB139: 256 | BC139: https://www.ricoh-usa.com/en/search/SP_3600DN | BD139: Laser / LED Printer - 31 to 44 CPM (Mono)SP 3600DN
A140: B.1 | B140: 6 | C140: Laser / LED Printer - 21 to 34 CPM (Color) | D140: Printer | E140: 3000 | F140: Color | G140: 8.5 X 14 | H140: Ricoh | I140: SP C342DN | J140: 407887 | K140: 327.7 | L140: 183.2 | M140: 2990.5576 | N140: =SUM(Table1[[#This Row],[New Device NC Discounted Purchase Price]:[Estimated Consumables Purchases During 3 Year Lifecycle]]) -> 3501.4576 | O140: =Table1[[#This Row],[36-Month Total Lease Payments4]] -> 343.88838 | P140: =Table1[[#This Row],[Estimated 3 Year Maintenance Agreement Price5]] -> 3523.875 | Q140: 3867.76338 | R140: 565 | S140: 0.42 | T140: 327.7 | U140: 0.46 | V140: 0.1 | W140: 1 year manufacturer defect on-site, excludes consumables | X140: 008137MIU-PS1 | Y140: 229 | Z140: 0.2 | AA140: 183.2 | AB140: 0.02915 | AC140: =Table1[[#This Row],[New Device NC Discounted Purchase Price2]]*Table1[[#This Row],[36-Month Lease Rate Factor (excluding Software)]]*36 -> 343.88838 | AD140: 0.02416 | AE140: =Table1[[#This Row],[New Device NC Discounted Purchase Price]]*Table1[[#This Row],[48-Month Lease Rate Factor (excluding Software)]]*48 -> 380.027136 | AF140: 0.02063 | AG140: =Table1[[#This Row],[New Device NC Discounted Purchase Price2]]*Table1[[#This Row],[60-Month Lease Rate Factor (excluding Software)]]*60 -> 405.62706 | AH140: 0.0333 | AI140: 0.02654 | AJ140: 0.02251 | AK140: 407887-ANGOLD | AL140: 1174.625 | AM140: 0 | AN140: 1174.625 | AO140: unlimited | AP140: 0 | AQ140: 0 | AR140: 3523.875 | AS140: 281.44 | AT140: Color | AU140: 8.5 X 14 | AV140: 6000 | AW140: 26 | AX140: 13.5 | AY140: Yes | AZ140: 1100 | BA140: 150 | BB140: 768 | BC140: https://www.ricoh-usa.com/en/search/SP_C320DN | BD140: Laser / LED Printer - 21 to 34 CPM (Color)SP C342DN
A141: B.1 | B141: 7 | C141: Laser / LED Printer - 45 or more CPM (Mono) | D141: Printer | E141: 5000 | F141: Mono | G141: 8.5 X 14 | H141: Ricoh | I141: P 801 | J141: 418472 | K141: 840.9747 | M141: 278.38 | N141: =SUM(Table1[[#This Row],[New Device NC Discounted Purchase Price]:[Estimated Consumables Purchases During 3 Year Lifecycle]]) -> 1119.3547 | O141: =Table1[[#This Row],[36-Month Total Lease Payments4]] -> 882.5188502 | P141: =Table1[[#This Row],[Estimated 3 Year Maintenance Agreement Price5]] -> 1509.75 | Q141: 2392.26885 | R141: 1839 | S141: 0.5427 | T141: 840.9747 | U141: 0.59 | V141: 0.38 | W141: 90 day manufacturer defect on-site, excludes consumables | X141: N/A | Z141: 0.2 | AB141: 0.02915 | AC141: =Table1[[#This Row],[New Device NC Discounted Purchase Price2]]*Table1[[#This Row],[36-Month Lease Rate Factor (excluding Software)]]*36 -> 882.5188502 | AD141: 0.02416 | AE141: =Table1[[#This Row],[New Device NC Discounted Purchase Price]]*Table1[[#This Row],[48-Month Lease Rate Factor (excluding Software)]]*48 -> 975.2615401 | AF141: 0.02063 | AG141: =Table1[[#This Row],[New Device NC Discounted Purchase Price2]]*Table1[[#This Row],[60-Month Lease Rate Factor (excluding Software)]]*60 -> 1040.958484 | AH141: 0.0333 | AI141: 0.02654 | AJ141: 0.02251 | AK141: 418472-ANSILVER | AL141: 503.25 | AM141: 0 | AN141: 503.25 | AO141: unlimited | AP141: 0 | AR141: 1509.75 | AS141: 281.44 | AT141: Mono | AU141: 8.5 X 14 | AV141: 10000 | AW141: 62 | AX141: 6 | AY141: Yes | AZ141: 2600 | BA141: 500 | BB141: 2GB | BC141: https://www.ricoh-usa.com/-/media/Ricoh/Common/PDFs/Brochures/p-800-spec-sheet.pdf | BD141: Laser / LED Printer - 45 or more CPM (Mono)P 801
A142: B.1 | B142: 8 | C142: Laser / LED Printer - 35 or more CPM (Color) | D142: Printer | E142: 5000 | F142: Color | G142: 8.5 X 14 | H142: Ricoh | I142: P C600 | J142: 408301 | K142: 797.0183 | M142: 2250.6 | N142: =SUM(Table1[[#This Row],[New Device NC Discounted Purchase Price]:[Estimated Consumables Purchases During 3 Year Lifecycle]]) -> 3047.6183 | O142: =Table1[[#This Row],[36-Month Total Lease Payments4]] -> 836.391004 | P142: =Table1[[#This Row],[Estimated 3 Year Maintenance Agreement Price5]] -> 3748.32 | Q142: 4584.711004 | R142: 1499 | S142: 0.4683 | T142: 797.0183 | U142: 0.59 | V142: 0.38 | W142: 90 day manufacturer defect on-site, excludes consumables | X142: N/A | Z142: 0.2 | AB142: 0.02915 | AC142: =Table1[[#This Row],[New Device NC Discounted Purchase Price2]]*Table1[[#This Row],[36-Month Lease Rate Factor (excluding Software)]]*36 -> 836.391004 | AD142: 0.02416 | AE142: =Table1[[#This Row],[New Device NC Discounted Purchase Price]]*Table1[[#This Row],[48-Month Lease Rate Factor (excluding Software)]]*48 -> 924.2861821 | AF142: 0.02063 | AG142: =Table1[[#This Row],[New Device NC Discounted Purchase Price2]]*Table1[[#This Row],[60-Month Lease Rate Factor (excluding Software)]]*60 -> 986.5492517 | AH142: 0.0333 | AI142: 0.02654 | AJ142: 0.02251 | AK142: 408301-ANSILVER | AL142: 1249.44 | AM142: 0 | AN142: 1249.44 | AO142: unlimited | AP142: 0 | AQ142: 0 | AR142: 3748.32 | AS142: 281.44 | AT142: Color | AU142: 8.5 X 14 | AV142: 12500 | AW142: 42 | AX142: 6 | AY142: Yes | AZ142: 2100 | BA142: 500 | BB142: 2GB | BC142: https://www.ricoh-usa.com/en/products/pd/equipment/printers-and-copiers/printers/p-c600-color-laser-printer/_/R-408301 | BD142: Laser / LED Printer - 35 or more CPM (Color)P C600
A143: B.1 | B143: 9 | C143: Laser / LED Printer - 30 or more CPM (Mono)(Ledger) | D143: Printer | E143: 4000 | F143: Mono | G143: 11 X 17 | H143: Ricoh | I143: SP 6430DN | J143: 407482 | K143: 640.0758 | L143: 199.2 | M143: 772.52 | N143: =SUM(Table1[[#This Row],[New Device NC Discounted Purchase Price]:[Estimated Consumables Purchases During 3 Year Lifecycle]]) -> 1611.7958 | O143: =Table1[[#This Row],[36-Month Total Lease Payments4]] -> 671.6955445 | P143: =Table1[[#This Row],[Estimated 3 Year Maintenance Agreement Price5]] -> 1825.2 | Q143: 2496.895545 | R143: 1729 | S143: 0.6298 | T143: 640.0758 | U143: 0.55 | V143: 0.38 | W143: 1 year manufacturer defect on-site, excludes consumables | X143: 008065MIU-PS1 | Y143: 249 | Z143: 0.2 | AA143: 199.2 | AB143: 0.02915 | AC143: =Table1[[#This Row],[New Device NC Discounted Purchase Price2]]*Table1[[#This Row],[36-Month Lease Rate Factor (excluding Software)]]*36 -> 671.6955445 | AD143: 0.02416 | AE143: =Table1[[#This Row],[New Device NC Discounted Purchase Price]]*Table1[[#This Row],[48-Month Lease Rate Factor (excluding Software)]]*48 -> 742.2831037 | AF143: 0.02063 | AG143: =Table1[[#This Row],[New Device NC Discounted Purchase Price2]]*Table1[[#This Row],[60-Month Lease Rate Factor (excluding Software)]]*60 -> 792.2858252 | AH143: 0.0333 | AI143: 0.02654 | AJ143: 0.02251 | AK143: 407482-ANGOLD | AL143: 608.4 | AM143: 0 | AN143: 608.4 | AO143: unlimited | AP143: 0 | AR143: 1825.2 | AS143: 281.44 | AT143: Mono | AU143: 11 X 17 | AV143: 20000 | AW143: 38 | AX143: 6.5 | AY143: Yes | AZ143: 2100 | BA143: 500 | BB143: 1G | BC143: https://www.ricoh-usa.com/en/search/SP_6430DN | BD143: Laser / LED Printer - 30 or more CPM (Mono)(Ledger)SP 6430DN
A144: B.1 | B144: 10 | C144: Laser / LED Printer - 20 or more CPM (Color)(Ledger) | D144: Printer | E144: 4000 | F144: Color | G144: 11 X 17 | H144: Ricoh | I144: SP C840DN | J144: 408105 | K144: 1954.8172 | L144: 532 | M144: 1056.2196 | N144: =SUM(Table1[[#This Row],[New Device NC Discounted Purchase Price]:[Estimated Consumables Purchases During 3 Year Lifecycle]]) -> 3543.0368 | O144: =Table1[[#This Row],[36-Month Total Lease Payments4]] -> 2051.38517 | P144: =Table1[[#This Row],[Estimated 3 Year Maintenance Agreement Price5]] -> 8010.12 | Q144: 10061.50517 | R144: 3885 | S144: 0.4967 | T144: 1954.8172 | U144: 0.59 | V144: 0.38 | W144: 1 year manufacturer defect on-site, excludes consumables | X144: 008158MIU-PS1 | Y144: 665 | Z144: 0.2 | AA144: 532 | AB144: 0.02915 | AC144: =Table1[[#This Row],[New Device NC Discounted Purchase Price2]]*Table1[[#This Row],[36-Month Lease Rate Factor (excluding Software)]]*36 -> 2051.38517 | AD144: 0.02416 | AE144: =Table1[[#This Row],[New Device NC Discounted Purchase Price]]*Table1[[#This Row],[48-Month Lease Rate Factor (excluding Software)]]*48 -> 2266.96241 | AF144: 0.02063 | AG144: =Table1[[#This Row],[New Device NC Discounted Purchase Price2]]*Table1[[#This Row],[60-Month Lease Rate Factor (excluding Software)]]*60 -> 2419.67273 | AH144: 0.0333 | AI144: 0.02654 | AJ144: 0.02251 | AK144: 408105-ANGOLD | AL144: 2670.04 | AM144: 0 | AN144: 2670.04 | AO144: unlimited | AP144: 0 | AQ144: 0 | AR144: 8010.12 | AS144: 281.44 | AT144: Color | AU144: 11 X 17 | AV144: 5000 | AW144: 45 | AX144: 4 | AY144: Yes | AZ144: 4700 | BA144: 500 | BB144: 2GB | BC144: https://www.ricoh-usa.com/en/search/sp_c840dn | BD144: Laser / LED Printer - 20 or more CPM (Color)(Ledger)SP C840DN
A145: B.2 | B145: 11 | C145: Digital MFD - 19 to 30 CPM (Mono) | D145: MFD | E145: 2500 | F145: Mono | G145: 8.5 X 14 | H145: Ricoh | I145: MP 301SPF | J145: 416185 | K145: 705.96 | L145: 735.84 | M145: 123.3552 | N145: =SUM(Table1[[#This Row],[New Device NC Discounted Purchase Price]:[Estimated Consumables Purchases During 3 Year Lifecycle]]) -> 1565.1552 | O145: =Table1[[#This Row],[36-Month Total Lease Payments4]] -> 740.834424 | P145: =Table1[[#This Row],[Estimated 3 Year Maintenance Agreement Price5]] -> 962.28 | Q145: 1703.114424 | R145: 2960 | S145: =(Table1[[#This Row],[Device MSRP]]-Table1[[#This Row],[New Device NC Discounted Purchase Price]])/Table1[[#This Row],[Device MSRP]] -> 0.7615 | T145: 705.96 | U145: 0.59 | V145: 0.38 | W145: 90 day manufacturer defect on-site, excludes consumables | X145: 416185-EXWRNTY | Y145: 1471.68 | Z145: 0.5 | AA145: 735.84 | AB145: 0.02915 | AC145: =Table1[[#This Row],[New Device NC Discounted Purchase Price2]]*Table1[[#This Row],[36-Month Lease Rate Factor (excluding Software)]]*36 -> 740.834424 | AD145: 0.02416 | AE145: =Table1[[#This Row],[New Device NC Discounted Purchase Price]]*Table1[[#This Row],[48-Month Lease Rate Factor (excluding Software)]]*48 -> 818.6876928 | AF145: 0.02063 | AG145: =Table1[[#This Row],[New Device NC Discounted Purchase Price2]]*Table1[[#This Row],[60-Month Lease Rate Factor (excluding Software)]]*60 -> 873.837288 | AH145: 0.0333 | AI145: 0.02654 | AJ145: 0.02251 | AK145: 416185-ANGOLD | AL145: 320.76 | AM145: 0 | AN145: 320.76 | AO145: unlimited | AP145: 0 | AR145: 962.28 | AS145: 281.44 | AT145: Mono | AU145: 8.5 X 14 | AV145: 20000 | AW145: 31 | AX145: 6 | AY145: Yes | AZ145: 1350 | BA145: 250 | BB145: 1GB | BC145: https://www.ricoh-usa.com/en/search/MP301 | BD145: Digital MFD - 19 to 30 CPM (Mono)MP 301SPF
A146: B.2 | B146: 12 | C146: Digital MFD - 14 to 30 CPM (Color) | D146: MFD | E146: 2500 | F146: Color | G146: 8.5 X 14 | H146: Ricoh | I146: SP C250SF | J146: 407523 | K146: 299.0008 | L146: 199.2 | M146: 2239.44 | N146: =SUM(Table1[[#This Row],[New Device NC Discounted Purchase Price]:[Estimated Consumables Purchases During 3 Year Lifecycle]]) -> 2737.6408 | O146: =Table1[[#This Row],[36-Month Total Lease Payments4]] -> 313.7714395 | P146: =Table1[[#This Row],[Estimated 3 Year Maintenance Agreement Price5]] -> 1897.44 | Q146: 2211.21144 | R146: 499 | S146: 0.4008 | T146: 299.0008 | U146: 0.46 | V146: 0.38 | W146: 1 year manufacturer defect on-site, excludes consumables | X146: 008018MIU-PS1 | Y146: 249 | Z146: 0.2 | AA146: 199.2 | AB146: 0.02915 | AC146: =Table1[[#This Row],[New Device NC Discounted Purchase Price2]]*Table1[[#This Row],[36-Month Lease Rate Factor (excluding Software)]]*36 -> 313.7714395 | AD146: 0.02416 | AE146: =Table1[[#This Row],[New Device NC Discounted Purchase Price]]*Table1[[#This Row],[48-Month Lease Rate Factor (excluding Software)]]*48 -> 346.7452477 | AF146: 0.02063 | AG146: =Table1[[#This Row],[New Device NC Discounted Purchase Price2]]*Table1[[#This Row],[60-Month Lease Rate Factor (excluding Software)]]*60 -> 370.1031902 | AH146: 0.0333 | AI146: 0.02654 | AJ146: 0.02251 | AK146: 407523-ANGOLD | AL146: 632.48 | AM146: 0 | AN146: 632.48 | AO146: unlimited | AP146: 0 | AQ146: 0 | AR146: 1897.44 | AS146: 281.44 | AT146: Color | AU146: 8.5 X 14 | AV146: 4500 | AW146: 21 | AX146: 14 | AY146: Yes | AZ146: 751 | BA146: 150 | BB146: 256 | BC146: https://www.ricoh-usa.com/en/search/SP_C250SF | BD146: Digital MFD - 14 to 30 CPM (Color)SP C250SF
A147: B.2 | B147: 13 | C147: Digital MFD - 21 to 30 CPM (Mono)(Ledger) | D147: MFD | E147: 4000 | F147: Mono | G147: 11 X 17 | H147: Ricoh | I147: MP2501 | J147: 416443 | K147: 1488.054 | L147: 853.2 | M147: 284.58 | N147: =SUM(Table1[[#This Row],[New Device NC Discounted Purchase Price]:[Estimated Consumables Purchases During 3 Year Lifecycle]]) -> 2625.834 | O147: =Table1[[#This Row],[36-Month Total Lease Payments4]] -> 1561.563868 | P147: =Table1[[#This Row],[Estimated 3 Year Maintenance Agreement Price5]] -> 1123.2 | Q147: 2684.763868 | R147: 5260 | S147: 0.7171 | T147: 1488.054 | U147: 0.59 | V147: 0.38 | W147: 90 day manufacturer defect on-site, excludes consumables | X147: 416443-EXWRNTY | Y147: 1706.4 | Z147: 0.5 | AA147: 853.2 | AB147: 0.02915 | AC147: =Table1[[#This Row],[New Device NC Discounted Purchase Price2]]*Table1[[#This Row],[36-Month Lease Rate Factor (excluding Software)]]*36 -> 1561.563868 | AD147: 0.02416 | AE147: =Table1[[#This Row],[New Device NC Discounted Purchase Price]]*Table1[[#This Row],[48-Month Lease Rate Factor (excluding Software)]]*48 -> 1725.666463 | AF147: 0.02063 | AG147: =Table1[[#This Row],[New Device NC Discounted Purchase Price2]]*Table1[[#This Row],[60-Month Lease Rate Factor (excluding Software)]]*60 -> 1841.913241 | AH147: 0.0333 | AI147: 0.02654 | AJ147: 0.02251 | AK147: 416443-ANGOLD | AL147: 374.4 | AM147: 0 | AN147: 374.4 | AO147: unlimited | AP147: 0 | AR147: 1123.2 | AS147: 281.44 | AT147: Mono | AU147: 11 X 17 | AV147: 10000 | AW147: 25 | AX147: 6 | AY147: Yes | AZ147: 1600 | BA147: 250 | BB147: 1GB | BC147: https://www.ricoh-usa.com/en/search/MP2501 | BD147: Digital MFD - 21 to 30 CPM (Mono)(Ledger)MP2501
A148: B.2 | B148: 14 | C148: Digital MFD - 21 to 30 CPM (Color)(Ledger) | D148: MFD | E148: 4000 | F148: Color | G148: 11 X 17 | H148: Ricoh | I148: IM C2500 | J148: 418284 | K148: 2352.85 | L148: 2568.24 | M148: 2083.3674 | N148: =SUM(Table1[[#This Row],[New Device NC Discounted Purchase Price]:[Estimated Consumables Purchases During 3 Year Lifecycle]]) -> 7004.4574 | O148: =Table1[[#This Row],[36-Month Total Lease Payments4]] -> 2469.08079 | P148: =Table1[[#This Row],[Estimated 3 Year Maintenance Agreement Price5]] -> 4264.92 | Q148: 6734.00079 | R148: 9580 | S148: =(Table1[[#This Row],[Device MSRP]]-Table1[[#This Row],[New Device NC Discounted Purchase Price2]])/Table1[[#This Row],[Device MSRP]] -> 0.7543997912 | T148: 2352.85 | U148: 0.59 | V148: 0.38 | W148: 90 day manufacturer defect on-site, excludes consumables | X148: 418284-EXWRNTY | Y148: 5136.48 | Z148: 0.5 | AA148: =IFERROR(Y148*(1-Z148),"") -> 2568.24 | AB148: 0.02915 | AC148: =Table1[[#This Row],[New Device NC Discounted Purchase Price2]]*Table1[[#This Row],[36-Month Lease Rate Factor (excluding Software)]]*36 -> 2469.08079 | AD148: 0.02416 | AE148: =Table1[[#This Row],[New Device NC Discounted Purchase Price]]*Table1[[#This Row],[48-Month Lease Rate Factor (excluding Software)]]*48 -> 2728.553088 | AF148: 0.02063 | AG148: =Table1[[#This Row],[New Device NC Discounted Purchase Price2]]*Table1[[#This Row],[60-Month Lease Rate Factor (excluding Software)]]*60 -> 2912.35773 | AH148: 0.0333 | AI148: 0.02654 | AJ148: 0.02251 | AK148: 418284-ANGOLD | AL148: 1421.64 | AM148: 0 | AN148: =Table1[[#This Row],[Annual Maintenance Plan MSRP]] -> 1421.64 | AO148: unlimited | AP148: 0 | AQ148: 0 | AR148: 4264.92 | AS148: 281.44 | AT148: Color | AU148: 11 X 17 | AV148: 10000 | AW148: 25 | AX148: 5.3 | AY148: Yes | AZ148: 1200 | BA148: 500 | BB148: 2GB | BC148: https://www.ricoh-usa.com/en/products/pd/equipment/printers-and-copiers/multifunction-printers-copiers/im-c2500-color-laser-multifunction-printer/_/R-418284 | BD148: Digital MFD - 21 to 30 CPM (Color)(Ledger)IM C2500
A149: B.2 | B149: 15 | C149: Digital MFD - 31 to 40 CPM (Mono) | D149: MFD | E149: 12000 | F149: Mono | G149: 8.5 X 14 | H149: Ricoh | I149: IM 350F | J149: 418485 | K149: 705.96 | M149: 2255.96 | N149: =SUM(Table1[[#This Row],[New Device NC Discounted Purchase Price]:[Estimated Consumables Purchases During 3 Year Lifecycle]]) -> 2961.92 | O149: =Table1[[#This Row],[36-Month Total Lease Payments4]] -> 740.834424 | P149: =Table1[[#This Row],[Estimated 3 Year Maintenance Agreement Price5]] -> 962.28 | Q149: 1703.114424 | R149: 3109 | S149: 0.7729 | T149: 705.96 | U149: 0.59 | V149: 0.38 | W149: 90 day manufacturer defect on-site, excludes consumables | X149: N/A | Y149: N/A | Z149: N/A | AA149: N/A | AB149: 0.02915 | AC149: =Table1[[#This Row],[New Device NC Discounted Purchase Price2]]*Table1[[#This Row],[36-Month Lease Rate Factor (excluding Software)]]*36 -> 740.834424 | AD149: 0.02416 | AE149: =Table1[[#This Row],[New Device NC Discounted Purchase Price]]*Table1[[#This Row],[48-Month Lease Rate Factor (excluding Software)]]*48 -> 818.6876928 | AF149: 0.02063 | AG149: =Table1[[#This Row],[New Device NC Discounted Purchase Price2]]*Table1[[#This Row],[60-Month Lease Rate Factor (excluding Software)]]*60 -> 873.837288 | AH149: 0.0333 | AI149: 0.02654 | AJ149: 0.02251 | AK149: 418485-ANGOLD | AL149: 320.76 | AM149: 0 | AN149: 320.76 | AO149: unlimited | AP149: 0 | AR149: 962.28 | AS149: 281.44 | AT149: Mono | AU149: 8.5 X 14 | AV149: 2500 | AW149: 35 | AX149: 6 | AY149: Yes | AZ149: 600 | BA149: 250 | BB149: 2GB | BC149: https://www.ricoh-usa.com/en/products/pd/equipment/printers-and-copiers/multifunction-printers-copiers/im-350f-black-and-white-multifunction-printer/_/R-418485 | BD149: Digital MFD - 31 to 40 CPM (Mono)IM 350F
A150: B.2 | B150: 16 | C150: Digital MFD - 31 to 40 CPM (Color) | D150: MFD | E150: 12000 | F150: Color | G150: 8.5 X 14 | H150: Ricoh | I150: IM C300F | J150: 418569 | K150: 1388.89 | L150: 2947.93 | M150: 8060 | N150: =SUM(Table1[[#This Row],[New Device NC Discounted Purchase Price]:[Estimated Consumables Purchases During 3 Year Lifecycle]]) -> 12396.82 | O150: =Table1[[#This Row],[36-Month Total Lease Payments4]] -> 1457.501166 | P150: =Table1[[#This Row],[Estimated 3 Year Maintenance Agreement Price5]] -> 3966.72 | Q150: 5424.221166 | R150: 4589 | S150: =(Table1[[#This Row],[Device MSRP]]-Table1[[#This Row],[New Device NC Discounted Purchase Price]])/Table1[[#This Row],[Device MSRP]] -> 0.6973436479 | T150: 1388.89 | U150: 0.59 | V150: 0.38 | W150: 90 day manufacturer defect on-site, excludes consumables | X150: N/A | Y150: 5895.86 | Z150: 0.5 | AA150: 2947.93 | AB150: 0.02915 | AC150: =Table1[[#This Row],[New Device NC Discounted Purchase Price2]]*Table1[[#This Row],[36-Month Lease Rate Factor (excluding Software)]]*36 -> 1457.501166 | AD150: 0.02416 | AE150: =Table1[[#This Row],[New Device NC Discounted Purchase Price]]*Table1[[#This Row],[48-Month Lease Rate Factor (excluding Software)]]*48 -> 1610.667955 | AF150: 0.02063 | AG150: =Table1[[#This Row],[New Device NC Discounted Purchase Price2]]*Table1[[#This Row],[60-Month Lease Rate Factor (excluding Software)]]*60 -> 1719.168042 | AH150: 0.0333 | AI150: 0.02654 | AJ150: 0.02251 | AK150: 418569-SILVER | AL150: 1322.24 | AM150: 0 | AN150: 1322.24 | AO150: unlimited | AP150: 0 | AQ150: 0 | AR150: 3966.72 | AS150: 281.44 | AT150: Color | AU150: 8.5 X 14 | AV150: 7500 | AW150: 31 | AX150: 9 | AY150: Yes | AZ150: 250 | BA150: 100 | BB150: 2GB | BC150: https://www.ricoh-usa.com/-/media/Ricoh/Common/PDFs/Brochures/intelligent-devices-range.pdf | BD150: Digital MFD - 31 to 40 CPM (Color)IM C300F
A151: B.2 | B151: 17 | C151: Digital MFD - 31 to 40 CPM (Mono)(Ledger) | D151: MFD | E151: 12000 | F151: Mono | G151: 11 X 17 | H151: Ricoh | I151: MP 3555 ARDF | J151: 417922 | K151: 2026 | L151: 1296 | M151: 828.7602 | N151: =SUM(Table1[[#This Row],[New Device NC Discounted Purchase Price]:[Estimated Consumables Purchases During 3 Year Lifecycle]]) -> 4150.7602 | O151: =Table1[[#This Row],[36-Month Total Lease Payments4]] -> 2126.0844 | P151: =Table1[[#This Row],[Estimated 3 Year Maintenance Agreement Price5]] -> 1447.2 | Q151: 3573.2844 | R151: 12154 | S151: =(Table1[[#This Row],[Device MSRP]]-Table1[[#This Row],[New Device NC Discounted Purchase Price]])/Table1[[#This Row],[Device MSRP]] -> 0.8333059075 | T151: 2026 | U151: 0.59 | V151: 0.38 | W151: 90 day manufacturer defect on-site, excludes consumables | X151: 417922-EXWRNTY | Y151: 2592 | Z151: 0.5 | AA151: 1296 | AB151: 0.02915 | AC151: =Table1[[#This Row],[New Device NC Discounted Purchase Price2]]*Table1[[#This Row],[36-Month Lease Rate Factor (excluding Software)]]*36 -> 2126.0844 | AD151: 0.02416 | AE151: =Table1[[#This Row],[New Device NC Discounted Purchase Price]]*Table1[[#This Row],[48-Month Lease Rate Factor (excluding Software)]]*48 -> 2349.51168 | AF151: 0.02063 | AG151: =Table1[[#This Row],[New Device NC Discounted Purchase Price2]]*Table1[[#This Row],[60-Month Lease Rate Factor (excluding Software)]]*60 -> 2507.7828 | AH151: 0.0333 | AI151: 0.02654 | AJ151: 0.02251 | AK151: 417922-ANGOLD | AL151: 482.4 | AM151: 0 | AN151: 482.4 | AO151: unlimited | AP151: 0 | AR151: 1447.2 | AS151: 281.44 | AT151: Mono | AU151: 11 X 17 | AV151: 100000 | AW151: 35 | AX151: 4.3 | AY151: Yes | AZ151: 1200 | BA151: 1625 | BB151: 2GB | BC151: https://www.ricoh-usa.com/en/search/mp_3555 | BD151: Digital MFD - 31 to 40 CPM (Mono)(Ledger)MP 3555 ARDF
A152: B.2 | B152: 18 | C152: Digital MFD - 31 to 40 CPM (Color)(Ledger) | D152: MFD | E152: 12000 | F152: Color | G152: 11 X 17 | H152: Ricoh | I152: IM C3500 | J152: 418300 | K152: 3598.608 | L152: 2102.4 | M152: 4697.5726 | N152: =SUM(Table1[[#This Row],[New Device NC Discounted Purchase Price]:[Estimated Consumables Purchases During 3 Year Lifecycle]]) -> 10398.5806 | O152: =Table1[[#This Row],[36-Month Total Lease Payments4]] -> 3776.379235 | P152: =Table1[[#This Row],[Estimated 3 Year Maintenance Agreement Price5]] -> 3904.2 | Q152: 7680.579235 | R152: 15405 | S152: =(Table1[[#This Row],[Device MSRP]]-Table1[[#This Row],[New Device NC Discounted Purchase Price2]])/Table1[[#This Row],[Device MSRP]] -> 0.7664 | T152: 3598.608 | U152: 0.59 | V152: 0.38 | W152: 90 day manufacturer defect on-site, excludes consumables | X152: 418300-EXWRNTY | Y152: 4204.8 | Z152: 0.5 | AA152: 2102.4 | AB152: 0.02915 | AC152: =Table1[[#This Row],[New Device NC Discounted Purchase Price2]]*Table1[[#This Row],[36-Month Lease Rate Factor (excluding Software)]]*36 -> 3776.379235 | AD152: 0.02416 | AE152: =Table1[[#This Row],[New Device NC Discounted Purchase Price]]*Table1[[#This Row],[48-Month Lease Rate Factor (excluding Software)]]*48 -> 4173.233725 | AF152: 0.02063 | AG152: =Table1[[#This Row],[New Device NC Discounted Purchase Price2]]*Table1[[#This Row],[60-Month Lease Rate Factor (excluding Software)]]*60 -> 4454.356982 | AH152: 0.0333 | AI152: 0.02654 | AJ152: 0.02251 | AK152: 418300-ANGOLD | AL152: 1301.4 | AM152: 0 | AN152: =Table1[[#This Row],[Annual Maintenance Plan MSRP]] -> 1301.4 | AO152: unlimited | AP152: 0 | AQ152: 0 | AR152: 3904.2 | AS152: 281.44 | AT152: Color | AU152: 11 X 17 | AV152: 20000 | AW152: 35 | AX152: 4.6 | AY152: Yes | AZ152: 1200 | BA152: 500 | BB152: 2GB | BC152: https://www.ricoh-usa.com/en/products/pd/equipment/printers-and-copiers/multifunction-printers-copiers/im-c3500-color-laser-multifunction-printer/_/R-418300 | BD152: Digital MFD - 31 to 40 CPM (Color)(Ledger)IM C3500
A153: C | B153: 19 | C153: Digital MFD - 41 to 54 CPM (Mono) | D153: MFD | E153: 16000 | F153: Mono | G153: 8.5 X 14 | H153: Ricoh | I153: IM 550F | J153: 418458 | K153: 1555.03 | M153: 2906.32 | N153: =SUM(Table1[[#This Row],[New Device NC Discounted Purchase Price]:[Estimated Consumables Purchases During 3 Year Lifecycle]]) -> 4461.35 | O153: =Table1[[#This Row],[36-Month Total Lease Payments4]] -> 1631.848482 | P153: =Table1[[#This Row],[Estimated 3 Year Maintenance Agreement Price5]] -> 990 | Q153: 2621.848482 | R153: 3728 | S153: 0.5829 | T153: 1555.03 | U153: 0.59 | V153: 0.38 | W153: 90 day manufacturer defect on-site, excludes consumables | X153: N/A | AB153: 0.02915 | AC153: =Table1[[#This Row],[New Device NC Discounted Purchase Price2]]*Table1[[#This Row],[36-Month Lease Rate Factor (excluding Software)]]*36 -> 1631.848482 | AD153: 0.02416 | AE153: =Table1[[#This Row],[New Device NC Discounted Purchase Price]]*Table1[[#This Row],[48-Month Lease Rate Factor (excluding Software)]]*48 -> 1803.33719 | AF153: 0.02063 | AG153: =Table1[[#This Row],[New Device NC Discounted Purchase Price2]]*Table1[[#This Row],[60-Month Lease Rate Factor (excluding Software)]]*60 -> 1924.816134 | AH153: 0.0333 | AI153: 0.02654 | AJ153: 0.02251 | AK153: 418458-ANSILVER | AL153: 330 | AM153: 0 | AN153: 330 | AO153: unlimited | AP153: 0 | AR153: 990 | AS153: 281.44 | AT153: Mono | AU153: 8.5 X 14 | AV153: 16000 | AW153: 57 | AX153: 5 | AY153: Yes | AZ153: 2600 | BA153: 500 | BB153: 2GB | BC153: https://www.ricoh-ap.com/sites/www.ricoh-ap.com/files/RICOH%20IM%20550F_IM%20600F_IM%20600SRF%20Brochure_0.pdf | BD153: Digital MFD - 41 to 54 CPM (Mono)IM 550F
A154: C | B154: 20 | C154: Digital MFD - 41 to 54 CPM (Color) | D154: MFD | E154: 16000 | F154: Color | G154: 8.5 X 14 | H154: Ricoh | I154: MPC401 | J154: 416969 | K154: 2207.8707 | L154: 3108.96 | M154: 8870.7492 | N154: =SUM(Table1[[#This Row],[New Device NC Discounted Purchase Price]:[Estimated Consumables Purchases During 3 Year Lifecycle]]) -> 14187.5799 | O154: =Table1[[#This Row],[36-Month Total Lease Payments4]] -> 2316.939513 | P154: =Table1[[#This Row],[Estimated 3 Year Maintenance Agreement Price5]] -> 3963.12 | Q154: 6280.059513 | R154: 6573 | S154: 0.6641 | T154: 2207.8707 | U154: 0.4 | V154: 0.1 | W154: 90 day manufacturer defect on-site, excludes consumables | X154: 416969-EXWRNTY | Y154: 6217.92 | Z154: 0.5 | AA154: 3108.96 | AB154: 0.02915 | AC154: =Table1[[#This Row],[New Device NC Discounted Purchase Price2]]*Table1[[#This Row],[36-Month Lease Rate Factor (excluding Software)]]*36 -> 2316.939513 | AD154: 0.02416 | AE154: =Table1[[#This Row],[New Device NC Discounted Purchase Price]]*Table1[[#This Row],[48-Month Lease Rate Factor (excluding Software)]]*48 -> 2560.423493 | AF154: 0.02063 | AG154: =Table1[[#This Row],[New Device NC Discounted Purchase Price2]]*Table1[[#This Row],[60-Month Lease Rate Factor (excluding Software)]]*60 -> 2732.902352 | AH154: 0.0333 | AI154: 0.02654 | AJ154: 0.02251 | AK154: 416969-ANGOLD | AL154: 1321.04 | AM154: 0 | AN154: 1321.04 | AO154: unlimited | AP154: 0 | AQ154: 0 | AR154: 3963.12 | AS154: 281.44 | AT154: Color | AU154: 8.5 X 14 | AV154: 20000 | AW154: 42 | AX154: 8.3 | AY154: Yes | AZ154: 2300 | BA154: 500 | BB154: 2GB | BC154: https://www.ricoh-usa.com/en/products/pd/mp-c401-color-laser-multifunction-printer/_/R-416969 | BD154: Digital MFD - 41 to 54 CPM (Color)MPC401
A155: C | B155: 21 | C155: Digital MFD - 41 to 54 CPM (Mono)(Ledger) | D155: MFD | E155: 16000 | F155: Mono | G155: 11 X 17 | H155: Ricoh | I155: MP 5055SP | J155: 417766 | K155: 3206.15 | L155: 1890 | M155: 1009.05 | N155: =SUM(Table1[[#This Row],[New Device NC Discounted Purchase Price]:[Estimated Consumables Purchases During 3 Year Lifecycle]]) -> 6105.2 | O155: =Table1[[#This Row],[36-Month Total Lease Payments4]] -> 3364.53381 | P155: =Table1[[#This Row],[Estimated 3 Year Maintenance Agreement Price5]] -> 2808 | Q155: 6172.53381 | R155: 16177 | S155: =(Table1[[#This Row],[Device MSRP]]-Table1[[#This Row],[New Device NC Discounted Purchase Price]])/Table1[[#This Row],[Device MSRP]] -> 0.8018081226 | T155: 3206.15 | U155: 0.59 | V155: 0.1 | W155: 90 day manufacturer defect on-site, excludes consumables | X155: 417766-EXWRNTY | Y155: 3780 | Z155: 0.5 | AA155: 1890 | AB155: 0.02915 | AC155: =Table1[[#This Row],[New Device NC Discounted Purchase Price2]]*Table1[[#This Row],[36-Month Lease Rate Factor (excluding Software)]]*36 -> 3364.53381 | AD155: 0.02416 | AE155: =Table1[[#This Row],[New Device NC Discounted Purchase Price]]*Table1[[#This Row],[48-Month Lease Rate Factor (excluding Software)]]*48 -> 3718.108032 | AF155: 0.02063 | AG155: =Table1[[#This Row],[New Device NC Discounted Purchase Price2]]*Table1[[#This Row],[60-Month Lease Rate Factor (excluding Software)]]*60 -> 3968.57247 | AH155: 0.0333 | AI155: 0.02654 | AJ155: 0.02251 | AK155: 417766-ANGOLD | AL155: 936 | AM155: 0 | AN155: 936 | AO155: unlimited | AP155: 0 | AR155: 2808 | AS155: 281.44 | AT155: Mono | AU155: 11 X 17 | AV155: 200000 | AW155: 50 | AX155: 2.9 | AY155: Yes | AZ155: 4700 | BA155: 3625 | BB155: 2GB | BC155: https://www.ricoh-usa.com/en/search/5055 | BD155: Digital MFD - 41 to 54 CPM (Mono)(Ledger)MP 5055SP
A156: C | B156: 22 | C156: Digital MFD - 41 to 54 CPM (Color)(Ledger) | D156: MFD | E156: 16000 | F156: Color | G156: 11 X 17 | H156: Ricoh | I156: IM C4500 | J156: 418309 | K156: 3595.8876 | L156: 2828.16 | M156: 5424.4668 | N156: =SUM(Table1[[#This Row],[New Device NC Discounted Purchase Price]:[Estimated Consumables Purchases During 3 Year Lifecycle]]) -> 11848.5144 | O156: =Table1[[#This Row],[36-Month Total Lease Payments4]] -> 3773.524447 | P156: =Table1[[#This Row],[Estimated 3 Year Maintenance Agreement Price5]] -> 4932 | Q156: 8705.524447 | R156: 18309 | S156: =(Table1[[#This Row],[Device MSRP]]-Table1[[#This Row],[New Device NC Discounted Purchase Price2]])/Table1[[#This Row],[Device MSRP]] -> 0.8036 | T156: 3595.8876 | U156: 0.3 | V156: 0.1 | W156: 90 day manufacturer defect on-site, excludes consumables | X156: 418309-EXWRNTY | Y156: 5656.32 | Z156: 0.5 | AA156: 2828.16 | AB156: 0.02915 | AC156: =Table1[[#This Row],[New Device NC Discounted Purchase Price2]]*Table1[[#This Row],[36-Month Lease Rate Factor (excluding Software)]]*36 -> 3773.524447 | AD156: 0.02416 | AE156: =Table1[[#This Row],[New Device NC Discounted Purchase Price]]*Table1[[#This Row],[48-Month Lease Rate Factor (excluding Software)]]*48 -> 4170.078932 | AF156: 0.02063 | AG156: =Table1[[#This Row],[New Device NC Discounted Purchase Price2]]*Table1[[#This Row],[60-Month Lease Rate Factor (excluding Software)]]*60 -> 4450.989671 | AH156: 0.0333 | AI156: 0.02654 | AJ156: 0.02251 | AK156: 418309-ANGOLD | AL156: 1644 | AM156: 0 | AN156: =Table1[[#This Row],[Annual Maintenance Plan MSRP]] -> 1644 | AO156: unlimited | AP156: 0 | AQ156: 0 | AR156: 4932 | AS156: 281.44 | AT156: Color | AU156: 11 X 17 | AV156: 50000 | AW156: 45 | AX156: 4 | AY156: Yes | AZ156: 1200 | BA156: 500 | BB156: 2GB | BC156: https://www.ricoh-usa.com/en/products/pd/equipment/printers-and-copiers/multifunction-printers-copiers/im-c4500-color-laser-multifunction-printer/_/R-418309 | BD156: Digital MFD - 41 to 54 CPM (Color)(Ledger)IM C4500
A157: C | B157: 23 | C157: Digital MFD - 55 to 69 CPM (Mono) | D157: MFD | E157: 25000 | F157: Mono | G157: 8.5 X 14 | H157: Ricoh | I157: MP601SPF | J157: 407812 | K157: 1964.0112 | M157: 2929.5 | N157: =SUM(Table1[[#This Row],[New Device NC Discounted Purchase Price]:[Estimated Consumables Purchases During 3 Year Lifecycle]]) -> 4893.5112 | O157: =Table1[[#This Row],[36-Month Total Lease Payments4]] -> 2061.033353 | P157: =Table1[[#This Row],[Estimated 3 Year Maintenance Agreement Price5]] -> 1287 | Q157: 3348.033353 | R157: 4728 | S157: 0.5846 | T157: 1964.0112 | U157: 0.59 | V157: 0.1 | W157: No warranty included | X157: N/A | AB157: 0.02915 | AC157: =Table1[[#This Row],[New Device NC Discounted Purchase Price2]]*Table1[[#This Row],[36-Month Lease Rate Factor (excluding Software)]]*36 -> 2061.033353 | AD157: 0.02416 | AE157: =Table1[[#This Row],[New Device NC Discounted Purchase Price]]*Table1[[#This Row],[48-Month Lease Rate Factor (excluding Software)]]*48 -> 2277.624508 | AF157: 0.02063 | AG157: =Table1[[#This Row],[New Device NC Discounted Purchase Price2]]*Table1[[#This Row],[60-Month Lease Rate Factor (excluding Software)]]*60 -> 2431.053063 | AH157: 0.0333 | AI157: 0.02654 | AJ157: 0.02251 | AK157: 407812-ANGOLD | AL157: 429 | AM157: 0 | AN157: 429 | AO157: unlimited | AP157: 0 | AR157: 1287 | AS157: 281.44 | AT157: Mono | AU157: 8.5 X 14 | AV157: 16600 | AW157: 62 | AX157: 6 | AY157: Yes | AZ157: 2600 | BA157: 500 | BB157: 2GB | BC157: https://www.ricoh-usa.com/en/products/pd/mp-601spf-black-and-white-laser-multifunction-printer/_/R-407812 | BD157: Digital MFD - 55 to 69 CPM (Mono)MP601SPF
A158: D | B158: 24 | C158: Digital MFD - 55 to 69 CPM (Mono)(Ledger) | D158: MFD | E158: 25000 | F158: Mono | G158: 11 X 17 | H158: Ricoh | I158: MP 6055SP | J158: 417776 | K158: 3892.53 | L158: 2268 | M158: 1614.48 | N158: =SUM(Table1[[#This Row],[New Device NC Discounted Purchase Price]:[Estimated Consumables Purchases During 3 Year Lifecycle]]) -> 7775.01 | O158: =Table1[[#This Row],[36-Month Total Lease Payments4]] -> 4084.820982 | P158: =Table1[[#This Row],[Estimated 3 Year Maintenance Agreement Price5]] -> 3960 | Q158: 8044.820982 | R158: 21274 | S158: =(Table1[[#This Row],[Device MSRP]]-Table1[[#This Row],[New Device NC Discounted Purchase Price]])/Table1[[#This Row],[Device MSRP]] -> 0.8170287675 | T158: 3892.53 | U158: 0.59 | V158: 0.1 | W158: 90 day manufacturer defect on-site, excludes consumables | X158: 417776-EXWRNTY | Y158: 4536 | Z158: 0.5 | AA158: 2268 | AB158: 0.02915 | AC158: =Table1[[#This Row],[New Device NC Discounted Purchase Price2]]*Table1[[#This Row],[36-Month Lease Rate Factor (excluding Software)]]*36 -> 4084.820982 | AD158: 0.02416 | AE158: =Table1[[#This Row],[New Device NC Discounted Purchase Price]]*Table1[[#This Row],[48-Month Lease Rate Factor (excluding Software)]]*48 -> 4514.08919 | AF158: 0.02063 | AG158: =Table1[[#This Row],[New Device NC Discounted Purchase Price2]]*Table1[[#This Row],[60-Month Lease Rate Factor (excluding Software)]]*60 -> 4818.173634 | AH158: 0.0333 | AI158: 0.02654 | AJ158: 0.02251 | AK158: 417776-ANGOLD | AL158: 1320 | AM158: 0 | AN158: 1320 | AO158: unlimited | AP158: 0 | AR158: 3960 | AS158: 281.44 | AT158: Mono | AU158: 11 X 17 | AV158: 200000 | AW158: 60 | AX158: 2.9 | AY158: Yes | AZ158: 4700 | BA158: 3625 | BB158: 2GB | BC158: https://www.ricoh-usa.com/en/search/6055 | BD158: Digital MFD - 55 to 69 CPM (Mono)(Ledger)MP 6055SP
A159: D | B159: 25 | C159: Digital MFD - 55 to 69 CPM (Color)(Ledger) | D159: MFD | E159: 25000 | F159: Color | G159: 11 X 17 | H159: Ricoh | I159: IM C6000 | J159: 418320 | K159: 4306.051 | L159: 4617.36 | M159: 8941.0572 | N159: =SUM(Table1[[#This Row],[New Device NC Discounted Purchase Price]:[Estimated Consumables Purchases During 3 Year Lifecycle]]) -> 17864.4682 | O159: =Table1[[#This Row],[36-Month Total Lease Payments4]] -> 4518.769919 | P159: =Table1[[#This Row],[Estimated 3 Year Maintenance Agreement Price5]] -> 7040.16 | Q159: 11558.92992 | R159: 22265 | S159: =(Table1[[#This Row],[Device MSRP]]-Table1[[#This Row],[New Device NC Discounted Purchase Price2]])/Table1[[#This Row],[Device MSRP]] -> 0.8066 | T159: 4306.051 | U159: 0.3 | V159: 0.1 | W159: 90 day manufacturer defect on-site, excludes consumables | X159: 418320-EXWRNTY | Y159: 9234.72 | Z159: 0.5 | AA159: 4617.36 | AB159: 0.02915 | AC159: =Table1[[#This Row],[New Device NC Discounted Purchase Price2]]*Table1[[#This Row],[36-Month Lease Rate Factor (excluding Software)]]*36 -> 4518.769919 | AD159: 0.02416 | AE159: =Table1[[#This Row],[New Device NC Discounted Purchase Price]]*Table1[[#This Row],[48-Month Lease Rate Factor (excluding Software)]]*48 -> 4993.641224 | AF159: 0.02063 | AG159: =Table1[[#This Row],[New Device NC Discounted Purchase Price2]]*Table1[[#This Row],[60-Month Lease Rate Factor (excluding Software)]]*60 -> 5330.029928 | AH159: 0.0333 | AI159: 0.02654 | AJ159: 0.02251 | AK159: 418320-ANGOLD | AL159: 2346.72 | AM159: 0 | AN159: =Table1[[#This Row],[Annual Maintenance Plan MSRP]] -> 2346.72 | AO159: unlimited | AP159: 0 | AQ159: 0 | AR159: 7040.16 | AS159: 281.44 | AT159: Color | AU159: 11 X 17 | AV159: 50000 | AW159: 60 | AX159: 4 | AY159: Yes | AZ159: 1200 | BA159: 500 | BB159: 2GB | BC159: https://www.ricoh-usa.com/en/products/pd/equipment/printers-and-copiers/multifunction-printers-copiers/im-c6000-color-laser-multifunction-printer/_/R-418320 | BD159: Digital MFD - 55 to 69 CPM (Color)(Ledger)IM C6000
A160: D | B160: 26 | C160: Digital MFD - 70 to 90 CPM (Mono) | D160: MFD | E160: 50000 | F160: Mono | G160: 8.5 X 14 | H160: Ricoh | I160: MP7503 | J160: 417610 | K160: 7352.9628 | L160: 2700 | M160: 2477.768 | N160: =SUM(Table1[[#This Row],[New Device NC Discounted Purchase Price]:[Estimated Consumables Purchases During 3 Year Lifecycle]]) -> 12530.7308 | O160: =Table1[[#This Row],[36-Month Total Lease Payments4]] -> 7716.199162 | P160: =Table1[[#This Row],[Estimated 3 Year Maintenance Agreement Price5]] -> 4595.4 | Q160: 12311.59916 | R160: 30999 | S160: 0.7628 | T160: 7352.9628 | U160: 0.59 | V160: 0.1 | W160: 90 day manufacturer defect on-site, excludes consumables | X160: 417610-EXWRNTY | Y160: 5400 | Z160: 0.5 | AA160: 2700 | AB160: 0.02915 | AC160: =Table1[[#This Row],[New Device NC Discounted Purchase Price2]]*Table1[[#This Row],[36-Month Lease Rate Factor (excluding Software)]]*36 -> 7716.199162 | AD160: 0.02416 | AE160: =Table1[[#This Row],[New Device NC Discounted Purchase Price]]*Table1[[#This Row],[48-Month Lease Rate Factor (excluding Software)]]*48 -> 8527.0839 | AF160: 0.02063 | AG160: =Table1[[#This Row],[New Device NC Discounted Purchase Price2]]*Table1[[#This Row],[60-Month Lease Rate Factor (excluding Software)]]*60 -> 9101.497354 | AH160: 0.0333 | AI160: 0.02654 | AJ160: 0.02251 | AK160: 417610-ANGOLD | AL160: 1531.8 | AM160: 0 | AN160: 1531.8 | AO160: unlimited | AP160: 0 | AR160: 4595.4 | AS160: 281.44 | AT160: Mono | AU160: 11 X 17 | AV160: 150000 | AW160: 75 | AX160: 3.2 | AY160: Yes | AZ160: 4300 | BA160: 500 | BB160: 2GB | BC160: https://www.ricoh-usa.com/en/products/pd/mp-7503-black-and-white-multifunction-printer/_/R-417610 | BD160: Digital MFD - 70 to 90 CPM (Mono)MP7503
A161: D | B161: 27 | C161: Digital MFD - 70 to 90 CPM (Mono)(Ledger) | D161: MFD | E161: 50000 | F161: Mono | G161: 11 X 17 | H161: Ricoh | I161: MP7503 | J161: 417610 | K161: 7352.9628 | L161: 2700 | M161: 2477.768 | N161: =SUM(Table1[[#This Row],[New Device NC Discounted Purchase Price]:[Estimated Consumables Purchases During 3 Year Lifecycle]]) -> 12530.7308 | O161: =Table1[[#This Row],[36-Month Total Lease Payments4]] -> 7716.199162 | P161: =Table1[[#This Row],[Estimated 3 Year Maintenance Agreement Price5]] -> 4595.4 | Q161: 12311.59916 | R161: 30999 | S161: 0.7628 | T161: 7352.9628 | U161: 0.59 | V161: 0.1 | W161: 90 day manufacturer defect on-site, excludes consumables | X161: 417610-EXWRNTY | Y161: 5400 | Z161: 0.5 | AA161: 2700 | AB161: 0.02915 | AC161: =Table1[[#This Row],[New Device NC Discounted Purchase Price2]]*Table1[[#This Row],[36-Month Lease Rate Factor (excluding Software)]]*36 -> 7716.199162 | AD161: 0.02416 | AE161: =Table1[[#This Row],[New Device NC Discounted Purchase Price]]*Table1[[#This Row],[48-Month Lease Rate Factor (excluding Software)]]*48 -> 8527.0839 | AF161: 0.02063 | AG161: =Table1[[#This Row],[New Device NC Discounted Purchase Price2]]*Table1[[#This Row],[60-Month Lease Rate Factor (excluding Software)]]*60 -> 9101.497354 | AH161: 0.0333 | AI161: 0.02654 | AJ161: 0.02251 | AK161: 417610-ANGOLD | AL161: 1531.8 | AM161: 0 | AN161: 1531.8 | AO161: unlimited | AP161: 0 | AR161: 4595.4 | AS161: 281.44 | AT161: Mono | AU161: 11 X 17 | AV161: 150000 | AW161: 75 | AX161: 3.2 | AY161: Yes | AZ161: 4300 | BA161: 500 | BB161: 2GB | BC161: https://www.ricoh-usa.com/en/products/pd/mp-7503-black-and-white-multifunction-printer/_/R-417610 | BD161: Digital MFD - 70 to 90 CPM (Mono)(Ledger)MP7503
A162: D | B162: 28 | C162: Digital MFD - 70 to 90 CPM (Color)(Ledger) | D162: MFD | E162: 50000 | F162: Color | G162: 11 X 17 | H162: Ricoh | I162: MPC 8003 | J162: 417673 | K162: 7304.57 | L162: 10901.52 | M162: 17905.6 | N162: =SUM(Table1[[#This Row],[New Device NC Discounted Purchase Price]:[Estimated Consumables Purchases During 3 Year Lifecycle]]) -> 36111.69 | O162: =Table1[[#This Row],[36-Month Total Lease Payments4]] -> 7665.415758 | P162: =Table1[[#This Row],[Estimated 3 Year Maintenance Agreement Price5]] -> 13999.53 | Q162: 21664.94576 | R162: 49704 | S162: =(Table1[[#This Row],[Device MSRP]]-Table1[[#This Row],[New Device NC Discounted Purchase Price]])/Table1[[#This Row],[Device MSRP]] -> 0.8530385884 | T162: 7304.57 | U162: 0.3 | V162: 0.1 | W162: 90 day manufacturer defect on-site, excludes consumables | X162: 417673-EXWRNTY | Y162: 21803.04 | Z162: 0.5 | AA162: 10901.52 | AB162: 0.02915 | AC162: =Table1[[#This Row],[New Device NC Discounted Purchase Price2]]*Table1[[#This Row],[36-Month Lease Rate Factor (excluding Software)]]*36 -> 7665.415758 | AD162: 0.02416 | AE162: =Table1[[#This Row],[New Device NC Discounted Purchase Price]]*Table1[[#This Row],[48-Month Lease Rate Factor (excluding Software)]]*48 -> 8470.963738 | AF162: 0.02063 | AG162: =Table1[[#This Row],[New Device NC Discounted Purchase Price2]]*Table1[[#This Row],[60-Month Lease Rate Factor (excluding Software)]]*60 -> 9041.596746 | AH162: 0.0333 | AI162: 0.02654 | AJ162: 0.02251 | AK162: 417673-ANGOLD | AL162: 4666.51 | AM162: 0 | AN162: 4666.51 | AO162: unlimited | AP162: 0 | AQ162: 0 | AR162: 13999.53 | AS162: 281.44 | AT162: Color | AU162: 11 X 17 | AV162: 300000 | AW162: 80 | AX162: 4.7 | AY162: Yes | AZ162: 3700 | BA162: 500 | BB162: 4GB | BC162: https://www.ricoh-usa.com/en/search/c8003 | BD162: Digital MFD - 70 to 90 CPM (Color)(Ledger)MPC 8003
A163: E | B163: 29 | C163: Digital Production Printer/Copier - 70 to 90 CPM (Color)(Ledger) | D163: Production | F163: Color | G163: 11 X 17 | H163: Ricoh | I163: PRO C5310S | J163: 409393 | K163: 32625 | N163: =SUM(Table1[[#This Row],[New Device NC Discounted Purchase Price]:[Estimated Consumables Purchases During 3 Year Lifecycle]]) -> 32625 | O163: =Table1[[#This Row],[36-Month Total Lease Payments4]] -> 34236.675 | P163: =Table1[[#This Row],[Estimated 3 Year Maintenance Agreement Price5]] -> 0 | Q163: 34236.675 | R163: 66999 | S163: 0.5131 | T163: 32625 | U163: Varies | V163: N/A | W163: 90 day manufacturer defect on-site, excludes consumables | X163: N/A | Y163: N/A | Z163: N/A | AA163: N/A | AB163: 0.02915 | AC163: =Table1[[#This Row],[New Device NC Discounted Purchase Price2]]*Table1[[#This Row],[36-Month Lease Rate Factor (excluding Software)]]*36 -> 34236.675 | AD163: 0.02416 | AE163: =Table1[[#This Row],[New Device NC Discounted Purchase Price]]*Table1[[#This Row],[48-Month Lease Rate Factor (excluding Software)]]*48 -> 37834.56 | AF163: 0.02063 | AG163: =Table1[[#This Row],[New Device NC Discounted Purchase Price2]]*Table1[[#This Row],[60-Month Lease Rate Factor (excluding Software)]]*60 -> 40383.225 | AH163: 0.0333 | AI163: 0.02654 | AJ163: 0.02251 | AK163: 409393-CPCGOLD | AO163: 0 | AP163: 0.009 | AQ163: 0.0425 | AR163: =IFERROR(IF(F163="Mono",((AN163*3)+((E163*36)*AP163)),((AN163*3)+((E163*36)*AP163*0.62)+((E163*36)*AQ163*0.38))),"") -> 0 | AS163: 281.44 | AT163: Color | AU163: 11 X 17 | AV163: 150000 | AW163: 80 | AX163: 5 | AY163: Yes | AZ163: 3850 | BA163: 8550 | BB163: 4GB | BC163: https://www.ricoh-usa.com/-/media/ricoh/sites/ca/pdfs/brochures/proc5300s_en_ca.pdf?tm=20200512T145121Z | BD163: =CONCATENATE(C163,I163) -> Digital Production Printer/Copier - 70 to 90 CPM (Color)(Ledger)PRO C5310S
A164: E | B164: 30 | C164: Digital Production Printer/Copier - 91 to 119 CPM (Mono)(Ledger) | D164: Production | F164: Mono | G164: 11 X 17 | H164: Ricoh | I164: Pro 8300s | J164: 409236 | K164: 22249.5 | N164: =SUM(Table1[[#This Row],[New Device NC Discounted Purchase Price]:[Estimated Consumables Purchases During 3 Year Lifecycle]]) -> 22249.5 | O164: =Table1[[#This Row],[36-Month Total Lease Payments4]] -> 23348.6253 | P164: =Table1[[#This Row],[Estimated 3 Year Maintenance Agreement Price5]] -> 0 | Q164: 23348.6253 | R164: 46999 | S164: 0.5266 | T164: 22249.5 | U164: Varies | V164: N/A | W164: 90 day manufacturer defect on-site, excludes consumables | X164: N/A | Y164: N/A | Z164: N/A | AA164: N/A | AB164: 0.02915 | AC164: =Table1[[#This Row],[New Device NC Discounted Purchase Price2]]*Table1[[#This Row],[36-Month Lease Rate Factor (excluding Software)]]*36 -> 23348.6253 | AD164: 0.02416 | AE164: =Table1[[#This Row],[New Device NC Discounted Purchase Price]]*Table1[[#This Row],[48-Month Lease Rate Factor (excluding Software)]]*48 -> 25802.30016 | AF164: 0.02063 | AG164: =Table1[[#This Row],[New Device NC Discounted Purchase Price2]]*Table1[[#This Row],[60-Month Lease Rate Factor (excluding Software)]]*60 -> 27540.4311 | AH164: 0.0333 | AI164: 0.02654 | AJ164: 0.02251 | AK164: N/A | AO164: 0 | AP164: 0.005 | AR164: 0 | AS164: 281.44 | AT164: Mono | AU164: 11 X 17 | AV164: 240000 | AW164: 96 | AX164: 6.3 | AY164: Yes | AZ164: 3300 | BA164: 3000 | BB164: 2GB | BC164: https://www.ricoh-usa.com/en/products/commercial-industrial-printing/cutsheet/pro-8300s | BD164: Digital Production Printer/Copier - 91 to 119 CPM (Mono)(Ledger)Pro 8300s
A165: E | B165: 31 | C165: Digital Production Printer/Copier - 91 to 119 CPM (Color)(Ledger) | D165: Production | F165: Color | G165: 11 X 17 | H165: Ricoh | I165: Pro C7210S | J165: 409159 | K165: 53806 | N165: =SUM(Table1[[#This Row],[New Device NC Discounted Purchase Price]:[Estimated Consumables Purchases During 3 Year Lifecycle]]) -> 53806 | O165: =Table1[[#This Row],[36-Month Total Lease Payments4]] -> 56464.0164 | P165: =Table1[[#This Row],[Estimated 3 Year Maintenance Agreement Price5]] -> 0 | Q165: 56464.0164 | R165: 107612 | S165: 0.5 | T165: 53806 | U165: Varies | V165: N/A | W165: 90 day manufacturer defect on-site, excludes consumables | X165: N/A | Y165: N/A | Z165: N/A | AA165: N/A | AB165: 0.02915 | AC165: =Table1[[#This Row],[New Device NC Discounted Purchase Price2]]*Table1[[#This Row],[36-Month Lease Rate Factor (excluding Software)]]*36 -> 56464.0164 | AD165: 0.02416 | AE165: =Table1[[#This Row],[New Device NC Discounted Purchase Price]]*Table1[[#This Row],[48-Month Lease Rate Factor (excluding Software)]]*48 -> 62397.74208 | AF165: 0.02063 | AG165: =Table1[[#This Row],[New Device NC Discounted Purchase Price2]]*Table1[[#This Row],[60-Month Lease Rate Factor (excluding Software)]]*60 -> 66601.0668 | AH165: 0.0333 | AI165: 0.02654 | AJ165: 0.02251 | AK165: 409159-GOLD | AO165: 0 | AP165: 0.008 | AQ165: 0.0425 | AR165: 0 | AS165: 281.44 | AT165: Color | AU165: 11 X 17 | AV165: 240000 | AW165: 95 | AX165: 11 | AY165: Yes | AZ165: 2500 | BA165: 3000 | BB165: 8 GB | BC165: https://www.ricoh-ap.com/sites/www.ricoh-ap.com/files/Ricoh%20Pro%20C7200sx%20Brochure_0.pdf | BD165: Digital Production Printer/Copier - 91 to 119 CPM (Color)(Ledger)Pro C7210S
A166: E | B166: 32 | C166: Digital Production Printer/Copier - 120 to 139 CPM (Mono)(Ledger) | D166: Production | F166: Mono | G166: 11 X 17 | H166: Ricoh | I166: Pro 8320 | J166: 409240 | K166: 30499.5 | N166: =SUM(Table1[[#This Row],[New Device NC Discounted Purchase Price]:[Estimated Consumables Purchases During 3 Year Lifecycle]]) -> 30499.5 | O166: =Table1[[#This Row],[36-Month Total Lease Payments4]] -> 32006.1753 | P166: =Table1[[#This Row],[Estimated 3 Year Maintenance Agreement Price5]] -> 0 | Q166: 32006.1753 | R166: 64999 | S166: 0.5271 | T166: 30499.5 | U166: Varies | V166: N/A | W166: 90 day manufacturer defect on-site, excludes consumables | X166: N/A | Y166: N/A | Z166: N/A | AA166: N/A | AB166: 0.02915 | AC166: =Table1[[#This Row],[New Device NC Discounted Purchase Price2]]*Table1[[#This Row],[36-Month Lease Rate Factor (excluding Software)]]*36 -> 32006.1753 | AD166: 0.02416 | AE166: =Table1[[#This Row],[New Device NC Discounted Purchase Price]]*Table1[[#This Row],[48-Month Lease Rate Factor (excluding Software)]]*48 -> 35369.66016 | AF166: 0.02063 | AG166: =Table1[[#This Row],[New Device NC Discounted Purchase Price2]]*Table1[[#This Row],[60-Month Lease Rate Factor (excluding Software)]]*60 -> 37752.2811 | AH166: 0.0333 | AI166: 0.02654 | AJ166: 0.02251 | AK166: N/A | AO166: 0 | AP166: 0.005 | AR166: 0 | AS166: 281.44 | AT166: Mono | AU166: 11 X 17 | AV166: 240000 | AW166: 136 | AX166: 4.6 | AY166: Yes | AZ166: 3300 | BA166: 3000 | BB166: 2GB | BC166: https://www.ricoh-usa.com/en/products/commercial-industrial-printing/cutsheet/pro-8300s | BD166: Digital Production Printer/Copier - 120 to 139 CPM (Mono)(Ledger)Pro 8320
A167: E | B167: 33 | C167: Digital Production Printer/Copier - 120 to 139 CPM (Color)(Ledger) | D167: Production | F167: Color | G167: 11 X 17 | H167: Ricoh | I167: Pro C9210 Entrance unit | J167: 409072 | K167: 95760 | N167: =SUM(Table1[[#This Row],[New Device NC Discounted Purchase Price]:[Estimated Consumables Purchases During 3 Year Lifecycle]]) -> 95760 | O167: =Table1[[#This Row],[36-Month Total Lease Payments4]] -> 100490.544 | P167: =Table1[[#This Row],[Estimated 3 Year Maintenance Agreement Price5]] -> 0 | Q167: 100490.544 | R167: 191520 | S167: 0.5 | T167: 95760 | U167: Varies | V167: N/A | W167: 90 day manufacturer defect on-site, excludes consumables | X167: N/A | Y167: N/A | Z167: N/A | AA167: N/A | AB167: 0.02915 | AC167: =Table1[[#This Row],[New Device NC Discounted Purchase Price2]]*Table1[[#This Row],[36-Month Lease Rate Factor (excluding Software)]]*36 -> 100490.544 | AD167: 0.02416 | AE167: =Table1[[#This Row],[New Device NC Discounted Purchase Price]]*Table1[[#This Row],[48-Month Lease Rate Factor (excluding Software)]]*48 -> 111050.9568 | AF167: 0.02063 | AG167: =Table1[[#This Row],[New Device NC Discounted Purchase Price2]]*Table1[[#This Row],[60-Month Lease Rate Factor (excluding Software)]]*60 -> 118531.728 | AH167: 0.0333 | AI167: 0.02654 | AJ167: 0.02251 | AK167: 409072-GOLD | AO167: 0 | AP167: 0.007 | AQ167: 0.0425 | AR167: 0 | AS167: 281.44 | AT167: Color | AU167: 11 X 17 | AV167: 1750000 | AW167: 135 | AX167: 22 | AY167: Yes | AZ167: 4400 | BA167: 3000 | BB167: 16GB | BC167: https://www.ricoh-usa.com/en/products/commercial-industrial-printing/cutsheet/pro-c9200-c9210-graphic-arts-series | BD167: Digital Production Printer/Copier - 120 to 139 CPM (Color)(Ledger)Pro C9210 Entrance unit
A168: B.2 | B168: 12 | C168: Digital MFD - 14 to 30 CPM (Color) | D168: MFD | E168: 2500 | F168: Color | G168: 8.5 X 14 | H168: Sharp | I168: MX-C300W | J168: MX-C300W-12 | K168: 1248.75 | L168: 990 | M168: 1225 | N168: =SUM(Table1[[#This Row],[New Device NC Discounted Purchase Price]:[Estimated Consumables Purchases During 3 Year Lifecycle]]) -> 3463.75 | O168: =Table1[[#This Row],[36-Month Total Lease Payments4]] -> 1390.0086 | P168: =Table1[[#This Row],[Estimated 3 Year Maintenance Agreement Price5]] -> 2976.3 | Q168: 4366.3086 | R168: 3375 | S168: 0.63 | T168: 1248.75 | U168: 0.63 | V168: 100% with Purchase of Maintenance Plan | W168: 90 days | X168: MX-C300W-12 | Y168: 990 | Z168: 0 | AA168: 990 | AB168: 0.03092 | AC168: =Table1[[#This Row],[New Device NC Discounted Purchase Price2]]*Table1[[#This Row],[36-Month Lease Rate Factor (excluding Software)]]*36 -> 1390.0086 | AD168: 0.02455 | AE168: =Table1[[#This Row],[New Device NC Discounted Purchase Price]]*Table1[[#This Row],[48-Month Lease Rate Factor (excluding Software)]]*48 -> 1471.527 | AF168: 0.02076 | AG168: =Table1[[#This Row],[New Device NC Discounted Purchase Price2]]*Table1[[#This Row],[60-Month Lease Rate Factor (excluding Software)]]*60 -> 1555.443 | AH168: 0.03092 | AI168: 0.02455 | AJ168: 0.02076 | AK168: MX-C300W-12 | AL168: 0 | AM168: 0 | AN168: 0 | AO168: 0 | AP168: 0.0135 | AQ168: 0.065 | AR168: 2976.3 | AS168: 0 | AT168: Color | AU168: 8.5 X 14 | AV168: 2500 | AW168: 30 | AX168: 10 | AY168: Yes | AZ168: 300 | BA168: 150 | BB168: 512MB | BC168: http://www.sharpgov.com/nc/NorthCarolinaContractExtension/tabid/2874/Default.aspx | BD168: Digital MFD - 14 to 30 CPM (Color)MX-C300W
A169: B.2 | B169: 13 | C169: Digital MFD - 21 to 30 CPM (Mono)(Ledger) | D169: MFD | E169: 4000 | F169: Mono | G169: 11 X 17 | H169: Sharp | I169: MX-M2651 | J169: MX-M2651 | K169: 3361.82 | L169: 1320 | M169: 198 | N169: =SUM(Table1[[#This Row],[New Device NC Discounted Purchase Price]:[Estimated Consumables Purchases During 3 Year Lifecycle]]) -> 4879.82 | O169: =Table1[[#This Row],[36-Month Total Lease Payments4]] -> 3742.109078 | P169: =Table1[[#This Row],[Estimated 3 Year Maintenance Agreement Price5]] -> 1440 | Q169: 5182.109078 | R169: 9300 | S169: 0.6385139785 | T169: 3361.82 | U169: 0.63 | V169: 100% with Purchase of Maintenance Plan | W169: 90 days | X169: MX-M2651-13 | Y169: 1320 | Z169: 0 | AA169: 1320 | AB169: 0.03092 | AC169: =Table1[[#This Row],[New Device NC Discounted Purchase Price2]]*Table1[[#This Row],[36-Month Lease Rate Factor (excluding Software)]]*36 -> 3742.109078 | AD169: 0.02455 | AE169: =Table1[[#This Row],[New Device NC Discounted Purchase Price]]*Table1[[#This Row],[48-Month Lease Rate Factor (excluding Software)]]*48 -> 3961.568688 | AF169: 0.02076 | AG169: =Table1[[#This Row],[New Device NC Discounted Purchase Price2]]*Table1[[#This Row],[60-Month Lease Rate Factor (excluding Software)]]*60 -> 4187.482992 | AH169: 0.03092 | AI169: 0.02455 | AJ169: 0.02076 | AK169: MX-M2651-13 | AL169: 0 | AM169: 0 | AN169: 0 | AO169: 0 | AP169: 0.01 | AR169: 1440 | AS169: 350 | AT169: Mono | AU169: 11 X 17 | AV169: 7000 | AW169: 26 | AX169: 5 | AY169: Yes | AZ169: 650 | BA169: 250 | BB169: 5 GB | BC169: http://siica.sharpusa.com/portals/0/downloads/Literature/MX_M2651_Spec_Sheet.pdf | BD169: Digital MFD - 21 to 30 CPM (Mono)(Ledger)MX-M2651
A170: B.2 | B170: 14 | C170: Digital MFD - 21 to 30 CPM (Color)(Ledger) | D170: MFD | E170: 4000 | F170: Color | G170: 11 X 17 | H170: Sharp | I170: MX-2616N | J170: MX-2616N-14 | K170: 4003.4 | L170: 990 | M170: 1171.5 | N170: =SUM(Table1[[#This Row],[New Device NC Discounted Purchase Price]:[Estimated Consumables Purchases During 3 Year Lifecycle]]) -> 6164.9 | O170: =Table1[[#This Row],[36-Month Total Lease Payments4]] -> 4456.264608 | P170: =Table1[[#This Row],[Estimated 3 Year Maintenance Agreement Price5]] -> 4553.28 | Q170: 9009.544608 | R170: 10820 | S170: 0.63 | T170: 4003.4 | U170: 0.63 | V170: 100% with Purchase of Maintenance Plan | W170: 90 days | X170: MX-2616N-14 | Y170: 990 | Z170: 0 | AA170: 990 | AB170: 0.03092 | AC170: =Table1[[#This Row],[New Device NC Discounted Purchase Price2]]*Table1[[#This Row],[36-Month Lease Rate Factor (excluding Software)]]*36 -> 4456.264608 | AD170: 0.02455 | AE170: =Table1[[#This Row],[New Device NC Discounted Purchase Price]]*Table1[[#This Row],[48-Month Lease Rate Factor (excluding Software)]]*48 -> 4717.60656 | AF170: 0.02076 | AG170: =Table1[[#This Row],[New Device NC Discounted Purchase Price2]]*Table1[[#This Row],[60-Month Lease Rate Factor (excluding Software)]]*60 -> 4986.63504 | AH170: 0.03092 | AI170: 0.02455 | AJ170: 0.02076 | AK170: MX-2616N-14 | AL170: 0 | AM170: 0 | AN170: 0 | AO170: 0 | AP170: 0.013 | AQ170: 0.062 | AR170: 4553.28 | AS170: 350 | AT170: Color | AU170: 11 X 17 | AV170: 15000 | AW170: 26 | AX170: 5.9 | AY170: Yes | AZ170: 600 | BA170: 400 | BB170: 3 GB | BC170: http://www.sharpgov.com/nc/NorthCarolinaContractExtension/tabid/2874/Default.aspx | BD170: Digital MFD - 21 to 30 CPM (Color)(Ledger)MX-2616N
A171: B.2 | B171: 15 | C171: Digital MFD - 31 to 40 CPM (Mono) | D171: MFD | E171: 12000 | F171: Mono | G171: 8.5 X 14 | H171: Sharp | BD171: Digital MFD - 31 to 40 CPM (Mono)
A172: B.2 | B172: 16 | C172: Digital MFD - 31 to 40 CPM (Color) | D172: MFD | E172: 12000 | F172: Color | G172: 8.5 X 14 | H172: Sharp | I172: MX-3116N | J172: MX-3116N-16 | K172: 4502.9 | L172: 1237.5 | M172: 3774 | N172: =SUM(Table1[[#This Row],[New Device NC Discounted Purchase Price]:[Estimated Consumables Purchases During 3 Year Lifecycle]]) -> 9514.4 | O172: =Table1[[#This Row],[36-Month Total Lease Payments4]] -> 5012.268048 | P172: =Table1[[#This Row],[Estimated 3 Year Maintenance Agreement Price5]] -> 13659.84 | Q172: =SUM(O172:P172) -> 18672.10805 | R172: 12170 | S172: 0.63 | T172: 4502.9 | U172: 0.63 | V172: 100% with Purchase of Maintenance Plan | W172: 90 days | X172: MX-3116N-16 | Y172: 1237.5 | Z172: 0 | AA172: 1237.5 | AB172: 0.03092 | AC172: =Table1[[#This Row],[New Device NC Discounted Purchase Price2]]*Table1[[#This Row],[36-Month Lease Rate Factor (excluding Software)]]*36 -> 5012.268048 | AD172: 0.02455 | AE172: =Table1[[#This Row],[New Device NC Discounted Purchase Price]]*Table1[[#This Row],[48-Month Lease Rate Factor (excluding Software)]]*48 -> 5306.21736 | AF172: 0.02076 | AG172: =Table1[[#This Row],[New Device NC Discounted Purchase Price2]]*Table1[[#This Row],[60-Month Lease Rate Factor (excluding Software)]]*60 -> 5608.81224 | AH172: 0.03092 | AI172: 0.02455 | AJ172: 0.02076 | AK172: MX-3116N-16 | AL172: 0 | AM172: 0 | AN172: 0 | AO172: 0 | AP172: 0.013 | AQ172: 0.062 | AR172: =IFERROR(IF(F172="Mono",((AN172*3)+((E172*36)*AP172)),((AN172*3)+((E172*36)*AP172*0.62)+((E172*36)*AQ172*0.38))),"") -> 13659.84 | AS172: 350 | AT172: Color | AU172: 11 X 17 | AV172: 15000 | AW172: 31 | AX172: 5.8 | AY172: Yes | AZ172: 600 | BA172: 400 | BB172: 3 GB | BC172: http://www.sharpgov.com/nc/NorthCarolinaContractExtension/tabid/2874/Default.aspx | BD172: Digital MFD - 31 to 40 CPM (Color)MX-3116N
